Workbook

Sheet Bid Summary
B2: GENERAL ESTIMATE SUMMARY
C4: Project Name: | H4: Project No.:
C5: Project Location: | H5: Date:
C6: Contact | H6: State:
C7: Owner: | H7: No. Units:
C8: Contact Email
C9: Contact #
C10: Prepared By
C11: Estimators Email
B12: Gross Area of Building (sf) = | E12: SF | H12: No. Flrs:
B13: Heated Area of Building (sf) = | E13: SF
B14: Cost per Gross Area of Building (sf) = | D14: =$H$69/$D$12 -> 
B15: Cost per Gross Area of Building (sf) = | D15: =H69/D13 ->  | H15: Type Bldg:
C16: Cost per Unit: | D16: =IF(I7=0,"NA",H69/$I$7) -> NA | H16: Projected Duration: | J16: MONTHS
C17: Total Value: | D17: =H69 -> 901.5864
D18: LABOR | E18: MATERIAL | I18: COST | J18: % OF
B19: NO. | C19: ITEMS | D19: (INCL BURDEN) | E19: (INCL. TAX) | F19: SUB / EQUIP | G19: MISC. | H19: TOTAL | I19: Per SF | J19: TOTAL
B21: 1 | C21: DIV. 1-- GENERAL CONDITIONS | D21: ='Gen Cond & Equip'!E180 -> 0 | E21: =Estimate!K162+Estimate!L162 -> 0 | F21: =Estimate!N162 -> 0 | G21: 0 | H21: =SUM(Estimate!Q9) -> 0 | I21: =SUM(H21)/$D$12 ->  | J21: =H21/$H$69 -> 0
B22: =B21+1 -> 2 | C22: =DIV2_SITEWORK -> DIV. 2-- SITE CONSTRUCTION | D22: =Estimate!H163+Estimate!I163 -> 0 | E22: =Estimate!K163+Estimate!L163 -> 0 | F22: =Estimate!N163 -> 0 | G22: =Estimate!P163 -> 0 | H22: =DIV_2_SITE_TOTAL -> 0 | J22: 0 | L22: =SUM(D22:G22) -> 0 | M22: =H22-L22 -> 0
B23: 3 | C23: =DIV3_CONCRETE -> DIV. 3- CONCRETE | D23: =Estimate!H178+Estimate!I178 -> 0 | E23: =Estimate!K178+Estimate!L178 -> 0 | F23: =Estimate!N178 -> 0 | G23: =Estimate!P178 -> 0 | H23: =DIV_3_CONCRETE_TOTAL -> 0 | J23: 0 | L23: 0 | M23: 0
B24: 4 | C24: =DIV4_MASONRY -> DIV. 4-- MASONRY | D24: =Estimate!H539+Estimate!I539 -> 0 | E24: =Estimate!K539+Estimate!L539 -> 0 | F24: =Estimate!N539 -> 0 | G24: =Estimate!P539 -> 0 | H24: =DIV_4_MASONRY_TOTAL -> 0 | J24: 0 | L24: 0 | M24: 0
B25: 5 | C25: =DIV5_METALS -> DIV. 5-- METALS | D25: =Estimate!H612+Estimate!I612 -> 0 | E25: =Estimate!K612+Estimate!L612 -> 0 | F25: =Estimate!N612 -> 0 | G25: =Estimate!P612 -> 0 | H25: =DIV_5_METALS_TOTAL -> 0 | J25: 0 | L25: 0 | M25: 0
B26: 6 | C26: =DIV6_WOODPLASTIC -> DIV. 6-- WOOD & PLASTICS | D26: =Estimate!H719+Estimate!I719 -> 0 | E26: =Estimate!K719+Estimate!L719 -> 0 | F26: =Estimate!N719 -> 0 | G26: =Estimate!P719 -> 0 | H26: =DIV_6_WOOD_TOTAL -> 0 | J26: 0 | L26: 0 | M26: 0
B27: 7 | C27: =DIV7_THERMMOISTURE -> DIV. 7-- THERMAL / MOISTURE PROTECTION | D27: =Estimate!H865+Estimate!I865 -> 0 | E27: =Estimate!K865+Estimate!L865 -> 0 | F27: =Estimate!N865 -> 0 | G27: =Estimate!P865 -> 0 | H27: =DIV_7_THEMMOISTURE -> 0 | J27: 0 | L27: 0 | M27: 0
B28: 8 | C28: =DIV8_DOORWINDOW -> DIV. 8-- DOORS & WINDOWS | D28: =Estimate!H914+Estimate!I914 -> 0 | E28: =Estimate!K914+Estimate!L914 -> 0 | F28: =Estimate!N914 -> 0 | G28: =Estimate!P914 -> 0 | H28: =DIV_8_DOORSWINDOWS -> 0 | J28: 0 | L28: 0 | M28: 0
B29: 9 | C29: =DIV9_FINISHES -> DIV. 9-- FINISHES | D29: =Estimate!H989+Estimate!I989 -> 0 | E29: =Estimate!K989+Estimate!L989 -> 0 | F29: =Estimate!N989 -> 800 | G29: =Estimate!P989 -> 0 | H29: =DIV_9_FINISHES -> 800 | J29: 0.887324831 | L29: 800 | M29: 0
B30: 10 | C30: =DIV10_SPECIALTIES -> DIV. 10-- SPECIALITIES | D30: =Estimate!H1051+Estimate!I1051 -> 0 | E30: =Estimate!K1051+Estimate!L1051 -> 0 | F30: =Estimate!N1051 -> 0 | G30: =Estimate!P1051 -> 0 | H30: =DIV_10_SPECIALTIES -> 0 | J30: 0 | L30: 0 | M30: 0
B31: 11 | C31: =DIV11_EQUIPMENT -> DIV. 11-- SPECIAL EQUIPMENT | D31: =Estimate!H1128+Estimate!I1128 -> 0 | E31: =Estimate!K1128+Estimate!L1128 -> 0 | F31: =Estimate!N1128 -> 0 | G31: =Estimate!P1128 -> 0 | H31: =DIV_11_EQUIPMENT -> 0 | J31: 0 | L31: 0 | M31: 0
B32: 12 | C32: =DIV12_FURNISHINGS -> DIV. 12-- FURNISHINGS | D32: =Estimate!H1175+Estimate!I1174 -> 0 | E32: =Estimate!K1174+Estimate!L1174 -> 0 | F32: =Estimate!N1174 -> 0 | G32: =Estimate!P1174 -> 0 | H32: =DIV_12_FURNISHINGS -> 0 | J32: 0 | L32: 0 | M32: 0
B33: 13 | C33: =DIV13_SPECIALCONSTRUCTION -> DIV. 13-- SPECIAL CONSTRUCTION | D33: =Estimate!H1175 -> 0 | E33: =Estimate!K1175+Estimate!L1175 -> 0 | F33: 0 | G33: =Estimate!P1175 -> 0 | H33: =DIV_13_SPECCONSTRUCTION -> 0 | J33: 0 | L33: 0 | M33: 0
B34: 14 | C34: =DIV14_CONVEYSYSTEM -> DIV. 14-- CONVEYING SYSTEMS | D34: =Estimate!H1198+Estimate!I1198 -> 0 | E34: =Estimate!K1198+Estimate!L1198 -> 0 | F34: =Estimate!N1198 -> 0 | G34: =Estimate!P1198 -> 0 | H34: =DIV_14_CONVEYINGSYSTEMS -> 0 | J34: 0 | L34: 0 | M34: 0
B35: 15 | C35: DIV. 21 -- FIRE SUPPRESSION | D35: =Estimate!H1199+Estimate!I1199 -> 0 | E35: =Estimate!K1199+Estimate!L1199 -> 0 | F35: =Estimate!N1199 -> 0 | G35: =Estimate!P1199 -> 0 | H35: =Estimate!Q1210 -> 0 | J35: 0
B36: 16 | C36: DIV.22 -- PLUMBING | D36: =Estimate!H1200+Estimate!I1200 -> 0 | E36: =Estimate!K1200+Estimate!L1200 -> 0 | F36: =Estimate!N1200 -> 0 | G36: =Estimate!P1200 -> 0 | H36: =Estimate!Q1224 -> 0 | J36: 0
B37: 17 | C37: =DIV15_MECHANICAL -> DIV. 23 -- MECHANICAL | D37: =Estimate!H1254+Estimate!I1254 -> 0 | E37: =Estimate!K1254+Estimate!L1254 -> 0 | F37: =Estimate!N1254 -> 0 | G37: =Estimate!P1254 -> 0 | H37: =DIV_15_MECHANICAL -> 0 | J37: 0 | L37: =SUM(D37:G37) -> 0 | M37: =H37-L37 -> 0
B38: 18 | C38: DIV. 25 -- BUILDING AUTOMATION | D38: =Estimate!H1272+Estimate!I1272 -> 0 | E38: =Estimate!K1272+Estimate!L1272 -> 0 | F38: =Estimate!N1272 -> 0 | G38: =Estimate!P1272 -> 0 | H38: =Estimate!Q1271 -> 0 | J38: 0
B39: 19 | C39: DIV.26 -- ELECTRICAL | D39: =Estimate!H1278+Estimate!I1278 -> 0 | E39: =Estimate!K1278+Estimate!L1278 -> 0 | F39: =Estimate!N1278 -> 0 | G39: =Estimate!P1277 -> 0 | H39: =DIV_16_ELECTRICAL -> 0 | J39: 0
B40: 20 | C40: DIV.27 -- COMMUNICATIONS | D40: =Estimate!H1278+Estimate!I1278 -> 0 | E40: =Estimate!K1278+Estimate!L1278 -> 0 | F40: =Estimate!N1278 -> 0 | G40: =Estimate!P1278 -> 0 | H40: =Estimate!Q1295 -> 0 | J40: 0
B41: 21 | C41: DIV. 28 -- FIRE ALARM AND SECURITY | D41: =Estimate!H1307+Estimate!I1307 -> 0 | E41: =Estimate!K1279+Estimate!L1279 -> 0 | F41: =Estimate!N1279 -> 0 | G41: =Estimate!P1279 -> 0 | H41: =Estimate!Q1306 -> 0 | J41: 0
B42: 22 | C42: DIV.31 -- EARTHWORK | D42: =Estimate!H1315+Estimate!I1315 -> 0 | E42: =Estimate!K1315+Estimate!L1315 -> 0 | F42: =Estimate!N1315 -> 0 | G42: =Estimate!P1315 -> 0 | H42: =Estimate!Q1314 -> 0 | J42: 0
B43: 23 | C43: DIV.32 -- EXTERIOR IMPROVEMENTS | D43: =Estimate!H1338+Estimate!I1338 -> 0 | E43: =Estimate!K1338+Estimate!L1338 -> 0 | F43: =Estimate!N1338 -> 0 | G43: =Estimate!P1338 -> 0 | H43: =Estimate!Q1337 -> 0 | J43: 0
B44: 24 | C44: DIV.33 -- UTILITIES | D44: =Estimate!H1568+Estimate!I1568 -> 0 | E44: =Estimate!K1568+Estimate!L1568 -> 0 | F44: =Estimate!N1568 -> 0 | G44: =Estimate!P1568 -> 0 | H44: =Estimate!Q1567 -> 0 | J44: 0
B45: 25 | C45: DIV.34 -- TRANSPORTATION | D45: =Estimate!H1581+Estimate!I1581 -> 0 | E45: =Estimate!K11570+Estimate!L1581 -> 0 | F45: =Estimate!N1581 -> 0 | G45: =Estimate!P1581 -> 0 | H45: =Estimate!Q1580 -> 0 | J45: 0
B46: 26 | C46: DIV.35 -- WATERWAY & MARINE CONSTRUCTION | D46: =Estimate!H1588+Estimate!I1588 -> 0 | E46: =Estimate!K1588+Estimate!L1588 -> 0 | F46: =Estimate!N1588 -> 0 | G46: =Estimate!P1588 -> 0 | H46: =Estimate!Q1587 -> 0 | J46: 0
B47: 27 | C47: DIV. 41 -- Material Handling Equipment | D47: =Estimate!H1591+Estimate!I1591 -> 0 | E47: =Estimate!K1591+Estimate!L1591 -> 0 | F47: =Estimate!N1591 -> 0 | G47: =Estimate!P1591 -> 0 | H47: =Estimate!Q1590 -> 0 | J47: 0
B48: 28 | C48: DIV. 46 -- WATER & WASTEWATER EQUIPMENT | D48: =Estimate!H1598+Estimate!I1598 -> 0 | E48: =Estimate!K1598+Estimate!L1598 -> 0 | F48: =Estimate!N1598 -> 0 | G48: =Estimate!P1598 -> 0 | H48: =Estimate!Q1597 -> 0 | J48: 0
B49: 29 | C49: DIV. 48 -- ELECTRICAL POWER GENERATION | D49: =Estimate!H1607+Estimate!I1607 -> 0 | E49: =Estimate!K1607+Estimate!L1607 -> 0 | F49: =Estimate!N1607 -> 0 | G49: =Estimate!P1607 -> 0 | H49: =Estimate!Q1606 -> 0 | J49: 0
C52: SUBTOTALS…………………………………………………………… | D52: =SUM(D21:D51) -> 0 | E52: =SUM(E21:E51) -> 0 | F52: =SUM(F21:F51) -> 800 | G52: =SUM(G21:G51) -> 0 | H52: =SUM(H21:H51) -> 800 | I52: =H52/$D$12 ->  | J52: =H52/$H$69 -> 0.887324831
C54: SALES TAX RATE………………………………………………… | D54: 0.07 | E54: …………………………………………………………………………… | H54: INCLUDED
C55: TAX & INS ON LABOR RATE (BURDEN) …………………………….. | D55: 0.18 | E55: ……………………………………………………………………………. | H55: INCLUDED
C56: LABOR ESCALATIONS……………………………………………….. | D56: 0 | E56: X LABOR ……………………………………………………………….. | H56: =D52*D56 -> 0
C58: SPECIAL CONDITIONS (BUSINESS LICENSES, BONDS, INSURANCE, PERMITS, BUILDER'S RISK, ETC.) ……………………………………………………………. | H58: ='Special Cond'!F22 -> 19.624 | I58: =H58/$D$12 ->  | J58: =H58/$H$69 -> 0.0217660781
C61: COST OF WORK……………………………………………………………………………………………………………………………………………….. | H61: =SUM(H52:H59) -> 819.624 | I61: =SUM(H61)/$D$12 ->  | J61: =H61/$H$69 -> 0.9090909091
C63: CONTRACTOR'S FEE ……………………………………………….. | D63: 0.1 | E63: OF COST OF WORK | H63: =SUM(H61)*$D$63 -> 81.9624 | J63: =H63/$H$69 -> 0.09090909091 | L63: =H63/I16 ->  | M63: -- FEE / MONTH
C65: PROJECT TOTAL………………………………………………………………………………………………………………………………………………………….. | H65: =$H$63+$H$61 -> 901.5864 | I65: =SUM(H65)/$D$12 ->  | J65: =H65/$H$69 -> 1
C67: ADJUSTMENT………………………………………………………………………………………………………………………………………………………… | H67: 0
C69: TOTAL BID AMOUNT ………………………………………………………………………………………………………………………………………………… | H69: =H65+H67 -> 901.5864 | I69: =H69/$D$12 -> 

Sheet Gen Cond & Equip
A2: GENERAL CONDITIONS & EQUIPMENT | J2: Project No.:
J3: BASIS: | L3: MONTHS
A4: PROJECT NAME: | B4: ='Bid Summary'!D4 -> 0 | L4: WEEKS
A5: PROJECT LOCATION : | B5: ='Bid Summary'!D5 -> 0 | J5: DATE:
D6: UNIT | E6: TOTAL | F6: PAYROLL TAX | G6: UNIT | H6: TOTAL | I6: SALES / USE | J6: UNIT
A7: DESCRIPTION | B7: QTY | C7: UNIT | D7: LABOR | E7: LABOR | F7: (BURDEN) | G7: MATERIAL | H7: MATERIAL | I7: TAX | J7: SUB / EQUIP | K7: SUB / EQUIP | L7: TOTAL
A9: GENERAL CONDITIONS:
A10: SUPERVISION
A11: SUPERINTENDENT | B11: 0 | C11: WKS | D11: 1154 | E11: =D11*B11 -> 0 | F11: =E11*'Bid Summary'!$D$55 -> 0 | G11: 0 | H11: =G11*B11 -> 0 | I11: =H11*'Bid Summary'!$D$54 -> 0 | J11: 0 | K11: =J11*B11 -> 0 | L11: =SUM(K11)+SUM(H11+I11)+SUM(E11+F11) -> 0
A12: ASST SUPERINTENDENT | C12: WKS | D12: 1000 | E12: 0 | F12: =E12*'Bid Summary'!$D$55 -> 0 | G12: 0 | H12: 0 | I12: =H12*'Bid Summary'!$D$54 -> 0 | J12: 0 | K12: 0 | L12: 0
A13: ASST SUPERINTENDENT | C13: WKS | D13: 900 | E13: 0 | F13: =E13*'Bid Summary'!$D$55 -> 0 | G13: 0 | H13: 0 | I13: =H13*'Bid Summary'!$D$54 -> 0 | J13: 0 | K13: 0 | L13: 0
A14: FIELD OFFICE ASSISTANT | C14: WKS | D14: 900 | E14: 0 | F14: =E14*'Bid Summary'!$D$55 -> 0 | G14: 0 | H14: 0 | I14: =H14*'Bid Summary'!$D$54 -> 0 | J14: 0 | K14: 0 | L14: 0
A15: PROJECT MANAGER | B15: 0 | C15: WKS | D15: 1500 | E15: 0 | F15: =E15*'Bid Summary'!$D$55 -> 0 | G15: 0 | H15: 0 | I15: =H15*'Bid Summary'!$D$54 -> 0 | J15: 0 | K15: 0 | L15: 0
A16: SAFETY MANAGER | C16: WKS | D16: 1450 | E16: 0 | F16: =E16*'Bid Summary'!$D$55 -> 0 | G16: 0 | H16: 0 | I16: =H16*'Bid Summary'!$D$54 -> 0 | J16: 0 | K16: 0 | L16: 0
A17: PRE-CONSTRUCTION REIMBURSMENTS | C17: LS | D17: 0 | E17: 0 | F17: =E17*'Bid Summary'!$D$55 -> 0 | G17: 0 | H17: 0 | I17: =H17*'Bid Summary'!$D$54 -> 0 | J17: 0 | K17: 0 | L17: 0
A18: ASST PROJECT MANAGER | C18: WKS | D18: 1350 | E18: 0 | F18: =E18*'Bid Summary'!$D$55 -> 0 | G18: 0 | H18: 0 | I18: =H18*'Bid Summary'!$D$54 -> 0 | J18: 0 | K18: 0 | L18: 0
A19: E-I-T / OFFICE ENGINEER | C19: WKS | D19: 950 | E19: 0 | F19: =E19*'Bid Summary'!$D$55 -> 0 | G19: 0 | H19: 0 | I19: =H19*'Bid Summary'!$D$54 -> 0 | J19: 0 | K19: 0 | L19: 0
A20: JOB SECRETARY | C20: WKS | D20: 800 | E20: 0 | F20: =E20*'Bid Summary'!$D$55 -> 0 | G20: 0 | H20: 0 | I20: =H20*'Bid Summary'!$D$54 -> 0 | J20: 0 | K20: 0 | L20: 0
A21: CLERK/TIMEKEEPER | C21: WKS | D21: 750 | E21: 0 | F21: =E21*'Bid Summary'!$D$55 -> 0 | G21: 0 | H21: 0 | I21: =H21*'Bid Summary'!$D$54 -> 0 | J21: 0 | K21: 0 | L21: 0
A22: ESTIMATOR | C22: WKS | D22: 1500 | E22: 0 | F22: =E22*'Bid Summary'!$D$55 -> 0 | G22: 0 | H22: 0 | I22: =H22*'Bid Summary'!$D$54 -> 0 | J22: 0 | K22: 0 | L22: 0
A23: WATCHMAN/SECURITY | C23: WKS | D23: 1000 | E23: 0 | F23: =E23*'Bid Summary'!$D$55 -> 0 | G23: 0 | H23: 0 | I23: =H23*'Bid Summary'!$D$54 -> 0 | J23: 0 | K23: 0 | L23: 0
A24: FLAGMAN | C24: WKS | D24: 1150 | E24: 0 | F24: =E24*'Bid Summary'!$D$55 -> 0 | G24: 0 | H24: 0 | I24: =H24*'Bid Summary'!$D$54 -> 0 | J24: 0 | K24: 0 | L24: 0
A25: TRAFFIC CONTROL | C25: LS | D25: 0 | E25: 0 | F25: =E25*'Bid Summary'!$D$55 -> 0 | G25: 0 | H25: 0 | I25: =H25*'Bid Summary'!$D$54 -> 0 | J25: 0 | K25: 0 | L25: 0
A26: SCHEDULING SERVICES | C26: WKS | D26: 500 | E26: 0 | F26: =E26*'Bid Summary'!$D$55 -> 0 | G26: 0 | H26: 0 | I26: =H26*'Bid Summary'!$D$54 -> 0 | J26: 0 | K26: 0 | L26: 0
A27: CREW BONUS | C27: WKS | D27: 1500 | E27: 0 | F27: =E27*'Bid Summary'!$D$55 -> 0 | G27: 0 | H27: 0 | I27: =H27*'Bid Summary'!$D$54 -> 0 | J27: 0 | K27: 0 | L27: 0
A28: SUPPLEMENTAL EXPENSES:
A29: SUPERINTENDENT | C29: WKS | D29: 0 | E29: =D29*B29 -> 0 | F29: =E29*'Bid Summary'!$D$55 -> 0 | G29: 0 | H29: =G29*B29 -> 0 | I29: =H29*'Bid Summary'!$D$54 -> 0 | J29: 0 | K29: =J29*B29 -> 0 | L29: =SUM(K29)+SUM(H29+I29)+SUM(E29+F29) -> 0
A30: ASST SUPERINTENDENT | C30: WKS | D30: 0 | E30: =D30*B30 -> 0 | F30: =E30*'Bid Summary'!$D$55 -> 0 | G30: 0 | H30: =G30*B30 -> 0 | I30: =H30*'Bid Summary'!$D$54 -> 0 | J30: 0 | K30: =J30*B30 -> 0 | L30: =SUM(K30)+SUM(H30+I30)+SUM(E30+F30) -> 0
A31: OTHER | C31: WKS | D31: 0 | E31: =D31*B31 -> 0 | F31: =E31*'Bid Summary'!$D$55 -> 0 | G31: 0 | H31: =G31*B31 -> 0 | I31: =H31*'Bid Summary'!$D$54 -> 0 | J31: 0 | K31: =J31*B31 -> 0 | L31: =SUM(K31)+SUM(H31+I31)+SUM(E31+F31) -> 0
A32: MOVING EXPENSES | C32: LS | D32: 0 | E32: =D32*B32 -> 0 | F32: =E32*'Bid Summary'!$D$55 -> 0 | G32: 0 | H32: =G32*B32 -> 0 | I32: =H32*'Bid Summary'!$D$54 -> 0 | J32: 0 | K32: =J32*B32 -> 0 | L32: =SUM(K32)+SUM(H32+I32)+SUM(E32+F32) -> 0
A33: TRAVEL:
A34: DIVISION MANAGER | C34: WKS | E34: =D34*B34 -> 0 | F34: =E34*'Bid Summary'!$D$55 -> 0 | G34: 100 | H34: =G34*B34 -> 0 | I34: =H34*'Bid Summary'!$D$54 -> 0 | J34: 0 | K34: =J34*B34 -> 0 | L34: =SUM(K34)+SUM(H34+I34)+SUM(E34+F34) -> 0
A35: PROJECT MANAGER | C35: WKS | D35: 0 | E35: =D35*B35 -> 0 | F35: =E35*'Bid Summary'!$D$55 -> 0 | G35: 0 | H35: =G35*B35 -> 0 | I35: =H35*'Bid Summary'!$D$54 -> 0 | J35: 0 | K35: =J35*B35 -> 0 | L35: =SUM(K35)+SUM(H35+I35)+SUM(E35+F35) -> 0
A36: SUPERINTENDENT LIVING EXPENSES | C36: WKS | D36: 0 | E36: =D36*B36 -> 0 | F36: =E36*'Bid Summary'!$D$55 -> 0 | G36: 0 | H36: =G36*B36 -> 0 | I36: =H36*'Bid Summary'!$D$54 -> 0 | J36: 0 | K36: =J36*B36 -> 0 | L36: =SUM(K36)+SUM(H36+I36)+SUM(E36+F36) -> 0
A37: CREW LIVING EXPENSES | C37: WKS | D37: 0 | E37: =D37*B37 -> 0 | F37: =E37*'Bid Summary'!$D$55 -> 0 | G37: 0 | H37: =G37*B37 -> 0 | I37: =H37*'Bid Summary'!$D$54 -> 0 | J37: 0 | K37: =J37*B37 -> 0 | L37: =SUM(K37)+SUM(H37+I37)+SUM(E37+F37) -> 0
A38: UTILITIES
A39: TEMP POWER USAGE - OFFICE | C39: MO | D39: 0 | E39: =D39*B39 -> 0 | F39: =E39*'Bid Summary'!$D$55 -> 0 | G39: 200 | H39: =G39*B39 -> 0 | I39: =H39*'Bid Summary'!$D$54 -> 0 | J39: 0 | K39: =J39*B39 -> 0 | L39: =SUM(K39)+SUM(H39+I39)+SUM(E39+F39) -> 0
A40: - BUILDING | C40: MO | D40: 0 | E40: 0 | F40: =E40*'Bid Summary'!$D$55 -> 0 | G40: 0 | H40: 0 | I40: =H40*'Bid Summary'!$D$54 -> 0 | J40: 0 | K40: 0 | L40: 0
A41: TEMPORARY WATER USAGE | C41: MO | D41: 0 | E41: 0 | F41: =E41*'Bid Summary'!$D$55 -> 0 | G41: 800 | H41: 0 | I41: =H41*'Bid Summary'!$D$54 -> 0 | J41: 0 | K41: 0 | L41: 0
A42: TELEPHONE-CONTRACTOR | C42: MO | D42: 0 | E42: 0 | F42: =E42*'Bid Summary'!$D$55 -> 0 | G42: 150 | H42: 0 | I42: =H42*'Bid Summary'!$D$54 -> 0 | J42: 0 | K42: 0 | L42: 0
A43: MOBILE PHONES-( QTY @ $65/MO / PHONE) | C43: MO | D43: 0 | E43: 0 | F43: =E43*'Bid Summary'!$D$55 -> 0 | G43: 250 | H43: 0 | I43: =H43*'Bid Summary'!$D$54 -> 0 | J43: 0 | K43: 0 | L43: 0
A44: TELEPHONE-ARCHITECT | C44: MO | D44: 0 | E44: 0 | F44: =E44*'Bid Summary'!$D$55 -> 0 | G44: 100 | H44: 0 | I44: =H44*'Bid Summary'!$D$54 -> 0 | J44: 0 | K44: 0 | L44: 0
A45: TEMPORARY WIRING & LIGHTING | C45: LS | D45: 0 | E45: 0 | F45: =E45*'Bid Summary'!$D$55 -> 0 | G45: 0 | H45: 0 | I45: =H45*'Bid Summary'!$D$54 -> 0 | J45: 0 | K45: 0 | L45: 0
A46: EXTENSION CORDS & BULBS | C46: LS | D46: 0 | E46: 0 | F46: =E46*'Bid Summary'!$D$55 -> 0 | G46: 0 | H46: 0 | I46: =H46*'Bid Summary'!$D$54 -> 0 | J46: 0 | K46: 0 | L46: 0
A47: TEMPORARY PLUMBING | C47: LS | D47: 0 | E47: 0 | F47: =E47*'Bid Summary'!$D$55 -> 0 | G47: 0 | H47: 0 | I47: =H47*'Bid Summary'!$D$54 -> 0 | J47: 0 | K47: 0 | L47: 0
A48: ICE, CUPS, COOLER | C48: MO | D48: 0 | E48: 0 | F48: =E48*'Bid Summary'!$D$55 -> 0 | G48: 20 | H48: 0 | I48: =H48*'Bid Summary'!$D$54 -> 0 | J48: 0 | K48: 0 | L48: 0
A49: TEMPORARY HEAT | C49: MO | D49: 0 | E49: 0 | F49: =E49*'Bid Summary'!$D$55 -> 0 | G49: 500 | H49: 0 | I49: =H49*'Bid Summary'!$D$54 -> 0 | J49: 0 | K49: 0 | L49: 0
A50: TEMPORARY TOILETS | C50: MO | D50: 0 | E50: 0 | F50: =E50*'Bid Summary'!$D$55 -> 0 | G50: 85 | H50: 0 | I50: =H50*'Bid Summary'!$D$54 -> 0 | K50: 0 | L50: 0
A51: MISC.
A52: TEMPORARY FIELD LABOR | C52: WK | D52: 250 | E52: =D52*B52 -> 0 | F52: =E52*'Bid Summary'!$D$55 -> 0 | G52: 0 | H52: =G52*B52 -> 0 | I52: =H52*'Bid Summary'!$D$54 -> 0 | J52: 0 | K52: =J52*B52 -> 0 | L52: =SUM(K52)+SUM(H52+I52)+SUM(E52+F52) -> 0
A53: PROGRESS PHOTOGRAPHS | C53: MO | D53: 200 | E53: 0 | F53: =E53*'Bid Summary'!$D$55 -> 0 | G53: 0 | H53: 0 | I53: =H53*'Bid Summary'!$D$54 -> 0 | J53: 0 | K53: 0 | L53: 0
A54: SURVEYOR | C54: LS | D54: 0 | E54: 0 | F54: =E54*'Bid Summary'!$D$55 -> 0 | G54: 0 | H54: 0 | I54: =H54*'Bid Summary'!$D$54 -> 0 | J54: 10000 | K54: 0 | L54: 0
A55: JOB/PROJECT SIGN | C55: LS | D55: 0 | E55: 0 | F55: =E55*'Bid Summary'!$D$55 -> 0 | G55: 0 | H55: 0 | I55: =H55*'Bid Summary'!$D$54 -> 0 | J55: 500 | K55: 0 | L55: 0
A56: TEMPORARY ROADS | C56: MO | D56: 0 | E56: 0 | F56: =E56*'Bid Summary'!$D$55 -> 0 | G56: 0 | H56: 0 | I56: =H56*'Bid Summary'!$D$54 -> 0 | J56: 0 | K56: 0 | L56: 0
A57: YARD LOT & STREET RENTAL | C57: MO | D57: 0 | E57: 0 | F57: =E57*'Bid Summary'!$D$55 -> 0 | G57: 0 | H57: 0 | I57: =H57*'Bid Summary'!$D$54 -> 0 | J57: 0 | K57: 0 | L57: 0
A58: OFFICE SUPPLIES & POSTAGE | C58: MO | D58: 0 | E58: 0 | F58: =E58*'Bid Summary'!$D$55 -> 0 | G58: 15 | H58: 0 | I58: =H58*'Bid Summary'!$D$54 -> 0 | J58: 0 | K58: 0 | L58: 0
A59: SANITARY SUPPLIES | C59: LS | D59: 0 | E59: 0 | F59: =E59*'Bid Summary'!$D$55 -> 0 | G59: 0 | H59: 0 | I59: =H59*'Bid Summary'!$D$54 -> 0 | J59: 0 | K59: 0 | L59: 0
A60: REPAIR STREET & SIDEWALK | C60: LS | D60: 0 | E60: 0 | F60: =E60*'Bid Summary'!$D$55 -> 0 | G60: 0 | H60: 0 | I60: =H60*'Bid Summary'!$D$54 -> 0 | J60: 0 | K60: 0 | L60: 0
A61: BLUEPRINTS/EXTRA DRAWINGS | C61: LS | D61: 0 | E61: 0 | F61: =E61*'Bid Summary'!$D$55 -> 0 | G61: 250 | H61: 0 | I61: =H61*'Bid Summary'!$D$54 -> 0 | J61: 0 | K61: 0 | L61: 0
A62: TRAFFIC CONTROL | C62: LS | D62: 0 | E62: 0 | F62: =E62*'Bid Summary'!$D$55 -> 0 | G62: 0 | H62: 0 | I62: =H62*'Bid Summary'!$D$54 -> 0 | J62: 24000 | K62: 0 | L62: 0
A63: CPM Scheduler (3rd) Party | C63: LS | D63: 0 | E63: 0 | F63: =E63*'Bid Summary'!$D$55 -> 0 | G63: 0 | H63: 0 | I63: =H63*'Bid Summary'!$D$54 -> 0 | J63: 20000 | K63: 0 | L63: 0
A64: MISCELLANEOUS ITEMS
A65: SEWER TAP FEE | C65: LS | D65: 0 | E65: =D65*B65 -> 0 | F65: =E65*'Bid Summary'!$D$55 -> 0 | G65: 0 | H65: =G65*B65 -> 0 | I65: =H65*'Bid Summary'!$D$54 -> 0 | J65: 0 | K65: =J65*B65 -> 0 | L65: =SUM(K65)+SUM(H65+I65)+SUM(E65+F65) -> 0
A66: WATER TAP FEE | C66: LS | D66: 0 | E66: 0 | F66: =E66*'Bid Summary'!$D$55 -> 0 | G66: 0 | H66: 0 | I66: =H66*'Bid Summary'!$D$54 -> 0 | J66: 0 | K66: 0 | L66: 0
A67: AGC FEE | C67: LS | D67: 0 | E67: 0 | F67: =E67*'Bid Summary'!$D$55 -> 0 | G67: 0 | H67: 0 | I67: =H67*'Bid Summary'!$D$54 -> 0 | J67: 0 | K67: 0 | L67: 0
A68: PHOTOGRAPHS | C68: LS | D68: 0 | E68: 0 | F68: =E68*'Bid Summary'!$D$55 -> 0 | G68: 0 | H68: 0 | I68: =H68*'Bid Summary'!$D$54 -> 0 | J68: 0 | K68: 0 | L68: 0
A69: AS-BUILT DRAWINGS | C69: LS | D69: 0 | E69: 0 | F69: =E69*'Bid Summary'!$D$55 -> 0 | G69: 0 | H69: 0 | I69: =H69*'Bid Summary'!$D$54 -> 0 | J69: 1000 | K69: 0 | L69: 0
A70: SPECIAL INSPECTION | C70: LS | D70: 0 | E70: 0 | F70: =E70*'Bid Summary'!$D$55 -> 0 | G70: 0 | H70: 0 | I70: =H70*'Bid Summary'!$D$54 -> 0 | J70: 0 | K70: 0 | L70: 0
A71: TESTING | C71: LS | D71: 0 | E71: 0 | F71: =E71*'Bid Summary'!$D$55 -> 0 | G71: 0 | H71: 0 | I71: =H71*'Bid Summary'!$D$54 -> 0 | J71: 2000 | K71: 0 | L71: 0
A72: WEATHER REPORTS | C72: LS | D72: 0 | E72: 0 | F72: =E72*'Bid Summary'!$D$55 -> 0 | G72: 0 | H72: 0 | I72: =H72*'Bid Summary'!$D$54 -> 0 | J72: 0 | K72: 0 | L72: 0
A73: EMPLOYEE INSURANCE | C73: LS | D73: 0 | E73: 0 | F73: =E73*'Bid Summary'!$D$55 -> 0 | G73: 0 | H73: 0 | I73: =H73*'Bid Summary'!$D$54 -> 0 | J73: 0 | K73: 0 | L73: 0
A74: SAFETY
A75: FIRE EXTINQUISHERS | C75: LS | D75: 0 | E75: =D75*B75 -> 0 | F75: =E75*'Bid Summary'!$D$55 -> 0 | G75: 2000 | H75: =G75*B75 -> 0 | I75: =H75*'Bid Summary'!$D$54 -> 0 | J75: 0 | K75: =J75*B75 -> 0 | L75: =SUM(K75)+SUM(H75+I75)+SUM(E75+F75) -> 0
A76: FIRST AID SUPPLIES | C76: LS | D76: 0 | E76: 0 | F76: =E76*'Bid Summary'!$D$55 -> 0 | G76: 500 | H76: 0 | I76: =H76*'Bid Summary'!$D$54 -> 0 | J76: 0 | K76: 0 | L76: 0
A77: HARD HATS | C77: LS | D77: 0 | E77: 0 | F77: =E77*'Bid Summary'!$D$55 -> 0 | G77: 200 | H77: 0 | I77: =H77*'Bid Summary'!$D$54 -> 0 | J77: 0 | K77: 0 | L77: 0
A78: RAINGEAR, BOOTS, ETC. | C78: LS | D78: 0 | E78: 0 | F78: =E78*'Bid Summary'!$D$55 -> 0 | G78: 0 | H78: 0 | I78: =H78*'Bid Summary'!$D$54 -> 0 | J78: 0 | K78: 0 | L78: 0
A79: SIGNS | C79: LS | D79: 0 | E79: 0 | F79: =E79*'Bid Summary'!$D$55 -> 0 | G79: 0 | H79: 0 | I79: =H79*'Bid Summary'!$D$54 -> 0 | J79: 0 | K79: 0 | L79: 0
A80: RAILINGS | C80: LF | D80: 0 | E80: 0 | F80: =E80*'Bid Summary'!$D$55 -> 0 | G80: 0 | H80: 0 | I80: =H80*'Bid Summary'!$D$54 -> 0 | J80: 0 | K80: 0 | L80: 0
A81: MISCELLANEOUS SAFETY ITEMS | C81: LS | D81: 0 | E81: 0 | F81: =E81*'Bid Summary'!$D$55 -> 0 | G81: 350 | H81: 0 | I81: =H81*'Bid Summary'!$D$54 -> 0 | J81: 0 | K81: 0 | L81: 0
A82: SECURITY FENCING | C82: LS | D82: 0 | E82: 0 | F82: =E82*'Bid Summary'!$D$55 -> 0 | G82: 4000 | H82: 0 | I82: =H82*'Bid Summary'!$D$54 -> 0 | J82: 0 | K82: 0 | L82: 0
A83: CLEAN-UP
A84: WEEKLY CLEAN (2 MEN @ $145/MD) | C84: MD | D84: 145 | E84: =D84*B84 -> 0 | F84: =E84*'Bid Summary'!$D$55 -> 0 | G84: 0 | H84: =G84*B84 -> 0 | I84: =H84*'Bid Summary'!$D$54 -> 0 | J84: 0 | K84: =J84*B84 -> 0 | L84: =SUM(K84)+SUM(H84+I84)+SUM(E84+F84) -> 0
A85: DUMPSTERS | C85: EA | D85: 0 | E85: 0 | F85: =E85*'Bid Summary'!$D$55 -> 0 | G85: 550 | H85: 0 | I85: =H85*'Bid Summary'!$D$54 -> 0 | J85: 0 | K85: 0 | L85: 0
A86: HAUL TRASH /DUMPSTER RENTAL | C86: WKS | D86: 0 | E86: 0 | F86: =E86*'Bid Summary'!$D$55 -> 0 | G86: 0 | H86: 0 | I86: =H86*'Bid Summary'!$D$54 -> 0 | J86: 0 | K86: 0 | L86: 0
A87: FINAL CLEAN-BUILDING | C87: LS | D87: 0 | E87: 0 | F87: =E87*'Bid Summary'!$D$55 -> 0 | G87: 1000 | H87: 0 | I87: =H87*'Bid Summary'!$D$54 -> 0 | J87: 0 | K87: 0 | L87: 0
A88: GLASS | C88: SF | D88: 0 | E88: 0 | F88: =E88*'Bid Summary'!$D$55 -> 0 | G88: 0 | H88: 0 | I88: =H88*'Bid Summary'!$D$54 -> 0 | J88: 0 | K88: 0 | L88: 0
A89: GROUNDS | C89: LS | D89: 0 | E89: 0 | F89: =E89*'Bid Summary'!$D$55 -> 0 | G89: 0 | H89: 0 | I89: =H89*'Bid Summary'!$D$54 -> 0 | J89: 0 | K89: 0 | L89: 0
A90: SUBTOTAL GENERAL CONDITIONS | E90: =SUM(E11:E89) -> 0 | F90: =SUM(F11:F89) -> 0 | H90: =SUM(H11:H89) -> 0 | I90: =SUM(I11:I89) -> 0 | K90: =SUM(K11:K89) -> 0 | L90: 0 | M90: =SUM(L11:L89) -> 0 | N90: - balance check
A91: EQUIPMENT | L91: 0
A92: CARPENTRY & FORMWORK EQUIPMENT | C92: LS | E92: =D92*B92 -> 0 | F92: =E92*'Bid Summary'!$D$55 -> 0 | G92: 0 | H92: =G92*B92 -> 0 | I92: =H92*'Bid Summary'!$D$54 -> 0 | J92: 0 | K92: =J92*B92 -> 0 | L92: 0
A93: HAND DRILLS | C93: | | E93: 0 | F93: =E93*'Bid Summary'!$D$55 -> 0 | G93: 0 | H93: 0 | I93: =H93*'Bid Summary'!$D$54 -> 0 | J93: 0 | K93: 0 | L93: 0
A94: CIRCULAR SAW | C94: | | E94: 0 | F94: =E94*'Bid Summary'!$D$55 -> 0 | G94: 0 | H94: 0 | I94: =H94*'Bid Summary'!$D$54 -> 0 | J94: 0 | K94: 0 | L94: 0
A95: RADIAL ARM SAW | C95: | | E95: 0 | F95: =E95*'Bid Summary'!$D$55 -> 0 | G95: 0 | H95: 0 | I95: =H95*'Bid Summary'!$D$54 -> 0 | J95: 0 | K95: 0 | L95: 0
A96: RAMSET | C96: | | E96: 0 | F96: =E96*'Bid Summary'!$D$55 -> 0 | G96: 0 | H96: 0 | I96: =H96*'Bid Summary'!$D$54 -> 0 | J96: 0 | K96: 0 | L96: 0
A97: DOOR HANGING EQUIPMENT | C97: | | E97: 0 | F97: =E97*'Bid Summary'!$D$55 -> 0 | G97: 0 | H97: 0 | I97: =H97*'Bid Summary'!$D$54 -> 0 | J97: 0 | K97: 0 | L97: 0
A98: ROTARY HAMMER | C98: | | E98: 0 | F98: =E98*'Bid Summary'!$D$55 -> 0 | G98: 0 | H98: 0 | I98: =H98*'Bid Summary'!$D$54 -> 0 | J98: 0 | K98: 0 | L98: 0
A99: SAW BLADES,BITS,ETC. | C99: | | E99: 0 | F99: =E99*'Bid Summary'!$D$55 -> 0 | G99: 0 | H99: 0 | I99: =H99*'Bid Summary'!$D$54 -> 0 | J99: 0 | K99: 0 | L99: 0
A100: TRANSPORTATION
A101: PICKUP TRUCK-SUPERINTENDENT (1 EA) | C101: MOS | D101: 0 | E101: =D101*B101 -> 0 | F101: =E101*'Bid Summary'!$D$55 -> 0 | G101: 0 | H101: =G101*B101 -> 0 | I101: =H101*'Bid Summary'!$D$54 -> 0 | J101: 550 | K101: =J101*B101 -> 0 | L101: =SUM(K101)+SUM(H101+I101)+SUM(E101+F101) -> 0
A102: PICKUP TRUCK-PROJECT MGR. (1 EA) | C102: MOS | D102: 0 | E102: =D102*B102 -> 0 | F102: =E102*'Bid Summary'!$D$55 -> 0 | G102: 0 | H102: =G102*B102 -> 0 | I102: =H102*'Bid Summary'!$D$54 -> 0 | J102: 550 | K102: =J102*B102 -> 0 | L102: =SUM(K102)+SUM(H102+I102)+SUM(E102+F102) -> 0
A103: PICKUP TRUCK-ASSISTANT/LABOR (1 EA) | C103: MOS | D103: 0 | E103: =D103*B103 -> 0 | F103: =E103*'Bid Summary'!$D$55 -> 0 | G103: 0 | H103: =G103*B103 -> 0 | I103: =H103*'Bid Summary'!$D$54 -> 0 | J103: 550 | K103: =J103*B103 -> 0 | L103: =SUM(K103)+SUM(H103+I103)+SUM(E103+F103) -> 0
A104: MATERIAL HANDLING EQUIPMENT
A105: EQUIPMENT | C105: MOS | D105: 0 | E105: =D105*B105 -> 0 | F105: =E105*'Bid Summary'!$D$55 -> 0 | G105: 600 | H105: =G105*B105 -> 0 | I105: =H105*'Bid Summary'!$D$54 -> 0 | J105: 0 | K105: =J105*B105 -> 0 | L105: =SUM(K105)+SUM(H105+I105)+SUM(E105+F105) -> 0
A106: FORKLIFT | C106: MOS | E106: =D106*B106 -> 0 | F106: =E106*'Bid Summary'!$D$55 -> 0 | G106: 0 | H106: =G106*B106 -> 0 | I106: =H106*'Bid Summary'!$D$54 -> 0 | J106: 0 | K106: =J106*B106 -> 0 | L106: =SUM(K106)+SUM(H106+I106)+SUM(E106+F106) -> 0
A107: MOTOR GRADER | C107: MOS | E107: =D107*B107 -> 0 | F107: =E107*'Bid Summary'!$D$55 -> 0 | G107: 0 | H107: =G107*B107 -> 0 | I107: =H107*'Bid Summary'!$D$54 -> 0 | J107: 0 | K107: =J107*B107 -> 0 | L107: =SUM(K107)+SUM(H107+I107)+SUM(E107+F107) -> 0
A108: MOBILE CRANE | C108: LS | E108: =D108*B108 -> 0 | F108: =E108*'Bid Summary'!$D$55 -> 0 | G108: 0 | H108: =G108*B108 -> 0 | I108: =H108*'Bid Summary'!$D$54 -> 0 | J108: 0 | K108: =J108*B108 -> 0 | L108: =SUM(K108)+SUM(H108+I108)+SUM(E108+F108) -> 0
A109: WHEELBARROWS | C109: LS | E109: =D109*B109 -> 0 | F109: =E109*'Bid Summary'!$D$55 -> 0 | G109: 0 | H109: =G109*B109 -> 0 | I109: =H109*'Bid Summary'!$D$54 -> 0 | J109: 0 | K109: =J109*B109 -> 0 | L109: =SUM(K109)+SUM(H109+I109)+SUM(E109+F109) -> 0
A110: CONCRETE EQUIPMENT
A111: BUGGIES | C111: MOS | E111: =D111*B111 -> 0 | F111: =E111*'Bid Summary'!$D$55 -> 0 | G111: 0 | H111: =G111*B111 -> 0 | I111: =H111*'Bid Summary'!$D$54 -> 0 | J111: 0 | K111: =J111*B111 -> 0 | L111: =SUM(K111)+SUM(H111+I111)+SUM(E111+F111) -> 0
A112: CONCRETE BUCKET | C112: MOS | E112: 0 | F112: =E112*'Bid Summary'!$D$55 -> 0 | G112: 0 | H112: 0 | I112: =H112*'Bid Summary'!$D$54 -> 0 | J112: 0 | K112: 0 | L112: 0
A113: CONVEYORS | C113: MOS | E113: 0 | F113: =E113*'Bid Summary'!$D$55 -> 0 | G113: 0 | H113: 0 | I113: =H113*'Bid Summary'!$D$54 -> 0 | J113: 0 | K113: 0 | L113: 0
A114: TREMIE | C114: LS | E114: 0 | F114: =E114*'Bid Summary'!$D$55 -> 0 | G114: 0 | H114: 0 | I114: =H114*'Bid Summary'!$D$54 -> 0 | J114: 0 | K114: 0 | L114: 0
A115: CHUTES | C115: LS | E115: 0 | F115: =E115*'Bid Summary'!$D$55 -> 0 | G115: 0 | H115: 0 | I115: =H115*'Bid Summary'!$D$54 -> 0 | J115: 0 | K115: 0 | L115: 0
A116: VIBRATORS | C116: MOS | E116: 0 | F116: =E116*'Bid Summary'!$D$55 -> 0 | G116: 0 | H116: 0 | I116: =H116*'Bid Summary'!$D$54 -> 0 | J116: 0 | K116: 0 | L116: 0
A117: CONCRETE PUMP & OPERATOR | C117: CY | E117: 0 | F117: =E117*'Bid Summary'!$D$55 -> 0 | G117: 0 | H117: 0 | I117: =H117*'Bid Summary'!$D$54 -> 0 | J117: 0 | K117: 0 | L117: 0
A118: CONCRETE SAW & BLADES | C118: MOS | E118: 0 | F118: =E118*'Bid Summary'!$D$55 -> 0 | G118: 0 | H118: 0 | I118: =H118*'Bid Summary'!$D$54 -> 0 | J118: 0 | K118: 0 | L118: 0
A119: GRINDERS & STONES | C119: LS | E119: 0 | F119: =E119*'Bid Summary'!$D$55 -> 0 | G119: 0 | H119: 0 | I119: =H119*'Bid Summary'!$D$54 -> 0 | J119: 0 | K119: 0 | L119: 0
A120: CRANES
A121: CONVENTIONAL CRANE W/OPR. | C121: MOS | E121: =D121*B121 -> 0 | F121: =E121*'Bid Summary'!$D$55 -> 0 | G121: 0 | H121: =G121*B121 -> 0 | I121: =H121*'Bid Summary'!$D$54 -> 0 | J121: 0 | K121: =J121*B121 -> 0 | L121: =SUM(K121)+SUM(H121+I121)+SUM(E121+F121) -> 0
A122: TOWER CRANE W/OPR. | C122: MOS | E122: 0 | F122: =E122*'Bid Summary'!$D$55 -> 0 | G122: 0 | H122: 0 | I122: =H122*'Bid Summary'!$D$54 -> 0 | J122: 0 | K122: 0 | L122: 0
A123: CRANE ELEC. POWER / FUEL | C123: MOS | E123: 0 | F123: =E123*'Bid Summary'!$D$55 -> 0 | G123: 0 | H123: 0 | I123: =H123*'Bid Summary'!$D$54 -> 0 | J123: 0 | K123: 0 | L123: 0
A124: TOWER CRANE ELECTRIC WIRING | C124: LS | E124: 0 | F124: =E124*'Bid Summary'!$D$55 -> 0 | G124: 0 | H124: 0 | I124: =H124*'Bid Summary'!$D$54 -> 0 | J124: 0 | K124: 0 | L124: 0
A125: TOWER CRANE FOUNDATIONS | C125: LS | E125: 0 | F125: =E125*'Bid Summary'!$D$55 -> 0 | G125: 0 | H125: 0 | I125: =H125*'Bid Summary'!$D$54 -> 0 | J125: 0 | K125: 0 | L125: 0
A126: CRANE-ERCT/JUMP/DISMN | C126: LS | E126: 0 | F126: =E126*'Bid Summary'!$D$55 -> 0 | G126: 0 | H126: 0 | I126: =H126*'Bid Summary'!$D$54 -> 0 | J126: 0 | K126: 0 | L126: 0
A127: TOWER CRANE CONSULTANT | C127: LS | E127: 0 | F127: =E127*'Bid Summary'!$D$55 -> 0 | G127: 0 | H127: 0 | I127: =H127*'Bid Summary'!$D$54 -> 0 | J127: 0 | K127: 0 | L127: 0
A128: TOWER CRANE ANCHOR BOLTS | C128: LS | E128: 0 | F128: =E128*'Bid Summary'!$D$55 -> 0 | G128: 0 | H128: 0 | I128: =H128*'Bid Summary'!$D$54 -> 0 | J128: 0 | K128: 0 | L128: 0
A129: FREIGHT | C129: LS | E129: 0 | F129: =E129*'Bid Summary'!$D$55 -> 0 | G129: 0 | H129: 0 | I129: =H129*'Bid Summary'!$D$54 -> 0 | J129: 0 | K129: 0 | L129: 0
A130: CHERRY PICKER W/OPR. | C130: MOS | E130: 0 | F130: =E130*'Bid Summary'!$D$55 -> 0 | G130: 0 | H130: 0 | I130: =H130*'Bid Summary'!$D$54 -> 0 | J130: 0 | K130: 0 | L130: 0
A131: OCCASIONAL CRANE RENTAL | C131: LS | E131: 0 | F131: =E131*'Bid Summary'!$D$55 -> 0 | G131: 0 | H131: 0 | I131: =H131*'Bid Summary'!$D$54 -> 0 | J131: 0 | K131: 0 | L131: 0
A132: HOISTS & ELEVATORS
A133: MATERIAL HOIST & OPERATOR | C133: MOS | E133: =D133*B133 -> 0 | F133: =E133*'Bid Summary'!$D$55 -> 0 | G133: 0 | H133: =G133*B133 -> 0 | I133: =H133*'Bid Summary'!$D$54 -> 0 | J133: 0 | K133: =J133*B133 -> 0 | L133: =SUM(K133)+SUM(H133+I133)+SUM(E133+F133) -> 0
A134: MATL/PERS HOIST & OPERATOR | C134: MOS | E134: 0 | F134: =E134*'Bid Summary'!$D$55 -> 0 | G134: 0 | H134: 0 | I134: =H134*'Bid Summary'!$D$54 -> 0 | J134: 0 | K134: 0 | L134: 0
A135: HOIST FOUNDATION | C135: LS | E135: 0 | F135: =E135*'Bid Summary'!$D$55 -> 0 | G135: 0 | H135: 0 | I135: =H135*'Bid Summary'!$D$54 -> 0 | J135: 0 | K135: 0 | L135: 0
A136: HOIST ELECTRIC POWER | C136: MOS | E136: 0 | F136: =E136*'Bid Summary'!$D$55 -> 0 | G136: 0 | H136: 0 | I136: =H136*'Bid Summary'!$D$54 -> 0 | J136: 0 | K136: 0 | L136: 0
A137: HOIST ELECTRIC WIRING | C137: LS | E137: 0 | F137: =E137*'Bid Summary'!$D$55 -> 0 | G137: 0 | H137: 0 | I137: =H137*'Bid Summary'!$D$54 -> 0 | J137: 0 | K137: 0 | L137: 0
A138: ANCHOR BOLTS | C138: LS | E138: 0 | F138: =E138*'Bid Summary'!$D$55 -> 0 | G138: 0 | H138: 0 | I138: =H138*'Bid Summary'!$D$54 -> 0 | J138: 0 | K138: 0 | L138: 0
A139: FREIGHT | C139: LS | E139: 0 | F139: =E139*'Bid Summary'!$D$55 -> 0 | G139: 0 | H139: 0 | I139: =H139*'Bid Summary'!$D$54 -> 0 | J139: 0 | K139: 0 | L139: 0
A140: HOIST-ERECT/JUMP/DISMN | C140: LS | E140: 0 | F140: =E140*'Bid Summary'!$D$55 -> 0 | G140: 0 | H140: 0 | I140: =H140*'Bid Summary'!$D$54 -> 0 | J140: 0 | K140: 0 | L140: 0
A141: PROTECT BLDG. ELEVATOR CAB | C141: LS | E141: 0 | F141: =E141*'Bid Summary'!$D$55 -> 0 | G141: 0 | H141: 0 | I141: =H141*'Bid Summary'!$D$54 -> 0 | J141: 0 | K141: 0 | L141: 0
A142: BUILDING ELEVATOR OPERATOR | C142: MOS | E142: 0 | F142: =E142*'Bid Summary'!$D$55 -> 0 | G142: 0 | H142: 0 | I142: =H142*'Bid Summary'!$D$54 -> 0 | J142: 0 | K142: 0 | L142: 0
A143: MISCELLANEOUS EQUIPMENT
A144: OFFICE TRAILER - GC | C144: MOS | D144: 0 | E144: =D144*B144 -> 0 | F144: =E144*'Bid Summary'!$D$55 -> 0 | G144: 600 | H144: =G144*B144 -> 0 | I144: =H144*'Bid Summary'!$D$54 -> 0 | J144: 0 | K144: =J144*B144 -> 0 | L144: =SUM(K144)+SUM(H144+I144)+SUM(E144+F144) -> 0
A145: OFFICE TRAILER - A & E | C145: MOS | D145: 0 | E145: 0 | F145: =E145*'Bid Summary'!$D$55 -> 0 | G145: 0 | H145: 0 | I145: =H145*'Bid Summary'!$D$54 -> 0 | J145: 0 | K145: 0 | L145: 0
A146: OFFICE EQUIPMENT - GC | C146: LS | D146: 0 | E146: 0 | F146: =E146*'Bid Summary'!$D$55 -> 0 | G146: 500 | H146: 0 | I146: =H146*'Bid Summary'!$D$54 -> 0 | J146: 0 | K146: 0 | L146: 0
A147: COMPUTER TERMINAL | C147: MOS | D147: 0 | E147: 0 | F147: =E147*'Bid Summary'!$D$55 -> 0 | G147: 0 | H147: 0 | I147: =H147*'Bid Summary'!$D$54 -> 0 | J147: 0 | K147: 0 | L147: 0
A148: PHONE-FAX-COMPUTER | C148: MOS | D148: 0 | E148: 0 | F148: =E148*'Bid Summary'!$D$55 -> 0 | G148: 100 | H148: 0 | I148: =H148*'Bid Summary'!$D$54 -> 0 | J148: 0 | K148: 0 | L148: 0
A149: CUTTING TORCH (INC. GAS) | C149: MOS | D149: 0 | E149: 0 | F149: =E149*'Bid Summary'!$D$55 -> 0 | G149: 0 | H149: 0 | I149: =H149*'Bid Summary'!$D$54 -> 0 | J149: 0 | K149: 0 | L149: 0
A150: AIR COMPRESSOR W/HOSE | C150: MOS | D150: 0 | E150: 0 | F150: =E150*'Bid Summary'!$D$55 -> 0 | G150: 0 | H150: 0 | I150: =H150*'Bid Summary'!$D$54 -> 0 | J150: 0 | K150: 0 | L150: 0
A151: TAMPS | C151: MOS | D151: 0 | E151: 0 | F151: =E151*'Bid Summary'!$D$55 -> 0 | G151: 0 | H151: 0 | I151: =H151*'Bid Summary'!$D$54 -> 0 | J151: 0 | K151: 0 | L151: 0
A152: GENERATOR | C152: MOS | D152: 0 | E152: 0 | F152: =E152*'Bid Summary'!$D$55 -> 0 | G152: 0 | H152: 0 | I152: =H152*'Bid Summary'!$D$54 -> 0 | J152: 0 | K152: 0 | L152: 0
A153: PUMPS | C153: MOS | D153: 0 | E153: 0 | F153: =E153*'Bid Summary'!$D$55 -> 0 | G153: 0 | H153: 0 | I153: =H153*'Bid Summary'!$D$54 -> 0 | J153: 0 | K153: 0 | L153: 0
A154: ROCK DRILL | C154: MOS | D154: 0 | E154: 0 | F154: =E154*'Bid Summary'!$D$55 -> 0 | G154: 0 | H154: 0 | I154: =H154*'Bid Summary'!$D$54 -> 0 | J154: 0 | K154: 0 | L154: 0
A155: JACKHAMMER | C155: MOS | D155: 0 | E155: 0 | F155: =E155*'Bid Summary'!$D$55 -> 0 | G155: 0 | H155: 0 | I155: =H155*'Bid Summary'!$D$54 -> 0 | J155: 0 | K155: 0 | L155: 0
A156: SWING STAGE | C156: MOS | D156: 0 | E156: 0 | F156: =E156*'Bid Summary'!$D$55 -> 0 | G156: 0 | H156: 0 | I156: =H156*'Bid Summary'!$D$54 -> 0 | J156: 0 | K156: 0 | L156: 0
A157: SCAFFOLD FRAMES & BOARDS | C157: MOS | D157: 0 | E157: 0 | F157: =E157*'Bid Summary'!$D$55 -> 0 | G157: 0 | H157: 0 | I157: =H157*'Bid Summary'!$D$54 -> 0 | J157: 0 | K157: 0 | L157: 0
A158: HEATERS | C158: MOS | D158: 0 | E158: 0 | F158: =E158*'Bid Summary'!$D$55 -> 0 | G158: 0 | H158: 0 | I158: =H158*'Bid Summary'!$D$54 -> 0 | J158: 0 | K158: 0 | L158: 0
A159: FLOOR POLISH/SWEEPER/SANDER | C159: MOS | D159: 0 | E159: 0 | F159: =E159*'Bid Summary'!$D$55 -> 0 | G159: 0 | H159: 0 | I159: =H159*'Bid Summary'!$D$54 -> 0 | J159: 0 | K159: 0 | L159: 0
A160: VACUUM CLEANER | C160: LS | D160: 0 | E160: 0 | F160: =E160*'Bid Summary'!$D$55 -> 0 | G160: 0 | H160: 0 | I160: =H160*'Bid Summary'!$D$54 -> 0 | J160: 0 | K160: 0 | L160: 0
A161: CHAIN SAW | C161: LS | D161: 0 | E161: 0 | F161: =E161*'Bid Summary'!$D$55 -> 0 | G161: 0 | H161: 0 | I161: =H161*'Bid Summary'!$D$54 -> 0 | J161: 0 | K161: 0 | L161: 0
A162: SMALL TOOLS | C162: LS | D162: 0 | E162: 0 | F162: =E162*'Bid Summary'!$D$55 -> 0 | G162: 250 | H162: 0 | I162: =H162*'Bid Summary'!$D$54 -> 0 | J162: 0 | K162: 0 | L162: 0
A163: WEB-CAMS | C163: LS | D163: 0 | E163: 0 | F163: =E163*'Bid Summary'!$D$55 -> 0 | G163: 0 | H163: 0 | I163: =H163*'Bid Summary'!$D$54 -> 0 | J163: 0 | K163: 0 | L163: 0
A164: SPECIAL TOOLS | C164: MOS | D164: 0 | E164: 0 | F164: =E164*'Bid Summary'!$D$55 -> 0 | G164: 0 | H164: 0 | I164: =H164*'Bid Summary'!$D$54 -> 0 | J164: 0 | K164: 0 | L164: 0
A165: OTHER EQPT NOT LISTED ABOVE | C165: LS | D165: 0 | E165: 0 | F165: =E165*'Bid Summary'!$D$55 -> 0 | G165: 0 | H165: 0 | I165: =H165*'Bid Summary'!$D$54 -> 0 | J165: 0 | K165: 0 | L165: 0
A166: MISCELLANEOUS EQUIPMENT COSTS
A167: MOBILIZATION | C167: LS | D167: 290 | E167: =D167*B167 -> 0 | F167: =E167*'Bid Summary'!$D$55 -> 0 | G167: 114.95 | H167: =G167*B167 -> 0 | I167: =H167*'Bid Summary'!$D$54 -> 0 | J167: 0 | K167: =J167*B167 -> 0 | L167: =SUM(K167)+SUM(H167+I167)+SUM(E167+F167) -> 0
A168: FREIGHT ON EQUIPMENT | C168: LS | D168: 0 | E168: 0 | F168: =E168*'Bid Summary'!$D$55 -> 0 | G168: 0 | H168: 0 | I168: =H168*'Bid Summary'!$D$54 -> 0 | J168: 0 | K168: 0 | L168: 0
A169: INSURANCE ON EQUIPMENT | C169: LS | D169: 0 | E169: 0 | F169: =E169*'Bid Summary'!$D$55 -> 0 | G169: 6713 | H169: 0 | I169: =H169*'Bid Summary'!$D$54 -> 0 | J169: 0 | K169: 0 | L169: 0
A170: PARTS & REPAIRS | C170: LS | D170: 0 | E170: 0 | F170: =E170*'Bid Summary'!$D$55 -> 0 | G170: 0 | H170: 0 | I170: =H170*'Bid Summary'!$D$54 -> 0 | J170: 0 | K170: 0 | L170: 0
A171: LUBRICANTS & FUELS | C171: WKS | D171: 0 | E171: 0 | F171: =E171*'Bid Summary'!$D$55 -> 0 | G171: 210 | H171: 0 | I171: =H171*'Bid Summary'!$D$54 -> 0 | J171: 0 | K171: 0 | L171: 0
D172: 0 | E172: 0 | F172: =E172*'Bid Summary'!$D$55 -> 0 | G172: 0 | H172: 0 | I172: =H172*'Bid Summary'!$D$54 -> 0 | J172: 0 | K172: 0 | L172: 0
D173: 0 | E173: 0 | F173: =E173*'Bid Summary'!$D$55 -> 0 | G173: 0 | H173: 0 | I173: =H173*'Bid Summary'!$D$54 -> 0 | J173: 0 | K173: 0 | L173: 0
A174: SUBTOTAL EQUIPMENT | E174: =SUM(E92:E173) -> 0 | F174: =SUM(F92:F173) -> 0 | G174: 0 | H174: =SUM(H92:H173) -> 0 | I174: =H174*'Bid Summary'!$D$54 -> 0 | K174: =SUM(K92:K173) -> 0 | L174: =SUM(L92:L173) -> 0 | M174: =SUM(E174:K174) -> 0 | N174: --balance check
A175: SUBTOTAL GENERAL CONDITIONS (BROUGHT FORWARD) | E175: =E90 -> 0 | F175: =F90 -> 0 | H175: =H90 -> 0 | I175: =H175*'Bid Summary'!$D$54 -> 0 | K175: =K90 -> 0 | L175: =L90 -> 0 | M175: =SUM(E175:K175) -> 0 | N175: --balance check
A177: SUBTOTAL GENERAL CONDITIONS & EQUIPMENT | E177: =SUM(E175+E174) -> 0 | F177: =SUM(F174:F175) -> 0 | H177: =SUM(H175+H174) -> 0 | I177: =SUM(I174:I175) -> 0 | K177: =SUM(K175+K174) -> 0 | L177: =SUM(L175+L174) -> 0 | M177: =SUM(E177:K177) -> 0 | N177: --balance check
A178: SALES TAX & PAYROLL TAX | E178: =SUM(E177*'Bid Summary'!$D$55) -> 0 | F178: --balance check | H178: =SUM(H177*'Bid Summary'!$D$54) -> 0 | I178: --balance check | K178: 0 | L178: =E178+H178+K178 -> 0 | M178: =F177+I177 -> 0 | N178: --balance check
A180: TOTAL GENERAL CONDITIONS & EQUIPMENT | E180: =SUM(E177:E178) -> 0 | H180: =SUM(H177:H178) -> 0 | K180: =SUM(K177:K178) -> 0 | L180: =L177 -> 0
L182: =E180+H180+K180 -> 0 | M182: =L180-L182 -> 0

Sheet Special Cond
E2: Project Name: | F2: ='Bid Summary'!D4 -> 0
E3: Project Location: | F3: ='Bid Summary'!D5 -> 0
E4: Project No.: | F4: ='Bid Summary'!I4 -> 0
A5: SPECIAL CONDITIONS ANALYSIS
B6: APPROX. CONTRACT AMOUNT = | C6: ='Bid Summary'!H52*(1+'Bid Summary'!D63)+C20+F17 -> 880 | E6: - ENTER FROM SUMMARY SHEET
B8: BUSINESS LICENSE ……………………………………………………………………………………………. | F8: =C36 -> 5.632
B9: GENERAL CONTRACTOR'S PERFORMANCE & PAYMENT BOND………………………………………………………………………………………………………. | F9: =C49 -> 5.632
B10: BUILDER'S RISK INSURANCE………………………………………………………………………………………. | F10: =F55 -> 0
B11: LIABILITY INSURANCE……………………………...…………………………………………………………………………. | F11: =E62 -> 0
B12: SPECIAL INSURANCE……………………………………………………………………………………. | F12: =E69 -> 0
B13: SUBCONTRACTOR BONDS…………………………………………………………………………………. | F13: 0
B15: BUILDING PERMIT……………………………………………………………………………………………………… | F15: =C85 -> 8.36
B17: LIQUIDATED DAMAGES…………………….. | C17: 5000 | D17: /DAY ………………………………………………….. | F17: =C17*C18 -> 0
C18: 0 | D18: DAYS
B20: CONTINGENCY…………………………………………. | C20: 0 | D20: X SUBTOTAL AMOUNT = | F20: =C20 -> 0
B22: TOTAL SPECIAL CONDITIONS …………………………………………………………………………………………………. | F22: =SUM(F8:F20) -> 19.624
A24: BUSINESS LICENSE
B27: APPROX CONTRACT AMOUNT = | C27: =$C$6 -> 880
C28: FIRST | D28: NEXT | E28: NEXT | F28: OVER
C29: 50000 | D29: 1000000 | E29: 2500000 | F29: 5000000
B31: RATE -- | C31: =6.4/1000 -> 0.0064 | D31: =5.6/1000 -> 0.0056 | E31: =5.2/1000 -> 0.0052 | F31: =4.4/1000 -> 0.0044
B32: AMOUNT = | C32: =IF(C27<C29,+C27*C31,+C29*C31) -> 5.632 | D32: =IF(C27>C29,IF(C27<=(C29+D29),(C27-C29)*D31,D29*D31),0) -> 0 | E32: =IF(C27>(C29+D29),IF(C27<=(C29+D29+E29),(C27-C29-D29)*E31,E29*E31),0) -> 0 | F32: =IF(C27>(C29+D29+E29),(C27-C29-D29-E29)*F31,0) -> 0
B34: CALCULATION = | C34: =IF(C27<=C29,C27*C31,IF(C27<=C29+D29,C32+((C27-C29)*D31),IF(C27<=C29+D29+E29,C32+D32+((C27-(C29+D29))*E31),C32+D32+E32+((C27-F29)*F31)))) -> 5.632 | D34: <=========> | E34: =C32+D32+E32+F32 -> 5.632
B35: ADJUSTMENT / OVERIDE= | D35: - IF PROJECT IN NORTH CAROLINA, LICENSE = $10.00…..
B36: TOTAL = | C36: =IF(C35=0,C34,C35) -> 5.632 | D36: - IF OTHER STATE, CONFIRM RATES WITH LOCAL AUTHORITY….
A38: GENERAL CONTRACTOR'S PERFORMANCE & PAYMENT BOND
B40: APPROX CONTRACT AMOUNT = | C40: =$C$6 -> 880
C41: FIRST | D41: NEXT | E41: NEXT | F41: OVER
C42: 500000 | D42: 2000000 | E42: 2500000 | F42: 5000000
B44: RATE -- | C44: =6.4/1000 -> 0.0064 | D44: =5.6/1000 -> 0.0056 | E44: =5.2/1000 -> 0.0052 | F44: =4.4/1000 -> 0.0044
B45: AMOUNT = | C45: =IF(C40<C42,+C40*C44,+C42*C44) -> 5.632 | D45: =IF(C40>C42,IF(C40<=(C42+D42),(C40-C42)*D44,D42*D44),0) -> 0 | E45: =IF(C40>(C42+D42),IF(C40<=(C42+D42+E42),(C40-C42-D42)*E44,E42*E44),0) -> 0 | F45: =IF(C40>(C42+D42+E42),(C40-C42-D42-E42)*F44,0) -> 0
B47: CALCULATION = | C47: =IF(C40<=C42,C40*C44,IF(C40<=C42+D42,C45+((C40-C42)*D44),IF(C40<=C42+D42+E42,C45+D45+((C40-(C42+D42))*E44),C45+D45+E45+((C40-F42)*F44)))) -> 5.632 | D47: <=========> | E47: =C45+D45+E45+F45 -> 5.632
B48: ADJUSTMENT / OVERIDE=
B49: TOTAL = | C49: =IF(C48=0,C47,C48) -> 5.632
A51: INSURANCE
C53: BUILDERS RISK INSURANCE
B55: =$C$40 -> 880 | C55: 0 | D55: 12 | E55: = | F55: =B55*C55*D55 -> 0
B56: ----------------------- | C56: X------------ | D56: X---------
B57: APPROX CONTRACT AMOUNT | C57: INS RATE | D57: TIME(mos)
C60: LIABILITY INSURANCE
B62: =$C$40 -> 880 | C62: 0 | E62: =B62*C62 -> 0
B63: ----------------------- | C63: X------------ | D63: =
B64: APPROX CONTRACT AMOUNT | C64: INS RATE
C67: SPECIAL INSURANCE
B69: =$C$40 -> 880 | C69: 0 | E69: =B69*C69 -> 0
B70: ----------------------- | C70: X------------ | D70: =
B71: APPROX CONTRACT AMOUNT | C71: INS RATE
A73: BUILDING PERMIT
B76: APPROX CONTRACT AMT | C76: =C40 -> 880
C77: FIRST | D77: NEXT | E77: NEXT | F77: NEXT | G77: OVER
C78: 50000 | D78: 100000 | E78: 1000000 | F78: 10000000 | G78: 10000000
C79: - | D79: - | E79: - | F79: - | G79: -
B80: --> RATE | C80: 0.0095 | D80: 0.01 | E80: 0.0056 | F80: 0.0033 | G80: 0.003
B81: VALUE | C81: =IF($C$76<=C78,$C$76*C80,C78*C80) -> 8.36 | D81: =IF($C$76>C78,IF($C$76<=(C78+D78),($C$76-C78)*D80,D78*D80),0) -> 0 | E81: =IF($C$76>(C78+D78),IF($C$76<=(C78+D78+E78),($C$76-C78-D78)*E80,E78*E80),0) -> 0 | F81: =IF($C$76>(C78+D78+E78),IF($C$76<=($C$76+D78+E78+F78),($C$76-C78-D78-E78)*F80,F78*F80),0) -> 0 | G81: =IF($C$76>G78,($C$76-G78)*G80,0) -> 0
B83: CALCULATION | C83: =E83 -> 8.36 | D83: <=========> | E83: =C81+D81+E81+F81+G81 -> 8.36
B84: ADJUSTMENT
B85: BOTTOM LINE | C85: =IF(C84=0,C83,C84) -> 8.36

Sheet Estimate
B1: TAX = | C1: =TAX_RATE -> 0.07 | D1: -- FROM BID SUMMARY PAGE
B2: BURDEN= | C2: =BURDEN_RATE -> 0.18 | D2: -- FROM BID SUMMARY PAGE
O4: PROJECT NAME: | P4: ='Bid Summary'!D4 -> 0
O5: PROJECT LOCATION: | P5: ='Bid Summary'!D5 -> 0
O6: PROJECT NO.: | P6: ='Bid Summary'!I4 -> 0
A7: REQUIRED | G7: UNIT | H7: TOTAL | I7: PAYROLL | J7: UNIT | K7: TOTAL | L7: SALES / USE | M7: UNIT | N7: TOTAL | O7: UNIT | P7: TOTAL
A8: IN BID | B8: PHASE CODE | C8: DESCRIPTION | E8: QTY | F8: UNIT | G8: LABOR | H8: LABOR | I8: TAX | J8: MATERIAL | K8: MATERIAL | L8: TAX | M8: SUB / EQUIP | N8: SUB / EQUIP | O8: MISC | P8: MISC | Q8: TOTAL
A9: X | C9: DIV. 1-- GENERAL CONDITIONS | H9: =SUM(H10,H28,H33,H38,H51,H64,H74,H83,H90,H157) -> 0 | I9: =SUM(I10,I28,I33,I38,I51,I64,I74,I83,I90,I157) -> 0 | K9: =SUM(K10,K28,K33,K38,K51,K64,K74,K83,K90,K157) -> 0 | L9: =SUM(L10,L28,L33,L38,L51,L64,L74,L83,L90,L157) -> 0 | N9: =SUM(N10,N28,N33,N38,N51,N64,N74,N83,N90,N157) -> 0 | P9: =SUM(P10,P28,P33,P38,P51,P64,P74,P83,P90,P157) -> 0 | Q9: =SUM(Q10,Q28,Q33,Q38,Q51,Q64,Q74,Q83,Q90,Q157) -> 0 | R9: =IF(AND(A9="X",Q9=0),"PROBLEM--CHECK VALUES OR QUANTITES","OK") -> PROBLEM--CHECK VALUES OR QUANTITES
B10: 1100 | C10: SUPERVISION | H10: =SUM(H11:H27) -> 0 | I10: =SUM(I11:I27) -> 0 | K10: =SUM(K11:K27) -> 0 | L10: =SUM(L11:L27) -> 0 | N10: =SUM(N11:N27) -> 0 | P10: =SUM(P11:P27) -> 0 | Q10: =SUM(Q11:Q27) -> 0 | R10: OK
B11: =B10+1 -> 1101 | C11: SUPERINTENDENT | F11: WKS | G11: 1800 | H11: =E11*G11 -> 0 | I11: =H11*(BURDEN) -> 0 | J11: 0 | K11: =J11*E11 -> 0 | L11: =K11*(TAX) -> 0 | M11: 0 | N11: =M11*E11 -> 0 | O11: 0 | P11: =O11*E11 -> 0 | Q11: =(H11+I11)+(K11+L11)+N11+P11 -> 0 | R11: OK
B12: 1102 | C12: ASST SUPERINTENDENT | F12: WKS | G12: 1000 | H12: 0 | I12: 0 | J12: 0 | K12: 0 | L12: 0 | M12: 0 | N12: 0 | O12: 0 | P12: 0 | Q12: 0 | R12: OK
B13: 1103 | C13: ASST SUPERINTENDENT | F13: WKS | G13: 900 | H13: 0 | I13: 0 | J13: 0 | K13: 0 | L13: 0 | M13: 0 | N13: 0 | O13: 0 | P13: 0 | Q13: 0 | R13: OK
B14: 1104 | C14: FIELD OFFICE ASSISTANT | F14: WKS | G14: 900 | H14: 0 | I14: 0 | J14: 0 | K14: 0 | L14: 0 | M14: 0 | N14: 0 | O14: 0 | P14: 0 | Q14: 0 | R14: OK
B15: 1105 | C15: PROJECT MANAGER | F15: WKS | G15: 400 | H15: 0 | I15: 0 | J15: 0 | K15: 0 | L15: 0 | M15: 0 | N15: 0 | O15: 0 | P15: 0 | Q15: 0 | R15: OK
B16: 1106 | C16: ADMIN | F16: WKS | G16: 200 | H16: 0 | I16: 0 | J16: 0 | K16: 0 | L16: 0 | M16: 0 | N16: 0 | O16: 0 | P16: 0 | Q16: 0 | R16: OK
B17: 1107 | C17: OFFICE | F17: WKS | G17: 200 | H17: 0 | I17: 0 | J17: 0 | K17: 0 | L17: 0 | M17: 0 | N17: 0 | O17: 0 | P17: 0 | Q17: 0 | R17: OK
B18: 1108 | C18: ASST PROJECT MANAGER | F18: WKS | G18: 1350 | H18: 0 | I18: 0 | J18: 0 | K18: 0 | L18: 0 | M18: 0 | N18: 0 | O18: 0 | P18: 0 | Q18: 0 | R18: OK
B19: 1109 | C19: A&E DESIGN FEE | F19: WKS | G19: 950 | H19: 0 | I19: 0 | J19: 0 | K19: 0 | L19: 0 | M19: 0 | N19: 0 | O19: 0 | P19: 0 | Q19: 0 | R19: OK
B20: 1110 | C20: JOB SECRETARY | F20: WKS | G20: 800 | H20: 0 | I20: 0 | J20: 0 | K20: 0 | L20: 0 | M20: 0 | N20: 0 | O20: 0 | P20: 0 | Q20: 0 | R20: OK
B21: 1111 | C21: CLERK/TIMEKEEPER | F21: WKS | G21: 750 | H21: 0 | I21: 0 | J21: 0 | K21: 0 | L21: 0 | M21: 0 | N21: 0 | O21: 0 | P21: 0 | Q21: 0 | R21: OK
B22: 1112 | C22: ESTIMATOR | F22: WKS | G22: 1500 | H22: 0 | I22: 0 | J22: 0 | K22: 0 | L22: 0 | M22: 0 | N22: 0 | O22: 0 | P22: 0 | Q22: 0 | R22: OK
B23: 1113 | C23: WATCHMAN/SECURITY | F23: WKS | G23: 1000 | H23: 0 | I23: 0 | J23: 0 | K23: 0 | L23: 0 | M23: 0 | N23: 0 | O23: 0 | P23: 0 | Q23: 0 | R23: OK
B24: 1114 | C24: FLAGMAN | F24: WKS | G24: 1150 | H24: 0 | I24: 0 | J24: 0 | K24: 0 | L24: 0 | M24: 0 | N24: 0 | O24: 0 | P24: 0 | Q24: 0 | R24: OK
B25: 1115 | C25: TRAFFIC CONTROL | F25: LS | G25: 0 | H25: 0 | I25: 0 | J25: 0 | K25: 0 | L25: 0 | M25: 0 | N25: 0 | O25: 0 | P25: 0 | Q25: 0 | R25: OK
B26: 1116 | C26: SCHEDULING SERVICES | F26: WKS | G26: 500 | H26: 0 | I26: 0 | J26: 0 | K26: 0 | L26: 0 | M26: 0 | N26: 0 | O26: 0 | P26: 0 | Q26: 0 | R26: OK
B27: 1117 | C27: CREW BONUS | F27: WKS | G27: 1500 | H27: 0 | I27: 0 | J27: 0 | K27: 0 | L27: 0 | M27: 0 | N27: 0 | O27: 0 | P27: 0 | Q27: 0 | R27: OK
B28: 1118 | C28: SUPPLEMENTAL EXPENSES: | H28: =SUM(H29:H32) -> 0 | I28: =SUM(I29:I32) -> 0 | K28: =SUM(K29:K32) -> 0 | L28: =SUM(L29:L32) -> 0 | N28: =SUM(N29:N32) -> 0 | P28: =SUM(P29:P32) -> 0 | Q28: =SUM(Q29:Q32) -> 0 | R28: OK
B29: 1119 | C29: SUPERINTENDENT | F29: WKS | G29: 0 | H29: =E29*G29 -> 0 | I29: =H29*(BURDEN) -> 0 | J29: 0 | K29: =J29*E29 -> 0 | L29: =K29*(TAX) -> 0 | M29: 0 | N29: =M29*E29 -> 0 | O29: 0 | P29: =O29*E29 -> 0 | Q29: =(H29+I29)+(K29+L29)+N29+P29 -> 0 | R29: OK
B30: 1120 | C30: ASST SUPERINTENDENT | F30: WKS | G30: 0 | H30: =E30*G30 -> 0 | I30: =H30*(BURDEN) -> 0 | J30: 0 | K30: =J30*E30 -> 0 | L30: =K30*(TAX) -> 0 | M30: 0 | N30: =M30*E30 -> 0 | O30: 0 | P30: =O30*E30 -> 0 | Q30: =(H30+I30)+(K30+L30)+N30+P30 -> 0 | R30: OK
B31: 1121 | C31: OTHER | F31: WKS | G31: 0 | H31: =E31*G31 -> 0 | I31: =H31*(BURDEN) -> 0 | J31: 0 | K31: =J31*E31 -> 0 | L31: =K31*(TAX) -> 0 | M31: 0 | N31: =M31*E31 -> 0 | O31: 0 | P31: =O31*E31 -> 0 | Q31: =(H31+I31)+(K31+L31)+N31+P31 -> 0 | R31: OK
B32: 1122 | C32: MOVING EXPENSES | F32: LS | G32: 0 | H32: =E32*G32 -> 0 | I32: =H32*(BURDEN) -> 0 | J32: 0 | K32: =J32*E32 -> 0 | L32: =K32*(TAX) -> 0 | M32: 0 | N32: =M32*E32 -> 0 | O32: 0 | P32: =O32*E32 -> 0 | Q32: =(H32+I32)+(K32+L32)+N32+P32 -> 0 | R32: OK
B33: 1123 | C33: TRAVEL: | H33: =SUM(H34:H37) -> 0 | I33: =SUM(I34:I37) -> 0 | K33: =SUM(K34:K37) -> 0 | L33: =SUM(L34:L37) -> 0 | N33: =SUM(N34:N37) -> 0 | P33: =SUM(P34:P37) -> 0 | Q33: =SUM(Q34:Q37) -> 0 | R33: OK
B34: 1124 | C34: DIVISION MANAGER | F34: WKS | G34: 0 | H34: =E34*G34 -> 0 | I34: =H34*(BURDEN) -> 0 | J34: 100 | K34: =J34*E34 -> 0 | L34: =K34*(TAX) -> 0 | M34: 0 | N34: =M34*E34 -> 0 | O34: 0 | P34: =O34*E34 -> 0 | Q34: =(H34+I34)+(K34+L34)+N34+P34 -> 0 | R34: OK
B35: 1125 | C35: PROJECT MANAGER | F35: WKS | G35: 0 | H35: =E35*G35 -> 0 | I35: =H35*(BURDEN) -> 0 | J35: 890 | K35: =J35*E35 -> 0 | L35: =K35*(TAX) -> 0 | M35: 0 | N35: =M35*E35 -> 0 | O35: 0 | P35: =O35*E35 -> 0 | Q35: =(H35+I35)+(K35+L35)+N35+P35 -> 0 | R35: OK
B36: 1126 | C36: SUPERINTENDENT LIVING EXPENSES | F36: WKS | G36: 0 | H36: =E36*G36 -> 0 | I36: =H36*(BURDEN) -> 0 | J36: 890 | K36: =J36*E36 -> 0 | L36: =K36*(TAX) -> 0 | M36: 0 | N36: =M36*E36 -> 0 | O36: 0 | P36: =O36*E36 -> 0 | Q36: =(H36+I36)+(K36+L36)+N36+P36 -> 0 | R36: OK
B37: 1127 | C37: CREW LIVING EXPENSES | F37: WKS | G37: 0 | H37: =E37*G37 -> 0 | I37: =H37*(BURDEN) -> 0 | J37: 890 | K37: =J37*E37 -> 0 | L37: =K37*(TAX) -> 0 | M37: 0 | N37: =M37*E37 -> 0 | O37: 0 | P37: =O37*E37 -> 0 | Q37: =(H37+I37)+(K37+L37)+N37+P37 -> 0 | R37: OK
B38: 1128 | C38: UTILITIES | H38: =SUM(H39:H50) -> 0 | I38: =SUM(I39:I50) -> 0 | K38: =SUM(K39:K50) -> 0 | L38: =SUM(L39:L50) -> 0 | N38: =SUM(N39:N50) -> 0 | P38: =SUM(P39:P50) -> 0 | Q38: =SUM(Q39:Q50) -> 0 | R38: OK
B39: 1129 | C39: TEMP POWER USAGE - OFFICE | F39: MO | G39: 0 | H39: =E39*G39 -> 0 | I39: =H39*(BURDEN) -> 0 | J39: 200 | K39: =J39*E39 -> 0 | L39: =K39*(TAX) -> 0 | M39: 0 | N39: =M39*E39 -> 0 | O39: 0 | P39: =O39*E39 -> 0 | Q39: =(H39+I39)+(K39+L39)+N39+P39 -> 0 | R39: OK
B40: 1130 | C40: - BUILDING | F40: MO | G40: 0 | H40: 0 | I40: 0 | J40: 0 | K40: 0 | L40: 0 | M40: 0 | N40: 0 | O40: 0 | P40: 0 | Q40: 0 | R40: OK
B41: 1131 | C41: TEMPORARY WATER USAGE | F41: MO | G41: 0 | H41: 0 | I41: 0 | J41: 800 | K41: 0 | L41: 0 | M41: 0 | N41: 0 | O41: 0 | P41: 0 | Q41: 0 | R41: OK
B42: 1132 | C42: TELEPHONE-CONTRACTOR | F42: MO | G42: 0 | H42: 0 | I42: 0 | J42: 150 | K42: 0 | L42: 0 | M42: 0 | N42: 0 | O42: 0 | P42: 0 | Q42: 0 | R42: OK
B43: =B42+1 -> 1133 | C43: MOBILE PHONES-( QTY @ $65/MO / PHONE) | F43: MO | G43: 0 | H43: 0 | I43: 0 | J43: 250 | K43: 0 | L43: 0 | M43: 0 | N43: 0 | O43: 0 | P43: 0 | Q43: 0 | R43: OK
B44: 1134 | C44: TELEPHONE-ARCHITECT | F44: MO | G44: 0 | H44: 0 | I44: 0 | J44: 100 | K44: 0 | L44: 0 | M44: 0 | N44: 0 | O44: 0 | P44: 0 | Q44: 0 | R44: OK
B45: 1135 | C45: TEMPORARY WIRING & LIGHTING | F45: LS | G45: 0 | H45: 0 | I45: 0 | J45: 0 | K45: 0 | L45: 0 | M45: 0 | N45: 0 | O45: 0 | P45: 0 | Q45: 0 | R45: OK
B46: 1136 | C46: EXTENSION CORDS & BULBS | F46: LS | G46: 0 | H46: 0 | I46: 0 | J46: 0 | K46: 0 | L46: 0 | M46: 0 | N46: 0 | O46: 0 | P46: 0 | Q46: 0 | R46: OK
B47: 1137 | C47: TEMPORARY PLUMBING | F47: LS | G47: 0 | H47: 0 | I47: 0 | J47: 0 | K47: 0 | L47: 0 | M47: 0 | N47: 0 | O47: 0 | P47: 0 | Q47: 0 | R47: OK
B48: 1138 | C48: ICE, CUPS, COOLER | F48: MO | G48: 0 | H48: 0 | I48: 0 | J48: 20 | K48: 0 | L48: 0 | M48: 0 | N48: 0 | O48: 0 | P48: 0 | Q48: 0 | R48: OK
B49: 1139 | C49: TEMPORARY HEAT | F49: MO | G49: 0 | H49: 0 | I49: 0 | J49: 500 | K49: 0 | L49: 0 | M49: 0 | N49: 0 | O49: 0 | P49: 0 | Q49: 0 | R49: OK
B50: 1140 | C50: TEMPORARY TOILETS | F50: MO | G50: 0 | H50: 0 | I50: 0 | J50: 130 | K50: 0 | L50: 0 | M50: 0 | N50: 0 | O50: 0 | P50: 0 | Q50: 0 | R50: OK
B51: 1141 | C51: MISC. | H51: =SUM(H52:H63) -> 0 | I51: =SUM(I52:I63) -> 0 | K51: =SUM(K52:K63) -> 0 | L51: =SUM(L52:L63) -> 0 | N51: =SUM(N52:N63) -> 0 | P51: =SUM(P52:P63) -> 0 | Q51: =SUM(Q52:Q63) -> 0 | R51: OK
B52: 1142 | C52: TEMPORARY FIELD LABOR | F52: WK | G52: 250 | H52: =E52*G52 -> 0 | I52: =H52*(BURDEN) -> 0 | J52: 0 | K52: =J52*E52 -> 0 | L52: =K52*(TAX) -> 0 | M52: 0 | N52: =M52*E52 -> 0 | O52: 0 | P52: =O52*E52 -> 0 | Q52: =(H52+I52)+(K52+L52)+N52+P52 -> 0 | R52: OK
B53: 1143 | C53: PROGRESS PHOTOGRAPHS | F53: MO | G53: 200 | H53: 0 | I53: 0 | J53: 0 | K53: 0 | L53: 0 | M53: 0 | N53: 0 | O53: 0 | P53: 0 | Q53: 0 | R53: OK
B54: 1144 | C54: SURVEYOR | F54: LS | G54: 0 | H54: 0 | I54: 0 | J54: 0 | K54: 0 | L54: 0 | M54: 10000 | N54: 0 | O54: 0 | P54: 0 | Q54: 0 | R54: OK
B55: 1145 | C55: JOB/PROJECT SIGN | F55: LS | G55: 0 | H55: 0 | I55: 0 | J55: 500 | K55: 0 | L55: 0 | M55: 500 | N55: 0 | O55: 0 | P55: 0 | Q55: 0 | R55: OK
B56: 1146 | C56: TEMP PROTECTION (EXISTING CONDITIONS) & DUST ENCLOSURES | E56: 1 | F56: LS | G56: 0 | H56: 0 | I56: 0 | J56: 0 | K56: 0 | L56: 0 | N56: 0 | O56: 0 | P56: 0 | Q56: 0 | R56: OK
B57: 1147 | C57: REPAIR/REPLACE BLINDS | E57: 1 | F57: LS | G57: 0 | H57: 0 | I57: 0 | J57: 0 | K57: 0 | L57: 0 | N57: 0 | O57: 0 | P57: 0 | Q57: 0 | R57: OK
B58: 1148 | C58: HVAC: PROVIDE TEMP INTAKE/RETURN GRILLE COVERS | E58: 1 | F58: LS | G58: 0 | H58: 0 | I58: 0 | J58: 0 | K58: 0 | L58: 0 | N58: 0 | O58: 0 | P58: 0 | Q58: 0 | R58: OK
B59: 1149 | C59: SANITARY SUPPLIES | F59: LS | G59: 0 | H59: 0 | I59: 0 | J59: 0 | K59: 0 | L59: 0 | M59: 0 | N59: 0 | O59: 0 | P59: 0 | Q59: 0 | R59: OK
B60: 1150 | C60: REPAIR STREET & SIDEWALK | F60: LS | G60: 0 | H60: 0 | I60: 0 | J60: 0 | K60: 0 | L60: 0 | M60: 0 | N60: 0 | O60: 0 | P60: 0 | Q60: 0 | R60: OK
B61: 1151 | C61: BLUEPRINTS/EXTRA DRAWINGS | F61: LS | G61: 0 | H61: 0 | I61: 0 | J61: 2000 | K61: 0 | L61: 0 | M61: 0 | N61: 0 | O61: 0 | P61: 0 | Q61: 0 | R61: OK
B62: 1152 | C62: TRAFFIC CONTROL | F62: LS | G62: 0 | H62: 0 | I62: 0 | J62: 0 | K62: 0 | L62: 0 | M62: 24000 | N62: 0 | O62: 0 | P62: 0 | Q62: 0 | R62: OK
B63: 1153 | C63: CPM Scheduler (3rd) Party | F63: LS | G63: 0 | H63: 0 | I63: 0 | J63: 0 | K63: 0 | L63: 0 | M63: 20000 | N63: 0 | O63: 0 | P63: 0 | Q63: 0 | R63: OK
B64: 1154 | C64: MISCELLANEOUS ITEMS | H64: =SUM(H65:H73) -> 0 | I64: =SUM(I65:I73) -> 0 | K64: =SUM(K65:K73) -> 0 | L64: =SUM(L65:L73) -> 0 | N64: =SUM(N65:N73) -> 0 | P64: =SUM(P65:P73) -> 0 | Q64: =SUM(Q65:Q73) -> 0 | R64: OK
B65: 1155 | C65: SEWER TAP FEE | F65: LS | G65: 0 | H65: =E65*G65 -> 0 | I65: =H65*(BURDEN) -> 0 | J65: 0 | K65: =J65*E65 -> 0 | L65: =K65*(TAX) -> 0 | M65: 0 | N65: =M65*E65 -> 0 | O65: 0 | P65: =O65*E65 -> 0 | Q65: =(H65+I65)+(K65+L65)+N65+P65 -> 0 | R65: OK
B66: 1156 | C66: WATER TAP FEE | F66: LS | G66: 0 | H66: 0 | I66: 0 | J66: 0 | K66: 0 | L66: 0 | M66: 0 | N66: 0 | O66: 0 | P66: 0 | Q66: 0 | R66: OK
B67: 1157 | C67: AGC FEE | F67: LS | G67: 0 | H67: 0 | I67: 0 | J67: 0 | K67: 0 | L67: 0 | M67: 0 | N67: 0 | O67: 0 | P67: 0 | Q67: 0 | R67: OK
B68: 1158 | C68: PHOTOGRAPHS | F68: LS | G68: 0 | H68: 0 | I68: 0 | J68: 0 | K68: 0 | L68: 0 | M68: 0 | N68: 0 | O68: 0 | P68: 0 | Q68: 0 | R68: OK
B69: 1159 | C69: AS-BUILT DRAWINGS | F69: LS | G69: 0 | H69: 0 | I69: 0 | J69: 0 | K69: 0 | L69: 0 | M69: 1000 | N69: 0 | O69: 0 | P69: 0 | Q69: 0 | R69: OK
B70: 1160 | C70: SPECIAL INSPECTION | F70: LS | G70: 0 | H70: 0 | I70: 0 | J70: 0 | K70: 0 | L70: 0 | M70: 0 | N70: 0 | O70: 0 | P70: 0 | Q70: 0 | R70: OK
B71: 1161 | C71: TESTING | F71: LS | G71: 0 | H71: 0 | I71: 0 | J71: 0 | K71: 0 | L71: 0 | M71: 2000 | N71: 0 | O71: 0 | P71: 0 | Q71: 0 | R71: OK
B72: 1162 | C72: WEATHER REPORTS | F72: LS | G72: 0 | H72: 0 | I72: 0 | J72: 0 | K72: 0 | L72: 0 | M72: 0 | N72: 0 | O72: 0 | P72: 0 | Q72: 0 | R72: OK
B73: 1163 | C73: EMPLOYEE INSURANCE | F73: LS | G73: 0 | H73: 0 | I73: 0 | J73: 0 | K73: 0 | L73: 0 | M73: 0 | N73: 0 | O73: 0 | P73: 0 | Q73: 0 | R73: =IF(AND(A73="X",Q73=0),"PROBLEM--CHECK VALUES OR QUANTITES","OK") -> OK
B74: 1164 | C74: SAFETY | H74: =SUM(H75:H82) -> 0 | I74: =SUM(I75:I82) -> 0 | K74: =SUM(K75:K82) -> 0 | L74: =SUM(L75:L82) -> 0 | N74: =SUM(N75:N82) -> 0 | P74: =SUM(P75:P82) -> 0 | Q74: =SUM(Q75:Q82) -> 0 | R74: OK
B75: =B74+1 -> 1165 | C75: FIRE EXTINQUISHERS | F75: LS | G75: 0 | H75: =E75*G75 -> 0 | I75: =H75*(BURDEN) -> 0 | J75: 200 | K75: =J75*E75 -> 0 | L75: =K75*(TAX) -> 0 | M75: 0 | N75: =M75*E75 -> 0 | O75: 0 | P75: =O75*E75 -> 0 | Q75: =(H75+I75)+(K75+L75)+N75+P75 -> 0 | R75: OK
B76: 1166 | C76: FIRST AID SUPPLIES | F76: LS | G76: 0 | H76: 0 | I76: 0 | J76: 500 | K76: 0 | L76: 0 | M76: 0 | N76: 0 | O76: 0 | P76: 0 | Q76: 0 | R76: OK
B77: 1167 | C77: HARD HATS | F77: LS | G77: 0 | H77: 0 | I77: 0 | J77: 200 | K77: 0 | L77: 0 | M77: 0 | N77: 0 | O77: 0 | P77: 0 | Q77: 0 | R77: OK
B78: 1168 | C78: RAINGEAR, BOOTS, ETC. | F78: LS | G78: 0 | H78: 0 | I78: 0 | J78: 0 | K78: 0 | L78: 0 | M78: 0 | N78: 0 | O78: 0 | P78: 0 | Q78: 0 | R78: OK
B79: 1169 | C79: SIGNS | F79: LS | G79: 0 | H79: 0 | I79: 0 | J79: 0 | K79: 0 | L79: 0 | M79: 0 | N79: 0 | O79: 0 | P79: 0 | Q79: 0 | R79: OK
B80: 1170 | C80: RAILINGS | F80: LF | G80: 0 | H80: 0 | I80: 0 | J80: 0 | K80: 0 | L80: 0 | M80: 0 | N80: 0 | O80: 0 | P80: 0 | Q80: 0 | R80: OK
B81: 1171 | C81: MISCELLANEOUS SAFETY ITEMS | F81: LS | G81: 0 | H81: 0 | I81: 0 | J81: 0 | K81: 0 | L81: 0 | M81: 0 | N81: 0 | O81: 0 | P81: 0 | Q81: 0 | R81: OK
B82: 1172 | C82: SECURITY FENCING | F82: LS | G82: 0 | H82: 0 | I82: 0 | J82: 0 | K82: 0 | L82: 0 | M82: 0 | N82: 0 | O82: 0 | P82: 0 | Q82: 0 | R82: OK
B83: 1173 | C83: CLEAN-UP | H83: =SUM(H84:H89) -> 0 | I83: =SUM(I84:I89) -> 0 | K83: =SUM(K84:K89) -> 0 | L83: =SUM(L84:L89) -> 0 | N83: =SUM(N84:N89) -> 0 | P83: =SUM(P84:P89) -> 0 | Q83: =SUM(Q84:Q89) -> 0 | R83: OK
B84: 1174 | C84: WEEKLY CLEAN (2 MEN @ $250/MD) | F84: MD | G84: 73 | H84: =E84*G84 -> 0 | I84: =H84*(BURDEN) -> 0 | J84: 0 | K84: =J84*E84 -> 0 | L84: =K84*(TAX) -> 0 | M84: 0 | N84: =M84*E84 -> 0 | O84: 0 | P84: =O84*E84 -> 0 | Q84: =(H84+I84)+(K84+L84)+N84+P84 -> 0 | R84: OK
B85: 1175 | C85: DUMPSTERS | F85: EA | G85: 0 | H85: 0 | I85: 0 | J85: 550 | K85: 0 | L85: 0 | M85: 0 | N85: 0 | O85: 0 | P85: 0 | Q85: 0 | R85: OK
B86: 1176 | C86: HAUL TRASH /DUMPSTER RENTAL | F86: WKS | G86: 0 | H86: 0 | I86: 0 | J86: 0 | K86: 0 | L86: 0 | M86: 425 | N86: 0 | O86: 0 | P86: 0 | Q86: 0 | R86: OK
B87: 1177 | C87: FINAL CLEAN-BUILDING | F87: SF | G87: 0 | H87: 0 | I87: 0 | J87: 0 | K87: 0 | L87: 0 | M87: 2.5 | N87: 0 | O87: 0 | P87: 0 | Q87: 0 | R87: OK
B88: 1178 | C88: GLASS | F88: SF | G88: 0 | H88: 0 | I88: 0 | J88: 0 | K88: 0 | L88: 0 | M88: 0 | N88: 0 | O88: 0 | P88: 0 | Q88: 0 | R88: OK
B89: 1179 | C89: GROUNDS | F89: LS | G89: 0 | H89: 0 | I89: 0 | J89: 0 | K89: 0 | L89: 0 | M89: 0 | N89: 0 | O89: 0 | P89: 0 | Q89: 0 | R89: OK
B90: 1180 | C90: EQUIPMENT | H90: =SUM(H91:H153) -> 0 | I90: =SUM(I91:I153) -> 0 | K90: =SUM(K91:K153) -> 0 | L90: =SUM(L91:L153) -> 0 | N90: =SUM(N91:N153) -> 0 | P90: =SUM(P91:P153) -> 0 | Q90: =SUM(Q91:Q156) -> 0 | R90: OK
B91: 1181 | C91: HAND DRILLS | F91: LS | G91: 0 | H91: =E91*G91 -> 0 | I91: =H91*(BURDEN) -> 0 | J91: 0 | K91: =J91*E91 -> 0 | L91: =K91*(TAX) -> 0 | M91: 0 | N91: =M91*E91 -> 0 | O91: 0 | P91: =O91*E91 -> 0 | Q91: =(H91+I91)+(K91+L91)+N91+P91 -> 0 | R91: OK
B92: 1182 | C92: CIRCULAR SAW | F92: LS | G92: 0 | H92: 0 | I92: 0 | J92: 0 | K92: 0 | L92: 0 | M92: 0 | N92: 0 | O92: 0 | P92: 0 | Q92: 0 | R92: OK
B93: 1183 | C93: RADIAL ARM SAW | F93: LS | G93: 0 | H93: 0 | I93: 0 | J93: 0 | K93: 0 | L93: 0 | M93: 0 | N93: 0 | O93: 0 | P93: 0 | Q93: 0 | R93: OK
B94: 1184 | C94: RAMSET | F94: LS | G94: 0 | H94: 0 | I94: 0 | J94: 0 | K94: 0 | L94: 0 | M94: 0 | N94: 0 | O94: 0 | P94: 0 | Q94: 0 | R94: OK
B95: 1185 | C95: DOOR HANGING EQUIPMENT | F95: LS | G95: 0 | H95: 0 | I95: 0 | J95: 0 | K95: 0 | L95: 0 | M95: 0 | N95: 0 | O95: 0 | P95: 0 | Q95: 0 | R95: OK
B96: 1186 | C96: ROTARY HAMMER | F96: LS | G96: 0 | H96: 0 | I96: 0 | J96: 0 | K96: 0 | L96: 0 | M96: 0 | N96: 0 | O96: 0 | P96: 0 | Q96: 0 | R96: OK
B97: 1187 | C97: SAW BLADES,BITS,ETC. | F97: LS | G97: 0 | H97: 0 | I97: 0 | J97: 0 | K97: 0 | L97: 0 | M97: 0 | N97: 0 | O97: 0 | P97: 0 | Q97: 0 | R97: OK
B98: 1188 | C98: FORKLIFT | F98: MOS | G98: 0 | H98: 0 | I98: 0 | J98: 0 | K98: 0 | L98: 0 | M98: 600 | N98: 0 | O98: 0 | P98: 0 | Q98: 0 | R98: OK
B99: 1189 | C99: MOTOR GRADER | F99: MOS | G99: 0 | H99: 0 | I99: 0 | J99: 0 | K99: 0 | L99: 0 | M99: 0 | N99: 0 | O99: 0 | P99: 0 | Q99: 0 | R99: OK
B100: 1190 | C100: MOBILE CRANE | F100: MOS | G100: 0 | H100: 0 | I100: 0 | J100: 0 | K100: 0 | L100: 0 | M100: 0 | N100: 0 | O100: 0 | P100: 0 | Q100: 0 | R100: OK
B101: 1191 | C101: WHEELBARROWS | F101: LS | G101: 0 | H101: 0 | I101: 0 | J101: 0 | K101: 0 | L101: 0 | M101: 0 | N101: 0 | O101: 0 | P101: 0 | Q101: 0 | R101: OK
B102: 1192 | C102: BUGGIES | F102: LS | G102: 0 | H102: 0 | I102: 0 | J102: 0 | K102: 0 | L102: 0 | M102: 0 | N102: 0 | O102: 0 | P102: 0 | Q102: 0 | R102: OK
B103: 1193 | C103: CONCRETE BUCKET | F103: LS | G103: 0 | H103: 0 | I103: 0 | J103: 0 | K103: 0 | L103: 0 | M103: 0 | N103: 0 | O103: 0 | P103: 0 | Q103: 0 | R103: OK
B104: 1194 | C104: CONVEYORS | F104: MOS | G104: 0 | H104: 0 | I104: 0 | J104: 0 | K104: 0 | L104: 0 | M104: 0 | N104: 0 | O104: 0 | P104: 0 | Q104: 0 | R104: OK
B105: 1195 | C105: TREMIE | F105: LS | G105: 0 | H105: 0 | I105: 0 | J105: 0 | K105: 0 | L105: 0 | M105: 0 | N105: 0 | O105: 0 | P105: 0 | Q105: 0 | R105: OK
B106: 1196 | C106: CHUTES | F106: MOS | G106: 0 | H106: 0 | I106: 0 | J106: 0 | K106: 0 | L106: 0 | M106: 0 | N106: 0 | O106: 0 | P106: 0 | Q106: 0 | R106: OK
B107: =B106+1 -> 1197 | C107: VIBRATORS | F107: LS | G107: 0 | H107: 0 | I107: 0 | J107: 0 | K107: 0 | L107: 0 | M107: 0 | N107: 0 | O107: 0 | P107: 0 | Q107: 0 | R107: OK
B108: 1198 | C108: CONCRETE PUMP & OPERATOR | F108: LS | G108: 0 | H108: 0 | I108: 0 | J108: 0 | K108: 0 | L108: 0 | M108: 0 | N108: 0 | O108: 0 | P108: 0 | Q108: 0 | R108: OK
B109: 1199 | C109: CONCRETE SAW & BLADES | F109: LS | G109: 0 | H109: 0 | I109: 0 | J109: 0 | K109: 0 | L109: 0 | M109: 0 | N109: 0 | O109: 0 | P109: 0 | Q109: 0 | R109: OK
B110: 1200 | C110: GRINDERS & STONES | F110: LS | G110: 0 | H110: 0 | I110: 0 | J110: 0 | K110: 0 | L110: 0 | M110: 0 | N110: 0 | O110: 0 | P110: 0 | Q110: 0 | R110: OK
B111: 1201 | C111: CONVENTIONAL CRANE W/OPR. | F111: MOS | G111: 0 | H111: 0 | I111: 0 | J111: 0 | K111: 0 | L111: 0 | M111: 0 | N111: 0 | O111: 0 | P111: 0 | Q111: 0 | R111: OK
B112: 1202 | C112: TOWER CRANE W/OPR. | F112: MOS | G112: 0 | H112: 0 | I112: 0 | J112: 0 | K112: 0 | L112: 0 | M112: 0 | N112: 0 | O112: 0 | P112: 0 | Q112: 0 | R112: OK
B113: 1203 | C113: CRANE ELEC. POWER / FUEL | F113: MOS | G113: 0 | H113: 0 | I113: 0 | J113: 0 | K113: 0 | L113: 0 | M113: 0 | N113: 0 | O113: 0 | P113: 0 | Q113: 0 | R113: OK
B114: 1204 | C114: TOWER CRANE ELECTRIC WIRING | F114: MOS | G114: 0 | H114: 0 | I114: 0 | J114: 0 | K114: 0 | L114: 0 | M114: 0 | N114: 0 | O114: 0 | P114: 0 | Q114: 0 | R114: OK
B115: 1205 | C115: TOWER CRANE FOUNDATIONS | F115: MOS | G115: 0 | H115: 0 | I115: 0 | J115: 0 | K115: 0 | L115: 0 | M115: 0 | N115: 0 | O115: 0 | P115: 0 | Q115: 0 | R115: OK
B116: 1206 | C116: CRANE-ERCT/JUMP/DISMN | F116: MOS | G116: 0 | H116: 0 | I116: 0 | J116: 0 | K116: 0 | L116: 0 | M116: 0 | N116: 0 | O116: 0 | P116: 0 | Q116: 0 | R116: OK
B117: 1207 | C117: TOWER CRANE CONSULTANT | F117: MOS | G117: 0 | H117: 0 | I117: 0 | J117: 0 | K117: 0 | L117: 0 | M117: 0 | N117: 0 | O117: 0 | P117: 0 | Q117: 0 | R117: OK
B118: 1208 | C118: TOWER CRANE ANCHOR BOLTS | F118: MOS | G118: 0 | H118: 0 | I118: 0 | J118: 0 | K118: 0 | L118: 0 | M118: 0 | N118: 0 | O118: 0 | P118: 0 | Q118: 0 | R118: OK
B119: 1209 | C119: FREIGHT | F119: LS | G119: 0 | H119: 0 | I119: 0 | J119: 0 | K119: 0 | L119: 0 | M119: 0 | N119: 0 | O119: 0 | P119: 0 | Q119: 0 | R119: OK
B120: 1210 | C120: CHERRY PICKER W/OPR. | F120: LS | G120: 0 | H120: 0 | I120: 0 | J120: 0 | K120: 0 | L120: 0 | M120: 0 | N120: 0 | O120: 0 | P120: 0 | Q120: 0 | R120: OK
B121: 1211 | C121: OCCASIONAL CRANE RENTAL | F121: MOS | G121: 0 | H121: 0 | I121: 0 | J121: 0 | K121: 0 | L121: 0 | M121: 0 | N121: 0 | O121: 0 | P121: 0 | Q121: 0 | R121: OK
B122: 1212 | C122: MATERIAL HOIST & OPERATOR | F122: MOS | G122: 0 | H122: 0 | I122: 0 | J122: 0 | K122: 0 | L122: 0 | M122: 0 | N122: 0 | O122: 0 | P122: 0 | Q122: 0 | R122: OK
B123: 1213 | C123: MATL/PERS HOIST & OPERATOR | F123: MOS | G123: 0 | H123: =E123*G123 -> 0 | I123: =H123*(BURDEN) -> 0 | J123: 0 | K123: =J123*E123 -> 0 | L123: =K123*(TAX) -> 0 | M123: 0 | N123: =M123*E123 -> 0 | O123: 0 | P123: =O123*E123 -> 0 | Q123: =(H123+I123)+(K123+L123)+N123+P123 -> 0 | R123: OK
B124: 1214 | C124: HOIST FOUNDATION | F124: MOS | G124: 0 | H124: 0 | I124: 0 | J124: 0 | K124: 0 | L124: 0 | M124: 0 | N124: 0 | O124: 0 | P124: 0 | Q124: 0 | R124: OK
B125: 1215 | C125: HOIST ELECTRIC POWER | F125: MOS | G125: 0 | H125: 0 | I125: 0 | J125: 0 | K125: 0 | L125: 0 | M125: 0 | N125: 0 | O125: 0 | P125: 0 | Q125: 0 | R125: OK
B126: 1216 | C126: HOIST ELECTRIC WIRING | F126: MOS | G126: 0 | H126: 0 | I126: 0 | J126: 0 | K126: 0 | L126: 0 | M126: 0 | N126: 0 | O126: 0 | P126: 0 | Q126: 0 | R126: OK
B127: 1217 | C127: ANCHOR BOLTS | F127: LS | G127: 0 | H127: 0 | I127: 0 | J127: 0 | K127: 0 | L127: 0 | M127: 0 | N127: 0 | O127: 0 | P127: 0 | Q127: 0 | R127: OK
B128: 1218 | C128: FREIGHT | F128: LS | G128: 0 | H128: 0 | I128: 0 | J128: 0 | K128: 0 | L128: 0 | M128: 0 | N128: 0 | O128: 0 | P128: 0 | Q128: 0 | R128: OK
B129: 1219 | C129: HOIST-ERECT/JUMP/DISMN | F129: MOS | G129: 0 | H129: 0 | I129: 0 | J129: 0 | K129: 0 | L129: 0 | M129: 0 | N129: 0 | O129: 0 | P129: 0 | Q129: 0 | R129: OK
B130: 1220 | C130: PROTECT BLDG. ELEVATOR CAB | F130: MOS | G130: 0 | H130: 0 | I130: 0 | J130: 0 | K130: 0 | L130: 0 | M130: 0 | N130: 0 | O130: 0 | P130: 0 | Q130: 0 | R130: OK
B131: 1221 | C131: BUILDING ELEVATOR OPERATOR | F131: MOS | G131: 0 | H131: 0 | I131: 0 | J131: 0 | K131: 0 | L131: 0 | M131: 0 | N131: 0 | O131: 0 | P131: 0 | Q131: 0 | R131: OK
B132: 1222 | C132: OFFICE TRAILER - GC | F132: MOS | G132: 0 | H132: 0 | I132: 0 | J132: 725 | K132: 0 | L132: 0 | M132: 0 | N132: 0 | O132: 0 | P132: 0 | Q132: 0 | R132: OK
B133: 1223 | C133: OFFICE TRAILER - A & E | F133: MOS | G133: 0 | H133: 0 | I133: 0 | J133: 0 | K133: 0 | L133: 0 | M133: 0 | N133: 0 | O133: 0 | P133: 0 | Q133: 0 | R133: OK
B134: 1224 | C134: OFFICE EQUIPMENT - GC | F134: MOS | G134: 0 | H134: 0 | I134: 0 | J134: 500 | K134: 0 | L134: 0 | M134: 0 | N134: 0 | O134: 0 | P134: 0 | Q134: 0 | R134: OK
B135: 1225 | C135: COMPUTER TERMINAL | F135: LS | G135: 0 | H135: 0 | I135: 0 | J135: 0 | K135: 0 | L135: 0 | M135: 0 | N135: 0 | O135: 0 | P135: 0 | Q135: 0 | R135: OK
B136: 1226 | C136: PHONE-FAX-COMPUTER | F136: LS | G136: 0 | H136: 0 | I136: 0 | J136: 32 | K136: 0 | L136: 0 | M136: 0 | N136: 0 | O136: 0 | P136: 0 | Q136: 0 | R136: OK
B137: 1227 | C137: CUTTING TORCH (INC. GAS) | F137: LS | G137: 0 | H137: 0 | I137: 0 | J137: 0 | K137: 0 | L137: 0 | M137: 0 | N137: 0 | O137: 0 | P137: 0 | Q137: 0 | R137: =IF(AND(A137="X",Q137=0),"PROBLEM--CHECK VALUES OR QUANTITES","OK") -> OK
B138: 1228 | C138: AIR COMPRESSOR W/HOSE | F138: LS | G138: 0 | H138: 0 | I138: 0 | J138: 0 | K138: 0 | L138: 0 | M138: 0 | N138: 0 | O138: 0 | P138: 0 | Q138: 0 | R138: OK
B139: =B138+1 -> 1229 | C139: TAMPS | F139: LS | G139: 0 | H139: 0 | I139: 0 | J139: 0 | K139: 0 | L139: 0 | M139: 0 | N139: 0 | O139: 0 | P139: 0 | Q139: 0 | R139: OK
B140: 1230 | C140: GENERATOR | F140: MOS | G140: 0 | H140: 0 | I140: 0 | J140: 0 | K140: 0 | L140: 0 | M140: 0 | N140: 0 | O140: 0 | P140: 0 | Q140: 0 | R140: OK
B141: 1231 | C141: PUMPS | F141: LS | G141: 0 | H141: 0 | I141: 0 | J141: 0 | K141: 0 | L141: 0 | M141: 0 | N141: 0 | O141: 0 | P141: 0 | Q141: 0 | R141: OK
B142: 1232 | C142: ROCK DRILL | F142: LS | G142: 0 | H142: 0 | I142: 0 | J142: 0 | K142: 0 | L142: 0 | M142: 0 | N142: 0 | O142: 0 | P142: 0 | Q142: 0 | R142: OK
B143: 1233 | C143: JACKHAMMER | F143: LS | G143: 0 | H143: 0 | I143: 0 | J143: 0 | K143: 0 | L143: 0 | M143: 0 | N143: 0 | O143: 0 | P143: 0 | Q143: 0 | R143: OK
B144: 1234 | C144: SWING STAGE | F144: LS | G144: 0 | H144: 0 | I144: 0 | J144: 0 | K144: 0 | L144: 0 | M144: 0 | N144: 0 | O144: 0 | P144: 0 | Q144: 0 | R144: OK
B145: 1235 | C145: SCAFFOLD FRAMES & BOARDS | F145: MOS | G145: 0 | H145: 0 | I145: 0 | J145: 0 | K145: 0 | L145: 0 | M145: 0 | N145: 0 | O145: 0 | P145: 0 | Q145: 0 | R145: OK
B146: 1236 | C146: HEATERS | F146: MOS | G146: 0 | H146: 0 | I146: 0 | J146: 0 | K146: 0 | L146: 0 | M146: 0 | N146: 0 | O146: 0 | P146: 0 | Q146: 0 | R146: OK
B147: 1237 | C147: FLOOR POLISH/SWEEPER/SANDER | F147: LS | G147: 0 | H147: 0 | I147: 0 | J147: 0 | K147: 0 | L147: 0 | M147: 0 | N147: 0 | O147: 0 | P147: 0 | Q147: 0 | R147: OK
B148: 1238 | C148: VACUUM CLEANER | F148: LS | G148: 0 | H148: 0 | I148: 0 | J148: 0 | K148: 0 | L148: 0 | M148: 0 | N148: 0 | O148: 0 | P148: 0 | Q148: 0 | R148: OK
B149: 1239 | C149: CHAIN SAW | F149: LS | G149: 0 | H149: 0 | I149: 0 | J149: 0 | K149: 0 | L149: 0 | M149: 0 | N149: 0 | O149: 0 | P149: 0 | Q149: 0 | R149: OK
B150: 1240 | C150: SMALL TOOLS | F150: LS | G150: 0 | H150: 0 | I150: 0 | J150: 250 | K150: 0 | L150: 0 | M150: 0 | N150: 0 | O150: 0 | P150: 0 | Q150: 0 | R150: OK
B151: 1241 | C151: WEB-CAMS | F151: LS | G151: 0 | H151: 0 | I151: 0 | J151: 0 | K151: 0 | L151: 0 | M151: 0 | N151: 0 | O151: 0 | P151: 0 | Q151: 0 | R151: OK
B152: 1242 | C152: SPECIAL TOOLS | F152: LS | G152: 0 | H152: 0 | I152: 0 | J152: 0 | K152: 0 | L152: 0 | M152: 0 | N152: 0 | O152: 0 | P152: 0 | Q152: 0 | R152: OK
B153: 1243 | C153: OTHER EQPT NOT LISTED ABOVE | F153: LS | G153: 0 | H153: 0 | I153: 0 | J153: 0 | K153: 0 | L153: 0 | M153: 0 | N153: 0 | O153: 0 | P153: 0 | Q153: 0 | R153: OK
B154: 1244 | C154: PICKUP TRUCK-SUPERINTENDENT (1 EA) | F154: WKS | G154: 0 | H154: 0 | I154: 0 | J154: 0 | K154: 0 | L154: 0 | M154: 550 | N154: 0 | O154: 0 | P154: 0 | Q154: 0 | R154: OK
B155: 1245 | C155: PICKUP TRUCK-PROJECT MGR. (1 EA) | F155: WKS | G155: 0 | H155: =E155*G155 -> 0 | I155: =H155*(BURDEN) -> 0 | J155: 0 | K155: =J155*E155 -> 0 | L155: =K155*(TAX) -> 0 | M155: 550 | N155: =M155*E155 -> 0 | O155: 0 | P155: =O155*E155 -> 0 | Q155: =(H155+I155)+(K155+L155)+N155+P155 -> 0 | R155: OK
B156: 1246 | C156: PICKUP TRUCK-ASSISTANT/LABOR (1 EA) | F156: MOS | G156: 0 | H156: 0 | I156: 0 | J156: 0 | K156: 0 | L156: 0 | M156: 550 | N156: 0 | O156: 0 | P156: 0 | Q156: 0 | R156: OK
B157: 1247 | C157: MISCELLANEOUS EQUIPMENT COSTS | H157: =SUM(H158:H162) -> 0 | I157: =SUM(I158:I162) -> 0 | K157: =SUM(K158:K162) -> 0 | L157: =SUM(L158:L162) -> 0 | N157: =SUM(N158:N162) -> 0 | P157: =SUM(P158:P162) -> 0 | Q157: =SUM(Q158:Q162) -> 0 | R157: OK
B158: 1248 | C158: MOBILIZATION | F158: LS | G158: 290 | H158: =E158*G158 -> 0 | I158: =H158*(BURDEN) -> 0 | J158: 115 | K158: =J158*E158 -> 0 | L158: =K158*(TAX) -> 0 | M158: 0 | N158: =M158*E158 -> 0 | O158: 0 | P158: =O158*E158 -> 0 | Q158: =(H158+I158)+(K158+L158)+N158+P158 -> 0 | R158: OK
B159: 1249 | C159: FREIGHT ON EQUIPMENT | F159: LS | G159: 0 | H159: =E159*G159 -> 0 | I159: =H159*(BURDEN) -> 0 | J159: 0 | K159: =J159*E159 -> 0 | L159: =K159*(TAX) -> 0 | M159: 0 | N159: =M159*E159 -> 0 | O159: 0 | P159: =O159*E159 -> 0 | Q159: =(H159+I159)+(K159+L159)+N159+P159 -> 0 | R159: OK
B160: 1250 | C160: INSURANCE ON EQUIPMENT | F160: LS | G160: 0 | H160: =E160*G160 -> 0 | I160: =H160*(BURDEN) -> 0 | J160: 6713 | K160: =J160*E160 -> 0 | L160: =K160*(TAX) -> 0 | M160: 0 | N160: =M160*E160 -> 0 | O160: 0 | P160: =O160*E160 -> 0 | Q160: =(H160+I160)+(K160+L160)+N160+P160 -> 0 | R160: OK
B161: 1251 | C161: PARTS & REPAIRS | F161: LS | G161: 0 | H161: =E161*G161 -> 0 | I161: =H161*(BURDEN) -> 0 | J161: 0 | K161: =J161*E161 -> 0 | L161: =K161*(TAX) -> 0 | M161: 0 | N161: =M161*E161 -> 0 | O161: 0 | P161: =O161*E161 -> 0 | Q161: =(H161+I161)+(K161+L161)+N161+P161 -> 0 | R161: OK
B162: 1252 | C162: LUBRICANTS & FUELS | F162: WKS | G162: 0 | H162: =E162*G162 -> 0 | I162: =H162*(BURDEN) -> 0 | J162: 210 | K162: =J162*E162 -> 0 | L162: =K162*(TAX) -> 0 | M162: 0 | N162: =M162*E162 -> 0 | O162: 0 | P162: =O162*E162 -> 0 | Q162: =(H162+I162)+(K162+L162)+N162+P162 -> 0 | R162: OK
A163: X | C163: DIV. 2-- SITE CONSTRUCTION | H163: =SUM(H164,H168) -> 0 | I163: =SUM(I164,I168) -> 0 | K163: =SUM(K164,K168) -> 0 | L163: =SUM(L164,L168) -> 0 | N163: =SUM(N164,N168) -> 0 | P163: =SUM(P164,P168) -> 0 | Q163: =SUM(Q164,Q168) -> 0 | R163: PROBLEM--CHECK VALUES OR QUANTITES
B164: 2100 | C164: Demolition | H164: =SUM(H165:H167) -> 0 | I164: =SUM(I165:I167) -> 0 | K164: =SUM(K165:K167) -> 0 | L164: =SUM(L165:L167) -> 0 | N164: =SUM(N165:N167) -> 0 | P164: =SUM(P165:P167) -> 0 | Q164: =SUM(Q165:Q167) -> 0 | R164: OK
B165: =B164+1 -> 2101 | C165: Demolition | E165: 1 | F165: ls | G165: 0 | H165: =E165*G165 -> 0 | I165: =H165*(BURDEN) -> 0 | J165: 0 | K165: =J165*E165 -> 0 | L165: =K165*(TAX) -> 0 | N165: =M165*E165 -> 0 | O165: 0 | P165: =O165*E165 -> 0 | Q165: =(H165+I165)+(K165+L165)+N165+P165 -> 0 | R165: OK
B166: =B165+1 -> 2102 | C166: Dispose of Debris | E166: 0 | F166: ls | G166: 0 | H166: =E166*G166 -> 0 | I166: =H166*(BURDEN) -> 0 | J166: 0 | K166: =J166*E166 -> 0 | L166: =K166*(TAX) -> 0 | M166: 0 | N166: =M166*E166 -> 0 | O166: 0 | P166: =O166*E166 -> 0 | Q166: =(H166+I166)+(K166+L166)+N166+P166 -> 0 | R166: OK
B167: =B166+1 -> 2103 | C167: Labor | E167: 0 | F167: md | G167: 0 | H167: =E167*G167 -> 0 | I167: =H167*(BURDEN) -> 0 | J167: 0 | K167: =J167*E167 -> 0 | L167: =K167*(TAX) -> 0 | M167: 0 | N167: =M167*E167 -> 0 | O167: 0 | P167: =O167*E167 -> 0 | Q167: =(H167+I167)+(K167+L167)+N167+P167 -> 0 | R167: OK
B168: 2150 | C168: Temp Construction | H168: =SUM(H169:H177) -> 0 | I168: =SUM(I169:I177) -> 0 | K168: =SUM(K169:K177) -> 0 | L168: =SUM(L169:L177) -> 0 | N168: =SUM(N169:N177) -> 0 | P168: =SUM(P169:P177) -> 0 | Q168: =SUM(Q169:Q177) -> 0 | R168: OK
B169: =B168+1 -> 2151 | C169: Walks | E169: 0 | F169: ls | G169: 0 | H169: =E169*G169 -> 0 | I169: =H169*(BURDEN) -> 0 | J169: 0 | K169: =J169*E169 -> 0 | L169: =K169*(TAX) -> 0 | M169: 0 | N169: =M169*E169 -> 0 | O169: 0 | P169: =O169*E169 -> 0 | Q169: =(H169+I169)+(K169+L169)+N169+P169 -> 0 | R169: OK
B170: 2152 | C170: Walls | E170: 0 | F170: ls | G170: 0 | H170: 0 | I170: 0 | J170: 0 | K170: 0 | L170: 0 | M170: 0 | N170: 0 | O170: 0 | P170: 0 | Q170: 0 | R170: OK
B171: 2153 | C171: Curtains | E171: 0 | F171: ls | G171: 0 | H171: 0 | I171: 0 | J171: 0 | K171: 0 | L171: 0 | M171: 0 | N171: 0 | O171: 0 | P171: 0 | Q171: 0 | R171: OK
B172: 2154 | C172: Shelters | E172: 0 | F172: ls | G172: 0 | H172: 0 | I172: 0 | J172: 0 | K172: 0 | L172: 0 | M172: 0 | N172: 0 | O172: 0 | P172: 0 | Q172: 0 | R172: OK
B173: 2155 | C173: Storage area | E173: 0 | F173: ls | G173: 0 | H173: 0 | I173: 0 | J173: 0 | K173: 0 | L173: 0 | M173: 0 | N173: 0 | O173: 0 | P173: 0 | Q173: 0 | R173: OK
B174: 2156 | C174: Roads & Access | E174: 0 | F174: ls | G174: 0 | H174: 0 | I174: 0 | J174: 0 | K174: 0 | L174: 0 | M174: 0 | N174: 0 | O174: 0 | P174: 0 | Q174: 0 | R174: OK
B175: 2157 | C175: Traffic control | E175: 0 | F175: ls | G175: 0 | H175: 0 | I175: 0 | J175: 0 | K175: 0 | L175: 0 | M175: 0 | N175: 0 | O175: 0 | P175: 0 | Q175: 0 | R175: OK
B176: 2158 | C176: Other | E176: 0 | F176: ls | G176: 0 | H176: 0 | I176: 0 | J176: 0 | K176: 0 | L176: 0 | M176: 0 | N176: 0 | O176: 0 | P176: 0 | Q176: 0 | R176: OK
B177: 2159 | C177: Labor | F177: md | G177: 250 | H177: 0 | I177: 0 | J177: 0 | K177: 0 | L177: 0 | M177: 0 | N177: 0 | O177: 0 | P177: 0 | Q177: 0 | R177: OK
A178: X | C178: DIV. 3- CONCRETE | H178: =+H179+H181+H190+H199+H210+H224+H235+H246+H263+H296+H313+H356+H364+H386+H409+H423+H475+H488+H495+H509+H514 -> 0 | I178: =+I179+I181+I190+I199+I210+I224+I235+I246+I263+I296+I313+I356+I364+I386+I409+I423+I475+I488+I495+I509+I514 -> 0 | K178: =+K179+K181+K190+K199+K210+K224+K235+K246+K263+K296+K313+K356+K364+K386+K409+K423+K475+K488+K495+K509+K514 -> 0 | L178: =+L179+L181+L190+L199+L210+L224+L235+L246+L263+L296+L313+L356+L364+L386+L409+L423+L475+L488+L495+L509+L514 -> 0 | N178: =+N179+N181+N190+N199+N210+N224+N235+N246+N263+N296+N313+N356+N364+N386+N409+N423+N475+N488+N495+N509+N514 -> 0 | P178: =+P179+P181+P190+P199+P210+P224+P235+P246+P263+P296+P313+P356+P364+P386+P409+P423+P475+P488+P495+P509+P514 -> 0 | Q178: =+Q179+Q181+Q190+Q199+Q210+Q224+Q235+Q246+Q263+Q296+Q313+Q356+Q364+Q386+Q409+Q423+Q475+Q488+Q495+Q509+Q514 -> 0 | R178: PROBLEM--CHECK VALUES OR QUANTITES
B179: 3001 | C179: Concrete | H179: =SUM(H180) -> 0 | I179: =SUM(I180) -> 0 | K179: =SUM(K180) -> 0 | L179: =SUM(L180) -> 0 | N179: =SUM(N180) -> 0 | P179: =SUM(P180) -> 0 | Q179: =SUM(Q180) -> 0 | R179: OK
B180: =B179+1 -> 3002 | C180: Subcontract Complete (Lump Sum / Turn-Key) | E180: 1 | F180: ls | G180: 0 | H180: =E180*G180 -> 0 | I180: =H180*(BURDEN) -> 0 | J180: 0 | K180: =J180*E180 -> 0 | L180: =K180*(TAX) -> 0 | N180: =M180*E180 -> 0 | O180: 0 | P180: =O180*E180 -> 0 | Q180: =(H180+I180)+(K180+L180)+N180+P180 -> 0 | R180: OK
B181: 3100 | C181: Caissons | H181: =SUM(H182:H189) -> 0 | I181: =SUM(I182:I189) -> 0 | K181: =SUM(K182:K189) -> 0 | L181: =SUM(L182:L189) -> 0 | N181: =SUM(N182:N189) -> 0 | P181: =SUM(P182:P189) -> 0 | Q181: =SUM(Q182:Q189) -> 0 | R181: OK
B182: =B181+1 -> 3101 | C182: Subcontract | E182: 0 | F182: ls | G182: 0 | H182: =E182*G182 -> 0 | I182: =H182*(BURDEN) -> 0 | J182: 0 | K182: =J182*E182 -> 0 | L182: =K182*(TAX) -> 0 | M182: 0 | N182: =M182*E182 -> 0 | O182: 0 | P182: =O182*E182 -> 0 | Q182: =(H182+I182)+(K182+L182)+N182+P182 -> 0 | R182: OK
B183: 3102 | C183: Concrete | E183: 0 | F183: cy | G183: 0 | H183: 0 | I183: 0 | J183: 0 | K183: 0 | L183: 0 | M183: 0 | N183: 0 | O183: 0 | P183: 0 | Q183: 0 | R183: OK
B184: 3103 | C184: Place Concrete | E184: 0 | F184: cy | G184: 0 | H184: 0 | I184: 0 | J184: 0 | K184: 0 | L184: 0 | M184: 0 | N184: 0 | O184: 0 | P184: 0 | Q184: 0 | R184: OK
B185: 3104 | C185: Excavation | E185: 0 | F185: cy | G185: 0 | H185: 0 | I185: 0 | J185: 0 | K185: 0 | L185: 0 | M185: 0 | N185: 0 | O185: 0 | P185: 0 | Q185: 0 | R185: OK
B186: 3105 | C186: Backfill | E186: 0 | F186: cy | G186: 0 | H186: 0 | I186: 0 | J186: 0 | K186: 0 | L186: 0 | M186: 0 | N186: 0 | O186: 0 | P186: 0 | Q186: 0 | R186: OK
B187: 3106 | C187: Dispose of Excess | E187: 0 | F187: cy | G187: 0 | H187: 0 | I187: 0 | J187: 0 | K187: 0 | L187: 0 | M187: 0 | N187: 0 | O187: 0 | P187: 0 | Q187: 0 | R187: OK
B188: 3107 | C188: Reinf Bars | E188: 0 | F188: lb | G188: 0 | H188: 0 | I188: 0 | J188: 0 | K188: 0 | L188: 0 | M188: 0 | N188: 0 | O188: 0 | P188: 0 | Q188: 0 | R188: OK
B189: 3108 | C189: Labor | E189: 0 | F189: md | G189: 250 | H189: 0 | I189: 0 | J189: 0 | K189: 0 | L189: 0 | M189: 0 | N189: 0 | O189: 0 | P189: 0 | Q189: 0 | R189: OK
B190: 3110 | C190: Pile Caps | H190: =SUM(H191:H198) -> 0 | I190: =SUM(I191:I198) -> 0 | K190: =SUM(K191:K198) -> 0 | L190: =SUM(L191:L198) -> 0 | N190: =SUM(N191:N198) -> 0 | P190: =SUM(P191:P198) -> 0 | Q190: =SUM(Q191:Q198) -> 0 | R190: OK
B191: =B190+1 -> 3111 | C191: Subcontract | E191: 0 | F191: ls | G191: 0 | H191: =E191*G191 -> 0 | I191: =H191*(BURDEN) -> 0 | J191: 0 | K191: =J191*E191 -> 0 | L191: =K191*(TAX) -> 0 | M191: 0 | N191: =M191*E191 -> 0 | O191: 0 | P191: =O191*E191 -> 0 | Q191: =(H191+I191)+(K191+L191)+N191+P191 -> 0 | R191: OK
B192: 3112 | C192: Concrete | E192: 0 | F192: cy | G192: 0 | H192: 0 | I192: 0 | J192: 0 | K192: 0 | L192: 0 | M192: 0 | N192: 0 | O192: 0 | P192: 0 | Q192: 0 | R192: OK
B193: 3113 | C193: Place Concrete | E193: 0 | F193: cy | G193: 0 | H193: 0 | I193: 0 | J193: 0 | K193: 0 | L193: 0 | M193: 0 | N193: 0 | O193: 0 | P193: 0 | Q193: 0 | R193: OK
B194: 3114 | C194: Excavation | E194: 0 | F194: cy | G194: 0 | H194: 0 | I194: 0 | J194: 0 | K194: 0 | L194: 0 | M194: 0 | N194: 0 | O194: 0 | P194: 0 | Q194: 0 | R194: OK
B195: 3115 | C195: Backfill | E195: 0 | F195: cy | G195: 0 | H195: 0 | I195: 0 | J195: 0 | K195: 0 | L195: 0 | M195: 0 | N195: 0 | O195: 0 | P195: 0 | Q195: 0 | R195: OK
B196: 3116 | C196: Dispose of Excess | E196: 0 | F196: cy | G196: 0 | H196: 0 | I196: 0 | J196: 0 | K196: 0 | L196: 0 | M196: 0 | N196: 0 | O196: 0 | P196: 0 | Q196: 0 | R196: OK
B197: 3117 | C197: Reinf Bars | E197: 0 | F197: lb | G197: 0 | H197: 0 | I197: 0 | J197: 0 | K197: 0 | L197: 0 | M197: 0 | N197: 0 | O197: 0 | P197: 0 | Q197: 0 | R197: OK
B198: 3118 | C198: Labor | E198: 0 | F198: md | G198: 250 | H198: 0 | I198: 0 | J198: 0 | K198: 0 | L198: 0 | M198: 0 | N198: 0 | O198: 0 | P198: 0 | Q198: 0 | R198: OK
B199: 3120 | C199: Spread Footings | H199: =SUM(H200:H209) -> 0 | I199: =SUM(I200:I209) -> 0 | K199: =SUM(K200:K209) -> 0 | L199: =SUM(L200:L209) -> 0 | N199: =SUM(N200:N209) -> 0 | P199: =SUM(P200:P209) -> 0 | Q199: =SUM(Q200:Q209) -> 0 | R199: OK
B200: =B199+1 -> 3121 | C200: Subcontract | E200: 0 | F200: ls | G200: 0 | H200: =E200*G200 -> 0 | I200: =H200*(BURDEN) -> 0 | J200: 0 | K200: =J200*E200 -> 0 | L200: =K200*(TAX) -> 0 | M200: 0 | N200: =M200*E200 -> 0 | O200: 0 | P200: =O200*E200 -> 0 | Q200: =(H200+I200)+(K200+L200)+N200+P200 -> 0 | R200: OK
B201: 3122 | C201: Concrete | E201: 0 | F201: cy | G201: 0 | H201: 0 | I201: 0 | J201: 0 | K201: 0 | L201: 0 | M201: 0 | N201: 0 | O201: 0 | P201: 0 | Q201: 0 | R201: =IF(AND(A201="X",Q201=0),"PROBLEM--CHECK VALUES OR QUANTITES","OK") -> OK
... 1412 more rows

Sheet Pricing Sheet
A1: TAX = | B1: =TAX_RATE -> 0.07
A2: BURDEN= | B2: =BURDEN_RATE -> 0.18
A5: A Division of State Utility Contractors, Inc.
B6: DESCRIPTION | C6: SUB-CONTRACTOR NAME | D6: QTY | E6: UNIT | F6: UNIT LABOR | G6: LABOR COST (INCL. BURDEN) | H6: MATERIAL TOTAL | I6: LABOR COST PER UNIT | J6: LABOR TOTAL | K6: UNIT SUB / EQUIP / MISC | L6: SUB | M6: TOTAL | N6: P&P | O6: ='[2]Bid Summary'!D20 -> 1.03279449e-114 | P6: TOTAL CONTRACT VALUE
A8: 2 | B8: =Estimate!C163 -> DIV. 2-- SITE CONSTRUCTION | H8: =$D8*F8 -> 0 | J8: =$D8*I8 -> 0 | L8: =$D8*K8 -> 0 | M8: =H8+J8+L8 -> 0 | N8: =IF(M8>=500000,0.01*M8,M8*0.0125)*(AND(M8>=100000)) -> 0
D9: 1 | E9: LS | H9: 0 | J9: 0 | L9: 0 | M9: 0 | N9: 0
D10: 1 | E10: LS | H10: 0 | J10: 0 | L10: 0 | M10: 0 | N10: 0
D11: 1 | E11: LS | H11: 0 | J11: 0 | L11: 0 | M11: 0 | N11: 0
D12: 1 | E12: LS | H12: 0 | J12: 0 | L12: 0 | M12: 0 | N12: 0
D13: 1 | E13: LS | H13: 0 | J13: 0 | L13: 0 | M13: 0 | N13: 0
D14: 1 | E14: LS | H14: 0 | J14: 0 | L14: 0 | M14: 0 | N14: 0
D15: 1 | E15: LS | H15: 0 | J15: 0 | L15: 0 | M15: 0 | N15: 0
D16: 1 | E16: LS | H16: 0 | J16: 0 | L16: 0 | M16: 0 | N16: 0
D17: 1 | E17: LS | H17: 0 | J17: 0 | L17: 0 | M17: 0 | N17: 0
D18: 1 | E18: LS | H18: 0 | J18: 0 | L18: 0 | M18: 0 | N18: 0
H19: 0 | J19: 0 | L19: 0 | M19: 0
B20: Sub-Total | H20: =SUM(H8:H19) -> 0 | J20: =SUM(J8:J19) -> 0 | L20: =SUM(L8:L19) -> 0 | M20: =H20+J20+L20 -> 0
B21: Sales Tax | H21: =H20*'[2]Bid Summary'!$D$70 -> 0 | M21: =H21+J21+L21 -> 0
B22: Tax and insurance on labor | J22: =J20*'[2]Bid Summary'!$D$71 -> 0 | M22: =H22+J22+L22 -> 0
B23: TOTAL - 2 | H23: =H20+H21+H22 -> 0 | J23: =J20+J21+J22 -> 0 | L23: =L20+L21+L22 -> 0 | M23: =H23+J23+L23 -> 0
A25: 3 | B25: =Estimate!C178 -> DIV. 3- CONCRETE | H25: =$D25*F25 -> 0 | J25: =$D25*I25 -> 0 | L25: =$D25*K25 -> 0 | M25: =H25+J25+L25 -> 0 | N25: =IF(M25>=500000,0.01*M25,M25*0.0125)*(AND(M25>=100000)) -> 0
D26: 1 | E26: LS | H26: 0 | J26: 0 | L26: 0 | M26: 0 | N26: 0
D27: 1 | E27: LS | H27: 0 | J27: 0 | L27: 0 | M27: 0 | N27: 0
D28: 1 | E28: LS | H28: 0 | J28: 0 | L28: 0 | M28: 0 | N28: 0
D29: 1 | E29: LS | H29: 0 | J29: 0 | L29: 0 | M29: 0 | N29: 0
D30: 1 | E30: LS | H30: 0 | J30: 0 | L30: 0 | M30: 0 | N30: 0
D31: 1 | E31: LS | H31: 0 | J31: 0 | L31: 0 | M31: 0 | N31: 0
D32: 1 | E32: LS | H32: 0 | J32: 0 | L32: 0 | M32: 0 | N32: 0
D33: 1 | E33: LS | H33: 0 | J33: 0 | L33: 0 | M33: 0 | N33: 0
D34: 1 | E34: LS | H34: 0 | J34: 0 | L34: 0 | M34: 0 | N34: 0
D35: 1 | E35: LS | H35: 0 | J35: 0 | L35: 0 | M35: 0 | N35: 0
H36: 0 | J36: 0 | L36: 0 | M36: 0 | N36: 0
B37: Sub-Total | H37: =SUM(H25:H36) -> 0 | J37: =SUM(J25:J36) -> 0 | L37: =SUM(L25:L36) -> 0 | M37: =H37+J37+L37 -> 0
B38: Sales Tax | H38: =H37*'[2]Bid Summary'!$D$70 -> 0 | M38: =H38+J38+L38 -> 0
B39: Tax and insurance on labor | J39: =J37*'[2]Bid Summary'!$D$71 -> 0 | M39: =H39+J39+L39 -> 0
B40: TOTAL - 3 | H40: =H37+H38+H39 -> 0 | J40: =J37+J38+J39 -> 0 | L40: =L37+L38+L39 -> 0 | M40: =H40+J40+L40 -> 0
A42: 4 | B42: ADDITIONAL LINE ITEM | H42: =$D42*F42 -> 0 | J42: =$D42*I42 -> 0 | L42: =$D42*K42 -> 0 | M42: =H42+J42+L42 -> 0 | N42: =IF(M42>=500000,0.01*M42,M42*0.0125)*(AND(M42>=100000)) -> 0
D43: 1 | E43: LS | H43: 0 | J43: 0 | L43: 0 | M43: 0 | N43: 0
D44: 1 | E44: LS | H44: 0 | J44: 0 | L44: 0 | M44: 0 | N44: 0
D45: 1 | E45: LS | H45: 0 | J45: 0 | L45: 0 | M45: 0 | N45: 0
D46: 1 | E46: LS | H46: 0 | J46: 0 | L46: 0 | M46: 0 | N46: 0
D47: 1 | E47: LS | H47: 0 | J47: 0 | L47: 0 | M47: 0 | N47: 0
D48: 1 | E48: LS | H48: 0 | J48: 0 | L48: 0 | M48: 0 | N48: 0
D49: 1 | E49: LS | H49: 0 | J49: 0 | L49: 0 | M49: 0 | N49: 0
D50: 1 | E50: LS | H50: 0 | J50: 0 | L50: 0 | M50: 0 | N50: 0
D51: 1 | E51: LS | H51: 0 | J51: 0 | L51: 0 | M51: 0 | N51: 0
D52: 1 | E52: LS | H52: 0 | J52: 0 | L52: 0 | M52: 0 | N52: 0
H53: 0 | J53: 0 | L53: 0 | M53: 0 | N53: 0
B54: Sub-Total | H54: =SUM(H42:H53) -> 0 | J54: =SUM(J42:J53) -> 0 | L54: =SUM(L42:L53) -> 0 | M54: =H54+J54+L54 -> 0
B55: Sales Tax | H55: =H54*'[2]Bid Summary'!$D$70 -> 0 | M55: =H55+J55+L55 -> 0
B56: Tax and insurance on labor | J56: =J54*'[2]Bid Summary'!$D$71 -> 0 | M56: =H56+J56+L56 -> 0
B57: TOTAL - 4 | H57: =H54+H55+H56 -> 0 | J57: =J54+J55+J56 -> 0 | L57: =L54+L55+L56 -> 0 | M57: =H57+J57+L57 -> 0
A59: 5 | B59: ADDITIONAL LINE ITEM | H59: =$D59*F59 -> 0 | J59: =$D59*I59 -> 0 | L59: =$D59*K59 -> 0 | M59: =H59+J59+L59 -> 0 | N59: =IF(M59>=500000,0.01*M59,M59*0.0125)*(AND(M59>=100000)) -> 0
D60: 1 | E60: LS | H60: 0 | J60: 0 | L60: 0 | M60: 0 | N60: 0
D61: 1 | E61: LS | H61: 0 | J61: 0 | L61: 0 | M61: 0 | N61: 0
D62: 1 | E62: LS | H62: 0 | J62: 0 | L62: 0 | M62: 0 | N62: 0
D63: 1 | E63: LS | H63: 0 | J63: 0 | L63: 0 | M63: 0 | N63: 0
D64: 1 | E64: LS | H64: 0 | J64: 0 | L64: 0 | M64: 0 | N64: 0
D65: 1 | E65: LS | H65: 0 | J65: 0 | L65: 0 | M65: 0 | N65: 0
D66: 1 | E66: LS | H66: 0 | J66: 0 | L66: 0 | M66: 0 | N66: 0
D67: 1 | E67: LS | H67: 0 | J67: 0 | L67: 0 | M67: 0 | N67: 0
D68: 1 | E68: LS | H68: 0 | J68: 0 | L68: 0 | M68: 0 | N68: 0
D69: 1 | E69: LS | H69: 0 | J69: 0 | L69: 0 | M69: 0 | N69: 0
H70: 0 | J70: 0 | L70: 0 | M70: 0 | N70: 0
B71: Sub-Total | H71: =SUM(H59:H70) -> 0 | J71: =SUM(J59:J70) -> 0 | L71: =SUM(L59:L70) -> 0 | M71: =H71+J71+L71 -> 0
B72: Sales Tax | H72: =H71*'[2]Bid Summary'!$D$70 -> 0 | M72: =H72+J72+L72 -> 0
B73: Tax and insurance on labor | J73: =J71*'[2]Bid Summary'!$D$71 -> 0 | M73: =H73+J73+L73 -> 0
B74: TOTAL - 5 | H74: =H71+H72+H73 -> 0 | J74: =J71+J72+J73 -> 0 | L74: =L71+L72+L73 -> 0 | M74: =H74+J74+L74 -> 0
A76: 6 | B76: ADDITIONAL LINE ITEM | H76: =$D76*F76 -> 0 | J76: =$D76*I76 -> 0 | L76: =$D76*K76 -> 0 | M76: =H76+J76+L76 -> 0 | N76: =IF(M76>=500000,0.01*M76,M76*0.0125)*(AND(M76>=100000)) -> 0
D77: 1 | E77: LS | H77: 0 | J77: 0 | L77: 0 | M77: 0 | N77: 0
D78: 1 | E78: LS | H78: 0 | J78: 0 | L78: 0 | M78: 0 | N78: 0
D79: 1 | E79: LS | H79: 0 | J79: 0 | L79: 0 | M79: 0 | N79: 0
D80: 1 | E80: LS | H80: 0 | J80: 0 | L80: 0 | M80: 0 | N80: 0
D81: 1 | E81: LS | H81: 0 | J81: 0 | L81: 0 | M81: 0 | N81: 0
D82: 1 | E82: LS | H82: 0 | J82: 0 | L82: 0 | M82: 0 | N82: 0
D83: 1 | E83: LS | H83: 0 | J83: 0 | L83: 0 | M83: 0 | N83: 0
D84: 1 | E84: LS | H84: 0 | J84: 0 | L84: 0 | M84: 0 | N84: 0
D85: 1 | E85: LS | H85: 0 | J85: 0 | L85: 0 | M85: 0 | N85: 0
D86: 1 | E86: LS | H86: 0 | J86: 0 | L86: 0 | M86: 0 | N86: 0
H87: 0 | J87: 0 | L87: 0 | M87: 0 | N87: 0
B88: Sub-Total | H88: =SUM(H76:H87) -> 0 | J88: =SUM(J76:J87) -> 0 | L88: =SUM(L76:L87) -> 0 | M88: =H88+J88+L88 -> 0
B89: Sales Tax | H89: =H88*'[2]Bid Summary'!$D$70 -> 0 | M89: =H89+J89+L89 -> 0
B90: Tax and insurance on labor | J90: =J88*'[2]Bid Summary'!$D$71 -> 0 | M90: =H90+J90+L90 -> 0
B91: TOTAL - 6 | H91: =H88+H89+H90 -> 0 | J91: =J88+J89+J90 -> 0 | L91: =L88+L89+L90 -> 0 | M91: =H91+J91+L91 -> 0
A93: 7 | B93: ADDITIONAL LINE ITEM | H93: =$D93*F93 -> 0 | J93: =$D93*I93 -> 0 | L93: =$D93*K93 -> 0 | M93: =H93+J93+L93 -> 0 | N93: =IF(M93>=500000,0.01*M93,M93*0.0125)*(AND(M93>=100000)) -> 0
D94: 1 | E94: LS | H94: 0 | J94: 0 | L94: 0 | M94: 0 | N94: 0
D95: 1 | E95: LS | H95: 0 | J95: 0 | L95: 0 | M95: 0 | N95: 0
D96: 1 | E96: LS | H96: 0 | J96: 0 | L96: 0 | M96: 0 | N96: 0
D97: 1 | E97: LS | H97: 0 | J97: 0 | L97: 0 | M97: 0 | N97: 0
D98: 1 | E98: LS | H98: 0 | J98: 0 | L98: 0 | M98: 0 | N98: 0
D99: 1 | E99: LS | H99: 0 | J99: 0 | L99: 0 | M99: 0 | N99: 0
D100: 1 | E100: LS | H100: 0 | J100: 0 | L100: 0 | M100: 0 | N100: 0
D101: 1 | E101: LS | H101: 0 | J101: 0 | L101: 0 | M101: 0 | N101: 0
D102: 1 | E102: LS | H102: 0 | J102: 0 | L102: 0 | M102: 0 | N102: 0
D103: 1 | E103: LS | H103: 0 | J103: 0 | L103: 0 | M103: 0 | N103: 0
H104: 0 | J104: 0 | L104: 0 | M104: 0 | N104: 0
B105: Sub-Total | H105: =SUM(H93:H104) -> 0 | J105: =SUM(J93:J104) -> 0 | L105: =SUM(L93:L104) -> 0 | M105: =H105+J105+L105 -> 0
B106: Sales Tax | H106: =H105*'[2]Bid Summary'!$D$70 -> 0 | M106: =H106+J106+L106 -> 0
B107: Tax and insurance on labor | J107: =J105*'[2]Bid Summary'!$D$71 -> 0 | M107: =H107+J107+L107 -> 0
B108: TOTAL - 7 | H108: =H105+H106+H107 -> 0 | J108: =J105+J106+J107 -> 0 | L108: =L105+L106+L107 -> 0 | M108: =H108+J108+L108 -> 0
A110: 8 | B110: ADDITIONAL LINE ITEM | H110: =$D110*F110 -> 0 | J110: =$D110*I110 -> 0 | L110: =$D110*K110 -> 0 | M110: =H110+J110+L110 -> 0 | N110: =IF(M110>=500000,0.01*M110,M110*0.0125)*(AND(M110>=100000)) -> 0
D111: 1 | E111: LS | H111: 0 | J111: 0 | L111: 0 | M111: 0 | N111: 0
D112: 1 | E112: LS | H112: 0 | J112: 0 | L112: 0 | M112: 0 | N112: 0
D113: 1 | E113: LS | H113: 0 | J113: 0 | L113: 0 | M113: 0 | N113: 0
D114: 1 | E114: LS | H114: 0 | J114: 0 | L114: 0 | M114: 0 | N114: 0
D115: 1 | E115: LS | H115: 0 | J115: 0 | L115: 0 | M115: 0 | N115: 0
D116: 1 | E116: LS | H116: 0 | J116: 0 | L116: 0 | M116: 0 | N116: 0
D117: 1 | E117: LS | H117: 0 | J117: 0 | L117: 0 | M117: 0 | N117: 0
D118: 1 | E118: LS | H118: 0 | J118: 0 | L118: 0 | M118: 0 | N118: 0
D119: 1 | E119: LS | H119: 0 | J119: 0 | L119: 0 | M119: 0 | N119: 0
D120: 1 | E120: LS | H120: 0 | J120: 0 | L120: 0 | M120: 0 | N120: 0
H121: 0 | J121: 0 | L121: 0 | M121: 0 | N121: 0
B122: Sub-Total | H122: =SUM(H110:H121) -> 0 | J122: =SUM(J110:J121) -> 0 | L122: =SUM(L110:L121) -> 0 | M122: =H122+J122+L122 -> 0
B123: Sales Tax | H123: =H122*'[2]Bid Summary'!$D$70 -> 0 | M123: =H123+J123+L123 -> 0
B124: Tax and insurance on labor | J124: =J122*'[2]Bid Summary'!$D$71 -> 0 | M124: =H124+J124+L124 -> 0
B125: TOTAL - 8 | H125: =H122+H123+H124 -> 0 | J125: =J122+J123+J124 -> 0 | L125: =L122+L123+L124 -> 0 | M125: =H125+J125+L125 -> 0
A127: 9 | B127: ADDITIONAL LINE ITEM | H127: =$D127*F127 -> 0 | J127: =$D127*I127 -> 0 | L127: =$D127*K127 -> 0 | M127: =H127+J127+L127 -> 0 | N127: =IF(M127>=500000,0.01*M127,M127*0.0125)*(AND(M127>=100000)) -> 0
D128: 1 | E128: LS | H128: 0 | J128: 0 | L128: 0 | M128: 0 | N128: 0
D129: 1 | E129: LS | H129: 0 | J129: 0 | L129: 0 | M129: 0 | N129: 0
D130: 1 | E130: LS | H130: 0 | J130: 0 | L130: 0 | M130: 0 | N130: 0
D131: 1 | E131: LS | H131: 0 | J131: 0 | L131: 0 | M131: 0 | N131: 0
D132: 1 | E132: LS | H132: 0 | J132: 0 | L132: 0 | M132: 0 | N132: 0
D133: 1 | E133: LS | H133: 0 | J133: 0 | L133: 0 | M133: 0 | N133: 0
D134: 1 | E134: LS | H134: 0 | J134: 0 | L134: 0 | M134: 0 | N134: 0
D135: 1 | E135: LS | H135: 0 | J135: 0 | L135: 0 | M135: 0 | N135: 0
D136: 1 | E136: LS | H136: 0 | J136: 0 | L136: 0 | M136: 0 | N136: 0
D137: 1 | E137: LS | H137: 0 | J137: 0 | L137: 0 | M137: 0 | N137: 0
H138: 0 | J138: 0 | L138: 0 | M138: 0 | N138: 0
B139: Sub-Total | H139: =SUM(H127:H138) -> 0 | J139: =SUM(J127:J138) -> 0 | L139: =SUM(L127:L138) -> 0 | M139: =H139+J139+L139 -> 0
B140: Sales Tax | H140: =H139*'[2]Bid Summary'!$D$70 -> 0 | M140: =H140+J140+L140 -> 0
B141: Tax and insurance on labor | J141: =J139*'[2]Bid Summary'!$D$71 -> 0 | M141: =H141+J141+L141 -> 0
B142: TOTAL - 9 | H142: =H139+H140+H141 -> 0 | J142: =J139+J140+J141 -> 0 | L142: =L139+L140+L141 -> 0 | M142: =H142+J142+L142 -> 0
A144: 10 | B144: ADDITIONAL LINE ITEM | H144: =$D144*F144 -> 0 | J144: =$D144*I144 -> 0 | L144: =$D144*K144 -> 0 | M144: =H144+J144+L144 -> 0 | N144: =IF(M144>=500000,0.01*M144,M144*0.0125)*(AND(M144>=100000)) -> 0
D145: 1 | E145: LS | H145: 0 | J145: 0 | L145: 0 | M145: 0 | N145: 0
D146: 1 | E146: LS | H146: 0 | J146: 0 | L146: 0 | M146: 0 | N146: 0
D147: 1 | E147: LS | H147: 0 | J147: 0 | L147: 0 | M147: 0 | N147: 0
D148: 1 | E148: LS | H148: 0 | J148: 0 | L148: 0 | M148: 0 | N148: 0
D149: 1 | E149: LS | H149: 0 | J149: 0 | L149: 0 | M149: 0 | N149: 0
D150: 1 | E150: LS | H150: 0 | J150: 0 | L150: 0 | M150: 0 | N150: 0
D151: 1 | E151: LS | H151: 0 | J151: 0 | L151: 0 | M151: 0 | N151: 0
D152: 1 | E152: LS | H152: 0 | J152: 0 | L152: 0 | M152: 0 | N152: 0
D153: 1 | E153: LS | H153: 0 | J153: 0 | L153: 0 | M153: 0 | N153: 0
D154: 1 | E154: LS | H154: 0 | J154: 0 | L154: 0 | M154: 0 | N154: 0
H155: 0 | J155: 0 | L155: 0 | M155: 0 | N155: 0
B156: Sub-Total | H156: =SUM(H144:H155) -> 0 | J156: =SUM(J144:J155) -> 0 | L156: =SUM(L144:L155) -> 0 | M156: =H156+J156+L156 -> 0
B157: Sales Tax | H157: =H156*'[2]Bid Summary'!$D$70 -> 0 | M157: =H157+J157+L157 -> 0
B158: Tax and insurance on labor | J158: =J156*'[2]Bid Summary'!$D$71 -> 0 | M158: =H158+J158+L158 -> 0
B159: TOTAL - 10 | H159: =H156+H157+H158 -> 0 | J159: =J156+J157+J158 -> 0 | L159: =L156+L157+L158 -> 0 | M159: =H159+J159+L159 -> 0
A161: 11 | B161: ADDITIONAL LINE ITEM | H161: =$D161*F161 -> 0 | J161: =$D161*I161 -> 0 | L161: =$D161*K161 -> 0 | M161: =H161+J161+L161 -> 0 | N161: =IF(M161>=500000,0.01*M161,M161*0.0125)*(AND(M161>=100000)) -> 0
D162: 1 | E162: LS | H162: 0 | J162: 0 | L162: 0 | M162: 0 | N162: 0
D163: 1 | E163: LS | H163: 0 | J163: 0 | L163: 0 | M163: 0 | N163: 0
D164: 1 | E164: LS | H164: 0 | J164: 0 | L164: 0 | M164: 0 | N164: 0
D165: 1 | E165: LS | H165: 0 | J165: 0 | L165: 0 | M165: 0 | N165: 0
D166: 1 | E166: LS | H166: 0 | J166: 0 | L166: 0 | M166: 0 | N166: 0
D167: 1 | E167: LS | H167: 0 | J167: 0 | L167: 0 | M167: 0 | N167: 0
D168: 1 | E168: LS | H168: 0 | J168: 0 | L168: 0 | M168: 0 | N168: 0
D169: 1 | E169: LS | H169: 0 | J169: 0 | L169: 0 | M169: 0 | N169: 0
D170: 1 | E170: LS | H170: 0 | J170: 0 | L170: 0 | M170: 0 | N170: 0
D171: 1 | E171: LS | H171: 0 | J171: 0 | L171: 0 | M171: 0 | N171: 0
H172: 0 | J172: 0 | L172: 0 | M172: 0 | N172: 0
B173: Sub-Total | H173: =SUM(H161:H172) -> 0 | J173: =SUM(J161:J172) -> 0 | L173: =SUM(L161:L172) -> 0 | M173: =H173+J173+L173 -> 0
B174: Sales Tax | H174: =H173*'[2]Bid Summary'!$D$70 -> 0 | M174: =H174+J174+L174 -> 0
B175: Tax and insurance on labor | J175: =J173*'[2]Bid Summary'!$D$71 -> 0 | M175: =H175+J175+L175 -> 0
B176: TOTAL - 11 | H176: =H173+H174+H175 -> 0 | J176: =J173+J174+J175 -> 0 | L176: =L173+L174+L175 -> 0 | M176: =H176+J176+L176 -> 0
A178: 12 | B178: ADDITIONAL LINE ITEM | H178: =$D178*F178 -> 0 | J178: =$D178*I178 -> 0 | L178: =$D178*K178 -> 0 | M178: =H178+J178+L178 -> 0 | N178: =IF(M178>=500000,0.01*M178,M178*0.0125)*(AND(M178>=100000)) -> 0
D179: 1 | E179: LS | H179: 0 | J179: 0 | L179: 0 | M179: 0 | N179: 0
D180: 1 | E180: LS | H180: 0 | J180: 0 | L180: 0 | M180: 0 | N180: 0
D181: 1 | E181: LS | H181: 0 | J181: 0 | L181: 0 | M181: 0 | N181: 0
D182: 1 | E182: LS | H182: 0 | J182: 0 | L182: 0 | M182: 0 | N182: 0
D183: 1 | E183: LS | H183: 0 | J183: 0 | L183: 0 | M183: 0 | N183: 0
D184: 1 | E184: LS | H184: 0 | J184: 0 | L184: 0 | M184: 0 | N184: 0
D185: 1 | E185: LS | H185: 0 | J185: 0 | L185: 0 | M185: 0 | N185: 0
D186: 1 | E186: LS | H186: 0 | J186: 0 | L186: 0 | M186: 0 | N186: 0
D187: 1 | E187: LS | H187: 0 | J187: 0 | L187: 0 | M187: 0 | N187: 0
D188: 1 | E188: LS | H188: 0 | J188: 0 | L188: 0 | M188: 0 | N188: 0
H189: 0 | J189: 0 | L189: 0 | M189: 0 | N189: 0
B190: Sub-Total | H190: =SUM(H178:H189) -> 0 | J190: =SUM(J178:J189) -> 0 | L190: =SUM(L178:L189) -> 0 | M190: =H190+J190+L190 -> 0
B191: Sales Tax | H191: =H190*'[2]Bid Summary'!$D$70 -> 0 | M191: =H191+J191+L191 -> 0
B192: Tax and insurance on labor | J192: =J190*'[2]Bid Summary'!$D$71 -> 0 | M192: =H192+J192+L192 -> 0
B193: TOTAL - 12 | H193: =H190+H191+H192 -> 0 | J193: =J190+J191+J192 -> 0 | L193: =L190+L191+L192 -> 0 | M193: =H193+J193+L193 -> 0
A195: 13 | B195: ADDITIONAL LINE ITEM | H195: =$D195*F195 -> 0 | J195: =$D195*I195 -> 0 | L195: =$D195*K195 -> 0 | M195: =H195+J195+L195 -> 0 | N195: =IF(M195>=500000,0.01*M195,M195*0.0125)*(AND(M195>=100000)) -> 0
D196: 1 | E196: LS | H196: 0 | J196: 0 | L196: 0 | M196: 0 | N196: 0
D197: 1 | E197: LS | H197: 0 | J197: 0 | L197: 0 | M197: 0 | N197: 0
D198: 1 | E198: LS | H198: 0 | J198: 0 | L198: 0 | M198: 0 | N198: 0
D199: 1 | E199: LS | H199: 0 | J199: 0 | L199: 0 | M199: 0 | N199: 0
D200: 1 | E200: LS | H200: 0 | J200: 0 | L200: 0 | M200: 0 | N200: 0
D201: 1 | E201: LS | H201: 0 | J201: 0 | L201: 0 | M201: 0 | N201: 0
D202: 1 | E202: LS | H202: 0 | J202: 0 | L202: 0 | M202: 0 | N202: 0
D203: 1 | E203: LS | H203: 0 | J203: 0 | L203: 0 | M203: 0 | N203: 0
D204: 1 | E204: LS | H204: 0 | J204: 0 | L204: 0 | M204: 0 | N204: 0
D205: 1 | E205: LS | H205: 0 | J205: 0 | L205: 0 | M205: 0 | N205: 0
H206: 0 | J206: 0 | L206: 0 | M206: 0 | N206: 0
B207: Sub-Total | H207: =SUM(H195:H206) -> 0 | J207: =SUM(J195:J206) -> 0 | L207: =SUM(L195:L206) -> 0 | M207: =H207+J207+L207 -> 0
B208: Sales Tax | H208: =H207*'[2]Bid Summary'!$D$70 -> 0 | M208: =H208+J208+L208 -> 0
B209: Tax and insurance on labor | J209: =J207*'[2]Bid Summary'!$D$71 -> 0 | M209: =H209+J209+L209 -> 0
B210: TOTAL - 13 | H210: =H207+H208+H209 -> 0 | J210: =J207+J208+J209 -> 0 | L210: =L207+L208+L209 -> 0 | M210: =H210+J210+L210 -> 0
A212: 14 | B212: ADDITIONAL LINE ITEM | H212: =$D212*F212 -> 0 | J212: =$D212*I212 -> 0 | L212: =$D212*K212 -> 0 | M212: =H212+J212+L212 -> 0 | N212: =IF(M212>=500000,0.01*M212,M212*0.0125)*(AND(M212>=100000)) -> 0
D213: 1 | E213: LS | H213: 0 | J213: 0 | L213: 0 | M213: 0 | N213: 0
D214: 1 | E214: LS | H214: 0 | J214: 0 | L214: 0 | M214: 0 | N214: 0
D215: 1 | E215: LS | H215: 0 | J215: 0 | L215: 0 | M215: 0 | N215: 0
... 620 more rows

Sheet Sub-bid Comparison Sheet
H3: JenCon Builders Subcontractor Bid Evaluation and Comparison Sheet | S3: Date/Time: | T3: =NOW() -> 2026-07-09T14:18:24.730
C4: Project: | D4: TEST PROJECT | E4: Project #: | F4: 2012 | P4: Architect: | Q4: ARCHITECT
C5: Location: | D5: CHARLOTTE NC | P5: Owner: | Q5: OWNER
C6: Estimator: | D6: C. HEYWARD
C8: TRADE: | D8: SITEWORK / UTILITY / PAVING | E8: Spec Section: | I8: Incl. | J8: Subcontractor: | L8: TRITON | N8: GRANITE | P8: MCWHIRTER | S8: Low Bidder | U8: =IF(U9=J29,J8,IF(U9=L29,L8,IF(U9=N29,N8,IF(U9=P29,P8,IF(U9=R29,R8))))) -> TRITON
I9: "Y" | J9: Phone No. | S9: Low Bid: | U9: =MIN(J29,L29,N29,P29,R29) -> 29000
H10: Unit | I10: "N" | J10: Fax No. | S10: Budget: | U10: 0
D11: Item Description | F11: Qty | G11: Unit | H11: Price | I11: "SBG" | J11: Contact Name: | S11: (Savings)/Overrun: | U11: =SUM(U9-U10) -> 29000
D13: Base Bid Before Adjustments | J13: Bid Amounts: | S13: Additional Subs: | U13: Bid Amount:
B15: 1 | N15: 0 | P15: 0 | R15: 0
B16: =+B15+1 -> 2 | N16: 525000 | P16: 610000
B17: 3 | L17: A | N17: A | P17: A
B18: 4 | L18: A | N18: A | P18: A
B19: 5 | L19: A | N19: A | P19: A
B20: 6 | L20: A | N20: A | P20: A
B21: 7 | C21: MISC. SITEWORK ITEMS BY SBG | F21: 1 | G21: LS | L21: 29000 | N21: 29000 | P21: 29000
B22: 8
B23: 9
B24: 10
B25: 11 | D25: Sales Tax (If not included in the quote)
D26: Subtotal: | J26: =SUM(J13:J25) -> 0 | L26: =SUM(L13:L25) -> 29000 | N26: =SUM(N13:N25) -> 554000 | P26: =SUM(P13:P25) -> 639000 | R26: =SUM(R13:R25) -> 0
D27: Subcontractors Bond: | J27: =IF(J26>=100000,+I27*J26,) -> 0 | K27: 0.0125 | L27: =IF(L26>=100000,+K27*L26,) -> 0 | M27: 0.0125 | N27: =IF(N26>=100000,+M27*N26,) -> 6925 | O27: 0.0125 | P27: =IF(P26>=100000,+O27*P26,) -> 7987.5 | Q27: 0.0125 | R27: =IF(R26>=100000,+Q27*R26,) -> 0
D29: Total Adjusted Scope: | J29: =IF(J26=0,"",SUM(J26+J27)) ->  | L29: =IF(L26=0,"",SUM(L26+L27)) -> 29000 | N29: =IF(N26=0,"",SUM(N26+N27)) -> 560925 | P29: =IF(P26=0,"",SUM(P26+P27)) -> 646987.5 | R29: =IF(R26=0,"",SUM(R26+R27)) -> 
B32: TRADE: | D32: LANDSCAPING / IRRIGATION | E32: Spec Section: | I32: Incl. | J32: Subcontractor: | S32: Low Bidder | U32: =IF(U33=J53,J32,IF(U33=L53,L32,IF(U33=N53,N32,IF(U33=P53,P32,IF(U33=R53,R32))))) -> Subcontractor:
I33: "Y" | J33: Phone No. | S33: Low Bid: | U33: =MIN(J53,L53,N53,P53,R53) -> 0.001
H34: Unit | I34: "N" | J34: Fax No. | S34: Budget: | U34: 0
D35: Item Description | F35: Qty | G35: Unit | H35: Price | I35: "SBG" | J35: Contact Name: | S35: (Savings)/Overrun: | U35: =SUM(U33-U34) -> 0.001
D37: Base Bid Before Adjustments | J37: Bid Amounts: | S37: Additional Subs: | U37: Bid Amount:
B39: 1 | C39: Base Bid | F39: 1 | G39: EA | J39: 0.001 | L39: 0 | N39: 0 | P39: 0 | R39: 0
B40: =+B39+1 -> 2
B41: 3
B42: 4
B43: 5
B44: 6
B45: 7
B46: 8
B47: 9
B48: 10
B49: 11 | D49: Sales Tax (If not included in the quote)
D50: Subtotal: | J50: =SUM(J37:J49) -> 0.001 | L50: =SUM(L37:L49) -> 0 | N50: =SUM(N37:N49) -> 0 | P50: =SUM(P37:P49) -> 0 | R50: =SUM(R37:R49) -> 0
D51: Subcontractors Bond: | I51: 0.0125 | J51: =IF(J50>=100000,+I51*J50,) -> 0 | K51: 0.0125 | L51: =IF(L50>=100000,+K51*L50,) -> 0 | M51: 0.0125 | N51: =IF(N50>=100000,+M51*N50,) -> 0 | O51: 0.0125 | P51: =IF(P50>=100000,+O51*P50,) -> 0 | Q51: 0.0125 | R51: =IF(R50>=100000,+Q51*R50,) -> 0
D53: Total Adjusted Scope: | J53: =IF(J50=0,"",SUM(J50+J51)) -> 0.001 | L53: =IF(L50=0,"",SUM(L50+L51)) ->  | N53: =IF(N50=0,"",SUM(N50+N51)) ->  | P53: =IF(P50=0,"",SUM(P50+P51)) ->  | R53: =IF(R50=0,"",SUM(R50+R51)) -> 
B57: TRADE: | D57: HARDSCAPE | E57: Spec Section: | I57: Incl. | J57: Subcontractor: | S57: Low Bidder | U57: =IF(U58=J78,J57,IF(U58=L78,L57,IF(U58=N78,N57,IF(U58=P78,P57,IF(U58=R78,R57))))) -> Subcontractor:
I58: "Y" | J58: Phone No. | S58: Low Bid: | U58: =MIN(J78,L78,N78,P78,R78) -> 0.001
H59: Unit | I59: "N" | J59: Fax No. | S59: Budget: | U59: 0
D60: Item Description | F60: Qty | G60: Unit | H60: Price | I60: "SBG" | J60: Contact Name: | S60: (Savings)/Overrun: | U60: =SUM(U58-U59) -> 0.001
D62: Base Bid Before Adjustments | J62: Bid Amounts: | S62: Additional Subs: | U62: Bid Amount:
B64: 1 | C64: Base Bid | F64: 1 | G64: EA | J64: 0.001 | L64: 0 | N64: 0 | P64: 0 | R64: 0
B65: =+B64+1 -> 2
B66: 3
B67: 4
B68: 5
B69: 6
B70: 7
B71: 8
B72: 9
B73: 10
B74: 11 | D74: Sales Tax (If not included in the quote)
D75: Subtotal: | J75: =SUM(J62:J74) -> 0.001 | L75: =SUM(L62:L74) -> 0 | N75: =SUM(N62:N74) -> 0 | P75: =SUM(P62:P74) -> 0 | R75: =SUM(R62:R74) -> 0
D76: Subcontractors Bond: | I76: 0.0125 | J76: =IF(J75>=100000,+I76*J75,) -> 0 | K76: 0.0125 | L76: =IF(L75>=100000,+K76*L75,) -> 0 | M76: 0.0125 | N76: =IF(N75>=100000,+M76*N75,) -> 0 | O76: 0.0125 | P76: =IF(P75>=100000,+O76*P75,) -> 0 | Q76: 0.0125 | R76: =IF(R75>=100000,+Q76*R75,) -> 0
D78: Total Adjusted Scope: | J78: =IF(J75=0,"",SUM(J75+J76)) -> 0.001 | L78: =IF(L75=0,"",SUM(L75+L76)) ->  | N78: =IF(N75=0,"",SUM(N75+N76)) ->  | P78: =IF(P75=0,"",SUM(P75+P76)) ->  | R78: =IF(R75=0,"",SUM(R75+R76)) -> 
B82: TRADE: | D82: SOIL POISONING | E82: Spec Section: | I82: Incl. | J82: Subcontractor: | S82: Low Bidder | U82: =IF(U83=J103,J82,IF(U83=L103,L82,IF(U83=N103,N82,IF(U83=P103,P82,IF(U83=R103,R82))))) -> Subcontractor:
I83: "Y" | J83: Phone No. | S83: Low Bid: | U83: =MIN(J103,L103,N103,P103,R103) -> 0.001
H84: Unit | I84: "N" | J84: Fax No. | S84: Budget: | U84: 0
D85: Item Description | F85: Qty | G85: Unit | H85: Price | I85: "SBG" | J85: Contact Name: | S85: (Savings)/Overrun: | U85: =SUM(U83-U84) -> 0.001
D87: Base Bid Before Adjustments | J87: Bid Amounts: | S87: Additional Subs: | U87: Bid Amount:
B89: 1 | C89: Base Bid | F89: 1 | G89: EA | J89: 0.001 | L89: 0 | N89: 0 | P89: 0 | R89: 0
B90: =+B89+1 -> 2
B91: 3
B92: 4
B93: 5
B94: 6
B95: 7
B96: 8
B97: 9
B98: 10
B99: 11 | D99: Sales Tax (If not included in the quote)
D100: Subtotal: | J100: =SUM(J87:J99) -> 0.001 | L100: =SUM(L87:L99) -> 0 | N100: =SUM(N87:N99) -> 0 | P100: =SUM(P87:P99) -> 0 | R100: =SUM(R87:R99) -> 0
D101: Subcontractors Bond: | I101: 0.0125 | J101: =IF(J100>=100000,+I101*J100,) -> 0 | K101: 0.0125 | L101: =IF(L100>=100000,+K101*L100,) -> 0 | M101: 0.0125 | N101: =IF(N100>=100000,+M101*N100,) -> 0 | O101: 0.0125 | P101: =IF(P100>=100000,+O101*P100,) -> 0 | Q101: 0.0125 | R101: =IF(R100>=100000,+Q101*R100,) -> 0
D103: Total Adjusted Scope: | J103: =IF(J100=0,"",SUM(J100+J101)) -> 0.001 | L103: =IF(L100=0,"",SUM(L100+L101)) ->  | N103: =IF(N100=0,"",SUM(N100+N101)) ->  | P103: =IF(P100=0,"",SUM(P100+P101)) ->  | R103: =IF(R100=0,"",SUM(R100+R101)) -> 
B107: TRADE: | D107: CONCRETE | E107: Spec Section: | I107: Incl. | J107: Subcontractor: | S107: Low Bidder | U107: =IF(U108=J128,J107,IF(U108=L128,L107,IF(U108=N128,N107,IF(U108=P128,P107,IF(U108=R128,R107))))) -> Subcontractor:
I108: "Y" | J108: Phone No. | S108: Low Bid: | U108: =MIN(J128,L128,N128,P128,R128) -> 0.001
H109: Unit | I109: "N" | J109: Fax No. | S109: Budget: | U109: 0
D110: Item Description | F110: Qty | G110: Unit | H110: Price | I110: "SBG" | J110: Contact Name: | S110: (Savings)/Overrun: | U110: =SUM(U108-U109) -> 0.001
D112: Base Bid Before Adjustments | J112: Bid Amounts: | S112: Additional Subs: | U112: Bid Amount:
B114: 1 | C114: Base Bid | F114: 1 | G114: EA | J114: 0.001 | L114: 0 | N114: 0 | P114: 0 | R114: 0
B115: =+B114+1 -> 2
B116: 3
B117: 4
B118: 5
B119: 6
B120: 7
B121: 8
B122: 9
B123: 10
B124: 11 | D124: Sales Tax (If not included in the quote)
D125: Subtotal: | J125: =SUM(J112:J124) -> 0.001 | L125: =SUM(L112:L124) -> 0 | N125: =SUM(N112:N124) -> 0 | P125: =SUM(P112:P124) -> 0 | R125: =SUM(R112:R124) -> 0
D126: Subcontractors Bond: | I126: 0.0125 | J126: =IF(J125>=100000,+I126*J125,) -> 0 | K126: 0.0125 | L126: =IF(L125>=100000,+K126*L125,) -> 0 | M126: 0.0125 | N126: =IF(N125>=100000,+M126*N125,) -> 0 | O126: 0.0125 | P126: =IF(P125>=100000,+O126*P125,) -> 0 | Q126: 0.0125 | R126: =IF(R125>=100000,+Q126*R125,) -> 0
D128: Total Adjusted Scope: | J128: =IF(J125=0,"",SUM(J125+J126)) -> 0.001 | L128: =IF(L125=0,"",SUM(L125+L126)) ->  | N128: =IF(N125=0,"",SUM(N125+N126)) ->  | P128: =IF(P125=0,"",SUM(P125+P126)) ->  | R128: =IF(R125=0,"",SUM(R125+R126)) -> 
B132: TRADE: | D132: PRECAST CONCRETE | E132: Spec Section: | I132: Incl. | J132: Subcontractor: | S132: Low Bidder | U132: =IF(U133=J153,J132,IF(U133=L153,L132,IF(U133=N153,N132,IF(U133=P153,P132,IF(U133=R153,R132))))) -> Subcontractor:
I133: "Y" | J133: Phone No. | S133: Low Bid: | U133: =MIN(J153,L153,N153,P153,R153) -> 0.001
H134: Unit | I134: "N" | J134: Fax No. | S134: Budget: | U134: 0
D135: Item Description | F135: Qty | G135: Unit | H135: Price | I135: "SBG" | J135: Contact Name: | S135: (Savings)/Overrun: | U135: =SUM(U133-U134) -> 0.001
D137: Base Bid Before Adjustments | J137: Bid Amounts: | S137: Additional Subs: | U137: Bid Amount:
B139: 1 | C139: Base Bid | F139: 1 | G139: EA | J139: 0.001 | L139: 0 | N139: 0 | P139: 0 | R139: 0
B140: =+B139+1 -> 2
B141: 3
B142: 4
B143: 5
B144: 6
B145: 7
B146: 8
B147: 9
B148: 10
B149: 11 | D149: Sales Tax (If not included in the quote)
D150: Subtotal: | J150: =SUM(J137:J149) -> 0.001 | L150: =SUM(L137:L149) -> 0 | N150: =SUM(N137:N149) -> 0 | P150: =SUM(P137:P149) -> 0 | R150: =SUM(R137:R149) -> 0
D151: Subcontractors Bond: | I151: 0.0125 | J151: =IF(J150>=100000,+I151*J150,) -> 0 | K151: 0.0125 | L151: =IF(L150>=100000,+K151*L150,) -> 0 | M151: 0.0125 | N151: =IF(N150>=100000,+M151*N150,) -> 0 | O151: 0.0125 | P151: =IF(P150>=100000,+O151*P150,) -> 0 | Q151: 0.0125 | R151: =IF(R150>=100000,+Q151*R150,) -> 0
D153: Total Adjusted Scope: | J153: =IF(J150=0,"",SUM(J150+J151)) -> 0.001 | L153: =IF(L150=0,"",SUM(L150+L151)) ->  | N153: =IF(N150=0,"",SUM(N150+N151)) ->  | P153: =IF(P150=0,"",SUM(P150+P151)) ->  | R153: =IF(R150=0,"",SUM(R150+R151)) -> 
B157: TRADE: | D157: LOUVERS | E157: Spec Section: | I157: Incl. | J157: Subcontractor: | S157: Low Bidder | U157: =IF(U158=J178,J157,IF(U158=L178,L157,IF(U158=N178,N157,IF(U158=P178,P157,IF(U158=R178,R157))))) -> Subcontractor:
I158: "Y" | J158: Phone No. | S158: Low Bid: | U158: =MIN(J178,L178,N178,P178,R178) -> 0.001
H159: Unit | I159: "N" | J159: Fax No. | S159: Budget: | U159: 0
D160: Item Description | F160: Qty | G160: Unit | H160: Price | I160: "SBG" | J160: Contact Name: | S160: (Savings)/Overrun: | U160: =SUM(U158-U159) -> 0.001
D162: Base Bid Before Adjustments | J162: Bid Amounts: | S162: Additional Subs: | U162: Bid Amount:
B164: 1 | C164: Base Bid | F164: 1 | G164: EA | J164: 0.001 | L164: 0 | N164: 0 | P164: 0 | R164: 0
B165: =+B164+1 -> 2
B166: 3
B167: 4
B168: 5
B169: 6
B170: 7
B171: 8
B172: 9
B173: 10
B174: 11 | D174: Sales Tax (If not included in the quote)
D175: Subtotal: | J175: =SUM(J162:J174) -> 0.001 | L175: =SUM(L162:L174) -> 0 | N175: =SUM(N162:N174) -> 0 | P175: =SUM(P162:P174) -> 0 | R175: =SUM(R162:R174) -> 0
D176: Subcontractors Bond: | I176: 0.0125 | J176: =IF(J175>=100000,+I176*J175,) -> 0 | K176: 0.0125 | L176: =IF(L175>=100000,+K176*L175,) -> 0 | M176: 0.0125 | N176: =IF(N175>=100000,+M176*N175,) -> 0 | O176: 0.0125 | P176: =IF(P175>=100000,+O176*P175,) -> 0 | Q176: 0.0125 | R176: =IF(R175>=100000,+Q176*R175,) -> 0
D178: Total Adjusted Scope: | J178: =IF(J175=0,"",SUM(J175+J176)) -> 0.001 | L178: =IF(L175=0,"",SUM(L175+L176)) ->  | N178: =IF(N175=0,"",SUM(N175+N176)) ->  | P178: =IF(P175=0,"",SUM(P175+P176)) ->  | R178: =IF(R175=0,"",SUM(R175+R176)) -> 
B182: TRADE: | D182: MASONRY | E182: Spec Section: | I182: Incl. | J182: Subcontractor: | S182: Low Bidder | U182: =IF(U183=J203,J182,IF(U183=L203,L182,IF(U183=N203,N182,IF(U183=P203,P182,IF(U183=R203,R182))))) -> Subcontractor:
I183: "Y" | J183: Phone No. | S183: Low Bid: | U183: =MIN(J203,L203,N203,P203,R203) -> 0.001
H184: Unit | I184: "N" | J184: Fax No. | S184: Budget: | U184: 0
D185: Item Description | F185: Qty | G185: Unit | H185: Price | I185: "SBG" | J185: Contact Name: | S185: (Savings)/Overrun: | U185: =SUM(U183-U184) -> 0.001
D187: Base Bid Before Adjustments | J187: Bid Amounts: | S187: Additional Subs: | U187: Bid Amount:
B189: 1 | C189: Base Bid | F189: 1 | G189: EA | J189: 0.001 | L189: 0 | N189: 0 | P189: 0 | R189: 0
B190: =+B189+1 -> 2
B191: 3
B192: 4
B193: 5
B194: 6
B195: 7
B196: 8
B197: 9
B198: 10
B199: 11 | D199: Sales Tax (If not included in the quote)
D200: Subtotal: | J200: =SUM(J187:J199) -> 0.001 | L200: =SUM(L187:L199) -> 0 | N200: =SUM(N187:N199) -> 0 | P200: =SUM(P187:P199) -> 0 | R200: =SUM(R187:R199) -> 0
D201: Subcontractors Bond: | I201: 0.0125 | J201: =IF(J200>=100000,+I201*J200,) -> 0 | K201: 0.0125 | L201: =IF(L200>=100000,+K201*L200,) -> 0 | M201: 0.0125 | N201: =IF(N200>=100000,+M201*N200,) -> 0 | O201: 0.0125 | P201: =IF(P200>=100000,+O201*P200,) -> 0 | Q201: 0.0125 | R201: =IF(R200>=100000,+Q201*R200,) -> 0
D203: Total Adjusted Scope: | J203: =IF(J200=0,"",SUM(J200+J201)) -> 0.001 | L203: =IF(L200=0,"",SUM(L200+L201)) ->  | N203: =IF(N200=0,"",SUM(N200+N201)) ->  | P203: =IF(P200=0,"",SUM(P200+P201)) ->  | R203: =IF(R200=0,"",SUM(R200+R201)) -> 
B207: TRADE: | D207: STRUCTURAL STEEL | E207: Spec Section: | I207: Incl. | J207: Subcontractor: | S207: Low Bidder | U207: =IF(U208=J228,J207,IF(U208=L228,L207,IF(U208=N228,N207,IF(U208=P228,P207,IF(U208=R228,R207))))) -> Subcontractor:
I208: "Y" | J208: Phone No. | S208: Low Bid: | U208: =MIN(J228,L228,N228,P228,R228) -> 0.001
H209: Unit | I209: "N" | J209: Fax No. | S209: Budget: | U209: 0
D210: Item Description | F210: Qty | G210: Unit | H210: Price | I210: "SBG" | J210: Contact Name: | S210: (Savings)/Overrun: | U210: =SUM(U208-U209) -> 0.001
D212: Base Bid Before Adjustments | J212: Bid Amounts: | S212: Additional Subs: | U212: Bid Amount:
B214: 1 | C214: Base Bid | F214: 1 | G214: EA | J214: 0.001 | L214: 0 | N214: 0 | P214: 0 | R214: 0
B215: =+B214+1 -> 2
B216: 3
B217: 4
B218: 5
B219: 6
B220: 7
B221: 8
B222: 9
B223: 10
B224: 11 | D224: Sales Tax (If not included in the quote)
D225: Subtotal: | J225: =SUM(J212:J224) -> 0.001 | L225: =SUM(L212:L224) -> 0 | N225: =SUM(N212:N224) -> 0 | P225: =SUM(P212:P224) -> 0 | R225: =SUM(R212:R224) -> 0
D226: Subcontractors Bond: | I226: 0.0125 | J226: =IF(J225>=100000,+I226*J225,) -> 0 | K226: 0.0125 | L226: =IF(L225>=100000,+K226*L225,) -> 0 | M226: 0.0125 | N226: =IF(N225>=100000,+M226*N225,) -> 0 | O226: 0.0125 | P226: =IF(P225>=100000,+O226*P225,) -> 0 | Q226: 0.0125 | R226: =IF(R225>=100000,+Q226*R225,) -> 0
D228: Total Adjusted Scope: | J228: =IF(J225=0,"",SUM(J225+J226)) -> 0.001 | L228: =IF(L225=0,"",SUM(L225+L226)) ->  | N228: =IF(N225=0,"",SUM(N225+N226)) ->  | P228: =IF(P225=0,"",SUM(P225+P226)) ->  | R228: =IF(R225=0,"",SUM(R225+R226)) -> 
B232: TRADE: | D232: MISCELLANEOUS METALS | E232: Spec Section: | I232: Incl. | J232: Subcontractor: | S232: Low Bidder | U232: =IF(U233=J253,J232,IF(U233=L253,L232,IF(U233=N253,N232,IF(U233=P253,P232,IF(U233=R253,R232))))) -> Subcontractor:
I233: "Y" | J233: Phone No. | S233: Low Bid: | U233: =MIN(J253,L253,N253,P253,R253) -> 0.001
H234: Unit | I234: "N" | J234: Fax No. | S234: Budget: | U234: 0
D235: Item Description | F235: Qty | G235: Unit | H235: Price | I235: "SBG" | J235: Contact Name: | S235: (Savings)/Overrun: | U235: =SUM(U233-U234) -> 0.001
D237: Base Bid Before Adjustments | J237: Bid Amounts: | S237: Additional Subs: | U237: Bid Amount:
B239: 1 | C239: Base Bid | F239: 1 | G239: EA | J239: 0.001 | L239: 0 | N239: 0 | P239: 0 | R239: 0
B240: =+B239+1 -> 2
B241: 3
B242: 4
B243: 5
B244: 6
B245: 7
B246: 8
B247: 9
B248: 10
B249: 11 | D249: Sales Tax (If not included in the quote)
D250: Subtotal: | J250: =SUM(J237:J249) -> 0.001 | L250: =SUM(L237:L249) -> 0 | N250: =SUM(N237:N249) -> 0 | P250: =SUM(P237:P249) -> 0 | R250: =SUM(R237:R249) -> 0
D251: Subcontractors Bond: | I251: 0.0125 | J251: =IF(J250>=100000,+I251*J250,) -> 0 | K251: 0.0125 | L251: =IF(L250>=100000,+K251*L250,) -> 0 | M251: 0.0125 | N251: =IF(N250>=100000,+M251*N250,) -> 0 | O251: 0.0125 | P251: =IF(P250>=100000,+O251*P250,) -> 0 | Q251: 0.0125 | R251: =IF(R250>=100000,+Q251*R250,) -> 0
D253: Total Adjusted Scope: | J253: =IF(J250=0,"",SUM(J250+J251)) -> 0.001 | L253: =IF(L250=0,"",SUM(L250+L251)) ->  | N253: =IF(N250=0,"",SUM(N250+N251)) ->  | P253: =IF(P250=0,"",SUM(P250+P251)) ->  | R253: =IF(R250=0,"",SUM(R250+R251)) -> 
B257: TRADE: | D257: ARCHITECTURAL METALS | E257: Spec Section: | I257: Incl. | J257: Subcontractor: | S257: Low Bidder | U257: =IF(U258=J278,J257,IF(U258=L278,L257,IF(U258=N278,N257,IF(U258=P278,P257,IF(U258=R278,R257))))) -> Subcontractor:
I258: "Y" | J258: Phone No. | S258: Low Bid: | U258: =MIN(J278,L278,N278,P278,R278) -> 0.001
H259: Unit | I259: "N" | J259: Fax No. | S259: Budget: | U259: 0
D260: Item Description | F260: Qty | G260: Unit | H260: Price | I260: "SBG" | J260: Contact Name: | S260: (Savings)/Overrun: | U260: =SUM(U258-U259) -> 0.001
D262: Base Bid Before Adjustments | J262: Bid Amounts: | S262: Additional Subs: | U262: Bid Amount:
B264: 1 | C264: Base Bid | F264: 1 | G264: EA | J264: 0.001 | L264: 0 | N264: 0 | P264: 0 | R264: 0
... 680 more rows

Sheet Final Proposal
F1: P&O Toggle | G1: + | J1: =IF($G$1="+",TRUE,FALSE) -> TRUE
A2: x | C2: Quote: | D2: ='Bid Summary'!D4 -> 0 | E2: Date: | G2: 0
A3: x | C3: Project Number: | D3: ='Bid Summary'!I4 -> 0
A4: x | D4: Customer
A5: x | B5: JenCon Builders | D5: ='Bid Summary'!D6 -> 0
A6: x | B6: 1501 N Charlotte Ave | D6: ='Bid Summary'!D7 -> 0
A7: x | B7: Monroe, NC 28110 | D7: ='Bid Summary'!D5 -> 0
A8: x | B8: (704)-323-4058 | D8: ='Bid Summary'!D8 -> 0
A9: x | B9: ='Bid Summary'!D10 -> 0 | D9: ='Bid Summary'!D9 -> 0
A10: x | B10: ='Bid Summary'!D11 -> 0
A11: x
A12: x | B12: ='Bid Summary'!D4:F4 -> 0 | C12: 0 | D12: 0
A13: x
A14: x
A15: x | B15: Scope of Work
A16: x
A17: x
A18: x | B18: DIV 01 - General Conditions | E18: =IF(TRIM($G$1)="+",'Bid Summary'!H21+IF(SUM('Bid Summary'!$H$21:$H$49)=0,0,'Bid Summary'!H21/SUM('Bid Summary'!$H$21:$H$49)*'Bid Summary'!$H$63),'Bid Summary'!H21) -> 0
A19: x | B19: 1-1000 General Requirements
A20: x | B20: Description:
A22: x | B22: Permits: | E22: ='Bid Summary'!H58 -> 19.624
A23: x | B23: Description:
A24: x
A26: x | B26: DIV 02 - Site Construction | E26: =IF(TRIM($G$1)="+",'Bid Summary'!H22+IF(SUM('Bid Summary'!$H$21:$H$49)=0,0,'Bid Summary'!H22/SUM('Bid Summary'!$H$21:$H$49)*'Bid Summary'!$H$63),'Bid Summary'!H22) -> 0
A27: x | B27: 2-500 Existing Conditions
A28: x | B28: Description:
A29: x
A32: x | B32: DIV 03 - Concrete | E32: =IF(TRIM($G$1)="+",'Bid Summary'!H23+IF(SUM('Bid Summary'!$H$21:$H$49)=0,0,'Bid Summary'!H23/SUM('Bid Summary'!$H$21:$H$49)*'Bid Summary'!$H$63),'Bid Summary'!H23) -> 0
A33: x | B33: 3-500 Concrete
A34: x | B34: Description:
A35: x
B38: DIV 04 - Masonry | E38: =IF(TRIM($G$1)="+",'Bid Summary'!H24+IF(SUM('Bid Summary'!$H$21:$H$49)=0,0,'Bid Summary'!H24/SUM('Bid Summary'!$H$21:$H$49)*'Bid Summary'!$H$63),'Bid Summary'!H24) -> 0
B39: 4-500 Masonry
B40: Description:
B45: DIV 05 - Metals | E45: =IF(TRIM($G$1)="+",'Bid Summary'!H25+IF(SUM('Bid Summary'!$H$21:$H$49)=0,0,'Bid Summary'!H25/SUM('Bid Summary'!$H$21:$H$49)*'Bid Summary'!$H$63),'Bid Summary'!H25) -> 0
B46: 5-500 Metals
B47: Description:
A51: x
A52: x | B52: DIV 06 - Wood & Plastics | E52: =IF(TRIM($G$1)="+",'Bid Summary'!H26+IF(SUM('Bid Summary'!$H$21:$H$49)=0,0,'Bid Summary'!H26/SUM('Bid Summary'!$H$21:$H$49)*'Bid Summary'!$H$63),'Bid Summary'!H26) -> 0
A53: x | B53: 6-1000 - Rough Carpentry | D53: 0
A54: x | B54: Description:
A55: x
A56: x | B56: 6-4200 - Millwork | D56: 0
A57: x | B57: Description:
A58: x
B61: DIV 07 - Thermal & Moisture | E61: =IF(TRIM($G$1)="+",'Bid Summary'!H27+IF(SUM('Bid Summary'!$H$21:$H$49)=0,0,'Bid Summary'!H27/SUM('Bid Summary'!$H$21:$H$49)*'Bid Summary'!$H$63),'Bid Summary'!H27) -> 0
B62: 7-500 Moisture & Dampproofing
B63: Description:
A67: x
A68: x | B68: DIV 08 - Doors & Windows | E68: =IF(TRIM($G$1)="+",'Bid Summary'!H28+IF(SUM('Bid Summary'!$H$21:$H$49)=0,0,'Bid Summary'!H28/SUM('Bid Summary'!$H$21:$H$49)*'Bid Summary'!$H$63),'Bid Summary'!H28) -> 0
A69: x | B69: 8-1000 Doors & Frames
A70: x | B70: Description:
A71: x
A75: x
A76: x | B76: DIV 09 - Finishes | E76: =IF(TRIM($G$1)="+",'Bid Summary'!H29+IF(SUM('Bid Summary'!$H$21:$H$49)=0,0,'Bid Summary'!H29/SUM('Bid Summary'!$H$21:$H$49)*'Bid Summary'!$H$63),'Bid Summary'!H29) -> 881.9624
A77: x | B77: 9-2900 Drywall | D77: =Estimate!Q990 -> 800
A78: x | B78: Description:
A79: x
A83: x | B83: 9-5100 Acoustical Ceilings | D83: =Estimate!Q1020 -> 0
A84: x | B84: Description:
A85: x
A89: x | B89: 9-6000 Flooring | D89: =Estimate!Q1028 -> 0
A90: x | B90: Description:
A91: x
B95: 9-7200 Wallcoverings | D95: =Estimate!Q1026 -> 0
B96: Description:
A101: x
A102: x | B102: 9-9100 Painting | D102: =Estimate!Q1004 -> 0
A103: x | B103: Description:
A104: x
B108: DIV 10 - Specialties | E108: =IF(TRIM($G$1)="+",'Bid Summary'!H30+IF(SUM('Bid Summary'!$H$21:$H$49)=0,0,'Bid Summary'!H30/SUM('Bid Summary'!$H$21:$H$49)*'Bid Summary'!$H$63),'Bid Summary'!H30) -> 0
B109: 10-500 Specialties
B110: Description:
B115: DIV 11 - Special Equipment | E115: =IF(TRIM($G$1)="+",'Bid Summary'!H31+IF(SUM('Bid Summary'!$H$21:$H$49)=0,0,'Bid Summary'!H31/SUM('Bid Summary'!$H$21:$H$49)*'Bid Summary'!$H$63),'Bid Summary'!H31) -> 0
B116: 11-500 Equipment
B117: Description:
B122: DIV 12 - Furnishings | E122: =IF(TRIM($G$1)="+",'Bid Summary'!H32+IF(SUM('Bid Summary'!$H$21:$H$49)=0,0,'Bid Summary'!H32/SUM('Bid Summary'!$H$21:$H$49)*'Bid Summary'!$H$63),'Bid Summary'!H32) -> 0
B123: 12-500 Furnishings
B124: Description:
B129: DIV 13 - Special Construction | E129: =IF(TRIM($G$1)="+",'Bid Summary'!H33+IF(SUM('Bid Summary'!$H$21:$H$49)=0,0,'Bid Summary'!H33/SUM('Bid Summary'!$H$21:$H$49)*'Bid Summary'!$H$63),'Bid Summary'!H33) -> 0
B130: 13-500 Special Construction
B131: Description:
B136: DIV 14 - Conveying Systems | E136: =IF(TRIM($G$1)="+",'Bid Summary'!H34+IF(SUM('Bid Summary'!$H$21:$H$49)=0,0,'Bid Summary'!H34/SUM('Bid Summary'!$H$21:$H$49)*'Bid Summary'!$H$63),'Bid Summary'!H34) -> 0
B137: 14-500 Conveying
B138: Description:
A143: x | B143: DIV 21 - Fire Suppression | E143: =IF(TRIM($G$1)="+",'Bid Summary'!H35+IF(SUM('Bid Summary'!$H$21:$H$49)=0,0,'Bid Summary'!H35/SUM('Bid Summary'!$H$21:$H$49)*'Bid Summary'!$H$63),'Bid Summary'!H35) -> 0
A144: x | B144: 21-500 Fire Suppression
A145: x | B145: Description:
A146: x
A151: x | B151: DIV 22 - Plumbing | E151: =IF(TRIM($G$1)="+",'Bid Summary'!H36+IF(SUM('Bid Summary'!$H$21:$H$49)=0,0,'Bid Summary'!H36/SUM('Bid Summary'!$H$21:$H$49)*'Bid Summary'!$H$63),'Bid Summary'!H36) -> 0
A152: x | B152: 22-500 Plumbing
A153: x | B153: Description:
A154: x
A158: x | B158: DIV 23 - HVAC | E158: =IF(TRIM($G$1)="+",'Bid Summary'!H37+IF(SUM('Bid Summary'!$H$21:$H$49)=0,0,'Bid Summary'!H37/SUM('Bid Summary'!$H$21:$H$49)*'Bid Summary'!$H$63),'Bid Summary'!H37) -> 0
A159: x | B159: 23-500 HVAC
A160: x | B160: Description:
A161: x
B165: DIV 25 - Building Automation | E165: =IF(TRIM($G$1)="+",'Bid Summary'!H38+IF(SUM('Bid Summary'!$H$21:$H$49)=0,0,'Bid Summary'!H38/SUM('Bid Summary'!$H$21:$H$49)*'Bid Summary'!$H$63),'Bid Summary'!H38) -> 0
B166: 25-500 Building Automation
B167: Description:
A171: x | B171: DIV 26 - Electrical | E171: =IF(TRIM($G$1)="+",'Bid Summary'!H39+IF(SUM('Bid Summary'!$H$21:$H$49)=0,0,'Bid Summary'!H39/SUM('Bid Summary'!$H$21:$H$49)*'Bid Summary'!$H$63),'Bid Summary'!H39) -> 0
A172: x | B172: 26-500 Electrical
A173: x | B173: Description:
A174: x
B178: DIV 27 - Communication | E178: =IF(TRIM($G$1)="+",'Bid Summary'!H40+IF(SUM('Bid Summary'!$H$21:$H$49)=0,0,'Bid Summary'!H40/SUM('Bid Summary'!$H$21:$H$49)*'Bid Summary'!$H$63),'Bid Summary'!H40) -> 0
B179: 27-500 Communication
B180: Description:
A185: x
A186: x | B186: DIV 28 - Fire Alarm & Security | E186: =IF(TRIM($G$1)="+",'Bid Summary'!H41+IF(SUM('Bid Summary'!$H$21:$H$49)=0,0,'Bid Summary'!H41/SUM('Bid Summary'!$H$21:$H$49)*'Bid Summary'!$H$63),'Bid Summary'!H41) -> 0
A187: x | B187: 28-500 Electronic Safety & Security
A188: x | B188: Description:
A189: x
B194: DIV 31 - Earthwork | E194: =IF(TRIM($G$1)="+",'Bid Summary'!H42+IF(SUM('Bid Summary'!$H$21:$H$49)=0,0,'Bid Summary'!H42/SUM('Bid Summary'!$H$21:$H$49)*'Bid Summary'!$H$63),'Bid Summary'!H42) -> 0
B195: 31-500 Earthwork
B196: Description:
B201: DIV 32 - Exterior Improvements | E201: =IF(TRIM($G$1)="+",'Bid Summary'!H43+IF(SUM('Bid Summary'!$H$21:$H$49)=0,0,'Bid Summary'!H43/SUM('Bid Summary'!$H$21:$H$49)*'Bid Summary'!$H$63),'Bid Summary'!H43) -> 0
B202: 32-500 Exterior Improvements
B203: Description:
B208: DIV 33 - Utilities | E208: =IF(TRIM($G$1)="+",'Bid Summary'!H44+IF(SUM('Bid Summary'!$H$21:$H$49)=0,0,'Bid Summary'!H44/SUM('Bid Summary'!$H$21:$H$49)*'Bid Summary'!$H$63),'Bid Summary'!H44) -> 0
B209: 33-500 Utilities
B210: Description:
B215: DIV 34 - Transportation | E215: =IF(TRIM($G$1)="+",'Bid Summary'!H45+IF(SUM('Bid Summary'!$H$21:$H$49)=0,0,'Bid Summary'!H45/SUM('Bid Summary'!$H$21:$H$49)*'Bid Summary'!$H$63),'Bid Summary'!H45) -> 0
B216: 34-500 Transportation
B217: Description:
B222: DIV.35 -- WATERWAY & MARINE CONSTRUCTION | E222: =IF(TRIM($G$1)="+",'Bid Summary'!H46+IF(SUM('Bid Summary'!$H$21:$H$49)=0,0,'Bid Summary'!H46/SUM('Bid Summary'!$H$21:$H$49)*'Bid Summary'!$H$63),'Bid Summary'!H46) -> 0
B223: 32-500 Exterior Improvements
B224: Description:
B229: DIV 41 - Material Handling Equipment | E229: =IF(TRIM($G$1)="+",'Bid Summary'!H47+IF(SUM('Bid Summary'!$H$21:$H$49)=0,0,'Bid Summary'!H47/SUM('Bid Summary'!$H$21:$H$49)*'Bid Summary'!$H$63),'Bid Summary'!H47) -> 0
B230: 41-500 Material Handling Equipment
B231: Description:
B236: DIV 46 - Water & Wastewater Equipment | E236: =IF(TRIM($G$1)="+",'Bid Summary'!H48+IF(SUM('Bid Summary'!$H$21:$H$49)=0,0,'Bid Summary'!H48/SUM('Bid Summary'!$H$21:$H$49)*'Bid Summary'!$H$63),'Bid Summary'!H48) -> 0
B237: 46-500 Water & Wastewater Equipment
B238: Description:
B243: DIV 48 - Electrical Power Generation | E243: =IF(TRIM($G$1)="+",'Bid Summary'!H49+IF(SUM('Bid Summary'!$H$21:$H$49)=0,0,'Bid Summary'!H49/SUM('Bid Summary'!$H$21:$H$49)*'Bid Summary'!$H$63),'Bid Summary'!H49) -> 0
B244: 48-500 Ele Power Gen
B245: Description:
A247: x | B247: Included (+)
A248: x | B248: • All items as specifically noted in the scope above.
A249: x | B249: • All work to be performed during standard business hours.
A250: x | B250: • Dumpster, debris removal, and daily jobsite cleanup.
A251: x | B251: • HVAC Self-Test & Balance.
A252: x | B252: • Proposal valid for (30) days
A253: x | B253: • Construction duration (8) weeks.
A254: x | B254: •
A255: x
A256: x | B256: Excluded (-)
A257: x | B257: • Architectural, engineering, or permit design fees.
A258: x | B258: • No allowance is made for Builder's Risk insurance. An estimate for Builders Risk insurance can be provided at owner's request.
A259: x | B259: • Landlord review fees or tenant improvement review fees.
A260: x | B260: • Express Review Fees.
A261: x | B261: • Furniture, fixtures, and equipment (FF&E).
A262: x | B262: • Access Control.
A263: x | B263: • Low voltage (security, tele/data and audio/visual).
A264: x | B264: • Certified Test & Balance.
A265: x | B265: • New PIU or VAV equipment.
B266: • Etched glass.
B267: •
A268: x | B268: •
A269: x | B269: •
A270: x | B270: •
A271: x
A272: x | B272: Summary
B273: Subtotal | C273: =E18+E26+E32+E38+E45+E52+E61+E68+E76+E108+E115+E122+E129+E136+E143+E151+E158+E165+E171+E178+E186+E194+E201+E208+E215+E222+E229+E236+E243+E22 -> 901.5864
A274: x | B274: Profit & Overhead | C274: =IF(TRIM($G$1)="-",'Bid Summary'!$H$63,0) -> 0
A275: x | B275: Total | C275: =C273+C274 -> 901.5864
A276: x | B276: =ROUND(C275,0) -> 902 | C276: Accepted By
A277: x
A278: x
A279: x | C279: Date
A280: x
A281: x
A282: x | B282: ALTERNATES:
A283: x
A284: x | B284: Alternate #1 | F284: ='Alt (1)'!Q1618 -> 
A285: x | B285: Description:
A286: x
A289: x
A290: x | B290: Alternate #2 | F290: ='Alt (2)'!Q1617 -> 0
A291: x | B291: Description:
A292: x
A295: x
A296: x | B296: Alternate #3 | F296: ='Alt (3)'!Q1617 -> 0
A297: x | B297: Description:
B302: Alternate #4 | F302: ='Alt (4)'!Q1617 -> 0
B303: Description:
B308: Alternate #5 | F308: ='Alt (5)'!Q1617 -> 0
B309: Description:
B314: Alternate #6 | F314: ='Alt (6)'!Q1617 -> 0
B315: Description:
B320: Alternate #7 | F320: ='Alt (7)'!Q1617 -> 0
B321: Description:
B326: Alternate #8 | F326: ='Alt (8)'!Q1617 -> 0
B327: Description:
B332: Alternate #9 | F332: ='Alt (9)'!Q1617 -> 0
B333: Description:
B338: Alternate #10 | F338: ='Alt (10)'!Q1617 -> 0
B339: Description:

Sheet Vendor Tracker (hidden)
A2: X | B2: Scope | C2: Company Name | D2: Phone | E2: Email | F2: Contact | G2: Work Area | H2: Notes | I2: Sent Bid | J2: Confirmed Will Bid | K2: Certification | L2: Quote Amount
A3: X | B3: Div 1
A4: X | B4: Final Cleaning
C5: S&S Mainenance | D5: 704-218-8014 | E5: sandy@ssmaintenancenc.com | F5: Sandy Shackelford | G5: Charlotte
C6: Knight Commercial Cleaning | D6: 646-684-1887 | E6: jl.knight@icloud.com | F6: Jennifer Knight | G6: NC/SC
A8: X | B8: Port A Jon
C9: Ground Thunder | D9: 704-791-4624 | E9: gttoilets@gt1253.com | F9: Luke | G9: Charlotte
C10: Liquid Munn-E | D10: 843-390-1130 | E10: office@liquidmunne.com | F10: Customer Service | G10: NC/SC
A12: X | B12: Dumpsters
C13: Ground Thunder | D13: 704-791-4624 | E13: gttoilets@gt1253.com | F13: Luke | G13: Charlotte
C14: Trash Control | D14: 704-400-9053 | F14: Customer Service | G14: Charlotte
A16: X | B16: Office Trailer
C17: Mobile Modular Portable Storage | D17: 704-519-4081 | E17: mimi.boyd@mobilemodularcontainers.com | F17: Mimi Boyd | G17: NC/SC
A19: X | B19: Surveyor
C20: Mauldin-Watkins Surveying, P.A | D20: 919-552-9326 | E20: mwsurvey@embarqmail.com | F20: J. Wayne Mauldin | G20: SC
C21: Triad Engineering & Surveying, Inc | D21: 864-552-1482 | E21: briann@triadsc.com | F21: Brian Norton | G21: NC/SC
C22: Suttles Surveying | D22: 828-652-9382 | E22: doug@suttlessurvey.com | F22: Douglas Suttles | G22: Charlotte
C23: Lawrence Associates | D23: 704-289-1013 | E23: Will@Lawrencesurveying.com | F23: Will Lawrence | G23: Charlotte
C24: Eagle Engineering | D24: 704-882-4222 | E24: rwhitehurst@eagleonline.net | F24: Russell Whitehurst | G24: Charlotte
B26: Testing
C27: Eagle Engineering | D27: 704-882-4222 | E27: braxton.kirby@eagleonline.net | F27: Braxton Kirby | G27: Charlotte
C28: Terra Genius | D28: 980-721-6360 | E28: mitch@terragenius.com | F28: Mitchell Maddox | G28: Charlotte
C29: Terracon | D29: 803-741-9000 | E29: John.Armstrong@terracon.com | F29: John Armstrong | G29: NC/SC
A31: X | B31: Div 2
A32: X | B32: Selective Demolition
C33: Kingdom Demolition | D33: 839.232.9723 | E33: cscott@kingdomdemo.com | F33: Cameron Scott | G33: Charlotte
C34: Custom Demolition | D34: 704.363.7083, 839.232.9723 | E34: jakel@customdemodismantling.com | F34: Jake Latersky | G34: Charlotte
C35: Prestige | D35: 803.992.1427 | E35: Chrisd@prestigegroupllc.com | F35: Chris DiIenno
C36: RT Meachum | D36: 704.795.8745 | E36: jmercuro@meachamdrywall.com | F36: Jeff Mecuro | G36: Charlotte
C37: L&H Contractors | D37: 704.534.6641 | E37: lorenzohernandez1428@gmail.com | F37: Lorenzo Hernandez
C38: Century Contracting | D38: 704.357.0041 | E38: bgomez@centurync.com | F38: Bryan Gomez
C39: Jiron Construction | D39: 704.589.2414 | E39: jjiron@jironconstruction.com | F39: Juan Jiron
C40: Trinity Interiors | D40: 803.818.0001 | E40: smcateer@trinityinteriors.com | F40: Sherri McAteer | G40: NC/SC
C41: Garmon | D41: 330.417.6300 | E41: kelly@garmonandcompany.com, keirsten@garmonandcompany.com | F41: Keirsten Trudick
C42: Concrete Core Drilling and Sawing LLC | D42: 704.447.5121 | E42: theresaz@concretedrillsaw.com | F42: Theresa Zollo | G42: Charlotte
C43: Champion concrete | D43: 704.965.5242, 804.398.8082 | E43: adam@championconcrete.co, john@championconcrete.co | F43: Adam Hammerle, Jogh McLeod | G43: Charlotte
A45: X | B45: Asbestos Removal
A51: X | B51: DIV. 3- CONCRETE
A52: X | B52: Concrete
C53: McLeod | D53: 704.507.0021 | E53: bmac@macleodnc.com | F53: Brad MacLeod | G53: Charlotte
C54: Division III Concrete | D54: 980.208.0190 | E54: divisioniiiconcrete@gmail.com | F54: Rudy Cornejo
C55: Castro & Castro | D55: 704-502-7418 | E55: Oscarm@castroconstructioninc.com | F55: Oscar Martinez
C56: Banks Massey | D56: 704.668.4883 | E56: banks@banksmasseygrading.com | F56: Banks Massey
C57: Huntley Brothers | D57: 704.582.1580 | E57: garrett@huntleybrothers.com | F57: Garrett Hood | G57: NC/SC
C58: Advance Concrete | D58: 919-348-7450 | E58: d.pitz@advance-concrete.com | F58: Dan Pitz | G58: NC/SC
C59: LCA Concrete | D59: 704-273-2903 | E59: lcaconcrete@hotmail.com | F59: Leo Afonso
C60: NEP Contracting | D60: 828.231.5630 | E60: Bobby@NEPContracting.com | F60: Bobby Beard
C61: C&C Industrial, INC | D61: 252-443-9403 | E61: estimating@ccindustrial.com | F61: Tyler Hicks | G61: NC/SC
A63: X | B63: DIV. 4-- MASONRY
A64: X | B64: Masonry
C65: BGR Masonry | D65: 704.557.6835 | E65: bgr1.masonry@gmail.com | F65: Baruc Rodriquez
C66: Huntley Brothers | D66: 704.582.1580 | E66: garrett@huntleybrothers.com | F66: Garrett Hood | G66: NC/SC
C67: Popes Masonry | D67: 919-596-0411 | E67: popesmasonry@me.com | F67: Howard Pope | G67: Raleigh
C68: Drafts Masonry Construction, LLC | D68: 803-356-9673 | E68: dmc_94@windstream.net | F68: Ken L. Drafts | G68: SC
C69: Leder Masonry, Inc. | D69: 704-654-0170 | E69: ledermasonryinc@gmail.com | F69: Howard Monteith | G69: NC
A71: X | B71: DIV. 5-- METALS
A72: X | B72: Structural Steel
C73: Intergrity Iron Worx | D73: 704.401.4650 | E73: daniel@intergrityiw.com | F73: Daniel Freeman | G73: Charlotte
C74: Peachland Design & Fab. | D74: 704.617.1370 | E74: wesblack@peachlanddesignandfabrication.com | F74: T. Wesley Black | G74: Charlotte
C75: Arc Steel Fabrication | D75: (704) 898-4449 | E75: tlovell@arcsteelfab.com | F75: Terry Lovell | G75: NC/SC
C76: SteelFab | D76: 704-574-6582 | E76: Jingram@steelfab-inc.com | F76: James Ingram | G76: NC/SC
C77: Concept Steel | D77: (704) 827-1831 | E77: SolomanSutton@conceptsteel.com | F77: Soloman Sutton | G77: NC/SC
C78: Alliance Building Systems | D78: 719-994-9160 | E78: bids@absbuilds.com | F78: Luke Spencer
C79: Hunter Knepshield Company INC | D79: 502-225-9121 | E79: knepjr3@iglou.com | F79: Thomas Knepshield III
C80: Structural Steel of Carolina | D80: 336-725-0521 | E80: gvasquez@steelofcarolina.com | F80: Giovani Vasquez | G80: NC/SC
A82: X | B82: DIV. 6-- WOOD & PLASTICS
A83: X | B83: Wood Framing
C84: Hitech Building Company | D84: 704-450-8692 | E84: juan@hitechusa.net | F84: Juan Granados | G84: NC/SC
A90: X | B90: Wood/Truss Suppliers
B97: Siding
C98: NC Siding & Exteriors, LLC | D98: 919-842-6535 | E98: ncsiding@hotmail.com | F98: Francisco Eastrio | G98: NC/SC
A104: X | B104: Cabinets and Millwork
C105: Paul David & Co. | D105: 980.722.1075 | E105: pauldavidco@yahoo.com | F105: Paul Grubb | G105: NC/SC
C106: Apex Custom Woodworks | D106: (704) 309-3162 | E106: apexcustomwood@gmail.com | F106: Jim Stevenson | G106: Charlotte
C107: Rusco Fixture Co. | D107: 704.474.3184 | E107: Ronny.Aldridge@ruscofixture.com | F107: Ronny Aldridge
C108: Forged Timber Company | D108: 704-351-7712 | E108: rstorch@forgedtimbercompany.com | F108: Ryan Storch
A112: X | B112: DIV. 7-- THERMAL / MOISTURE PROTECTION
A113: X | B113: Insulation
C114: Pender & Pettus Insulation | D114: 704-292-1990 | E114: charles.richardson@truteam.com | F114: Chuck Richardson | G114: NC/SC
A119: X | B119: Roofing
C120: Weathergard | D120: 704-289-6404 | E120: lisak@weathergardnc.com | G120: NC/SC
C121: Wayneco Roofing | D121: 704-576-0042 | E121: waynco.mike@gmail.com | F121: Mike Fasching | G121: NC/SC
C122: Davco Roofing and Sheet Metal | D122: 248-343-4655 | E122: mgair@davcoroofing.com | G122: NC/SC
C123: TQM Roofing, Inc. | D123: 704-878-6007 | E123: lynn@tqmroofing.com | G123: Charlotte
C124: Baker Roofing Company | D124: 919-280-4579 | E124: gford@bakerroofing.com | F124: Garrett Ford | G124: NC/SC
C125: Alternative Roofing Solutions | D125: 704-201-0919 | E125: mmiller@ars-roofing.com | F125: Mark Miller | G125: SC
A127: X | B127: EIFS
C128: Eastern Stucco Restoration | D128: 704-392-3691 | E128: zach@easternstucco.com | F128: Zach Van Kampen | G128: NC/SC
C129: Encore Exteriors, Inc. | D129: 704-36-2574 | E129: mwhite@encoreexteriorsinc.com | F129: Missy White | G129: NC/SC
A134: X | B134: Caulking
C135: USA Waterproofing | D135: 803-831-0312 | E135: millerdean@bellsouth.net | F135: Dean Miller | G135: NC/SC
C136: American Waterproofing | D136: 704-395-9656 | E136: don@americawaterproofing.com | F136: Don | G136: SC
A140: X | B140: Fire Proofing
A146: X | B146: Waterproofing
C147: Tailored Foam | D147: 828-234-5020 | E147: btaylor@tailoredfoam.com | F147: Brad Taylor | G147: NC/SC
C148: USA Waterproofing | D148: 803-831-0312 | E148: millerdean@bellsouth.net | F148: Dean Miller | G148: NC/SC
C149: American Waterproofing | D149: 704-395-9656 | E149: don@americawaterproofing.com | F149: Don | G149: SC
A153: X | B153: Canop/Awning
C154: CSC Awnings, Inc. | D154: 336-744-5006 | E154: kdeal@cscawnings.com | F154: Ken Deal | G154: Raleigh
C155: City Awning | D155: 803-324-3886 | E155: info@gocityawning.com | F155: Duane | G155: NC
B159: Spray Foam Insulation
C160: Tailored Foam | D160: 828-234-5020 | E160: btaylor@tailoredfoam.com | F160: Brad Taylor | G160: NC/SC
C161: Tri City Insulation of Raleigh | D161: 919-703-5319 | E161: craig.lee@truteam.com | F161: Craig Lee | G161: Raleigh
A166: X | B166: DIV. 8-- DOORS & WINDOWS
A167: X | B167: Doors and Hardware
C168: ASAP Doors | D168: 704.267.2837 | E168: larson@asapcommercialdoors.com, office@asapcommercialdoors.com | F168: Larson Flock
C169: BA Hoft | D169: 256.701.3354 | E169: lee.rowland@integratedopenings.com | F169: Lee Rowland | G169: Charlotte
C170: Piedmont Door Solutions | D170: 866.527.0711 | E170: tthomas@piedmontds.com | F170: Tanna Thomas
C171: Eastway Lock & Key, Inc. | D171: 704.347.1088 | E171: tracy@eastwaylock.com | F171: Tracy Wilson
C172: Cook & Boardman, LLC | D172: 336.312.0387 | E172: jmslaughter@cookandboardman.com | F172: Jordan Slaughter | G172: NC/SC
C173: Burgess Sales & Supply | D173: 704.333.8933 | E173: kburgess@burgesssales.com, nathan.burgess@burgesssales.com, berickson@burgesssales.com | F173: Keith Burgess, Nathan Burgess, Bradley Erickson | G173: Charlotte
A175: X | B175: Hardware
C176: ASAP Doors | D176: 704.267.2837 | E176: larson@asapcommercialdoors.com, office@asapcommercialdoors.com | F176: Larson Flock
C177: BA Hoft | D177: 256.701.3354 | E177: lee.rowland@integratedopenings.com | F177: Lee Rowland | G177: Charlotte
C178: Piedmont Door Solutions | D178: 866.527.0711 | E178: tthomas@piedmontds.com | F178: TannaThomas
C179: Eastway Lock & Key, Inc. | D179: 704.347.1088 | E179: tracy@eastwaylock.com | F179: Tracy Wilson
C180: Cook & Boardman, LLC | D180: 336.312.0387 | E180: jmslaughter@cookandboardman.com | F180: Jordan Slaughter | G180: NC/SC
C181: Burgess Sales & Supply | D181: 704.333.8933 | E181: kburgess@burgesssales.com, nathan.burgess@burgesssales.com, berickson@burgesssales.com | F181: Keith Burgess, Nathan Burgess, Bradley Erickson | G181: Charlotte
A183: X | B183: Installation
C184: John The Handyman LLC | D184: 412.759.2940 | E184: johnthehandymanllc@gmail.com | F184: John Bocchini
C185: L&H Contractors | D185: 704.534.6641 | E185: lorenzohernandez1428@gmail.com | F185: Lorenzo Hernandez
C186: John Burleson | D186: TBD | E186: johnburl75@yahoo.com | F186: John Burleson
C187: Scire Group | D187: 980.585.8220 | E187: contact@sciregroupinc.com | F187: Juan Ramirez
A189: X | B189: Window Tinting/Frosting
C190: Suntech Window Tinting Inc. | D190: 704.906.6069 | E190: tintshopnc@gmail.com | F190: Bruce
C191: Clear Choice Glass | D191: 980.527.4381 | E191: mshields@Clear-Choice-Glass.com | F191: Matt Shields
A193: X | B193: Overhead Doors
C194: ASAP Doors | D194: 704.267.2837 | E194: larson@asapcommercialdoors.com | F194: Larson Flock
C195: Southern Dock Products | D195: 980.470.1531, 704.594.5181 | E195: Palmer.Perkins@southerndock.com | F195: Palmer Perkins | G195: NC/SC
C196: Overhead Doors Of Charlotte | D196: 704.686.8276 | E196: WAITING ON CALL BACK | F196: WAITING ON CALL BACK | G196: NC/SC
C197: Cox Door | D197: 704-821-8898 Ext 212 | E197: mharris@coxdoor.com | F197: Mike Harris | G197: Charlotte
C198: Custom Door & Gate | D198: 919-876-4555 | E198: mikel@customoverheaddoors.net | F198: Mike Ladrie | G198: NC/SC
C199: Fairborn Equipment Company, Inc. | D199: 704-721-3667 | E199: barbeed@fairbornequipment.com | F199: Doug Barbee | G199: NC/SC
A201: X | B201: Storefront
C202: Union Glass | D202: 803.802.1070 | E202: patw@unionglassandmetal.com | F202: Patrick Wichowski | G202: Charlotte
C203: Gregory Glass | D203: 803-323-9969 | E203: estimating@gregoryglazingco.com | F203: David Wright | G203: Charlotte
C204: Triune Glass LLC | D204: 336.269.3928 | E204: cjeffreys@triuneglassllc.com | F204: Cameron Jeffreys | G204: NC/SC
C205: Quality Glass Inc. | D205: 704.915.1890 | E205: qualityglass704@gmail.com | F205: Hunter Fields
C206: Sun Glass & Door Co. | D206: 704.377.2004 | E206: estimating@sungd.com | F206: Anthony Yon
C207: Kapsi Glass | D207: (864) 583-6200 | E207: kapasiglass@yahoo.com | F207: Muston Kapasi | G207: Charlotte
C208: Clear Choice Glass | D208: 980.527.4381 | E208: mshields@Clear-Choice-Glass.com | F208: Matt Shields
C209: Granco Glass | D209: 803-691-6611 | E209: granco-bids@granco.net | F209: Brook Grant
A211: X | B211: DIV. 9-- FINISHES
A212: X | B212: Metal Studs/Drywall
C213: L&H Contractors | D213: 704.534.6641 | E213: lorenzohernandez1428@gmail.com | F213: Lorenzo Hernandez
C214: 5th Level | D214: 704.601.5074 | E214: estimating@5thleveldrywall.com | F214: David Edwards | G214: NC/SC
C215: Performance Drywall | D215: 704.921.8980 / 704.363.7188 | E215: mlewis@performancedrywallinc.com | F215: Mitch Lewis | G215: NC/SC
C216: Jiron Construction | D216: 704.589.2414 | E216: jjiron@jironconstruction.com | F216: Juan Jiron
C217: Century Contracting | D217: 704.357.0041 | E217: bgomez@centurync.com | F217: Bryan Gomez
C218: RT Meachum | D218: 704.795.8745 | E218: jmercuro@meachamdrywall.com | F218: Jeff Mecuro | G218: Charlotte
A220: X | B220: Painting
C221: RJ Starnes Painting | D221: 704.254.6745 | E221: lynn.starnes@rjstarnespainting.com | F221: Jeff Starnes | G221: Charlotte
C222: L&H Contractors | D222: 704.534.6641 | E222: lorenzohernandez1428@gmail.com | F222: Lorenzo Hernandez
C223: CertaPro Painters | D223: 704.408.5899 | E223: jploughe@certapro.com | F223: Jim Ploughe
C224: Charlotte Paint | D224: 803.242.9778 | E224: matt.starnes@charlottepaint.com, bids@charlottepaint.com | F224: Matt Starnes | G224: Charlotte
C225: WallSource | D225: 828.312.3692 | E225: DCarpenter@meachamdrywall.com | F225: Donnie Carpenter | G225: Charlotte
C226: Platinum Painting | D226: 678-558-8850 | E226: Platinum-painting@hotmail.com | F226: John Sanders
C227: Accu Painters of NC LLC | D227: 919.376.6025 | E227: ray@accupainter.com, estimator@accupainter.com | F227: Rocio Ayscue | K227: HUB
C228: AllBurn Painting LLC | D228: (980) 781-7421 | E228: colburnp@allburnpainting.com | F228: Colburn Peterson | K228: HUB
C229: Bobby's Painting Co.INC | D229: 704.394.5124 | E229: bobbyspaint@bellsouth.net | F229: Tay Brooks | K229: HUB
C230: Brandys Painting Inc | D230: 704.640.3610 | E230: Brandyspainting123@gmail.com | F230: Cristina Espinoza Villegas | K230: HUB
C231: Performance Building Solutions | D231: 828-310-7773 | E231: kenzy@performance-building-solutions.com | F231: Kenzy Baxter | G231: NC/SC
A233: X | B233: Acoustical Ceilings
C234: L&H Contractors | D234: 704.534.6641 | E234: lorenzohernandez1428@gmail.com | F234: Lorenzo Hernandez
C235: 5th Level | D235: 704.601.5074 | E235: estimating@5thleveldrywall.com | F235: David Edwards | G235: NC/SC
C236: Performance Drywall | D236: 704.921.8980 / 704.363.7188 | E236: mlewis@performancedrywallinc.com | F236: Mitch Lewis | G236: NC/SC
C237: Trinity Interiors | D237: 803.818.5400 / 803.610.5933 | E237: brichardson@trinityinteriors.net | F237: Buddy Richardson | G237: Charlotte
C238: Jiron Construction | D238: 704.589.2414 | E238: jjiron@jironconstruction.com | F238: Juan Jiron
C239: Century Contracting | D239: 704.357.0041 | E239: bgomez@centurync.com | F239: Bryan Gomez
C240: RT Meachum | D240: 704.795.8745 | E240: jmercuro@meachamdrywall.com | F240: Jeff Mecuro | G240: Charlotte
C241: Paul Barbour & Son, Inc. | D241: 919-552-0747 | E241: info@pbarbourandson.com | F241: Greg Blankenship | G241: Raleigh
A243: X | B243: Flooring
C244: Floorco | D244: 803-622-7152 | E244: dmeermans@hotmail.com | F244: Dale Meermans
C245: Bonitz | D245: 804-252-1816 | E245: milesoconnell@bonitz.com | F245: Miles Oconnell
C246: Garmon | D246: 330.417.6300 | E246: kelly@garmonandcompany.com, keirsten@garmonandcompany.com | F246: Keirsten Trudick
C247: Trinity Interiors | D247: 803.818.0001 | E247: smcateer@trinityinteriors.com | F247: Sherri McAteer | G247: NC/SC
C248: Flooring Solutions | D248: 810.956.7252 | E248: awaiting call back to confirm email | F248: Clarissa Edgerton
C249: Sistare Carpets | D249: (803) 285-4224 | E249: jobs@sistarecarpets.com griggs.griffin@sistarecarpets.com | F249: Griggs Griffin, Mike Sistare | G249: Charlotte
C250: All Floor Choices & Reno LLC | D250: 704.309.0282 | E250: juanliriano70@gmail.com | F250: Juan Liriano
C251: Adams Carpet & Wallpaper | D251: 252.291.4900 | E251: aadams@adamscarpetone.com | F251: Ann Adams | K251: HUB
C252: Carolina Custom Installations | D252: 704.568.7277 | E252: sally@cci-floors.com | F252: Sally Bloomer Nichols | K252: HUB
C253: Carpet Queen | D253: 980-319-4479 | E253: kashifulhasnain84@gmail.com | F253: Kashif Hasnain | K253: HUB
C254: Paul Barbour & Son, Inc. | D254: 919-552-0747 | E254: info@pbarbourandson.com | F254: Greg Blankenship | G254: Raleigh | K254: HUB
C255: Ceramic Tile Remolding Co. Inc | D255: 704-523-1571 | E255: troy@ceramic-tile-remodeling.com | F255: Troy Simpson | G255: NC/SC
A257: X | B257: DIV. 10-- SPECIALITIES
A258: X | B258: Lockers & Benches
A265: X | B265: Fire Protection Specialties
A272: X | B272: Partitions
C273: Cook & Boardman, LLC | D273: 336.312.0387 | E273: jmslaughter@cookandboardman.com | F273: Jordan Slaughter | G273: NC/SC
C274: BA Hoft | D274: 256.701.3354 | E274: lee.rowland@integratedopenings.com | F274: Lee Rowland | G274: Charlotte
C275: Partition Plus | D275: 410-879-6200 | E275: sales@partitionplus.com | F275: Bill Milam
C276: New South Specialties | D276: 803.796.9595 | E276: randy@newsouthspecialties.com | F276: Randy Abercrombie | G276: NC/SC
A278: X | B278: Toilet Accessories
C279: Cook & Boardman, LLC | D279: 336.312.0387 | E279: jmslaughter@cookandboardman.com | F279: Jordan Slaughter | G279: NC/SC
C280: New South Specialties | D280: 803.796.9595 | E280: randy@newsouthspecialties.com | F280: Randy Abercrombie | G280: NC/SC
A285: X | B285: Signage
C286: Cook & Boardman, LLC | D286: 336.312.0387 | E286: jmslaughter@cookandboardman.com | F286: Jordan Slaughter | G286: NC/SC
C287: BA Hoft | D287: 256.701.3354 | E287: lee.rowland@integratedopenings.com | F287: Lee Rowland | G287: Charlotte
C288: Fast Signs | D288: 704-286-1641 | E288: 2076@fastsigns.com | F288: Judy Stuebs
C289: Carolina Signs and Wonders | D289: 704.625.2061 | E289: Todd@NCSign.com | F289: Todd Golbus | K289: HUB
... 211 more rows

Sheet Vendor Tracker (2)
A2: X | B2: Scope | C2: Company Name | D2: Phone | E2: Email | F2: Contact | G2: Work Area | H2: Sent Bid | I2: Confirmed Will Bid | J2: Quote Amount | K2: Certification | L2: Notes
A3: X | B3: Div 1
A4: X | B4: Final Cleaning
A5: x | C5: S&S Mainenance | D5: 704-218-8014 | E5: sandy@ssmaintenancenc.com | F5: Sandy Shackelford | G5: Charlotte
A6: x | C6: Knight Commercial Cleaning | D6: 646-684-1887 | E6: jl.knight@icloud.com | F6: Jennifer Knight | G6: NC/SC
A8: X | B8: Port A Jon
A9: x | C9: Ground Thunder | D9: 704-791-4624 | E9: gttoilets@gt1253.com | F9: Luke | G9: Charlotte
A10: x | C10: Liquid Munn-E | D10: 843-390-1130 | E10: office@liquidmunne.com | F10: Customer Service | G10: NC/SC
A12: X | B12: Dumpsters
A13: x | C13: Ground Thunder | D13: 704-791-4624 | E13: gttoilets@gt1253.com | F13: Luke | G13: Charlotte
A14: x | C14: Trash Control | D14: 704-400-9053 | F14: Customer Service | G14: Charlotte
A16: X | B16: Office Trailer
C17: Mobile Modular Portable Storage | D17: 704-519-4081 | E17: mimi.boyd@mobilemodularcontainers.com | F17: Mimi Boyd | G17: NC/SC
A19: X | B19: Surveyor
C20: Mauldin-Watkins Surveying, P.A | D20: 919-552-9326 | E20: mwsurvey@embarqmail.com | F20: J. Wayne Mauldin | G20: SC
C21: Triad Engineering & Surveying, Inc | D21: 864-552-1482 | E21: briann@triadsc.com | F21: Brian Norton | G21: NC/SC
C22: Suttles Surveying | D22: 828-652-9382 | E22: doug@suttlessurvey.com | F22: Douglas Suttles | G22: Charlotte
C23: Lawrence Associates | D23: 704-289-1013 | E23: Will@Lawrencesurveying.com | F23: Will Lawrence | G23: Charlotte
C24: Eagle Engineering | D24: 704-882-4222 | E24: rwhitehurst@eagleonline.net | F24: Russell Whitehurst | G24: Charlotte
A26: x | B26: Testing
C27: Eagle Engineering | D27: 704-882-4222 | E27: braxton.kirby@eagleonline.net | F27: Braxton Kirby | G27: Charlotte
C28: Terra Genius | D28: 980-721-6360 | E28: mitch@terragenius.com | F28: Mitchell Maddox | G28: Charlotte
A29: x | C29: Terracon | D29: 803-741-9000 | E29: John.Armstrong@terracon.com | F29: John Armstrong | G29: NC/SC
A31: X | B31: Div 2
A32: X | B32: Selective Demolition
C33: Kingdom Demolition | D33: 839.232.9723 | E33: cscott@kingdomdemo.com | F33: Cameron Scott | G33: Charlotte
C34: Custom Demolition | D34: 704.363.7083, 839.232.9723 | E34: jakel@customdemodismantling.com | F34: Jake Latersky | G34: Charlotte
C35: Prestige | D35: 803.992.1427 | E35: Chrisd@prestigegroupllc.com | F35: Chris DiIenno
A36: x | C36: RT Meachum | D36: 704.795.8745 | E36: jmercuro@meachamdrywall.com | F36: Jeff Mecuro | G36: Charlotte
A37: x | C37: L&H Contractors | D37: 704.534.6641 | E37: lorenzohernandez1428@gmail.com | F37: Lorenzo Hernandez
C38: Century Contracting | D38: 704.357.0041 | E38: bgomez@centurync.com | F38: Bryan Gomez
C39: Jiron Construction | D39: 704.589.2414 | E39: jjiron@jironconstruction.com | F39: Juan Jiron
A40: x | C40: Trinity Interiors | D40: 803.818.0001 | E40: smcateer@trinityinteriors.com | F40: Sherri McAteer | G40: NC/SC
A41: x | C41: Garmon | D41: 330.417.6300 | E41: kelly@garmonandcompany.com, keirsten@garmonandcompany.com | F41: Keirsten Trudick
A42: x | C42: Concrete Core Drilling and Sawing LLC | D42: 704.447.5121 | E42: theresaz@concretedrillsaw.com | F42: Theresa Zollo | G42: Charlotte
A43: x | C43: Champion concrete | D43: 704.965.5242, 804.398.8082 | E43: adam@championconcrete.co, john@championconcrete.co | F43: Adam Hammerle, Jogh McLeod | G43: Charlotte
B45: Asbestos Removal
A51: X | B51: DIV. 3- CONCRETE
A52: X | B52: Concrete
A53: x | C53: McLeod | D53: 704.507.0021 | E53: bmac@macleodnc.com | F53: Brad MacLeod | G53: Charlotte
C54: Division III Concrete | D54: 980.208.0190 | E54: divisioniiiconcrete@gmail.com | F54: Rudy Cornejo
C55: Castro & Castro | D55: 704-502-7418 | E55: Oscarm@castroconstructioninc.com | F55: Oscar Martinez
C56: Banks Massey | D56: 704.668.4883 | E56: banks@banksmasseygrading.com | F56: Banks Massey
C57: Huntley Brothers | D57: 704.582.1580 | E57: garrett@huntleybrothers.com | F57: Garrett Hood | G57: NC/SC
C58: Advance Concrete | D58: 919-348-7450 | E58: d.pitz@advance-concrete.com | F58: Dan Pitz | G58: NC/SC
C59: LCA Concrete | D59: 704-273-2903 | E59: lcaconcrete@hotmail.com | F59: Leo Afonso
C60: NEP Contracting | D60: 828.231.5630 | E60: Bobby@NEPContracting.com | F60: Bobby Beard
C61: C&C Industrial, INC | D61: 252-443-9403 | E61: estimating@ccindustrial.com | F61: Tyler Hicks | G61: NC/SC
A63: X | B63: DIV. 4-- MASONRY
A64: X | B64: Masonry
A65: x | C65: BGR Masonry | D65: 704.557.6835 | E65: bgr1.masonry@gmail.com | F65: Baruc Rodriquez
A66: x | C66: Huntley Brothers | D66: 704.582.1580 | E66: garrett@huntleybrothers.com | F66: Garrett Hood | G66: NC/SC
A67: x | C67: Popes Masonry | D67: 919-596-0411 | E67: popesmasonry@me.com | F67: Howard Pope | G67: Raleigh
A68: x | C68: Drafts Masonry Construction, LLC | D68: 803-356-9673 | E68: dmc_94@windstream.net | F68: Ken L. Drafts | G68: SC
A69: x | C69: Leder Masonry, Inc. | D69: 704-654-0170 | E69: ledermasonryinc@gmail.com | F69: Howard Monteith | G69: NC
A71: X | B71: DIV. 5-- METALS
A72: X | B72: Structural Steel
C73: Intergrity Iron Worx | D73: 704.401.4650 | E73: daniel@intergrityiw.com | F73: Daniel Freeman | G73: Charlotte
C74: Peachland Design & Fab. | D74: 704.617.1370 | E74: wesblack@peachlanddesignandfabrication.com | F74: T. Wesley Black | G74: Charlotte
C75: Arc Steel Fabrication | D75: (704) 898-4449 | E75: tlovell@arcsteelfab.com | F75: Terry Lovell | G75: NC/SC
C76: SteelFab | D76: 704-574-6582 | E76: Jingram@steelfab-inc.com | F76: James Ingram | G76: NC/SC
C77: Concept Steel | D77: (704) 827-1831 | E77: SolomanSutton@conceptsteel.com | F77: Soloman Sutton | G77: NC/SC
C78: Alliance Building Systems | D78: 719-994-9160 | E78: bids@absbuilds.com | F78: Luke Spencer
C79: Hunter Knepshield Company INC | D79: 502-225-9121 | E79: knepjr3@iglou.com | F79: Thomas Knepshield III
C80: Structural Steel of Carolina | D80: 336-725-0521 | E80: gvasquez@steelofcarolina.com | F80: Giovani Vasquez | G80: NC/SC
A82: X | B82: DIV. 6-- WOOD & PLASTICS
A83: X | B83: Wood Framing
C84: Hitech Building Company | D84: 704-450-8692 | E84: juan@hitechusa.net | F84: Juan Granados | G84: NC/SC
A90: X | B90: Wood/Truss Suppliers
B97: Siding
C98: NC Siding & Exteriors, LLC | D98: 919-842-6535 | E98: ncsiding@hotmail.com | F98: Francisco Eastrio | G98: NC/SC
A104: X | B104: Cabinets and Millwork
C105: Paul David & Co. | D105: 980.722.1075 | E105: pauldavidco@yahoo.com | F105: Paul Grubb | G105: NC/SC
C106: Apex Custom Woodworks | D106: (704) 309-3162 | E106: apexcustomwood@gmail.com | F106: Jim Stevenson | G106: Charlotte
C107: Rusco Fixture Co. | D107: 704.474.3184 | E107: Ronny.Aldridge@ruscofixture.com | F107: Ronny Aldridge
C108: Forged Timber Company | D108: 704-351-7712 | E108: rstorch@forgedtimbercompany.com | F108: Ryan Storch
A109: x | C109: Leeman | D109: 978-834-3336 | E109: zcziegelmeier@leemanco.com | F109: casey Ziegelmeier | G109: Raleigh/Wilmington
A112: X | B112: DIV. 7-- THERMAL / MOISTURE PROTECTION
A113: X | B113: Insulation
C114: Pender & Pettus Insulation | D114: 704-292-1990 | E114: charles.richardson@truteam.com | F114: Chuck Richardson | G114: NC/SC
A119: X | B119: Roofing
C120: Weathergard | D120: 704-289-6404 | E120: lisak@weathergardnc.com | G120: NC/SC
C121: Wayneco Roofing | D121: 704-576-0042 | E121: waynco.mike@gmail.com | F121: Mike Fasching | G121: NC/SC
C122: Davco Roofing and Sheet Metal | D122: 248-343-4655 | E122: mgair@davcoroofing.com | G122: NC/SC
C123: TQM Roofing, Inc. | D123: 704-878-6007 | E123: lynn@tqmroofing.com | G123: Charlotte
C124: Baker Roofing Company | D124: 919-280-4579 | E124: gford@bakerroofing.com | F124: Garrett Ford | G124: NC/SC
C125: Alternative Roofing Solutions | D125: 704-201-0919 | E125: mmiller@ars-roofing.com | F125: Mark Miller | G125: SC
A126: x | C126: R.E. Bengel sheet metal co, inc | D126: 252-637-3404 | E126: lisa@rebengel.com | F126: steve or jim | G126: Raleigh/Wilmington
B128: EIFS
C129: Eastern Stucco Restoration | D129: 704-392-3691 | E129: zach@easternstucco.com | F129: Zach Van Kampen | G129: NC/SC
C130: Encore Exteriors, Inc. | D130: 704-36-2574 | E130: mwhite@encoreexteriorsinc.com | F130: Missy White | G130: NC/SC
B135: Caulking
C136: USA Waterproofing | D136: 803-831-0312 | E136: millerdean@bellsouth.net | F136: Dean Miller | G136: NC/SC
C137: American Waterproofing | D137: 704-395-9656 | E137: don@americawaterproofing.com | F137: Don | G137: SC
B141: Fire Proofing
B147: Waterproofing
C148: Tailored Foam | D148: 828-234-5020 | E148: btaylor@tailoredfoam.com | F148: Brad Taylor | G148: NC/SC
C149: USA Waterproofing | D149: 803-831-0312 | E149: millerdean@bellsouth.net | F149: Dean Miller | G149: NC/SC
C150: American Waterproofing | D150: 704-395-9656 | E150: don@americawaterproofing.com | F150: Don | G150: SC
B154: Canop/Awning
C155: CSC Awnings, Inc. | D155: 336-744-5006 | E155: kdeal@cscawnings.com | F155: Ken Deal | G155: Raleigh
C156: City Awning | D156: 803-324-3886 | E156: info@gocityawning.com | F156: Duane | G156: NC
B160: Spray Foam Insulation
C161: Tailored Foam | D161: 828-234-5020 | E161: btaylor@tailoredfoam.com | F161: Brad Taylor | G161: NC/SC
C162: Tri City Insulation of Raleigh | D162: 919-703-5319 | E162: craig.lee@truteam.com | F162: Craig Lee | G162: Raleigh
A167: X | B167: DIV. 8-- DOORS & WINDOWS
A168: X | B168: Doors and Hardware
C169: ASAP Doors | D169: 704.267.2837 | E169: larson@asapcommercialdoors.com, office@asapcommercialdoors.com | F169: Larson Flock
C170: BA Hoft | D170: 256.701.3354 | E170: lee.rowland@integratedopenings.com | F170: Lee Rowland | G170: Charlotte
C171: Piedmont Door Solutions | D171: 866.527.0711 | E171: tthomas@piedmontds.com | F171: Tanna Thomas
C172: Eastway Lock & Key, Inc. | D172: 704.347.1088 | E172: tracy@eastwaylock.com | F172: Tracy Wilson
A173: x | C173: Cook & Boardman, LLC | D173: 336.312.0387 | E173: jmslaughter@cookandboardman.com | F173: Jordan Slaughter | G173: NC/SC
C174: Burgess Sales & Supply | D174: 704.333.8933 | E174: kburgess@burgesssales.com, nathan.burgess@burgesssales.com, berickson@burgesssales.com | F174: Keith Burgess, Nathan Burgess, Bradley Erickson | G174: Charlotte
C175: Carolina Door & Hardware | D175: 336-275-9782 Office 336-382-1400 Cell | E175: kkrueger-cdh@hotmail.com | F175: Kathie Krueger | G175: NC/SC
B177: Hardware
C178: ASAP Doors | D178: 704.267.2837 | E178: larson@asapcommercialdoors.com, office@asapcommercialdoors.com | F178: Larson Flock
C179: BA Hoft | D179: 256.701.3354 | E179: lee.rowland@integratedopenings.com | F179: Lee Rowland | G179: Charlotte
C180: Piedmont Door Solutions | D180: 866.527.0711 | E180: tthomas@piedmontds.com | F180: TannaThomas
C181: Eastway Lock & Key, Inc. | D181: 704.347.1088 | E181: tracy@eastwaylock.com | F181: Tracy Wilson
C182: Cook & Boardman, LLC | D182: 336.312.0387 | E182: jmslaughter@cookandboardman.com | F182: Jordan Slaughter | G182: NC/SC
C183: Burgess Sales & Supply | D183: 704.333.8933 | E183: kburgess@burgesssales.com, nathan.burgess@burgesssales.com, berickson@burgesssales.com | F183: Keith Burgess, Nathan Burgess, Bradley Erickson | G183: Charlotte
A185: X | B185: Installation
C186: John The Handyman LLC | D186: 412.759.2940 | E186: johnthehandymanllc@gmail.com | F186: John Bocchini
C187: L&H Contractors | D187: 704.534.6641 | E187: lorenzohernandez1428@gmail.com | F187: Lorenzo Hernandez
C188: John Burleson | D188: TBD | E188: johnburl75@yahoo.com | F188: John Burleson
A189: x | C189: Scire Group | D189: 980.585.8220 | E189: contact@sciregroupinc.com | F189: Juan Ramirez
A191: X | B191: Window Tinting/Frosting
A192: x | C192: Suntech Window Tinting Inc. | D192: 704.906.6069 | E192: tintshopnc@gmail.com | F192: Bruce
A193: x | C193: Clear Choice Glass | D193: 980.527.4381 | E193: mshields@Clear-Choice-Glass.com | F193: Matt Shields
A194: x | C194: Blinds & Shutter Depot | D194: 803.307.3125 | E194: samantha@blindshutterdepot.net | F194: Samantha Scott
B196: Overhead Doors
C197: ASAP Doors | D197: 704.267.2837 | E197: larson@asapcommercialdoors.com | F197: Larson Flock
C198: Southern Dock Products | D198: 980.470.1531, 704.594.5181 | E198: Palmer.Perkins@southerndock.com | F198: Palmer Perkins | G198: NC/SC
C199: Overhead Doors Of Charlotte | D199: 704.686.8276 | E199: WAITING ON CALL BACK | F199: WAITING ON CALL BACK | G199: NC/SC
C200: Cox Door | D200: 704-821-8898 Ext 212 | E200: mharris@coxdoor.com | F200: Mike Harris | G200: Charlotte
C201: Custom Door & Gate | D201: 919-876-4555 | E201: mikel@customoverheaddoors.net | F201: Mike Ladrie | G201: NC/SC
C202: Fairborn Equipment Company, Inc. | D202: 704-721-3667 | E202: barbeed@fairbornequipment.com | F202: Doug Barbee | G202: NC/SC
A204: x | B204: Storefront
A205: x | C205: Union Glass | D205: 803.802.1070 | E205: patw@unionglassandmetal.com | F205: Patrick Wichowski | G205: Charlotte
A206: x | C206: Gregory Glass | D206: 803-323-9969 | E206: estimating@gregoryglazingco.com | F206: David Wright | G206: Charlotte
A207: x | C207: Triune Glass LLC | D207: 336.269.3928 | E207: cjeffreys@triuneglassllc.com | F207: Cameron Jeffreys | G207: NC/SC
A208: x | C208: Quality Glass Inc. | D208: 704.915.1890 | E208: qualityglass704@gmail.com | F208: Hunter Fields
A209: x | C209: Sun Glass & Door Co. | D209: 704.377.2004 | E209: estimating@sungd.com | F209: Anthony Yon
A210: x | C210: Kapsi Glass | D210: (864) 583-6200 | E210: kapasiglass@yahoo.com | F210: Muston Kapasi | G210: Charlotte
A211: x | C211: Clear Choice Glass | D211: 980.527.4381 | E211: mshields@Clear-Choice-Glass.com | F211: Matt Shields
A212: x | C212: Granco Glass | D212: 803-691-6611 | E212: granco-bids@granco.net | F212: Brook Grant
A214: X | B214: DIV. 9-- FINISHES
A215: X | B215: Metal Studs/Drywall
A216: x | C216: L&H Contractors | D216: 704.534.6641 | E216: lorenzohernandez1428@gmail.com | F216: Lorenzo Hernandez
A217: x | C217: 5th Level | D217: 704.601.5074 | E217: estimating@5thleveldrywall.com | F217: David Edwards | G217: NC/SC
A218: x | C218: Performance Drywall | D218: 704.921.8980 / 704.363.7188 | E218: mlewis@performancedrywallinc.com | F218: Mitch Lewis | G218: NC/SC
A219: x | C219: Jiron Construction | D219: 704.589.2414 | E219: jjiron@jironconstruction.com | F219: Juan Jiron
A220: x | C220: Century Contracting | D220: 704.357.0041 | E220: bgomez@centurync.com | F220: Bryan Gomez
A221: x | C221: RT Meachum | D221: 704.795.8745 | E221: atucker@meachamdrywall.com | F221: Ashley Tucker | G221: Charlotte
A223: X | B223: Painting
C224: RJ Starnes Painting | D224: 704.254.6745 | E224: lynn.starnes@rjstarnespainting.com | F224: Jeff Starnes | G224: Charlotte
A225: x | C225: L&H Contractors | D225: 704.534.6641 | E225: lorenzohernandez1428@gmail.com | F225: Lorenzo Hernandez
A226: x | C226: CertaPro Painters | D226: 704.408.5899 | E226: jploughe@certapro.com | F226: Jim Ploughe
C227: Charlotte Paint | D227: 803.242.9778 | E227: matt.starnes@charlottepaint.com, bids@charlottepaint.com | F227: Matt Starnes | G227: Charlotte
A228: x | C228: WallSource | D228: 828.312.3692 | E228: DCarpenter@meachamdrywall.com | F228: Donnie Carpenter | G228: Charlotte
A229: x | C229: WallSource | E229: Donnie.carpenter@wallsource.biz
A230: x | C230: Platinum Painting | D230: 678-558-8850 | E230: Platinum-painting@hotmail.com | F230: John Sanders
A231: x | C231: Platinum Painting | D231: 678-558-8850 | E231: jimmy.childers@platinumcoatingnc.com | F231: Jimmy Childers
A232: x | C232: Accu Painters of NC LLC | D232: 919.376.6025 | E232: ray@accupainter.com, estimator@accupainter.com | F232: Rocio Ayscue | K232: HUB
A233: x | C233: AllBurn Painting LLC | D233: (980) 781-7421 | E233: colburnp@allburnpainting.com | F233: Colburn Peterson | K233: HUB
A234: x | C234: Bobby's Painting Co.INC | D234: 704.394.5124 | E234: bobbyspaint@bellsouth.net | F234: Tay Brooks | K234: HUB
A235: x | C235: Brandys Painting Inc | D235: 704.640.3610 | E235: Brandyspainting123@gmail.com | F235: Cristina Espinoza Villegas | K235: HUB
C236: Performance Building Solutions | D236: 828-310-7773 | E236: kenzy@performance-building-solutions.com | F236: Kenzy Baxter | G236: NC/SC
A238: X | B238: Acoustical Ceilings
A239: x | C239: L&H Contractors | D239: 704.534.6641 | E239: lorenzohernandez1428@gmail.com | F239: Lorenzo Hernandez
A240: x | C240: 5th Level | D240: 704.601.5074 | E240: estimating@5thleveldrywall.com | F240: David Edwards | G240: NC/SC
C241: Performance Drywall | D241: 704.921.8980 / 704.363.7188 | E241: mlewis@performancedrywallinc.com | F241: Mitch Lewis | G241: NC/SC
C242: Trinity Interiors | D242: 803.818.5400 / 803.610.5933 | E242: brichardson@trinityinteriors.net | F242: Buddy Richardson | G242: Charlotte
A243: x | C243: Jiron Construction | D243: 704.589.2414 | E243: jjiron@jironconstruction.com | F243: Juan Jiron
A244: x | C244: Century Contracting | D244: 704.357.0041 | E244: bgomez@centurync.com | F244: Bryan Gomez
C245: RT Meachum | D245: 704.795.8745 | E245: jmercuro@meachamdrywall.com | F245: Jeff Mecuro | G245: Charlotte
A246: x | C246: Paul Barbour & Son, Inc. | D246: 919-552-0747 | E246: info@pbarbourandson.com | F246: Greg Blankenship | G246: Raleigh
A248: X | B248: Flooring
C249: Floorco | D249: 803-622-7152 | E249: dmeermans@hotmail.com | F249: Dale Meermans
C250: Bonitz | D250: 804-252-1816 | E250: milesoconnell@bonitz.com | F250: Miles Oconnell
A251: x | C251: Garmon | D251: 330.417.6300 | E251: kelly@garmonandcompany.com, keirsten@garmonandcompany.com | F251: Keirsten Trudick
A252: x | C252: Trinity Interiors | D252: 803.818.0001 | E252: smcateer@trinityinteriors.com | F252: Sherri McAteer | G252: NC/SC
C253: Flooring Solutions | D253: 810.956.7252 | E253: awaiting call back to confirm email | F253: Clarissa Edgerton
C254: Sistare Carpets | D254: (803) 285-4224 | E254: jobs@sistarecarpets.com griggs.griffin@sistarecarpets.com | F254: Griggs Griffin, Mike Sistare | G254: Charlotte
C255: All Floor Choices & Reno LLC | D255: 704.309.0282 | E255: juanliriano70@gmail.com | F255: Juan Liriano
C256: Adams Carpet & Wallpaper | D256: 252.291.4900 | E256: aadams@adamscarpetone.com | F256: Ann Adams | K256: HUB
C257: Carolina Custom Installations | D257: 704.568.7277 | E257: sally@cci-floors.com | F257: Sally Bloomer Nichols | K257: HUB
C258: Carpet Queen | D258: 980-319-4479 | E258: kashifulhasnain84@gmail.com | F258: Kashif Hasnain | K258: HUB
A259: x | C259: Paul Barbour & Son, Inc. | D259: 919-552-0747 | E259: info@pbarbourandson.com | F259: Greg Blankenship | G259: Raleigh | K259: HUB
C260: Ceramic Tile Remolding Co. Inc | D260: 704-523-1571 | E260: troy@ceramic-tile-remodeling.com | F260: Troy Simpson | G260: NC/SC
A261: x | C261: Bradshaw | E261: jayme@bradshawcompanies.com
A262: X | B262: Wall Coverings
A263: x | C263: Wolf Gordon | D263: 718-391-5452 | E263: alfredo.Ortiz@wolfgordon.com | F263: Alfredo Ortiz | G263: Raleigh/Wilmington
A264: x | C264: West America | D264: 949-422-5639 | E264: jbecker@mywestamerica.com | F264: jeff becker | G264: Raleigh/Wilmington
A265: x | C265: The dot printer | D265: 949-474-1100 | E265: glloyd@dotprinter.com | F265: gwen lloyd | G265: Raleigh/Wilmington
C266: Charlotte Paint | D266: 803.242.9778 | E266: matt.starnes@charlottepaint.com, bids@charlottepaint.com | F266: Matt Starnes | G266: Charlotte
A267: x
A269: X | B269: DIV. 10-- SPECIALITIES
B270: Lockers & Benches
B277: Fire Protection Specialties
... 254 more rows

Sheet Alt (1)
B1: TAX = | C1: =TAX_RATE -> 0.07 | D1: -- FROM BID SUMMARY PAGE
B2: BURDEN= | C2: =BURDEN_RATE -> 0.18 | D2: -- FROM BID SUMMARY PAGE
O4: PROJECT NAME: | P4: ='Bid Summary'!D4 -> 0
O5: PROJECT LOCATION: | P5: ='Bid Summary'!D5 -> 0
O6: PROJECT NO.: | P6: ='Bid Summary'!I4 -> 0
A7: REQUIRED | G7: UNIT | H7: TOTAL | I7: PAYROLL | J7: UNIT | K7: TOTAL | L7: SALES / USE | M7: UNIT | N7: TOTAL | O7: UNIT | P7: TOTAL
A8: IN BID | B8: PHASE CODE | C8: DESCRIPTION | E8: QTY | F8: UNIT | G8: LABOR | H8: LABOR | I8: TAX | J8: MATERIAL | K8: MATERIAL | L8: TAX | M8: SUB / EQUIP | N8: SUB / EQUIP | O8: MISC | P8: MISC | Q8: TOTAL
A9: X | C9: DIV. 1-- GENERAL CONDITIONS | H9: =SUM(H10,H28,H33,H38,H51,H64,H74,H83,H90,H157) ->  | I9: =SUM(I10,I28,I33,I38,I51,I64,I74,I83,I90,I157) ->  | K9: =SUM(K10,K28,K33,K38,K51,K64,K74,K83,K90,K157) ->  | L9: =SUM(L10,L28,L33,L38,L51,L64,L74,L83,L90,L157) ->  | N9: =SUM(N10,N28,N33,N38,N51,N64,N74,N83,N90,N157) ->  | P9: =SUM(P10,P28,P33,P38,P51,P64,P74,P83,P90,P157) ->  | Q9: =SUM(Q10,Q28,Q33,Q38,Q51,Q64,Q74,Q83,Q90,Q157) ->  | R9: =IF(AND(A9="X",Q9=0),"PROBLEM--CHECK VALUES OR QUANTITES","OK") -> 
B10: 1100 | C10: SUPERVISION | H10: =SUM(H11:H27) -> 0 | I10: =SUM(I11:I27) -> 0 | K10: =SUM(K11:K27) -> 0 | L10: =SUM(L11:L27) -> 0 | N10: =SUM(N11:N27) -> 0 | P10: =SUM(P11:P27) -> 0 | Q10: =SUM(Q11:Q27) -> 0 | R10: OK
B11: =B10+1 -> 1101 | C11: SUPERINTENDENT | F11: WKS | G11: 1800 | H11: =E11*G11 -> 0 | I11: =H11*(BURDEN) -> 0 | J11: 0 | K11: =J11*E11 -> 0 | L11: =K11*(TAX) -> 0 | M11: 0 | N11: =M11*E11 -> 0 | O11: 0 | P11: =O11*E11 -> 0 | Q11: =(H11+I11)+(K11+L11)+N11+P11 -> 0 | R11: OK
B12: 1102 | C12: ASST SUPERINTENDENT | F12: WKS | G12: 1000 | H12: 0 | I12: 0 | J12: 0 | K12: 0 | L12: 0 | M12: 0 | N12: 0 | O12: 0 | P12: 0 | Q12: 0 | R12: OK
B13: 1103 | C13: ASST SUPERINTENDENT | F13: WKS | G13: 900 | H13: 0 | I13: 0 | J13: 0 | K13: 0 | L13: 0 | M13: 0 | N13: 0 | O13: 0 | P13: 0 | Q13: 0 | R13: OK
B14: 1104 | C14: FIELD OFFICE ASSISTANT | F14: WKS | G14: 900 | H14: 0 | I14: 0 | J14: 0 | K14: 0 | L14: 0 | M14: 0 | N14: 0 | O14: 0 | P14: 0 | Q14: 0 | R14: OK
B15: 1105 | C15: PROJECT MANAGER | F15: WKS | G15: 400 | H15: 0 | I15: 0 | J15: 0 | K15: 0 | L15: 0 | M15: 0 | N15: 0 | O15: 0 | P15: 0 | Q15: 0 | R15: OK
B16: 1106 | C16: ADMIN | F16: WKS | G16: 200 | H16: 0 | I16: 0 | J16: 0 | K16: 0 | L16: 0 | M16: 0 | N16: 0 | O16: 0 | P16: 0 | Q16: 0 | R16: OK
B17: 1107 | C17: OFFICE | F17: WKS | G17: 200 | H17: 0 | I17: 0 | J17: 0 | K17: 0 | L17: 0 | M17: 0 | N17: 0 | O17: 0 | P17: 0 | Q17: 0 | R17: OK
B18: 1108 | C18: ASST PROJECT MANAGER | F18: WKS | G18: 1350 | H18: 0 | I18: 0 | J18: 0 | K18: 0 | L18: 0 | M18: 0 | N18: 0 | O18: 0 | P18: 0 | Q18: 0 | R18: OK
B19: 1109 | C19: E-I-T / OFFICE ENGINEER | F19: WKS | G19: 950 | H19: 0 | I19: 0 | J19: 0 | K19: 0 | L19: 0 | M19: 0 | N19: 0 | O19: 0 | P19: 0 | Q19: 0 | R19: OK
B20: 1110 | C20: JOB SECRETARY | F20: WKS | G20: 800 | H20: 0 | I20: 0 | J20: 0 | K20: 0 | L20: 0 | M20: 0 | N20: 0 | O20: 0 | P20: 0 | Q20: 0 | R20: OK
B21: 1111 | C21: CLERK/TIMEKEEPER | F21: WKS | G21: 750 | H21: 0 | I21: 0 | J21: 0 | K21: 0 | L21: 0 | M21: 0 | N21: 0 | O21: 0 | P21: 0 | Q21: 0 | R21: OK
B22: 1112 | C22: ESTIMATOR | F22: WKS | G22: 1500 | H22: 0 | I22: 0 | J22: 0 | K22: 0 | L22: 0 | M22: 0 | N22: 0 | O22: 0 | P22: 0 | Q22: 0 | R22: OK
B23: 1113 | C23: WATCHMAN/SECURITY | F23: WKS | G23: 1000 | H23: 0 | I23: 0 | J23: 0 | K23: 0 | L23: 0 | M23: 0 | N23: 0 | O23: 0 | P23: 0 | Q23: 0 | R23: OK
B24: 1114 | C24: FLAGMAN | F24: WKS | G24: 1150 | H24: 0 | I24: 0 | J24: 0 | K24: 0 | L24: 0 | M24: 0 | N24: 0 | O24: 0 | P24: 0 | Q24: 0 | R24: OK
B25: 1115 | C25: TRAFFIC CONTROL | F25: LS | G25: 0 | H25: 0 | I25: 0 | J25: 0 | K25: 0 | L25: 0 | M25: 0 | N25: 0 | O25: 0 | P25: 0 | Q25: 0 | R25: OK
B26: 1116 | C26: SCHEDULING SERVICES | F26: WKS | G26: 500 | H26: 0 | I26: 0 | J26: 0 | K26: 0 | L26: 0 | M26: 0 | N26: 0 | O26: 0 | P26: 0 | Q26: 0 | R26: OK
B27: 1117 | C27: CREW BONUS | F27: WKS | G27: 1500 | H27: 0 | I27: 0 | J27: 0 | K27: 0 | L27: 0 | M27: 0 | N27: 0 | O27: 0 | P27: 0 | Q27: 0 | R27: OK
B28: 1118 | C28: SUPPLEMENTAL EXPENSES: | H28: =SUM(H29:H32) -> 0 | I28: =SUM(I29:I32) -> 0 | K28: =SUM(K29:K32) -> 0 | L28: =SUM(L29:L32) -> 0 | M28: 0 | N28: =SUM(N29:N32) -> 0 | P28: =SUM(P29:P32) -> 0 | Q28: =SUM(Q29:Q32) -> 0 | R28: OK
B29: 1119 | C29: SUPERINTENDENT | F29: WKS | G29: 0 | H29: =E29*G29 -> 0 | I29: =H29*(BURDEN) -> 0 | J29: 0 | K29: =J29*E29 -> 0 | L29: =K29*(TAX) -> 0 | M29: 0 | N29: =M29*E29 -> 0 | O29: 0 | P29: =O29*E29 -> 0 | Q29: =(H29+I29)+(K29+L29)+N29+P29 -> 0 | R29: OK
B30: 1120 | C30: ASST SUPERINTENDENT | F30: WKS | G30: 0 | H30: =E30*G30 -> 0 | I30: =H30*(BURDEN) -> 0 | J30: 0 | K30: =J30*E30 -> 0 | L30: =K30*(TAX) -> 0 | M30: 0 | N30: =M30*E30 -> 0 | O30: 0 | P30: =O30*E30 -> 0 | Q30: =(H30+I30)+(K30+L30)+N30+P30 -> 0 | R30: OK
B31: 1121 | C31: OTHER | F31: WKS | G31: 0 | H31: =E31*G31 -> 0 | I31: =H31*(BURDEN) -> 0 | J31: 0 | K31: =J31*E31 -> 0 | L31: =K31*(TAX) -> 0 | M31: 0 | N31: =M31*E31 -> 0 | O31: 0 | P31: =O31*E31 -> 0 | Q31: =(H31+I31)+(K31+L31)+N31+P31 -> 0 | R31: OK
B32: 1122 | C32: MOVING EXPENSES | F32: LS | G32: 0 | H32: =E32*G32 -> 0 | I32: =H32*(BURDEN) -> 0 | J32: 0 | K32: =J32*E32 -> 0 | L32: =K32*(TAX) -> 0 | M32: 0 | N32: =M32*E32 -> 0 | O32: 0 | P32: =O32*E32 -> 0 | Q32: =(H32+I32)+(K32+L32)+N32+P32 -> 0 | R32: OK
B33: 1123 | C33: TRAVEL: | H33: =SUM(H34:H37) -> 0 | I33: =SUM(I34:I37) -> 0 | K33: =SUM(K34:K37) -> 0 | L33: =SUM(L34:L37) -> 0 | M33: 0 | N33: =SUM(N34:N37) -> 0 | P33: =SUM(P34:P37) -> 0 | Q33: =SUM(Q34:Q37) -> 0 | R33: OK
B34: 1124 | C34: DIVISION MANAGER | F34: WKS | G34: 0 | H34: =E34*G34 -> 0 | I34: =H34*(BURDEN) -> 0 | J34: 100 | K34: =J34*E34 -> 0 | L34: =K34*(TAX) -> 0 | M34: 0 | N34: =M34*E34 -> 0 | O34: 0 | P34: =O34*E34 -> 0 | Q34: =(H34+I34)+(K34+L34)+N34+P34 -> 0 | R34: OK
B35: 1125 | C35: PROJECT MANAGER | F35: WKS | G35: 0 | H35: =E35*G35 -> 0 | I35: =H35*(BURDEN) -> 0 | J35: 890 | K35: =J35*E35 -> 0 | L35: =K35*(TAX) -> 0 | M35: 0 | N35: =M35*E35 -> 0 | O35: 0 | P35: =O35*E35 -> 0 | Q35: =(H35+I35)+(K35+L35)+N35+P35 -> 0 | R35: OK
B36: 1126 | C36: SUPERINTENDENT LIVING EXPENSES | F36: WKS | G36: 0 | H36: =E36*G36 -> 0 | I36: =H36*(BURDEN) -> 0 | J36: 890 | K36: =J36*E36 -> 0 | L36: =K36*(TAX) -> 0 | M36: 0 | N36: =M36*E36 -> 0 | O36: 0 | P36: =O36*E36 -> 0 | Q36: =(H36+I36)+(K36+L36)+N36+P36 -> 0 | R36: OK
B37: 1127 | C37: CREW LIVING EXPENSES | F37: WKS | G37: 0 | H37: =E37*G37 -> 0 | I37: =H37*(BURDEN) -> 0 | J37: 890 | K37: =J37*E37 -> 0 | L37: =K37*(TAX) -> 0 | M37: 0 | N37: =M37*E37 -> 0 | O37: 0 | P37: =O37*E37 -> 0 | Q37: =(H37+I37)+(K37+L37)+N37+P37 -> 0 | R37: OK
B38: 1128 | C38: UTILITIES | H38: =SUM(H39:H50) -> 0 | I38: =SUM(I39:I50) -> 0 | K38: =SUM(K39:K50) -> 0 | L38: =SUM(L39:L50) -> 0 | M38: 0 | N38: =SUM(N39:N50) -> 0 | P38: =SUM(P39:P50) -> 0 | Q38: =SUM(Q39:Q50) -> 0 | R38: OK
B39: 1129 | C39: TEMP POWER USAGE - OFFICE | F39: MO | G39: 0 | H39: =E39*G39 -> 0 | I39: =H39*(BURDEN) -> 0 | J39: 200 | K39: =J39*E39 -> 0 | L39: =K39*(TAX) -> 0 | M39: 0 | N39: =M39*E39 -> 0 | O39: 0 | P39: =O39*E39 -> 0 | Q39: =(H39+I39)+(K39+L39)+N39+P39 -> 0 | R39: OK
B40: 1130 | C40: - BUILDING | F40: MO | G40: 0 | H40: 0 | I40: 0 | J40: 0 | K40: 0 | L40: 0 | M40: 0 | N40: 0 | O40: 0 | P40: 0 | Q40: 0 | R40: OK
B41: 1131 | C41: TEMPORARY WATER USAGE | F41: MO | G41: 0 | H41: 0 | I41: 0 | J41: 800 | K41: 0 | L41: 0 | M41: 0 | N41: 0 | O41: 0 | P41: 0 | Q41: 0 | R41: OK
B42: 1132 | C42: TELEPHONE-CONTRACTOR | F42: MO | G42: 0 | H42: 0 | I42: 0 | J42: 150 | K42: 0 | L42: 0 | M42: 0 | N42: 0 | O42: 0 | P42: 0 | Q42: 0 | R42: OK
B43: 1133 | C43: MOBILE PHONES-( QTY @ $65/MO / PHONE) | F43: MO | G43: 0 | H43: 0 | I43: 0 | J43: 250 | K43: 0 | L43: 0 | M43: 0 | N43: 0 | O43: 0 | P43: 0 | Q43: 0 | R43: OK
B44: 1134 | C44: TELEPHONE-ARCHITECT | F44: MO | G44: 0 | H44: 0 | I44: 0 | J44: 100 | K44: 0 | L44: 0 | M44: 0 | N44: 0 | O44: 0 | P44: 0 | Q44: 0 | R44: OK
B45: 1135 | C45: TEMPORARY WIRING & LIGHTING | F45: LS | G45: 0 | H45: 0 | I45: 0 | J45: 0 | K45: 0 | L45: 0 | M45: 0 | N45: 0 | O45: 0 | P45: 0 | Q45: 0 | R45: OK
B46: 1136 | C46: EXTENSION CORDS & BULBS | F46: LS | G46: 0 | H46: 0 | I46: 0 | J46: 0 | K46: 0 | L46: 0 | M46: 0 | N46: 0 | O46: 0 | P46: 0 | Q46: 0 | R46: OK
B47: 1137 | C47: TEMPORARY PLUMBING | F47: LS | G47: 0 | H47: 0 | I47: 0 | J47: 0 | K47: 0 | L47: 0 | M47: 0 | N47: 0 | O47: 0 | P47: 0 | Q47: 0 | R47: OK
B48: 1138 | C48: ICE, CUPS, COOLER | F48: MO | G48: 0 | H48: 0 | I48: 0 | J48: 20 | K48: 0 | L48: 0 | M48: 0 | N48: 0 | O48: 0 | P48: 0 | Q48: 0 | R48: OK
B49: 1139 | C49: TEMPORARY HEAT | F49: MO | G49: 0 | H49: 0 | I49: 0 | J49: 500 | K49: 0 | L49: 0 | M49: 0 | N49: 0 | O49: 0 | P49: 0 | Q49: 0 | R49: OK
B50: 1140 | C50: TEMPORARY TOILETS | F50: MO | G50: 0 | H50: 0 | I50: 0 | J50: 130 | K50: 0 | L50: 0 | M50: 0 | N50: 0 | O50: 0 | P50: 0 | Q50: 0 | R50: OK
B51: 1141 | C51: MISC. | H51: =SUM(H52:H63) -> 0 | I51: =SUM(I52:I63) -> 0 | K51: =SUM(K52:K63) -> 0 | L51: =SUM(L52:L63) -> 0 | M51: 0 | N51: =SUM(N52:N63) -> 0 | P51: =SUM(P52:P63) -> 0 | Q51: =SUM(Q52:Q63) -> 0 | R51: OK
B52: 1142 | C52: TEMPORARY FIELD LABOR | F52: WK | G52: 250 | H52: =E52*G52 -> 0 | I52: =H52*(BURDEN) -> 0 | J52: 0 | K52: =J52*E52 -> 0 | L52: =K52*(TAX) -> 0 | M52: 0 | N52: =M52*E52 -> 0 | O52: 0 | P52: =O52*E52 -> 0 | Q52: =(H52+I52)+(K52+L52)+N52+P52 -> 0 | R52: OK
B53: 1143 | C53: PROGRESS PHOTOGRAPHS | F53: MO | G53: 200 | H53: 0 | I53: 0 | J53: 0 | K53: 0 | L53: 0 | M53: 0 | N53: 0 | O53: 0 | P53: 0 | Q53: 0 | R53: OK
B54: 1144 | C54: SURVEYOR | F54: LS | G54: 0 | H54: 0 | I54: 0 | J54: 0 | K54: 0 | L54: 0 | M54: 0 | N54: 0 | O54: 0 | P54: 0 | Q54: 0 | R54: OK
B55: 1145 | C55: JOB/PROJECT SIGN | F55: LS | G55: 0 | H55: 0 | I55: 0 | J55: 500 | K55: 0 | L55: 0 | M55: 0 | N55: 0 | O55: 0 | P55: 0 | Q55: 0 | R55: OK
B56: 1146 | C56: TEMP PROTECTION (EXISTING CONDITIONS) & DUST ENCLOSURES | F56: LS | G56: 0 | H56: 0 | I56: 0 | J56: 0 | K56: 0 | L56: 0 | M56: 0 | N56: 0 | O56: 0 | P56: 0 | Q56: 0 | R56: OK
B57: 1147 | C57: REPAIR/REPLACE BLINDS | E57: 1 | F57: LS | G57: 0 | H57: 0 | I57: 0 | J57: 0 | K57: 0 | L57: 0 | M57: 0 | N57: 0 | O57: 0 | P57: 0 | Q57: 0 | R57: OK
B58: 1148 | C58: HVAC: PROVIDE TEMP INTAKE/RETURN GRILLE COVERS | F58: LS | G58: 0 | H58: 0 | I58: 0 | J58: 0 | K58: 0 | L58: 0 | M58: 0 | N58: 0 | O58: 0 | P58: 0 | Q58: 0 | R58: OK
B59: 1149 | C59: SANITARY SUPPLIES | F59: LS | G59: 0 | H59: 0 | I59: 0 | J59: 0 | K59: 0 | L59: 0 | M59: 0 | N59: 0 | O59: 0 | P59: 0 | Q59: 0 | R59: OK
B60: 1150 | C60: REPAIR STREET & SIDEWALK | F60: LS | G60: 0 | H60: 0 | I60: 0 | J60: 0 | K60: 0 | L60: 0 | M60: 0 | N60: 0 | O60: 0 | P60: 0 | Q60: 0 | R60: OK
B61: 1151 | C61: BLUEPRINTS/EXTRA DRAWINGS | F61: LS | G61: 0 | H61: 0 | I61: 0 | J61: 2000 | K61: 0 | L61: 0 | M61: 0 | N61: 0 | O61: 0 | P61: 0 | Q61: 0 | R61: OK
B62: 1152 | C62: TRAFFIC CONTROL | F62: LS | G62: 0 | H62: 0 | I62: 0 | J62: 0 | K62: 0 | L62: 0 | M62: 24000 | N62: 0 | O62: 0 | P62: 0 | Q62: 0 | R62: OK
B63: 1153 | C63: CPM Scheduler (3rd) Party | F63: LS | G63: 0 | H63: 0 | I63: 0 | J63: 0 | K63: 0 | L63: 0 | M63: 20000 | N63: 0 | O63: 0 | P63: 0 | Q63: 0 | R63: OK
B64: 1154 | C64: MISCELLANEOUS ITEMS | H64: =SUM(H65:H73) -> 0 | I64: =SUM(I65:I73) -> 0 | K64: =SUM(K65:K73) -> 0 | L64: =SUM(L65:L73) -> 0 | N64: =SUM(N65:N73) -> 0 | P64: =SUM(P65:P73) -> 0 | Q64: =SUM(Q65:Q73) -> 0 | R64: OK
B65: 1155 | C65: SEWER TAP FEE | F65: LS | G65: 0 | H65: =E65*G65 -> 0 | I65: =H65*(BURDEN) -> 0 | J65: 0 | K65: =J65*E65 -> 0 | L65: =K65*(TAX) -> 0 | M65: 0 | N65: =M65*E65 -> 0 | O65: 0 | P65: =O65*E65 -> 0 | Q65: =(H65+I65)+(K65+L65)+N65+P65 -> 0 | R65: OK
B66: 1156 | C66: WATER TAP FEE | F66: LS | G66: 0 | H66: 0 | I66: 0 | J66: 0 | K66: 0 | L66: 0 | M66: 0 | N66: 0 | O66: 0 | P66: 0 | Q66: 0 | R66: OK
B67: 1157 | C67: AGC FEE | F67: LS | G67: 0 | H67: 0 | I67: 0 | J67: 0 | K67: 0 | L67: 0 | M67: 0 | N67: 0 | O67: 0 | P67: 0 | Q67: 0 | R67: OK
B68: 1158 | C68: PHOTOGRAPHS | F68: LS | G68: 0 | H68: 0 | I68: 0 | J68: 0 | K68: 0 | L68: 0 | M68: 0 | N68: 0 | O68: 0 | P68: 0 | Q68: 0 | R68: OK
B69: 1159 | C69: AS-BUILT DRAWINGS | F69: LS | G69: 0 | H69: 0 | I69: 0 | J69: 0 | K69: 0 | L69: 0 | M69: 1000 | N69: 0 | O69: 0 | P69: 0 | Q69: 0 | R69: OK
B70: 1160 | C70: SPECIAL INSPECTION | F70: LS | G70: 0 | H70: 0 | I70: 0 | J70: 0 | K70: 0 | L70: 0 | M70: 0 | N70: 0 | O70: 0 | P70: 0 | Q70: 0 | R70: OK
B71: 1161 | C71: TESTING | F71: LS | G71: 0 | H71: 0 | I71: 0 | J71: 0 | K71: 0 | L71: 0 | M71: 2000 | N71: 0 | O71: 0 | P71: 0 | Q71: 0 | R71: OK
B72: 1162 | C72: WEATHER REPORTS | F72: LS | G72: 0 | H72: 0 | I72: 0 | J72: 0 | K72: 0 | L72: 0 | M72: 0 | N72: 0 | O72: 0 | P72: 0 | Q72: 0 | R72: OK
B73: 1163 | C73: EMPLOYEE INSURANCE | F73: LS | G73: 0 | H73: 0 | I73: 0 | J73: 0 | K73: 0 | L73: 0 | M73: 0 | N73: 0 | O73: 0 | P73: 0 | Q73: 0 | R73: =IF(AND(A73="X",Q73=0),"PROBLEM--CHECK VALUES OR QUANTITES","OK") -> OK
B74: 1164 | C74: SAFETY | H74: =SUM(H75:H82) -> 0 | I74: =SUM(I75:I82) -> 0 | K74: =SUM(K75:K82) -> 0 | L74: =SUM(L75:L82) -> 0 | N74: =SUM(N75:N82) -> 0 | P74: =SUM(P75:P82) -> 0 | Q74: =SUM(Q75:Q82) -> 0 | R74: OK
B75: =B74+1 -> 1165 | C75: FIRE EXTINQUISHERS | F75: LS | G75: 0 | H75: =E75*G75 -> 0 | I75: =H75*(BURDEN) -> 0 | J75: 200 | K75: =J75*E75 -> 0 | L75: =K75*(TAX) -> 0 | M75: 0 | N75: =M75*E75 -> 0 | O75: 0 | P75: =O75*E75 -> 0 | Q75: =(H75+I75)+(K75+L75)+N75+P75 -> 0 | R75: OK
B76: 1166 | C76: FIRST AID SUPPLIES | F76: LS | G76: 0 | H76: 0 | I76: 0 | J76: 500 | K76: 0 | L76: 0 | M76: 0 | N76: 0 | O76: 0 | P76: 0 | Q76: 0 | R76: OK
B77: 1167 | C77: HARD HATS | F77: LS | G77: 0 | H77: 0 | I77: 0 | J77: 200 | K77: 0 | L77: 0 | M77: 0 | N77: 0 | O77: 0 | P77: 0 | Q77: 0 | R77: OK
B78: 1168 | C78: RAINGEAR, BOOTS, ETC. | F78: LS | G78: 0 | H78: 0 | I78: 0 | J78: 0 | K78: 0 | L78: 0 | M78: 0 | N78: 0 | O78: 0 | P78: 0 | Q78: 0 | R78: OK
B79: 1169 | C79: SIGNS | F79: LS | G79: 0 | H79: 0 | I79: 0 | J79: 0 | K79: 0 | L79: 0 | M79: 0 | N79: 0 | O79: 0 | P79: 0 | Q79: 0 | R79: OK
B80: 1170 | C80: RAILINGS | F80: LF | G80: 0 | H80: 0 | I80: 0 | J80: 0 | K80: 0 | L80: 0 | M80: 0 | N80: 0 | O80: 0 | P80: 0 | Q80: 0 | R80: OK
B81: 1171 | C81: MISCELLANEOUS SAFETY ITEMS | F81: LS | G81: 0 | H81: 0 | I81: 0 | J81: 0 | K81: 0 | L81: 0 | M81: 0 | N81: 0 | O81: 0 | P81: 0 | Q81: 0 | R81: OK
B82: 1172 | C82: SECURITY FENCING | F82: LS | G82: 0 | H82: 0 | I82: 0 | J82: 0 | K82: 0 | L82: 0 | M82: 0 | N82: 0 | O82: 0 | P82: 0 | Q82: 0 | R82: OK
B83: 1173 | C83: CLEAN-UP | H83: =SUM(H84:H89) -> 0 | I83: =SUM(I84:I89) -> 0 | K83: =SUM(K84:K89) -> 0 | L83: =SUM(L84:L89) -> 0 | N83: =SUM(N84:N89) -> 0 | P83: =SUM(P84:P89) -> 0 | Q83: =SUM(Q84:Q89) -> 0 | R83: OK
B84: 1174 | C84: WEEKLY CLEAN (2 MEN @ $250/MD) | F84: MD | G84: 73 | H84: =E84*G84 -> 0 | I84: =H84*(BURDEN) -> 0 | J84: 0 | K84: =J84*E84 -> 0 | L84: =K84*(TAX) -> 0 | M84: 0 | N84: =M84*E84 -> 0 | O84: 0 | P84: =O84*E84 -> 0 | Q84: =(H84+I84)+(K84+L84)+N84+P84 -> 0 | R84: OK
B85: 1175 | C85: DUMPSTERS | F85: EA | G85: 0 | H85: 0 | I85: 0 | J85: 550 | K85: 0 | L85: 0 | M85: 0 | N85: 0 | O85: 0 | P85: 0 | Q85: 0 | R85: OK
B86: 1176 | C86: HAUL TRASH /DUMPSTER RENTAL | F86: WKS | G86: 0 | H86: 0 | I86: 0 | J86: 0 | K86: 0 | L86: 0 | M86: 0 | N86: 0 | O86: 0 | P86: 0 | Q86: 0 | R86: OK
B87: 1177 | C87: FINAL CLEAN-BUILDING | F87: SF | G87: 0 | H87: 0 | I87: 0 | J87: 0 | K87: 0 | L87: 0 | M87: 0 | N87: 0 | O87: 0 | P87: 0 | Q87: 0 | R87: OK
B88: 1178 | C88: GLASS | F88: SF | G88: 0 | H88: 0 | I88: 0 | J88: 0 | K88: 0 | L88: 0 | M88: 0 | N88: 0 | O88: 0 | P88: 0 | Q88: 0 | R88: OK
B89: 1179 | C89: GROUNDS | F89: LS | G89: 0 | H89: 0 | I89: 0 | J89: 0 | K89: 0 | L89: 0 | M89: 0 | N89: 0 | O89: 0 | P89: 0 | Q89: 0 | R89: OK
B90: 1180 | C90: EQUIPMENT | H90: =SUM(H91:H153) -> 0 | I90: =SUM(I91:I153) -> 0 | K90: =SUM(K91:K153) -> 0 | L90: =SUM(L91:L153) -> 0 | N90: =SUM(N91:N153) -> 0 | P90: =SUM(P91:P153) -> 0 | Q90: =SUM(Q91:Q156) -> 0 | R90: OK
B91: 1181 | C91: HAND DRILLS | F91: LS | G91: 0 | H91: =E91*G91 -> 0 | I91: =H91*(BURDEN) -> 0 | J91: 0 | K91: =J91*E91 -> 0 | L91: =K91*(TAX) -> 0 | M91: 0 | N91: =M91*E91 -> 0 | O91: 0 | P91: =O91*E91 -> 0 | Q91: =(H91+I91)+(K91+L91)+N91+P91 -> 0 | R91: OK
B92: 1182 | C92: CIRCULAR SAW | F92: LS | G92: 0 | H92: 0 | I92: 0 | J92: 0 | K92: 0 | L92: 0 | M92: 0 | N92: 0 | O92: 0 | P92: 0 | Q92: 0 | R92: OK
B93: 1183 | C93: RADIAL ARM SAW | F93: LS | G93: 0 | H93: 0 | I93: 0 | J93: 0 | K93: 0 | L93: 0 | M93: 0 | N93: 0 | O93: 0 | P93: 0 | Q93: 0 | R93: OK
B94: 1184 | C94: RAMSET | F94: LS | G94: 0 | H94: 0 | I94: 0 | J94: 0 | K94: 0 | L94: 0 | M94: 0 | N94: 0 | O94: 0 | P94: 0 | Q94: 0 | R94: OK
B95: 1185 | C95: DOOR HANGING EQUIPMENT | F95: LS | G95: 0 | H95: 0 | I95: 0 | J95: 0 | K95: 0 | L95: 0 | M95: 0 | N95: 0 | O95: 0 | P95: 0 | Q95: 0 | R95: OK
B96: 1186 | C96: ROTARY HAMMER | F96: LS | G96: 0 | H96: 0 | I96: 0 | J96: 0 | K96: 0 | L96: 0 | M96: 0 | N96: 0 | O96: 0 | P96: 0 | Q96: 0 | R96: OK
B97: 1187 | C97: SAW BLADES,BITS,ETC. | F97: LS | G97: 0 | H97: 0 | I97: 0 | J97: 0 | K97: 0 | L97: 0 | M97: 0 | N97: 0 | O97: 0 | P97: 0 | Q97: 0 | R97: OK
B98: 1188 | C98: FORKLIFT | F98: MOS | G98: 0 | H98: 0 | I98: 0 | J98: 0 | K98: 0 | L98: 0 | M98: 600 | N98: 0 | O98: 0 | P98: 0 | Q98: 0 | R98: OK
B99: 1189 | C99: MOTOR GRADER | F99: MOS | G99: 0 | H99: 0 | I99: 0 | J99: 0 | K99: 0 | L99: 0 | M99: 0 | N99: 0 | O99: 0 | P99: 0 | Q99: 0 | R99: OK
B100: 1190 | C100: MOBILE CRANE | F100: MOS | G100: 0 | H100: 0 | I100: 0 | J100: 0 | K100: 0 | L100: 0 | M100: 0 | N100: 0 | O100: 0 | P100: 0 | Q100: 0 | R100: OK
B101: 1191 | C101: WHEELBARROWS | F101: LS | G101: 0 | H101: 0 | I101: 0 | J101: 0 | K101: 0 | L101: 0 | M101: 0 | N101: 0 | O101: 0 | P101: 0 | Q101: 0 | R101: OK
B102: 1192 | C102: BUGGIES | F102: LS | G102: 0 | H102: 0 | I102: 0 | J102: 0 | K102: 0 | L102: 0 | M102: 0 | N102: 0 | O102: 0 | P102: 0 | Q102: 0 | R102: OK
B103: 1193 | C103: CONCRETE BUCKET | F103: LS | G103: 0 | H103: 0 | I103: 0 | J103: 0 | K103: 0 | L103: 0 | M103: 0 | N103: 0 | O103: 0 | P103: 0 | Q103: 0 | R103: OK
B104: 1194 | C104: CONVEYORS | F104: MOS | G104: 0 | H104: 0 | I104: 0 | J104: 0 | K104: 0 | L104: 0 | M104: 0 | N104: 0 | O104: 0 | P104: 0 | Q104: 0 | R104: OK
B105: 1195 | C105: TREMIE | F105: LS | G105: 0 | H105: 0 | I105: 0 | J105: 0 | K105: 0 | L105: 0 | M105: 0 | N105: 0 | O105: 0 | P105: 0 | Q105: 0 | R105: OK
B106: 1196 | C106: CHUTES | F106: MOS | G106: 0 | H106: 0 | I106: 0 | J106: 0 | K106: 0 | L106: 0 | M106: 0 | N106: 0 | O106: 0 | P106: 0 | Q106: 0 | R106: OK
B107: 1197 | C107: VIBRATORS | F107: LS | G107: 0 | H107: 0 | I107: 0 | J107: 0 | K107: 0 | L107: 0 | M107: 0 | N107: 0 | O107: 0 | P107: 0 | Q107: 0 | R107: OK
B108: 1198 | C108: CONCRETE PUMP & OPERATOR | F108: LS | G108: 0 | H108: 0 | I108: 0 | J108: 0 | K108: 0 | L108: 0 | M108: 0 | N108: 0 | O108: 0 | P108: 0 | Q108: 0 | R108: OK
B109: 1199 | C109: CONCRETE SAW & BLADES | F109: LS | G109: 0 | H109: 0 | I109: 0 | J109: 0 | K109: 0 | L109: 0 | M109: 0 | N109: 0 | O109: 0 | P109: 0 | Q109: 0 | R109: OK
B110: 1200 | C110: GRINDERS & STONES | F110: LS | G110: 0 | H110: 0 | I110: 0 | J110: 0 | K110: 0 | L110: 0 | M110: 0 | N110: 0 | O110: 0 | P110: 0 | Q110: 0 | R110: OK
B111: 1201 | C111: CONVENTIONAL CRANE W/OPR. | F111: MOS | G111: 0 | H111: 0 | I111: 0 | J111: 0 | K111: 0 | L111: 0 | M111: 0 | N111: 0 | O111: 0 | P111: 0 | Q111: 0 | R111: OK
B112: 1202 | C112: TOWER CRANE W/OPR. | F112: MOS | G112: 0 | H112: 0 | I112: 0 | J112: 0 | K112: 0 | L112: 0 | M112: 0 | N112: 0 | O112: 0 | P112: 0 | Q112: 0 | R112: OK
B113: 1203 | C113: CRANE ELEC. POWER / FUEL | F113: MOS | G113: 0 | H113: 0 | I113: 0 | J113: 0 | K113: 0 | L113: 0 | M113: 0 | N113: 0 | O113: 0 | P113: 0 | Q113: 0 | R113: OK
B114: 1204 | C114: TOWER CRANE ELECTRIC WIRING | F114: MOS | G114: 0 | H114: 0 | I114: 0 | J114: 0 | K114: 0 | L114: 0 | M114: 0 | N114: 0 | O114: 0 | P114: 0 | Q114: 0 | R114: OK
B115: 1205 | C115: TOWER CRANE FOUNDATIONS | F115: MOS | G115: 0 | H115: 0 | I115: 0 | J115: 0 | K115: 0 | L115: 0 | M115: 0 | N115: 0 | O115: 0 | P115: 0 | Q115: 0 | R115: OK
B116: 1206 | C116: CRANE-ERCT/JUMP/DISMN | F116: MOS | G116: 0 | H116: 0 | I116: 0 | J116: 0 | K116: 0 | L116: 0 | M116: 0 | N116: 0 | O116: 0 | P116: 0 | Q116: 0 | R116: OK
B117: 1207 | C117: TOWER CRANE CONSULTANT | F117: MOS | G117: 0 | H117: 0 | I117: 0 | J117: 0 | K117: 0 | L117: 0 | M117: 0 | N117: 0 | O117: 0 | P117: 0 | Q117: 0 | R117: OK
B118: 1208 | C118: TOWER CRANE ANCHOR BOLTS | F118: MOS | G118: 0 | H118: 0 | I118: 0 | J118: 0 | K118: 0 | L118: 0 | M118: 0 | N118: 0 | O118: 0 | P118: 0 | Q118: 0 | R118: OK
B119: 1209 | C119: FREIGHT | F119: LS | G119: 0 | H119: 0 | I119: 0 | J119: 0 | K119: 0 | L119: 0 | M119: 0 | N119: 0 | O119: 0 | P119: 0 | Q119: 0 | R119: OK
B120: 1210 | C120: CHERRY PICKER W/OPR. | F120: LS | G120: 0 | H120: 0 | I120: 0 | J120: 0 | K120: 0 | L120: 0 | M120: 0 | N120: 0 | O120: 0 | P120: 0 | Q120: 0 | R120: OK
B121: 1211 | C121: OCCASIONAL CRANE RENTAL | F121: MOS | G121: 0 | H121: 0 | I121: 0 | J121: 0 | K121: 0 | L121: 0 | M121: 0 | N121: 0 | O121: 0 | P121: 0 | Q121: 0 | R121: OK
B122: 1212 | C122: MATERIAL HOIST & OPERATOR | F122: MOS | G122: 0 | H122: 0 | I122: 0 | J122: 0 | K122: 0 | L122: 0 | M122: 0 | N122: 0 | O122: 0 | P122: 0 | Q122: 0 | R122: OK
B123: 1213 | C123: MATL/PERS HOIST & OPERATOR | F123: MOS | G123: 0 | H123: 0 | I123: =H123*(BURDEN) -> 0 | J123: 0 | K123: 0 | L123: =K123*(TAX) -> 0 | M123: 0 | N123: 0 | O123: 0 | P123: 0 | Q123: 0 | R123: OK
B124: 1214 | C124: HOIST FOUNDATION | F124: MOS | G124: 0 | H124: 0 | I124: 0 | J124: 0 | K124: 0 | L124: 0 | M124: 0 | N124: 0 | O124: 0 | P124: 0 | Q124: 0 | R124: OK
B125: 1215 | C125: HOIST ELECTRIC POWER | F125: MOS | G125: 0 | H125: 0 | I125: 0 | J125: 0 | K125: 0 | L125: 0 | M125: 0 | N125: 0 | O125: 0 | P125: 0 | Q125: 0 | R125: OK
B126: 1216 | C126: HOIST ELECTRIC WIRING | F126: MOS | G126: 0 | H126: 0 | I126: 0 | J126: 0 | K126: 0 | L126: 0 | M126: 0 | N126: 0 | O126: 0 | P126: 0 | Q126: 0 | R126: OK
B127: 1217 | C127: ANCHOR BOLTS | F127: LS | G127: 0 | H127: 0 | I127: 0 | J127: 0 | K127: 0 | L127: 0 | M127: 0 | N127: 0 | O127: 0 | P127: 0 | Q127: 0 | R127: OK
B128: 1218 | C128: FREIGHT | F128: LS | G128: 0 | H128: 0 | I128: 0 | J128: 0 | K128: 0 | L128: 0 | M128: 0 | N128: 0 | O128: 0 | P128: 0 | Q128: 0 | R128: OK
B129: 1219 | C129: HOIST-ERECT/JUMP/DISMN | F129: MOS | G129: 0 | H129: 0 | I129: 0 | J129: 0 | K129: 0 | L129: 0 | M129: 0 | N129: 0 | O129: 0 | P129: 0 | Q129: 0 | R129: OK
B130: 1220 | C130: PROTECT BLDG. ELEVATOR CAB | F130: MOS | G130: 0 | H130: 0 | I130: 0 | J130: 0 | K130: 0 | L130: 0 | M130: 0 | N130: 0 | O130: 0 | P130: 0 | Q130: 0 | R130: OK
B131: 1221 | C131: BUILDING ELEVATOR OPERATOR | F131: MOS | G131: 0 | H131: 0 | I131: 0 | J131: 0 | K131: 0 | L131: 0 | M131: 0 | N131: 0 | O131: 0 | P131: 0 | Q131: 0 | R131: OK
B132: 1222 | C132: OFFICE TRAILER - GC | F132: MOS | G132: 0 | H132: 0 | I132: 0 | J132: 725 | K132: 0 | L132: 0 | M132: 0 | N132: 0 | O132: 0 | P132: 0 | Q132: 0 | R132: OK
B133: 1223 | C133: OFFICE TRAILER - A & E | F133: MOS | G133: 0 | H133: 0 | I133: 0 | J133: 0 | K133: 0 | L133: 0 | M133: 0 | N133: 0 | O133: 0 | P133: 0 | Q133: 0 | R133: OK
B134: 1224 | C134: OFFICE EQUIPMENT - GC | F134: MOS | G134: 0 | H134: 0 | I134: 0 | J134: 500 | K134: 0 | L134: 0 | M134: 0 | N134: 0 | O134: 0 | P134: 0 | Q134: 0 | R134: OK
B135: 1225 | C135: COMPUTER TERMINAL | F135: LS | G135: 0 | H135: 0 | I135: 0 | J135: 0 | K135: 0 | L135: 0 | M135: 0 | N135: 0 | O135: 0 | P135: 0 | Q135: 0 | R135: OK
B136: 1226 | C136: PHONE-FAX-COMPUTER | F136: LS | G136: 0 | H136: 0 | I136: 0 | J136: 32 | K136: 0 | L136: 0 | M136: 0 | N136: 0 | O136: 0 | P136: 0 | Q136: 0 | R136: OK
B137: 1227 | C137: CUTTING TORCH (INC. GAS) | F137: LS | G137: 0 | H137: 0 | I137: 0 | J137: 0 | K137: 0 | L137: 0 | M137: 0 | N137: 0 | O137: 0 | P137: 0 | Q137: 0 | R137: =IF(AND(A137="X",Q137=0),"PROBLEM--CHECK VALUES OR QUANTITES","OK") -> OK
B138: 1228 | C138: AIR COMPRESSOR W/HOSE | F138: LS | G138: 0 | H138: 0 | I138: 0 | J138: 0 | K138: 0 | L138: 0 | M138: 0 | N138: 0 | O138: 0 | P138: 0 | Q138: 0 | R138: OK
B139: =B138+1 -> 1229 | C139: TAMPS | F139: LS | G139: 0 | H139: 0 | I139: 0 | J139: 0 | K139: 0 | L139: 0 | M139: 0 | N139: 0 | O139: 0 | P139: 0 | Q139: 0 | R139: OK
B140: 1230 | C140: GENERATOR | F140: MOS | G140: 0 | H140: 0 | I140: 0 | J140: 0 | K140: 0 | L140: 0 | M140: 0 | N140: 0 | O140: 0 | P140: 0 | Q140: 0 | R140: OK
B141: 1231 | C141: PUMPS | F141: LS | G141: 0 | H141: 0 | I141: 0 | J141: 0 | K141: 0 | L141: 0 | M141: 0 | N141: 0 | O141: 0 | P141: 0 | Q141: 0 | R141: OK
B142: 1232 | C142: ROCK DRILL | F142: LS | G142: 0 | H142: 0 | I142: 0 | J142: 0 | K142: 0 | L142: 0 | M142: 0 | N142: 0 | O142: 0 | P142: 0 | Q142: 0 | R142: OK
B143: 1233 | C143: JACKHAMMER | F143: LS | G143: 0 | H143: 0 | I143: 0 | J143: 0 | K143: 0 | L143: 0 | M143: 0 | N143: 0 | O143: 0 | P143: 0 | Q143: 0 | R143: OK
B144: 1234 | C144: SWING STAGE | F144: LS | G144: 0 | H144: 0 | I144: 0 | J144: 0 | K144: 0 | L144: 0 | M144: 0 | N144: 0 | O144: 0 | P144: 0 | Q144: 0 | R144: OK
B145: 1235 | C145: SCAFFOLD FRAMES & BOARDS | F145: MOS | G145: 0 | H145: 0 | I145: 0 | J145: 0 | K145: 0 | L145: 0 | M145: 0 | N145: 0 | O145: 0 | P145: 0 | Q145: 0 | R145: OK
B146: 1236 | C146: HEATERS | F146: MOS | G146: 0 | H146: 0 | I146: 0 | J146: 0 | K146: 0 | L146: 0 | M146: 0 | N146: 0 | O146: 0 | P146: 0 | Q146: 0 | R146: OK
B147: 1237 | C147: FLOOR POLISH/SWEEPER/SANDER | F147: LS | G147: 0 | H147: 0 | I147: 0 | J147: 0 | K147: 0 | L147: 0 | M147: 0 | N147: 0 | O147: 0 | P147: 0 | Q147: 0 | R147: OK
B148: 1238 | C148: VACUUM CLEANER | F148: LS | G148: 0 | H148: 0 | I148: 0 | J148: 0 | K148: 0 | L148: 0 | M148: 0 | N148: 0 | O148: 0 | P148: 0 | Q148: 0 | R148: OK
B149: 1239 | C149: CHAIN SAW | F149: LS | G149: 0 | H149: 0 | I149: 0 | J149: 0 | K149: 0 | L149: 0 | M149: 0 | N149: 0 | O149: 0 | P149: 0 | Q149: 0 | R149: OK
B150: 1240 | C150: SMALL TOOLS | F150: LS | G150: 0 | H150: 0 | I150: 0 | J150: 250 | K150: 0 | L150: 0 | M150: 0 | N150: 0 | O150: 0 | P150: 0 | Q150: 0 | R150: OK
B151: 1241 | C151: WEB-CAMS | F151: LS | G151: 0 | H151: 0 | I151: 0 | J151: 0 | K151: 0 | L151: 0 | M151: 0 | N151: 0 | O151: 0 | P151: 0 | Q151: 0 | R151: OK
B152: 1242 | C152: SPECIAL TOOLS | F152: LS | G152: 0 | H152: 0 | I152: 0 | J152: 0 | K152: 0 | L152: 0 | M152: 0 | N152: 0 | O152: 0 | P152: 0 | Q152: 0 | R152: OK
B153: 1243 | C153: OTHER EQPT NOT LISTED ABOVE | F153: LS | G153: 0 | H153: 0 | I153: 0 | J153: 0 | K153: 0 | L153: 0 | M153: 0 | N153: 0 | O153: 0 | P153: 0 | Q153: 0 | R153: OK
B154: 1244 | C154: PICKUP TRUCK-SUPERINTENDENT (1 EA) | F154: WKS | G154: 0 | H154: 0 | I154: 0 | J154: 0 | K154: 0 | L154: 0 | M154: 550 | N154: 0 | O154: 0 | P154: 0 | Q154: 0 | R154: OK
B155: 1245 | C155: PICKUP TRUCK-PROJECT MGR. (1 EA) | F155: WKS | G155: 0 | H155: =E155*G155 -> 0 | I155: =H155*(BURDEN) -> 0 | J155: 0 | K155: =J155*E155 -> 0 | L155: =K155*(TAX) -> 0 | M155: 0 | N155: =M155*E155 -> 0 | O155: 0 | P155: =O155*E155 -> 0 | Q155: =(H155+I155)+(K155+L155)+N155+P155 -> 0 | R155: OK
B156: 1246 | C156: PICKUP TRUCK-ASSISTANT/LABOR (1 EA) | F156: MOS | G156: 0 | H156: 0 | I156: 0 | J156: 0 | K156: 0 | L156: 0 | M156: 0 | N156: 0 | O156: 0 | P156: 0 | Q156: 0 | R156: OK
B157: 1247 | C157: MISCELLANEOUS EQUIPMENT COSTS | H157: =SUM(H158:H162) ->  | I157: =SUM(I158:I162) ->  | K157: =SUM(K158:K162) ->  | L157: =SUM(L158:L162) ->  | N157: =SUM(N158:N162) ->  | P157: =SUM(P158:P162) ->  | Q157: =SUM(Q158:Q162) -> 
B158: 1248 | C158: MOBILIZATION | F158: LS | G158: 290 | H158: =E158*G158 -> 0 | I158: =H158*(BURDEN) -> 0 | J158: 115 | K158: =J158*E158 -> 0 | L158: =K158*(TAX) -> 0 | M158: 0 | N158: =M158*E158 -> 0 | O158: 0 | P158: =O158*E158 -> 0 | Q158: =(H158+I158)+(K158+L158)+N158+P158 -> 0 | R158: OK
B159: 1249 | C159: FREIGHT ON EQUIPMENT | F159: LS | G159: 0 | H159: =E159*G159 -> 0 | I159: =H159*(BURDEN) -> 0 | J159: 0 | K159: =J159*E159 -> 0 | L159: =K159*(TAX) -> 0 | M159: 0 | N159: =M159*E159 -> 0 | O159: 0 | P159: =O159*E159 -> 0 | Q159: =(H159+I159)+(K159+L159)+N159+P159 -> 0 | R159: OK
B160: 1250 | C160: INSURANCE ON EQUIPMENT | F160: LS | G160: 0 | H160: =E160*G160 -> 0 | I160: =H160*(BURDEN) -> 0 | J160: 6713 | K160: =J160*E160 -> 0 | L160: =K160*(TAX) -> 0 | M160: 0 | N160: =M160*E160 -> 0 | O160: 0 | P160: =O160*E160 -> 0 | Q160: =(H160+I160)+(K160+L160)+N160+P160 -> 0 | R160: OK
B161: 1251 | C161: PARTS & REPAIRS | F161: LS | G161: 0 | H161: =E161*G161 -> 0 | I161: =H161*(BURDEN) -> 0 | J161: 0 | K161: =J161*E161 -> 0 | L161: =K161*(TAX) -> 0 | M161: 0 | N161: =M161*E161 -> 0 | O161: 0 | P161: =O161*E161 -> 0 | Q161: =(H161+I161)+(K161+L161)+N161+P161 -> 0 | R161: OK
B162: 1252 | C162: LUBRICANTS & FUELS | E162: NFCU - Vendor | F162: WKS | G162: 0 | H162: =E162*G162 ->  | I162: =H162*(BURDEN) ->  | J162: 210 | K162: =J162*E162 ->  | L162: =K162*(TAX) ->  | M162: 0 | N162: =M162*E162 ->  | O162: 0 | P162: =O162*E162 ->  | Q162: =(H162+I162)+(K162+L162)+N162+P162 -> 
A163: X | C163: DIV. 2-- SITE CONSTRUCTION | H163: =SUM(H164,H168) ->  | I163: =SUM(I164,I168) ->  | K163: =SUM(K164,K168) ->  | L163: =SUM(L164,L168) ->  | N163: =SUM(N164,N168) ->  | P163: =SUM(P164,P168) ->  | Q163: =SUM(Q164,Q168) -> 
B164: 2100 | C164: Demolition | H164: =SUM(H165:H167) ->  | I164: =SUM(I165:I167) ->  | K164: =SUM(K165:K167) ->  | L164: =SUM(L165:L167) ->  | N164: =SUM(N165:N167) ->  | P164: =SUM(P165:P167) ->  | Q164: =SUM(Q165:Q167) -> 
B165: =B164+1 -> 2101 | C165: Demolition: Subcontract | E165: 1 | F165: ls | G165: 0 | H165: =E165*G165 -> 0 | I165: =H165*(BURDEN) -> 0 | J165: 0 | K165: =J165*E165 -> 0 | L165: =K165*(TAX) -> 0 | M165: 0 | N165: =M165*E165 -> 0 | O165: 0 | P165: =O165*E165 -> 0 | Q165: =(H165+I165)+(K165+L165)+N165+P165 -> 0 | R165: OK
B166: =B165+1 -> 2102 | C166: Cut opening in existing walls | E166: NFCU - Vendor | F166: lf | G166: 0 | H166: =E166*G166 ->  | J166: 0 | K166: =J166*E166 ->  | L166: =K166*(TAX) ->  | M166: 0 | N166: =M166*E166 ->  | O166: 0 | P166: =O166*E166 ->  | Q166: =(H166+I166)+(K166+L166)+N166+P166 -> 
B167: =B166+1 -> 2103 | C167: Demo existing ceiling height walls | E167: NFCU - Vendor | F167: lf | G167: 0 | H167: =E167*G167 ->  | J167: 0 | K167: =J167*E167 ->  | L167: =K167*(TAX) ->  | M167: 0 | N167: =M167*E167 ->  | O167: 0 | P167: =O167*E167 ->  | Q167: =(H167+I167)+(K167+L167)+N167+P167 -> 
B168: 2150 | C168: Remove doors | E168: 5 | F168: ea | G168: 0 | H168: =E168*G168 -> 0 | I168: 0 | J168: 0 | K168: =SUM(K169:K177) ->  | L168: =SUM(L169:L177) ->  | M168: 0 | N168: =SUM(N169:N177) ->  | O168: 0 | P168: =SUM(P169:P177) ->  | Q168: =SUM(Q169:Q177) -> 
B169: =B168+1 -> 2151 | C169: Demo existing millwork | E169: 20 | F169: lf | G169: 0 | H169: 0 | I169: 0 | J169: 0 | K169: =J169*E169 -> 0 | L169: =K169*(TAX) -> 0 | M169: 0 | N169: =M169*E169 -> 0 | O169: 0 | P169: =O169*E169 -> 0 | Q169: =(H169+I169)+(K169+L169)+N169+P169 -> 0 | R169: OK
B170: 2152 | C170: Floor Demo: Subcontract | E170: 1 | F170: ls | G170: 0 | H170: 0 | I170: 0 | J170: 0 | K170: 0 | L170: 0 | M170: 0 | N170: 0 | O170: 0 | P170: 0 | Q170: 0 | R170: OK
B171: 2153 | C171: Demo existing 2x4 fixtures | E171: 29 | F171: ea | G171: 0 | H171: 0 | I171: 0 | J171: 0 | K171: 0 | L171: 0 | M171: 0 | N171: 0 | O171: 0 | P171: 0 | Q171: 0 | R171: OK
B172: 2154 | C172: Demo existing can lights | E172: 30 | F172: ea | G172: 0 | H172: 0 | I172: 0 | J172: 0 | K172: 0 | L172: 0 | M172: 0 | N172: 0 | O172: 0 | P172: 0 | Q172: 0 | R172: OK
B173: 2155 | C173: Demo existing switches | E173: 12 | F173: ea | G173: 0 | H173: 0 | I173: 0 | J173: 0 | K173: 0 | L173: 0 | M173: 0 | N173: 0 | O173: 0 | P173: 0 | Q173: 0 | R173: OK
B174: 2156 | C174: Demo existing receptacles | E174: 14 | F174: ea | G174: 0 | H174: 0 | I174: 0 | J174: 0 | K174: 0 | L174: 0 | M174: 0 | N174: 0 | O174: 0 | P174: 0 | Q174: 0 | R174: OK
B175: 2157 | C175: Demo existing data outlets | E175: 4 | F175: ea | G175: 0 | H175: 0 | I175: 0 | J175: 0 | K175: 0 | L175: 0 | M175: 0 | N175: 0 | O175: 0 | P175: 0 | Q175: 0 | R175: OK
B176: 2158 | C176: Demo existing wall mounted emergency lights | E176: 2 | F176: ea | G176: 0 | H176: 0 | I176: 0 | J176: 0 | K176: 0 | L176: 0 | M176: 0 | N176: 0 | O176: 0 | P176: 0 | Q176: 0 | R176: OK
B177: 2159 | C177: Demo existing flooring | E177: NFCU - Vendor | F177: sf | G177: 0 | J177: 0 | M177: 0 | O177: 0
A178: X | C178: DIV. 3- CONCRETE | H178: =+H179+H181+H190+H199+H210+H224+H235+H246+H263+H296+H313+H356+H364+H386+H409+H423+H475+H488+H495+H509+H514 -> 0 | I178: =+I179+I181+I190+I199+I210+I224+I235+I246+I263+I296+I313+I356+I364+I386+I409+I423+I475+I488+I495+I509+I514 -> 0 | K178: =+K179+K181+K190+K199+K210+K224+K235+K246+K263+K296+K313+K356+K364+K386+K409+K423+K475+K488+K495+K509+K514 -> 0 | L178: =+L179+L181+L190+L199+L210+L224+L235+L246+L263+L296+L313+L356+L364+L386+L409+L423+L475+L488+L495+L509+L514 -> 0 | N178: =+N179+N181+N190+N199+N210+N224+N235+N246+N263+N296+N313+N356+N364+N386+N409+N423+N475+N488+N495+N509+N514 -> 0 | P178: =+P179+P181+P190+P199+P210+P224+P235+P246+P263+P296+P313+P356+P364+P386+P409+P423+P475+P488+P495+P509+P514 -> 0 | Q178: =+Q179+Q181+Q190+Q199+Q210+Q224+Q235+Q246+Q263+Q296+Q313+Q356+Q364+Q386+Q409+Q423+Q475+Q488+Q495+Q509+Q514 -> 0 | R178: PROBLEM--CHECK VALUES OR QUANTITES
B179: 3001 | C179: Concrete | H179: =SUM(H180) -> 0 | I179: =SUM(I180) -> 0 | K179: =SUM(K180) -> 0 | L179: =SUM(L180) -> 0 | N179: =SUM(N180) -> 0 | P179: =SUM(P180) -> 0 | Q179: =SUM(Q180) -> 0 | R179: OK
B180: =B179+1 -> 3002 | C180: Subcontract Complete (Lump Sum / Turn-Key) | E180: 1 | F180: ls | G180: 0 | H180: =E180*G180 -> 0 | I180: =H180*(BURDEN) -> 0 | J180: 0 | K180: =J180*E180 -> 0 | L180: =K180*(TAX) -> 0 | N180: =M180*E180 -> 0 | O180: 0 | P180: =O180*E180 -> 0 | Q180: =(H180+I180)+(K180+L180)+N180+P180 -> 0 | R180: OK
B181: 3100 | C181: Caissons | H181: =SUM(H182:H189) -> 0 | I181: =SUM(I182:I189) -> 0 | K181: =SUM(K182:K189) -> 0 | L181: =SUM(L182:L189) -> 0 | N181: =SUM(N182:N189) -> 0 | P181: =SUM(P182:P189) -> 0 | Q181: =SUM(Q182:Q189) -> 0 | R181: OK
B182: =B181+1 -> 3101 | C182: Subcontract | E182: 0 | F182: ls | G182: 0 | H182: =E182*G182 -> 0 | I182: =H182*(BURDEN) -> 0 | J182: 0 | K182: =J182*E182 -> 0 | L182: =K182*(TAX) -> 0 | M182: 0 | N182: =M182*E182 -> 0 | O182: 0 | P182: =O182*E182 -> 0 | Q182: =(H182+I182)+(K182+L182)+N182+P182 -> 0 | R182: OK
B183: 3102 | C183: Concrete | E183: 0 | F183: cy | G183: 0 | H183: 0 | I183: 0 | J183: 0 | K183: 0 | L183: 0 | M183: 0 | N183: 0 | O183: 0 | P183: 0 | Q183: 0 | R183: OK
B184: 3103 | C184: Place Concrete | E184: 0 | F184: cy | G184: 0 | H184: 0 | I184: 0 | J184: 0 | K184: 0 | L184: 0 | M184: 0 | N184: 0 | O184: 0 | P184: 0 | Q184: 0 | R184: OK
B185: 3104 | C185: Excavation | E185: 0 | F185: cy | G185: 0 | H185: 0 | I185: 0 | J185: 0 | K185: 0 | L185: 0 | M185: 0 | N185: 0 | O185: 0 | P185: 0 | Q185: 0 | R185: OK
B186: 3105 | C186: Backfill | E186: 0 | F186: cy | G186: 0 | H186: 0 | I186: 0 | J186: 0 | K186: 0 | L186: 0 | M186: 0 | N186: 0 | O186: 0 | P186: 0 | Q186: 0 | R186: OK
B187: 3106 | C187: Dispose of Excess | E187: 0 | F187: cy | G187: 0 | H187: 0 | I187: 0 | J187: 0 | K187: 0 | L187: 0 | M187: 0 | N187: 0 | O187: 0 | P187: 0 | Q187: 0 | R187: OK
B188: 3107 | C188: Reinf Bars | E188: 0 | F188: lb | G188: 0 | H188: 0 | I188: 0 | J188: 0 | K188: 0 | L188: 0 | M188: 0 | N188: 0 | O188: 0 | P188: 0 | Q188: 0 | R188: OK
B189: 3108 | C189: Labor | E189: 0 | F189: md | G189: 250 | H189: 0 | I189: 0 | J189: 0 | K189: 0 | L189: 0 | M189: 0 | N189: 0 | O189: 0 | P189: 0 | Q189: 0 | R189: OK
B190: 3110 | C190: Pile Caps | H190: =SUM(H191:H198) -> 0 | I190: =SUM(I191:I198) -> 0 | K190: =SUM(K191:K198) -> 0 | L190: =SUM(L191:L198) -> 0 | N190: =SUM(N191:N198) -> 0 | P190: =SUM(P191:P198) -> 0 | Q190: =SUM(Q191:Q198) -> 0 | R190: OK
B191: =B190+1 -> 3111 | C191: Subcontract | E191: 0 | F191: ls | G191: 0 | H191: =E191*G191 -> 0 | I191: =H191*(BURDEN) -> 0 | J191: 0 | K191: =J191*E191 -> 0 | L191: =K191*(TAX) -> 0 | M191: 0 | N191: =M191*E191 -> 0 | O191: 0 | P191: =O191*E191 -> 0 | Q191: =(H191+I191)+(K191+L191)+N191+P191 -> 0 | R191: OK
B192: 3112 | C192: Concrete | E192: 0 | F192: cy | G192: 0 | H192: 0 | I192: 0 | J192: 0 | K192: 0 | L192: 0 | M192: 0 | N192: 0 | O192: 0 | P192: 0 | Q192: 0 | R192: OK
B193: 3113 | C193: Place Concrete | E193: 0 | F193: cy | G193: 0 | H193: 0 | I193: 0 | J193: 0 | K193: 0 | L193: 0 | M193: 0 | N193: 0 | O193: 0 | P193: 0 | Q193: 0 | R193: OK
B194: 3114 | C194: Excavation | E194: 0 | F194: cy | G194: 0 | H194: 0 | I194: 0 | J194: 0 | K194: 0 | L194: 0 | M194: 0 | N194: 0 | O194: 0 | P194: 0 | Q194: 0 | R194: OK
B195: 3115 | C195: Backfill | E195: 0 | F195: cy | G195: 0 | H195: 0 | I195: 0 | J195: 0 | K195: 0 | L195: 0 | M195: 0 | N195: 0 | O195: 0 | P195: 0 | Q195: 0 | R195: OK
B196: 3116 | C196: Dispose of Excess | E196: 0 | F196: cy | G196: 0 | H196: 0 | I196: 0 | J196: 0 | K196: 0 | L196: 0 | M196: 0 | N196: 0 | O196: 0 | P196: 0 | Q196: 0 | R196: OK
B197: 3117 | C197: Reinf Bars | E197: 0 | F197: lb | G197: 0 | H197: 0 | I197: 0 | J197: 0 | K197: 0 | L197: 0 | M197: 0 | N197: 0 | O197: 0 | P197: 0 | Q197: 0 | R197: OK
B198: 3118 | C198: Labor | E198: 0 | F198: md | G198: 250 | H198: 0 | I198: 0 | J198: 0 | K198: 0 | L198: 0 | M198: 0 | N198: 0 | O198: 0 | P198: 0 | Q198: 0 | R198: OK
B199: 3120 | C199: Spread Footings | H199: =SUM(H200:H209) -> 0 | I199: =SUM(I200:I209) -> 0 | K199: =SUM(K200:K209) -> 0 | L199: =SUM(L200:L209) -> 0 | N199: =SUM(N200:N209) -> 0 | P199: =SUM(P200:P209) -> 0 | Q199: =SUM(Q200:Q209) -> 0 | R199: OK
B200: =B199+1 -> 3121 | C200: Subcontract | E200: 0 | F200: ls | G200: 0 | H200: =E200*G200 -> 0 | I200: =H200*(BURDEN) -> 0 | J200: 0 | K200: =J200*E200 -> 0 | L200: =K200*(TAX) -> 0 | M200: 0 | N200: =M200*E200 -> 0 | O200: 0 | P200: =O200*E200 -> 0 | Q200: =(H200+I200)+(K200+L200)+N200+P200 -> 0 | R200: OK
B201: 3122 | C201: Concrete | E201: 0 | F201: cy | G201: 0 | H201: 0 | I201: 0 | J201: 0 | K201: 0 | L201: 0 | M201: 0 | N201: 0 | O201: 0 | P201: 0 | Q201: 0 | R201: =IF(AND(A201="X",Q201=0),"PROBLEM--CHECK VALUES OR QUANTITES","OK") -> OK
... 1415 more rows

Sheet Alt (2) (hidden)
B1: TAX = | C1: =TAX_RATE -> 0.07 | D1: -- FROM BID SUMMARY PAGE
B2: BURDEN= | C2: =BURDEN_RATE -> 0.18 | D2: -- FROM BID SUMMARY PAGE
O4: PROJECT NAME: | P4: ='Bid Summary'!D4 -> 0
O5: PROJECT LOCATION: | P5: ='Bid Summary'!D5 -> 0
O6: PROJECT NO.: | P6: ='Bid Summary'!I4 -> 0
A7: REQUIRED | G7: UNIT | H7: TOTAL | I7: PAYROLL | J7: UNIT | K7: TOTAL | L7: SALES / USE | M7: UNIT | N7: TOTAL | O7: UNIT | P7: TOTAL
A8: IN BID | B8: PHASE CODE | C8: DESCRIPTION | E8: QTY | F8: UNIT | G8: LABOR | H8: LABOR | I8: TAX | J8: MATERIAL | K8: MATERIAL | L8: TAX | M8: SUB / EQUIP | N8: SUB / EQUIP | O8: MISC | P8: MISC | Q8: TOTAL
A9: X | C9: DIV. 1-- GENERAL CONDITIONS | H9: =SUM(H10,H28,H33,H38,H51,H64,H74,H83,H90,H157) -> 0 | I9: =SUM(I10,I28,I33,I38,I51,I64,I74,I83,I90,I157) -> 0 | K9: =SUM(K10,K28,K33,K38,K51,K64,K74,K83,K90,K157) -> 0 | L9: =SUM(L10,L28,L33,L38,L51,L64,L74,L83,L90,L157) -> 0 | N9: =SUM(N10,N28,N33,N38,N51,N64,N74,N83,N90,N157) -> 0 | P9: =SUM(P10,P28,P33,P38,P51,P64,P74,P83,P90,P157) -> 0 | Q9: =SUM(Q10,Q28,Q33,Q38,Q51,Q64,Q74,Q83,Q90,Q157) -> 0 | R9: =IF(AND(A9="X",Q9=0),"PROBLEM--CHECK VALUES OR QUANTITES","OK") -> PROBLEM--CHECK VALUES OR QUANTITES
B10: 1100 | C10: SUPERVISION | H10: =SUM(H11:H27) -> 0 | I10: =SUM(I11:I27) -> 0 | K10: =SUM(K11:K27) -> 0 | L10: =SUM(L11:L27) -> 0 | N10: =SUM(N11:N27) -> 0 | P10: =SUM(P11:P27) -> 0 | Q10: =SUM(Q11:Q27) -> 0 | R10: OK
B11: =B10+1 -> 1101 | C11: SUPERINTENDENT | F11: WKS | G11: 1800 | H11: =E11*G11 -> 0 | I11: =H11*(BURDEN) -> 0 | J11: 0 | K11: =J11*E11 -> 0 | L11: =K11*(TAX) -> 0 | M11: 0 | N11: =M11*E11 -> 0 | O11: 0 | P11: =O11*E11 -> 0 | Q11: =(H11+I11)+(K11+L11)+N11+P11 -> 0 | R11: OK
B12: 1102 | C12: ASST SUPERINTENDENT | F12: WKS | G12: 1000 | H12: 0 | I12: 0 | J12: 0 | K12: 0 | L12: 0 | M12: 0 | N12: 0 | O12: 0 | P12: 0 | Q12: 0 | R12: OK
B13: 1103 | C13: ASST SUPERINTENDENT | F13: WKS | G13: 900 | H13: 0 | I13: 0 | J13: 0 | K13: 0 | L13: 0 | M13: 0 | N13: 0 | O13: 0 | P13: 0 | Q13: 0 | R13: OK
B14: 1104 | C14: FIELD OFFICE ASSISTANT | F14: WKS | G14: 900 | H14: 0 | I14: 0 | J14: 0 | K14: 0 | L14: 0 | M14: 0 | N14: 0 | O14: 0 | P14: 0 | Q14: 0 | R14: OK
B15: 1105 | C15: PROJECT MANAGER | F15: WKS | G15: 400 | H15: 0 | I15: 0 | J15: 0 | K15: 0 | L15: 0 | M15: 0 | N15: 0 | O15: 0 | P15: 0 | Q15: 0 | R15: OK
B16: 1106 | C16: ADMIN | F16: WKS | G16: 200 | H16: 0 | I16: 0 | J16: 0 | K16: 0 | L16: 0 | M16: 0 | N16: 0 | O16: 0 | P16: 0 | Q16: 0 | R16: OK
B17: 1107 | C17: OFFICE | F17: WKS | G17: 200 | H17: 0 | I17: 0 | J17: 0 | K17: 0 | L17: 0 | M17: 0 | N17: 0 | O17: 0 | P17: 0 | Q17: 0 | R17: OK
B18: 1108 | C18: ASST PROJECT MANAGER | F18: WKS | G18: 1350 | H18: 0 | I18: 0 | J18: 0 | K18: 0 | L18: 0 | M18: 0 | N18: 0 | O18: 0 | P18: 0 | Q18: 0 | R18: OK
B19: 1109 | C19: E-I-T / OFFICE ENGINEER | F19: WKS | G19: 950 | H19: 0 | I19: 0 | J19: 0 | K19: 0 | L19: 0 | M19: 0 | N19: 0 | O19: 0 | P19: 0 | Q19: 0 | R19: OK
B20: 1110 | C20: JOB SECRETARY | F20: WKS | G20: 800 | H20: 0 | I20: 0 | J20: 0 | K20: 0 | L20: 0 | M20: 0 | N20: 0 | O20: 0 | P20: 0 | Q20: 0 | R20: OK
B21: 1111 | C21: CLERK/TIMEKEEPER | F21: WKS | G21: 750 | H21: 0 | I21: 0 | J21: 0 | K21: 0 | L21: 0 | M21: 0 | N21: 0 | O21: 0 | P21: 0 | Q21: 0 | R21: OK
B22: 1112 | C22: ESTIMATOR | F22: WKS | G22: 1500 | H22: 0 | I22: 0 | J22: 0 | K22: 0 | L22: 0 | M22: 0 | N22: 0 | O22: 0 | P22: 0 | Q22: 0 | R22: OK
B23: 1113 | C23: WATCHMAN/SECURITY | F23: WKS | G23: 1000 | H23: 0 | I23: 0 | J23: 0 | K23: 0 | L23: 0 | M23: 0 | N23: 0 | O23: 0 | P23: 0 | Q23: 0 | R23: OK
B24: 1114 | C24: FLAGMAN | F24: WKS | G24: 1150 | H24: 0 | I24: 0 | J24: 0 | K24: 0 | L24: 0 | M24: 0 | N24: 0 | O24: 0 | P24: 0 | Q24: 0 | R24: OK
B25: 1115 | C25: TRAFFIC CONTROL | F25: LS | G25: 0 | H25: 0 | I25: 0 | J25: 0 | K25: 0 | L25: 0 | M25: 0 | N25: 0 | O25: 0 | P25: 0 | Q25: 0 | R25: OK
B26: 1116 | C26: SCHEDULING SERVICES | F26: WKS | G26: 500 | H26: 0 | I26: 0 | J26: 0 | K26: 0 | L26: 0 | M26: 0 | N26: 0 | O26: 0 | P26: 0 | Q26: 0 | R26: OK
B27: 1117 | C27: CREW BONUS | F27: WKS | G27: 1500 | H27: 0 | I27: 0 | J27: 0 | K27: 0 | L27: 0 | M27: 0 | N27: 0 | O27: 0 | P27: 0 | Q27: 0 | R27: OK
B28: 1118 | C28: SUPPLEMENTAL EXPENSES: | H28: =SUM(H29:H32) -> 0 | I28: =SUM(I29:I32) -> 0 | K28: =SUM(K29:K32) -> 0 | L28: =SUM(L29:L32) -> 0 | N28: =SUM(N29:N32) -> 0 | P28: =SUM(P29:P32) -> 0 | Q28: =SUM(Q29:Q32) -> 0 | R28: OK
B29: 1119 | C29: SUPERINTENDENT | F29: WKS | G29: 0 | H29: =E29*G29 -> 0 | I29: =H29*(BURDEN) -> 0 | J29: 0 | K29: =J29*E29 -> 0 | L29: =K29*(TAX) -> 0 | M29: 0 | N29: =M29*E29 -> 0 | O29: 0 | P29: =O29*E29 -> 0 | Q29: =(H29+I29)+(K29+L29)+N29+P29 -> 0 | R29: OK
B30: 1120 | C30: ASST SUPERINTENDENT | F30: WKS | G30: 0 | H30: =E30*G30 -> 0 | I30: =H30*(BURDEN) -> 0 | J30: 0 | K30: =J30*E30 -> 0 | L30: =K30*(TAX) -> 0 | M30: 0 | N30: =M30*E30 -> 0 | O30: 0 | P30: =O30*E30 -> 0 | Q30: =(H30+I30)+(K30+L30)+N30+P30 -> 0 | R30: OK
B31: 1121 | C31: OTHER | F31: WKS | G31: 0 | H31: =E31*G31 -> 0 | I31: =H31*(BURDEN) -> 0 | J31: 0 | K31: =J31*E31 -> 0 | L31: =K31*(TAX) -> 0 | M31: 0 | N31: =M31*E31 -> 0 | O31: 0 | P31: =O31*E31 -> 0 | Q31: =(H31+I31)+(K31+L31)+N31+P31 -> 0 | R31: OK
B32: 1122 | C32: MOVING EXPENSES | F32: LS | G32: 0 | H32: =E32*G32 -> 0 | I32: =H32*(BURDEN) -> 0 | J32: 0 | K32: =J32*E32 -> 0 | L32: =K32*(TAX) -> 0 | M32: 0 | N32: =M32*E32 -> 0 | O32: 0 | P32: =O32*E32 -> 0 | Q32: =(H32+I32)+(K32+L32)+N32+P32 -> 0 | R32: OK
B33: 1123 | C33: TRAVEL: | H33: =SUM(H34:H37) -> 0 | I33: =SUM(I34:I37) -> 0 | K33: =SUM(K34:K37) -> 0 | L33: =SUM(L34:L37) -> 0 | N33: =SUM(N34:N37) -> 0 | P33: =SUM(P34:P37) -> 0 | Q33: =SUM(Q34:Q37) -> 0 | R33: OK
B34: 1124 | C34: DIVISION MANAGER | F34: WKS | G34: 0 | H34: =E34*G34 -> 0 | I34: =H34*(BURDEN) -> 0 | J34: 100 | K34: =J34*E34 -> 0 | L34: =K34*(TAX) -> 0 | M34: 0 | N34: =M34*E34 -> 0 | O34: 0 | P34: =O34*E34 -> 0 | Q34: =(H34+I34)+(K34+L34)+N34+P34 -> 0 | R34: OK
B35: 1125 | C35: PROJECT MANAGER | F35: WKS | G35: 0 | H35: =E35*G35 -> 0 | I35: =H35*(BURDEN) -> 0 | J35: 890 | K35: =J35*E35 -> 0 | L35: =K35*(TAX) -> 0 | M35: 0 | N35: =M35*E35 -> 0 | O35: 0 | P35: =O35*E35 -> 0 | Q35: =(H35+I35)+(K35+L35)+N35+P35 -> 0 | R35: OK
B36: 1126 | C36: SUPERINTENDENT LIVING EXPENSES | F36: WKS | G36: 0 | H36: =E36*G36 -> 0 | I36: =H36*(BURDEN) -> 0 | J36: 890 | K36: =J36*E36 -> 0 | L36: =K36*(TAX) -> 0 | M36: 0 | N36: =M36*E36 -> 0 | O36: 0 | P36: =O36*E36 -> 0 | Q36: =(H36+I36)+(K36+L36)+N36+P36 -> 0 | R36: OK
B37: 1127 | C37: CREW LIVING EXPENSES | F37: WKS | G37: 0 | H37: =E37*G37 -> 0 | I37: =H37*(BURDEN) -> 0 | J37: 890 | K37: =J37*E37 -> 0 | L37: =K37*(TAX) -> 0 | M37: 0 | N37: =M37*E37 -> 0 | O37: 0 | P37: =O37*E37 -> 0 | Q37: =(H37+I37)+(K37+L37)+N37+P37 -> 0 | R37: OK
B38: 1128 | C38: UTILITIES | H38: =SUM(H39:H50) -> 0 | I38: =SUM(I39:I50) -> 0 | K38: =SUM(K39:K50) -> 0 | L38: =SUM(L39:L50) -> 0 | N38: =SUM(N39:N50) -> 0 | P38: =SUM(P39:P50) -> 0 | Q38: =SUM(Q39:Q50) -> 0 | R38: OK
B39: 1129 | C39: TEMP POWER USAGE - OFFICE | F39: MO | G39: 0 | H39: =E39*G39 -> 0 | I39: =H39*(BURDEN) -> 0 | J39: 200 | K39: =J39*E39 -> 0 | L39: =K39*(TAX) -> 0 | M39: 0 | N39: =M39*E39 -> 0 | O39: 0 | P39: =O39*E39 -> 0 | Q39: =(H39+I39)+(K39+L39)+N39+P39 -> 0 | R39: OK
B40: 1130 | C40: - BUILDING | F40: MO | G40: 0 | H40: 0 | I40: 0 | J40: 0 | K40: 0 | L40: 0 | M40: 0 | N40: 0 | O40: 0 | P40: 0 | Q40: 0 | R40: OK
B41: 1131 | C41: TEMPORARY WATER USAGE | F41: MO | G41: 0 | H41: 0 | I41: 0 | J41: 800 | K41: 0 | L41: 0 | M41: 0 | N41: 0 | O41: 0 | P41: 0 | Q41: 0 | R41: OK
B42: 1132 | C42: TELEPHONE-CONTRACTOR | F42: MO | G42: 0 | H42: 0 | I42: 0 | J42: 150 | K42: 0 | L42: 0 | M42: 0 | N42: 0 | O42: 0 | P42: 0 | Q42: 0 | R42: OK
B43: 1133 | C43: MOBILE PHONES-( QTY @ $65/MO / PHONE) | F43: MO | G43: 0 | H43: 0 | I43: 0 | J43: 250 | K43: 0 | L43: 0 | M43: 0 | N43: 0 | O43: 0 | P43: 0 | Q43: 0 | R43: OK
B44: 1134 | C44: TELEPHONE-ARCHITECT | F44: MO | G44: 0 | H44: 0 | I44: 0 | J44: 100 | K44: 0 | L44: 0 | M44: 0 | N44: 0 | O44: 0 | P44: 0 | Q44: 0 | R44: OK
B45: 1135 | C45: TEMPORARY WIRING & LIGHTING | F45: LS | G45: 0 | H45: 0 | I45: 0 | J45: 0 | K45: 0 | L45: 0 | M45: 0 | N45: 0 | O45: 0 | P45: 0 | Q45: 0 | R45: OK
B46: 1136 | C46: EXTENSION CORDS & BULBS | F46: LS | G46: 0 | H46: 0 | I46: 0 | J46: 0 | K46: 0 | L46: 0 | M46: 0 | N46: 0 | O46: 0 | P46: 0 | Q46: 0 | R46: OK
B47: 1137 | C47: TEMPORARY PLUMBING | F47: LS | G47: 0 | H47: 0 | I47: 0 | J47: 0 | K47: 0 | L47: 0 | M47: 0 | N47: 0 | O47: 0 | P47: 0 | Q47: 0 | R47: OK
B48: 1138 | C48: ICE, CUPS, COOLER | F48: MO | G48: 0 | H48: 0 | I48: 0 | J48: 20 | K48: 0 | L48: 0 | M48: 0 | N48: 0 | O48: 0 | P48: 0 | Q48: 0 | R48: OK
B49: 1139 | C49: TEMPORARY HEAT | F49: MO | G49: 0 | H49: 0 | I49: 0 | J49: 500 | K49: 0 | L49: 0 | M49: 0 | N49: 0 | O49: 0 | P49: 0 | Q49: 0 | R49: OK
B50: 1140 | C50: TEMPORARY TOILETS | F50: MO | G50: 0 | H50: 0 | I50: 0 | J50: 130 | K50: 0 | L50: 0 | M50: 0 | N50: 0 | O50: 0 | P50: 0 | Q50: 0 | R50: OK
B51: 1141 | C51: MISC. | H51: =SUM(H52:H63) -> 0 | I51: =SUM(I52:I63) -> 0 | K51: =SUM(K52:K63) -> 0 | L51: =SUM(L52:L63) -> 0 | N51: =SUM(N52:N63) -> 0 | P51: =SUM(P52:P63) -> 0 | Q51: =SUM(Q52:Q63) -> 0 | R51: OK
B52: 1142 | C52: TEMPORARY FIELD LABOR | F52: WK | G52: 250 | H52: =E52*G52 -> 0 | I52: =H52*(BURDEN) -> 0 | J52: 0 | K52: =J52*E52 -> 0 | L52: =K52*(TAX) -> 0 | M52: 0 | N52: =M52*E52 -> 0 | O52: 0 | P52: =O52*E52 -> 0 | Q52: =(H52+I52)+(K52+L52)+N52+P52 -> 0 | R52: OK
B53: 1143 | C53: PROGRESS PHOTOGRAPHS | F53: MO | G53: 200 | H53: 0 | I53: 0 | J53: 0 | K53: 0 | L53: 0 | M53: 0 | N53: 0 | O53: 0 | P53: 0 | Q53: 0 | R53: OK
B54: 1144 | C54: SURVEYOR | F54: LS | G54: 0 | H54: 0 | I54: 0 | J54: 0 | K54: 0 | L54: 0 | M54: 10000 | N54: 0 | O54: 0 | P54: 0 | Q54: 0 | R54: OK
B55: 1145 | C55: JOB/PROJECT SIGN | F55: LS | G55: 0 | H55: 0 | I55: 0 | J55: 500 | K55: 0 | L55: 0 | M55: 500 | N55: 0 | O55: 0 | P55: 0 | Q55: 0 | R55: OK
B56: 1146 | C56: TEMP PROTECTION (EXISTING CONDITIONS) & DUST ENCLOSURES | E56: 1 | F56: LS | G56: 0 | H56: 0 | I56: 0 | J56: 0 | K56: 0 | L56: 0 | N56: 0 | O56: 0 | P56: 0 | Q56: 0 | R56: OK
B57: 1147 | C57: REPAIR/REPLACE BLINDS | E57: 1 | F57: LS | G57: 0 | H57: 0 | I57: 0 | J57: 0 | K57: 0 | L57: 0 | N57: 0 | O57: 0 | P57: 0 | Q57: 0 | R57: OK
B58: 1148 | C58: HVAC: PROVIDE TEMP INTAKE/RETURN GRILLE COVERS | E58: 1 | F58: LS | G58: 0 | H58: 0 | I58: 0 | J58: 0 | K58: 0 | L58: 0 | N58: 0 | O58: 0 | P58: 0 | Q58: 0 | R58: OK
B59: 1149 | C59: SANITARY SUPPLIES | F59: LS | G59: 0 | H59: 0 | I59: 0 | J59: 0 | K59: 0 | L59: 0 | M59: 0 | N59: 0 | O59: 0 | P59: 0 | Q59: 0 | R59: OK
B60: 1150 | C60: REPAIR STREET & SIDEWALK | F60: LS | G60: 0 | H60: 0 | I60: 0 | J60: 0 | K60: 0 | L60: 0 | M60: 0 | N60: 0 | O60: 0 | P60: 0 | Q60: 0 | R60: OK
B61: 1151 | C61: BLUEPRINTS/EXTRA DRAWINGS | F61: LS | G61: 0 | H61: 0 | I61: 0 | J61: 2000 | K61: 0 | L61: 0 | M61: 0 | N61: 0 | O61: 0 | P61: 0 | Q61: 0 | R61: OK
B62: 1152 | C62: TRAFFIC CONTROL | F62: LS | G62: 0 | H62: 0 | I62: 0 | J62: 0 | K62: 0 | L62: 0 | M62: 24000 | N62: 0 | O62: 0 | P62: 0 | Q62: 0 | R62: OK
B63: 1153 | C63: CPM Scheduler (3rd) Party | F63: LS | G63: 0 | H63: 0 | I63: 0 | J63: 0 | K63: 0 | L63: 0 | M63: 20000 | N63: 0 | O63: 0 | P63: 0 | Q63: 0 | R63: OK
B64: 1154 | C64: MISCELLANEOUS ITEMS | H64: =SUM(H65:H73) -> 0 | I64: =SUM(I65:I73) -> 0 | K64: =SUM(K65:K73) -> 0 | L64: =SUM(L65:L73) -> 0 | N64: =SUM(N65:N73) -> 0 | P64: =SUM(P65:P73) -> 0 | Q64: =SUM(Q65:Q73) -> 0 | R64: OK
B65: 1155 | C65: SEWER TAP FEE | F65: LS | G65: 0 | H65: =E65*G65 -> 0 | I65: =H65*(BURDEN) -> 0 | J65: 0 | K65: =J65*E65 -> 0 | L65: =K65*(TAX) -> 0 | M65: 0 | N65: =M65*E65 -> 0 | O65: 0 | P65: =O65*E65 -> 0 | Q65: =(H65+I65)+(K65+L65)+N65+P65 -> 0 | R65: OK
B66: 1156 | C66: WATER TAP FEE | F66: LS | G66: 0 | H66: 0 | I66: 0 | J66: 0 | K66: 0 | L66: 0 | M66: 0 | N66: 0 | O66: 0 | P66: 0 | Q66: 0 | R66: OK
B67: 1157 | C67: AGC FEE | F67: LS | G67: 0 | H67: 0 | I67: 0 | J67: 0 | K67: 0 | L67: 0 | M67: 0 | N67: 0 | O67: 0 | P67: 0 | Q67: 0 | R67: OK
B68: 1158 | C68: PHOTOGRAPHS | F68: LS | G68: 0 | H68: 0 | I68: 0 | J68: 0 | K68: 0 | L68: 0 | M68: 0 | N68: 0 | O68: 0 | P68: 0 | Q68: 0 | R68: OK
B69: 1159 | C69: AS-BUILT DRAWINGS | F69: LS | G69: 0 | H69: 0 | I69: 0 | J69: 0 | K69: 0 | L69: 0 | M69: 1000 | N69: 0 | O69: 0 | P69: 0 | Q69: 0 | R69: OK
B70: 1160 | C70: SPECIAL INSPECTION | F70: LS | G70: 0 | H70: 0 | I70: 0 | J70: 0 | K70: 0 | L70: 0 | M70: 0 | N70: 0 | O70: 0 | P70: 0 | Q70: 0 | R70: OK
B71: 1161 | C71: TESTING | F71: LS | G71: 0 | H71: 0 | I71: 0 | J71: 0 | K71: 0 | L71: 0 | M71: 2000 | N71: 0 | O71: 0 | P71: 0 | Q71: 0 | R71: OK
B72: 1162 | C72: WEATHER REPORTS | F72: LS | G72: 0 | H72: 0 | I72: 0 | J72: 0 | K72: 0 | L72: 0 | M72: 0 | N72: 0 | O72: 0 | P72: 0 | Q72: 0 | R72: OK
B73: 1163 | C73: EMPLOYEE INSURANCE | F73: LS | G73: 0 | H73: 0 | I73: 0 | J73: 0 | K73: 0 | L73: 0 | M73: 0 | N73: 0 | O73: 0 | P73: 0 | Q73: 0 | R73: =IF(AND(A73="X",Q73=0),"PROBLEM--CHECK VALUES OR QUANTITES","OK") -> OK
B74: 1164 | C74: SAFETY | H74: =SUM(H75:H82) -> 0 | I74: =SUM(I75:I82) -> 0 | K74: =SUM(K75:K82) -> 0 | L74: =SUM(L75:L82) -> 0 | N74: =SUM(N75:N82) -> 0 | P74: =SUM(P75:P82) -> 0 | Q74: =SUM(Q75:Q82) -> 0 | R74: OK
B75: =B74+1 -> 1165 | C75: FIRE EXTINQUISHERS | F75: LS | G75: 0 | H75: =E75*G75 -> 0 | I75: =H75*(BURDEN) -> 0 | J75: 200 | K75: =J75*E75 -> 0 | L75: =K75*(TAX) -> 0 | M75: 0 | N75: =M75*E75 -> 0 | O75: 0 | P75: =O75*E75 -> 0 | Q75: =(H75+I75)+(K75+L75)+N75+P75 -> 0 | R75: OK
B76: 1166 | C76: FIRST AID SUPPLIES | F76: LS | G76: 0 | H76: 0 | I76: 0 | J76: 500 | K76: 0 | L76: 0 | M76: 0 | N76: 0 | O76: 0 | P76: 0 | Q76: 0 | R76: OK
B77: 1167 | C77: HARD HATS | F77: LS | G77: 0 | H77: 0 | I77: 0 | J77: 200 | K77: 0 | L77: 0 | M77: 0 | N77: 0 | O77: 0 | P77: 0 | Q77: 0 | R77: OK
B78: 1168 | C78: RAINGEAR, BOOTS, ETC. | F78: LS | G78: 0 | H78: 0 | I78: 0 | J78: 0 | K78: 0 | L78: 0 | M78: 0 | N78: 0 | O78: 0 | P78: 0 | Q78: 0 | R78: OK
B79: 1169 | C79: SIGNS | F79: LS | G79: 0 | H79: 0 | I79: 0 | J79: 0 | K79: 0 | L79: 0 | M79: 0 | N79: 0 | O79: 0 | P79: 0 | Q79: 0 | R79: OK
B80: 1170 | C80: RAILINGS | F80: LF | G80: 0 | H80: 0 | I80: 0 | J80: 0 | K80: 0 | L80: 0 | M80: 0 | N80: 0 | O80: 0 | P80: 0 | Q80: 0 | R80: OK
B81: 1171 | C81: MISCELLANEOUS SAFETY ITEMS | F81: LS | G81: 0 | H81: 0 | I81: 0 | J81: 0 | K81: 0 | L81: 0 | M81: 0 | N81: 0 | O81: 0 | P81: 0 | Q81: 0 | R81: OK
B82: 1172 | C82: SECURITY FENCING | F82: LS | G82: 0 | H82: 0 | I82: 0 | J82: 0 | K82: 0 | L82: 0 | M82: 0 | N82: 0 | O82: 0 | P82: 0 | Q82: 0 | R82: OK
B83: 1173 | C83: CLEAN-UP | H83: =SUM(H84:H89) -> 0 | I83: =SUM(I84:I89) -> 0 | K83: =SUM(K84:K89) -> 0 | L83: =SUM(L84:L89) -> 0 | N83: =SUM(N84:N89) -> 0 | P83: =SUM(P84:P89) -> 0 | Q83: =SUM(Q84:Q89) -> 0 | R83: OK
B84: 1174 | C84: WEEKLY CLEAN (2 MEN @ $250/MD) | F84: MD | G84: 73 | H84: =E84*G84 -> 0 | I84: =H84*(BURDEN) -> 0 | J84: 0 | K84: =J84*E84 -> 0 | L84: =K84*(TAX) -> 0 | M84: 0 | N84: =M84*E84 -> 0 | O84: 0 | P84: =O84*E84 -> 0 | Q84: =(H84+I84)+(K84+L84)+N84+P84 -> 0 | R84: OK
B85: 1175 | C85: DUMPSTERS | F85: EA | G85: 0 | H85: 0 | I85: 0 | J85: 550 | K85: 0 | L85: 0 | M85: 0 | N85: 0 | O85: 0 | P85: 0 | Q85: 0 | R85: OK
B86: 1176 | C86: HAUL TRASH /DUMPSTER RENTAL | F86: WKS | G86: 0 | H86: 0 | I86: 0 | J86: 0 | K86: 0 | L86: 0 | M86: 425 | N86: 0 | O86: 0 | P86: 0 | Q86: 0 | R86: OK
B87: 1177 | C87: FINAL CLEAN-BUILDING | F87: SF | G87: 0 | H87: 0 | I87: 0 | J87: 0 | K87: 0 | L87: 0 | M87: 0.75 | N87: 0 | O87: 0 | P87: 0 | Q87: 0 | R87: OK
B88: 1178 | C88: GLASS | F88: SF | G88: 0 | H88: 0 | I88: 0 | J88: 0 | K88: 0 | L88: 0 | M88: 0 | N88: 0 | O88: 0 | P88: 0 | Q88: 0 | R88: OK
B89: 1179 | C89: GROUNDS | F89: LS | G89: 0 | H89: 0 | I89: 0 | J89: 0 | K89: 0 | L89: 0 | M89: 0 | N89: 0 | O89: 0 | P89: 0 | Q89: 0 | R89: OK
B90: 1180 | C90: EQUIPMENT | H90: =SUM(H91:H153) -> 0 | I90: =SUM(I91:I153) -> 0 | K90: =SUM(K91:K153) -> 0 | L90: =SUM(L91:L153) -> 0 | N90: =SUM(N91:N153) -> 0 | P90: =SUM(P91:P153) -> 0 | Q90: =SUM(Q91:Q156) -> 0 | R90: OK
B91: 1181 | C91: HAND DRILLS | F91: LS | G91: 0 | H91: =E91*G91 -> 0 | I91: =H91*(BURDEN) -> 0 | J91: 0 | K91: =J91*E91 -> 0 | L91: =K91*(TAX) -> 0 | M91: 0 | N91: =M91*E91 -> 0 | O91: 0 | P91: =O91*E91 -> 0 | Q91: =(H91+I91)+(K91+L91)+N91+P91 -> 0 | R91: OK
B92: 1182 | C92: CIRCULAR SAW | F92: LS | G92: 0 | H92: 0 | I92: 0 | J92: 0 | K92: 0 | L92: 0 | M92: 0 | N92: 0 | O92: 0 | P92: 0 | Q92: 0 | R92: OK
B93: 1183 | C93: RADIAL ARM SAW | F93: LS | G93: 0 | H93: 0 | I93: 0 | J93: 0 | K93: 0 | L93: 0 | M93: 0 | N93: 0 | O93: 0 | P93: 0 | Q93: 0 | R93: OK
B94: 1184 | C94: RAMSET | F94: LS | G94: 0 | H94: 0 | I94: 0 | J94: 0 | K94: 0 | L94: 0 | M94: 0 | N94: 0 | O94: 0 | P94: 0 | Q94: 0 | R94: OK
B95: 1185 | C95: DOOR HANGING EQUIPMENT | F95: LS | G95: 0 | H95: 0 | I95: 0 | J95: 0 | K95: 0 | L95: 0 | M95: 0 | N95: 0 | O95: 0 | P95: 0 | Q95: 0 | R95: OK
B96: 1186 | C96: ROTARY HAMMER | F96: LS | G96: 0 | H96: 0 | I96: 0 | J96: 0 | K96: 0 | L96: 0 | M96: 0 | N96: 0 | O96: 0 | P96: 0 | Q96: 0 | R96: OK
B97: 1187 | C97: SAW BLADES,BITS,ETC. | F97: LS | G97: 0 | H97: 0 | I97: 0 | J97: 0 | K97: 0 | L97: 0 | M97: 0 | N97: 0 | O97: 0 | P97: 0 | Q97: 0 | R97: OK
B98: 1188 | C98: FORKLIFT | F98: MOS | G98: 0 | H98: 0 | I98: 0 | J98: 0 | K98: 0 | L98: 0 | M98: 600 | N98: 0 | O98: 0 | P98: 0 | Q98: 0 | R98: OK
B99: 1189 | C99: MOTOR GRADER | F99: MOS | G99: 0 | H99: 0 | I99: 0 | J99: 0 | K99: 0 | L99: 0 | M99: 0 | N99: 0 | O99: 0 | P99: 0 | Q99: 0 | R99: OK
B100: 1190 | C100: MOBILE CRANE | F100: MOS | G100: 0 | H100: 0 | I100: 0 | J100: 0 | K100: 0 | L100: 0 | M100: 0 | N100: 0 | O100: 0 | P100: 0 | Q100: 0 | R100: OK
B101: 1191 | C101: WHEELBARROWS | F101: LS | G101: 0 | H101: 0 | I101: 0 | J101: 0 | K101: 0 | L101: 0 | M101: 0 | N101: 0 | O101: 0 | P101: 0 | Q101: 0 | R101: OK
B102: 1192 | C102: BUGGIES | F102: LS | G102: 0 | H102: 0 | I102: 0 | J102: 0 | K102: 0 | L102: 0 | M102: 0 | N102: 0 | O102: 0 | P102: 0 | Q102: 0 | R102: OK
B103: 1193 | C103: CONCRETE BUCKET | F103: LS | G103: 0 | H103: 0 | I103: 0 | J103: 0 | K103: 0 | L103: 0 | M103: 0 | N103: 0 | O103: 0 | P103: 0 | Q103: 0 | R103: OK
B104: 1194 | C104: CONVEYORS | F104: MOS | G104: 0 | H104: 0 | I104: 0 | J104: 0 | K104: 0 | L104: 0 | M104: 0 | N104: 0 | O104: 0 | P104: 0 | Q104: 0 | R104: OK
B105: 1195 | C105: TREMIE | F105: LS | G105: 0 | H105: 0 | I105: 0 | J105: 0 | K105: 0 | L105: 0 | M105: 0 | N105: 0 | O105: 0 | P105: 0 | Q105: 0 | R105: OK
B106: 1196 | C106: CHUTES | F106: MOS | G106: 0 | H106: 0 | I106: 0 | J106: 0 | K106: 0 | L106: 0 | M106: 0 | N106: 0 | O106: 0 | P106: 0 | Q106: 0 | R106: OK
B107: 1197 | C107: VIBRATORS | F107: LS | G107: 0 | H107: 0 | I107: 0 | J107: 0 | K107: 0 | L107: 0 | M107: 0 | N107: 0 | O107: 0 | P107: 0 | Q107: 0 | R107: OK
B108: 1198 | C108: CONCRETE PUMP & OPERATOR | F108: LS | G108: 0 | H108: 0 | I108: 0 | J108: 0 | K108: 0 | L108: 0 | M108: 0 | N108: 0 | O108: 0 | P108: 0 | Q108: 0 | R108: OK
B109: 1199 | C109: CONCRETE SAW & BLADES | F109: LS | G109: 0 | H109: 0 | I109: 0 | J109: 0 | K109: 0 | L109: 0 | M109: 0 | N109: 0 | O109: 0 | P109: 0 | Q109: 0 | R109: OK
B110: 1200 | C110: GRINDERS & STONES | F110: LS | G110: 0 | H110: 0 | I110: 0 | J110: 0 | K110: 0 | L110: 0 | M110: 0 | N110: 0 | O110: 0 | P110: 0 | Q110: 0 | R110: OK
B111: 1201 | C111: CONVENTIONAL CRANE W/OPR. | F111: MOS | G111: 0 | H111: 0 | I111: 0 | J111: 0 | K111: 0 | L111: 0 | M111: 0 | N111: 0 | O111: 0 | P111: 0 | Q111: 0 | R111: OK
B112: 1202 | C112: TOWER CRANE W/OPR. | F112: MOS | G112: 0 | H112: 0 | I112: 0 | J112: 0 | K112: 0 | L112: 0 | M112: 0 | N112: 0 | O112: 0 | P112: 0 | Q112: 0 | R112: OK
B113: 1203 | C113: CRANE ELEC. POWER / FUEL | F113: MOS | G113: 0 | H113: 0 | I113: 0 | J113: 0 | K113: 0 | L113: 0 | M113: 0 | N113: 0 | O113: 0 | P113: 0 | Q113: 0 | R113: OK
B114: 1204 | C114: TOWER CRANE ELECTRIC WIRING | F114: MOS | G114: 0 | H114: 0 | I114: 0 | J114: 0 | K114: 0 | L114: 0 | M114: 0 | N114: 0 | O114: 0 | P114: 0 | Q114: 0 | R114: OK
B115: 1205 | C115: TOWER CRANE FOUNDATIONS | F115: MOS | G115: 0 | H115: 0 | I115: 0 | J115: 0 | K115: 0 | L115: 0 | M115: 0 | N115: 0 | O115: 0 | P115: 0 | Q115: 0 | R115: OK
B116: 1206 | C116: CRANE-ERCT/JUMP/DISMN | F116: MOS | G116: 0 | H116: 0 | I116: 0 | J116: 0 | K116: 0 | L116: 0 | M116: 0 | N116: 0 | O116: 0 | P116: 0 | Q116: 0 | R116: OK
B117: 1207 | C117: TOWER CRANE CONSULTANT | F117: MOS | G117: 0 | H117: 0 | I117: 0 | J117: 0 | K117: 0 | L117: 0 | M117: 0 | N117: 0 | O117: 0 | P117: 0 | Q117: 0 | R117: OK
B118: 1208 | C118: TOWER CRANE ANCHOR BOLTS | F118: MOS | G118: 0 | H118: 0 | I118: 0 | J118: 0 | K118: 0 | L118: 0 | M118: 0 | N118: 0 | O118: 0 | P118: 0 | Q118: 0 | R118: OK
B119: 1209 | C119: FREIGHT | F119: LS | G119: 0 | H119: 0 | I119: 0 | J119: 0 | K119: 0 | L119: 0 | M119: 0 | N119: 0 | O119: 0 | P119: 0 | Q119: 0 | R119: OK
B120: 1210 | C120: CHERRY PICKER W/OPR. | F120: LS | G120: 0 | H120: 0 | I120: 0 | J120: 0 | K120: 0 | L120: 0 | M120: 0 | N120: 0 | O120: 0 | P120: 0 | Q120: 0 | R120: OK
B121: 1211 | C121: OCCASIONAL CRANE RENTAL | F121: MOS | G121: 0 | H121: 0 | I121: 0 | J121: 0 | K121: 0 | L121: 0 | M121: 0 | N121: 0 | O121: 0 | P121: 0 | Q121: 0 | R121: OK
B122: 1212 | C122: MATERIAL HOIST & OPERATOR | F122: MOS | G122: 0 | H122: 0 | I122: 0 | J122: 0 | K122: 0 | L122: 0 | M122: 0 | N122: 0 | O122: 0 | P122: 0 | Q122: 0 | R122: OK
B123: 1213 | C123: MATL/PERS HOIST & OPERATOR | F123: MOS | G123: 0 | H123: 0 | I123: =H123*(BURDEN) -> 0 | J123: 0 | K123: 0 | L123: =K123*(TAX) -> 0 | M123: 0 | N123: 0 | O123: 0 | P123: 0 | Q123: 0 | R123: OK
B124: 1214 | C124: HOIST FOUNDATION | F124: MOS | G124: 0 | H124: 0 | I124: 0 | J124: 0 | K124: 0 | L124: 0 | M124: 0 | N124: 0 | O124: 0 | P124: 0 | Q124: 0 | R124: OK
B125: 1215 | C125: HOIST ELECTRIC POWER | F125: MOS | G125: 0 | H125: 0 | I125: 0 | J125: 0 | K125: 0 | L125: 0 | M125: 0 | N125: 0 | O125: 0 | P125: 0 | Q125: 0 | R125: OK
B126: 1216 | C126: HOIST ELECTRIC WIRING | F126: MOS | G126: 0 | H126: 0 | I126: 0 | J126: 0 | K126: 0 | L126: 0 | M126: 0 | N126: 0 | O126: 0 | P126: 0 | Q126: 0 | R126: OK
B127: 1217 | C127: ANCHOR BOLTS | F127: LS | G127: 0 | H127: 0 | I127: 0 | J127: 0 | K127: 0 | L127: 0 | M127: 0 | N127: 0 | O127: 0 | P127: 0 | Q127: 0 | R127: OK
B128: 1218 | C128: FREIGHT | F128: LS | G128: 0 | H128: 0 | I128: 0 | J128: 0 | K128: 0 | L128: 0 | M128: 0 | N128: 0 | O128: 0 | P128: 0 | Q128: 0 | R128: OK
B129: 1219 | C129: HOIST-ERECT/JUMP/DISMN | F129: MOS | G129: 0 | H129: 0 | I129: 0 | J129: 0 | K129: 0 | L129: 0 | M129: 0 | N129: 0 | O129: 0 | P129: 0 | Q129: 0 | R129: OK
B130: 1220 | C130: PROTECT BLDG. ELEVATOR CAB | F130: MOS | G130: 0 | H130: 0 | I130: 0 | J130: 0 | K130: 0 | L130: 0 | M130: 0 | N130: 0 | O130: 0 | P130: 0 | Q130: 0 | R130: OK
B131: 1221 | C131: BUILDING ELEVATOR OPERATOR | F131: MOS | G131: 0 | H131: 0 | I131: 0 | J131: 0 | K131: 0 | L131: 0 | M131: 0 | N131: 0 | O131: 0 | P131: 0 | Q131: 0 | R131: OK
B132: 1222 | C132: OFFICE TRAILER - GC | F132: MOS | G132: 0 | H132: 0 | I132: 0 | J132: 725 | K132: 0 | L132: 0 | M132: 0 | N132: 0 | O132: 0 | P132: 0 | Q132: 0 | R132: OK
B133: 1223 | C133: OFFICE TRAILER - A & E | F133: MOS | G133: 0 | H133: 0 | I133: 0 | J133: 0 | K133: 0 | L133: 0 | M133: 0 | N133: 0 | O133: 0 | P133: 0 | Q133: 0 | R133: OK
B134: 1224 | C134: OFFICE EQUIPMENT - GC | F134: MOS | G134: 0 | H134: 0 | I134: 0 | J134: 500 | K134: 0 | L134: 0 | M134: 0 | N134: 0 | O134: 0 | P134: 0 | Q134: 0 | R134: OK
B135: 1225 | C135: COMPUTER TERMINAL | F135: LS | G135: 0 | H135: 0 | I135: 0 | J135: 0 | K135: 0 | L135: 0 | M135: 0 | N135: 0 | O135: 0 | P135: 0 | Q135: 0 | R135: OK
B136: 1226 | C136: PHONE-FAX-COMPUTER | F136: LS | G136: 0 | H136: 0 | I136: 0 | J136: 32 | K136: 0 | L136: 0 | M136: 0 | N136: 0 | O136: 0 | P136: 0 | Q136: 0 | R136: OK
B137: 1227 | C137: CUTTING TORCH (INC. GAS) | F137: LS | G137: 0 | H137: 0 | I137: 0 | J137: 0 | K137: 0 | L137: 0 | M137: 0 | N137: 0 | O137: 0 | P137: 0 | Q137: 0 | R137: =IF(AND(A137="X",Q137=0),"PROBLEM--CHECK VALUES OR QUANTITES","OK") -> OK
B138: 1228 | C138: AIR COMPRESSOR W/HOSE | F138: LS | G138: 0 | H138: 0 | I138: 0 | J138: 0 | K138: 0 | L138: 0 | M138: 0 | N138: 0 | O138: 0 | P138: 0 | Q138: 0 | R138: OK
B139: =B138+1 -> 1229 | C139: TAMPS | F139: LS | G139: 0 | H139: 0 | I139: 0 | J139: 0 | K139: 0 | L139: 0 | M139: 0 | N139: 0 | O139: 0 | P139: 0 | Q139: 0 | R139: OK
B140: 1230 | C140: GENERATOR | F140: MOS | G140: 0 | H140: 0 | I140: 0 | J140: 0 | K140: 0 | L140: 0 | M140: 0 | N140: 0 | O140: 0 | P140: 0 | Q140: 0 | R140: OK
B141: 1231 | C141: PUMPS | F141: LS | G141: 0 | H141: 0 | I141: 0 | J141: 0 | K141: 0 | L141: 0 | M141: 0 | N141: 0 | O141: 0 | P141: 0 | Q141: 0 | R141: OK
B142: 1232 | C142: ROCK DRILL | F142: LS | G142: 0 | H142: 0 | I142: 0 | J142: 0 | K142: 0 | L142: 0 | M142: 0 | N142: 0 | O142: 0 | P142: 0 | Q142: 0 | R142: OK
B143: 1233 | C143: JACKHAMMER | F143: LS | G143: 0 | H143: 0 | I143: 0 | J143: 0 | K143: 0 | L143: 0 | M143: 0 | N143: 0 | O143: 0 | P143: 0 | Q143: 0 | R143: OK
B144: 1234 | C144: SWING STAGE | F144: LS | G144: 0 | H144: 0 | I144: 0 | J144: 0 | K144: 0 | L144: 0 | M144: 0 | N144: 0 | O144: 0 | P144: 0 | Q144: 0 | R144: OK
B145: 1235 | C145: SCAFFOLD FRAMES & BOARDS | F145: MOS | G145: 0 | H145: 0 | I145: 0 | J145: 0 | K145: 0 | L145: 0 | M145: 0 | N145: 0 | O145: 0 | P145: 0 | Q145: 0 | R145: OK
B146: 1236 | C146: HEATERS | F146: MOS | G146: 0 | H146: 0 | I146: 0 | J146: 0 | K146: 0 | L146: 0 | M146: 0 | N146: 0 | O146: 0 | P146: 0 | Q146: 0 | R146: OK
B147: 1237 | C147: FLOOR POLISH/SWEEPER/SANDER | F147: LS | G147: 0 | H147: 0 | I147: 0 | J147: 0 | K147: 0 | L147: 0 | M147: 0 | N147: 0 | O147: 0 | P147: 0 | Q147: 0 | R147: OK
B148: 1238 | C148: VACUUM CLEANER | F148: LS | G148: 0 | H148: 0 | I148: 0 | J148: 0 | K148: 0 | L148: 0 | M148: 0 | N148: 0 | O148: 0 | P148: 0 | Q148: 0 | R148: OK
B149: 1239 | C149: CHAIN SAW | F149: LS | G149: 0 | H149: 0 | I149: 0 | J149: 0 | K149: 0 | L149: 0 | M149: 0 | N149: 0 | O149: 0 | P149: 0 | Q149: 0 | R149: OK
B150: 1240 | C150: SMALL TOOLS | F150: LS | G150: 0 | H150: 0 | I150: 0 | J150: 250 | K150: 0 | L150: 0 | M150: 0 | N150: 0 | O150: 0 | P150: 0 | Q150: 0 | R150: OK
B151: 1241 | C151: WEB-CAMS | F151: LS | G151: 0 | H151: 0 | I151: 0 | J151: 0 | K151: 0 | L151: 0 | M151: 0 | N151: 0 | O151: 0 | P151: 0 | Q151: 0 | R151: OK
B152: 1242 | C152: SPECIAL TOOLS | F152: LS | G152: 0 | H152: 0 | I152: 0 | J152: 0 | K152: 0 | L152: 0 | M152: 0 | N152: 0 | O152: 0 | P152: 0 | Q152: 0 | R152: OK
B153: 1243 | C153: OTHER EQPT NOT LISTED ABOVE | F153: LS | G153: 0 | H153: 0 | I153: 0 | J153: 0 | K153: 0 | L153: 0 | M153: 0 | N153: 0 | O153: 0 | P153: 0 | Q153: 0 | R153: OK
B154: 1244 | C154: PICKUP TRUCK-SUPERINTENDENT (1 EA) | F154: WKS | G154: 0 | H154: 0 | I154: 0 | J154: 0 | K154: 0 | L154: 0 | M154: 550 | N154: 0 | O154: 0 | P154: 0 | Q154: 0 | R154: OK
B155: 1245 | C155: PICKUP TRUCK-PROJECT MGR. (1 EA) | F155: WKS | G155: 0 | H155: =E155*G155 -> 0 | I155: =H155*(BURDEN) -> 0 | J155: 0 | K155: =J155*E155 -> 0 | L155: =K155*(TAX) -> 0 | M155: 550 | N155: =M155*E155 -> 0 | O155: 0 | P155: =O155*E155 -> 0 | Q155: =(H155+I155)+(K155+L155)+N155+P155 -> 0 | R155: OK
B156: 1246 | C156: PICKUP TRUCK-ASSISTANT/LABOR (1 EA) | F156: MOS | G156: 0 | H156: 0 | I156: 0 | J156: 0 | K156: 0 | L156: 0 | M156: 550 | N156: 0 | O156: 0 | P156: 0 | Q156: 0 | R156: OK
B157: 1247 | C157: MISCELLANEOUS EQUIPMENT COSTS | H157: =SUM(H158:H162) -> 0 | I157: =SUM(I158:I162) -> 0 | K157: =SUM(K158:K162) -> 0 | L157: =SUM(L158:L162) -> 0 | N157: =SUM(N158:N162) -> 0 | P157: =SUM(P158:P162) -> 0 | Q157: =SUM(Q158:Q162) -> 0 | R157: OK
B158: 1248 | C158: MOBILIZATION | F158: LS | G158: 290 | H158: =E158*G158 -> 0 | I158: =H158*(BURDEN) -> 0 | J158: 115 | K158: =J158*E158 -> 0 | L158: =K158*(TAX) -> 0 | M158: 0 | N158: =M158*E158 -> 0 | O158: 0 | P158: =O158*E158 -> 0 | Q158: =(H158+I158)+(K158+L158)+N158+P158 -> 0 | R158: OK
B159: 1249 | C159: FREIGHT ON EQUIPMENT | F159: LS | G159: 0 | H159: =E159*G159 -> 0 | I159: =H159*(BURDEN) -> 0 | J159: 0 | K159: =J159*E159 -> 0 | L159: =K159*(TAX) -> 0 | M159: 0 | N159: =M159*E159 -> 0 | O159: 0 | P159: =O159*E159 -> 0 | Q159: =(H159+I159)+(K159+L159)+N159+P159 -> 0 | R159: OK
B160: 1250 | C160: INSURANCE ON EQUIPMENT | F160: LS | G160: 0 | H160: =E160*G160 -> 0 | I160: =H160*(BURDEN) -> 0 | J160: 6713 | K160: =J160*E160 -> 0 | L160: =K160*(TAX) -> 0 | M160: 0 | N160: =M160*E160 -> 0 | O160: 0 | P160: =O160*E160 -> 0 | Q160: =(H160+I160)+(K160+L160)+N160+P160 -> 0 | R160: OK
B161: 1251 | C161: PARTS & REPAIRS | F161: LS | G161: 0 | H161: =E161*G161 -> 0 | I161: =H161*(BURDEN) -> 0 | J161: 0 | K161: =J161*E161 -> 0 | L161: =K161*(TAX) -> 0 | M161: 0 | N161: =M161*E161 -> 0 | O161: 0 | P161: =O161*E161 -> 0 | Q161: =(H161+I161)+(K161+L161)+N161+P161 -> 0 | R161: OK
B162: 1252 | C162: LUBRICANTS & FUELS | F162: WKS | G162: 0 | H162: =E162*G162 -> 0 | I162: =H162*(BURDEN) -> 0 | J162: 210 | K162: =J162*E162 -> 0 | L162: =K162*(TAX) -> 0 | M162: 0 | N162: =M162*E162 -> 0 | O162: 0 | P162: =O162*E162 -> 0 | Q162: =(H162+I162)+(K162+L162)+N162+P162 -> 0 | R162: OK
A163: X | C163: DIV. 2-- SITE CONSTRUCTION | H163: =SUM(H164,H168) -> 0 | I163: =SUM(I164,I168) -> 0 | K163: =SUM(K164,K168) -> 0 | L163: =SUM(L164,L168) -> 0 | N163: =SUM(N164,N168) -> 0 | P163: =SUM(P164,P168) -> 0 | Q163: =SUM(Q164,Q168) -> 0 | R163: PROBLEM--CHECK VALUES OR QUANTITES
B164: 2100 | C164: Demolition | H164: =SUM(H165:H167) -> 0 | I164: =SUM(I165:I167) -> 0 | K164: =SUM(K165:K167) -> 0 | L164: =SUM(L165:L167) -> 0 | N164: =SUM(N165:N167) -> 0 | P164: =SUM(P165:P167) -> 0 | Q164: =SUM(Q165:Q167) -> 0 | R164: OK
B165: =B164+1 -> 2101 | C165: Demolition | E165: 1 | F165: ls | G165: 0 | H165: =E165*G165 -> 0 | I165: =H165*(BURDEN) -> 0 | J165: 0 | K165: =J165*E165 -> 0 | L165: =K165*(TAX) -> 0 | N165: =M165*E165 -> 0 | O165: 0 | P165: =O165*E165 -> 0 | Q165: =(H165+I165)+(K165+L165)+N165+P165 -> 0 | R165: OK
B166: =B165+1 -> 2102 | C166: Dispose of Debris | E166: 0 | F166: ls | G166: 0 | H166: =E166*G166 -> 0 | I166: =H166*(BURDEN) -> 0 | J166: 0 | K166: =J166*E166 -> 0 | L166: =K166*(TAX) -> 0 | M166: 0 | N166: =M166*E166 -> 0 | O166: 0 | P166: =O166*E166 -> 0 | Q166: =(H166+I166)+(K166+L166)+N166+P166 -> 0 | R166: OK
B167: =B166+1 -> 2103 | C167: Labor | E167: 0 | F167: md | G167: 0 | H167: =E167*G167 -> 0 | I167: =H167*(BURDEN) -> 0 | J167: 0 | K167: =J167*E167 -> 0 | L167: =K167*(TAX) -> 0 | M167: 0 | N167: =M167*E167 -> 0 | O167: 0 | P167: =O167*E167 -> 0 | Q167: =(H167+I167)+(K167+L167)+N167+P167 -> 0 | R167: OK
B168: 2150 | C168: Temp Construction | H168: =SUM(H169:H177) -> 0 | I168: =SUM(I169:I177) -> 0 | K168: =SUM(K169:K177) -> 0 | L168: =SUM(L169:L177) -> 0 | N168: =SUM(N169:N177) -> 0 | P168: =SUM(P169:P177) -> 0 | Q168: =SUM(Q169:Q177) -> 0 | R168: OK
B169: =B168+1 -> 2151 | C169: Walks | E169: 0 | F169: ls | G169: 0 | H169: =E169*G169 -> 0 | I169: =H169*(BURDEN) -> 0 | J169: 0 | K169: =J169*E169 -> 0 | L169: =K169*(TAX) -> 0 | M169: 0 | N169: =M169*E169 -> 0 | O169: 0 | P169: =O169*E169 -> 0 | Q169: =(H169+I169)+(K169+L169)+N169+P169 -> 0 | R169: OK
B170: 2152 | C170: Walls | E170: 0 | F170: ls | G170: 0 | H170: 0 | I170: 0 | J170: 0 | K170: 0 | L170: 0 | M170: 0 | N170: 0 | O170: 0 | P170: 0 | Q170: 0 | R170: OK
B171: 2153 | C171: Curtains | E171: 0 | F171: ls | G171: 0 | H171: 0 | I171: 0 | J171: 0 | K171: 0 | L171: 0 | M171: 0 | N171: 0 | O171: 0 | P171: 0 | Q171: 0 | R171: OK
B172: 2154 | C172: Shelters | E172: 0 | F172: ls | G172: 0 | H172: 0 | I172: 0 | J172: 0 | K172: 0 | L172: 0 | M172: 0 | N172: 0 | O172: 0 | P172: 0 | Q172: 0 | R172: OK
B173: 2155 | C173: Storage area | E173: 0 | F173: ls | G173: 0 | H173: 0 | I173: 0 | J173: 0 | K173: 0 | L173: 0 | M173: 0 | N173: 0 | O173: 0 | P173: 0 | Q173: 0 | R173: OK
B174: 2156 | C174: Roads & Access | E174: 0 | F174: ls | G174: 0 | H174: 0 | I174: 0 | J174: 0 | K174: 0 | L174: 0 | M174: 0 | N174: 0 | O174: 0 | P174: 0 | Q174: 0 | R174: OK
B175: 2157 | C175: Traffic control | E175: 0 | F175: ls | G175: 0 | H175: 0 | I175: 0 | J175: 0 | K175: 0 | L175: 0 | M175: 0 | N175: 0 | O175: 0 | P175: 0 | Q175: 0 | R175: OK
B176: 2158 | C176: Other | E176: 0 | F176: ls | G176: 0 | H176: 0 | I176: 0 | J176: 0 | K176: 0 | L176: 0 | M176: 0 | N176: 0 | O176: 0 | P176: 0 | Q176: 0 | R176: OK
B177: 2159 | C177: Labor | F177: md | G177: 250 | H177: 0 | I177: 0 | J177: 0 | K177: 0 | L177: 0 | M177: 0 | N177: 0 | O177: 0 | P177: 0 | Q177: 0 | R177: OK
A178: X | C178: DIV. 3- CONCRETE | H178: =+H179+H181+H190+H199+H210+H224+H235+H246+H263+H296+H313+H356+H364+H386+H409+H423+H475+H488+H495+H509+H514 -> 0 | I178: =+I179+I181+I190+I199+I210+I224+I235+I246+I263+I296+I313+I356+I364+I386+I409+I423+I475+I488+I495+I509+I514 -> 0 | K178: =+K179+K181+K190+K199+K210+K224+K235+K246+K263+K296+K313+K356+K364+K386+K409+K423+K475+K488+K495+K509+K514 -> 0 | L178: =+L179+L181+L190+L199+L210+L224+L235+L246+L263+L296+L313+L356+L364+L386+L409+L423+L475+L488+L495+L509+L514 -> 0 | N178: =+N179+N181+N190+N199+N210+N224+N235+N246+N263+N296+N313+N356+N364+N386+N409+N423+N475+N488+N495+N509+N514 -> 0 | P178: =+P179+P181+P190+P199+P210+P224+P235+P246+P263+P296+P313+P356+P364+P386+P409+P423+P475+P488+P495+P509+P514 -> 0 | Q178: =+Q179+Q181+Q190+Q199+Q210+Q224+Q235+Q246+Q263+Q296+Q313+Q356+Q364+Q386+Q409+Q423+Q475+Q488+Q495+Q509+Q514 -> 0 | R178: PROBLEM--CHECK VALUES OR QUANTITES
B179: 3001 | C179: Concrete | H179: =SUM(H180) -> 0 | I179: =SUM(I180) -> 0 | K179: =SUM(K180) -> 0 | L179: =SUM(L180) -> 0 | N179: =SUM(N180) -> 0 | P179: =SUM(P180) -> 0 | Q179: =SUM(Q180) -> 0 | R179: OK
B180: =B179+1 -> 3002 | C180: Subcontract Complete (Lump Sum / Turn-Key) | E180: 1 | F180: ls | G180: 0 | H180: =E180*G180 -> 0 | I180: =H180*(BURDEN) -> 0 | J180: 0 | K180: =J180*E180 -> 0 | L180: =K180*(TAX) -> 0 | N180: =M180*E180 -> 0 | O180: 0 | P180: =O180*E180 -> 0 | Q180: =(H180+I180)+(K180+L180)+N180+P180 -> 0 | R180: OK
B181: 3100 | C181: Caissons | H181: =SUM(H182:H189) -> 0 | I181: =SUM(I182:I189) -> 0 | K181: =SUM(K182:K189) -> 0 | L181: =SUM(L182:L189) -> 0 | N181: =SUM(N182:N189) -> 0 | P181: =SUM(P182:P189) -> 0 | Q181: =SUM(Q182:Q189) -> 0 | R181: OK
B182: =B181+1 -> 3101 | C182: Subcontract | E182: 0 | F182: ls | G182: 0 | H182: =E182*G182 -> 0 | I182: =H182*(BURDEN) -> 0 | J182: 0 | K182: =J182*E182 -> 0 | L182: =K182*(TAX) -> 0 | M182: 0 | N182: =M182*E182 -> 0 | O182: 0 | P182: =O182*E182 -> 0 | Q182: =(H182+I182)+(K182+L182)+N182+P182 -> 0 | R182: OK
B183: 3102 | C183: Concrete | E183: 0 | F183: cy | G183: 0 | H183: 0 | I183: 0 | J183: 0 | K183: 0 | L183: 0 | M183: 0 | N183: 0 | O183: 0 | P183: 0 | Q183: 0 | R183: OK
B184: 3103 | C184: Place Concrete | E184: 0 | F184: cy | G184: 0 | H184: 0 | I184: 0 | J184: 0 | K184: 0 | L184: 0 | M184: 0 | N184: 0 | O184: 0 | P184: 0 | Q184: 0 | R184: OK
B185: 3104 | C185: Excavation | E185: 0 | F185: cy | G185: 0 | H185: 0 | I185: 0 | J185: 0 | K185: 0 | L185: 0 | M185: 0 | N185: 0 | O185: 0 | P185: 0 | Q185: 0 | R185: OK
B186: 3105 | C186: Backfill | E186: 0 | F186: cy | G186: 0 | H186: 0 | I186: 0 | J186: 0 | K186: 0 | L186: 0 | M186: 0 | N186: 0 | O186: 0 | P186: 0 | Q186: 0 | R186: OK
B187: 3106 | C187: Dispose of Excess | E187: 0 | F187: cy | G187: 0 | H187: 0 | I187: 0 | J187: 0 | K187: 0 | L187: 0 | M187: 0 | N187: 0 | O187: 0 | P187: 0 | Q187: 0 | R187: OK
B188: 3107 | C188: Reinf Bars | E188: 0 | F188: lb | G188: 0 | H188: 0 | I188: 0 | J188: 0 | K188: 0 | L188: 0 | M188: 0 | N188: 0 | O188: 0 | P188: 0 | Q188: 0 | R188: OK
B189: 3108 | C189: Labor | E189: 0 | F189: md | G189: 250 | H189: 0 | I189: 0 | J189: 0 | K189: 0 | L189: 0 | M189: 0 | N189: 0 | O189: 0 | P189: 0 | Q189: 0 | R189: OK
B190: 3110 | C190: Pile Caps | H190: =SUM(H191:H198) -> 0 | I190: =SUM(I191:I198) -> 0 | K190: =SUM(K191:K198) -> 0 | L190: =SUM(L191:L198) -> 0 | N190: =SUM(N191:N198) -> 0 | P190: =SUM(P191:P198) -> 0 | Q190: =SUM(Q191:Q198) -> 0 | R190: OK
B191: =B190+1 -> 3111 | C191: Subcontract | E191: 0 | F191: ls | G191: 0 | H191: =E191*G191 -> 0 | I191: =H191*(BURDEN) -> 0 | J191: 0 | K191: =J191*E191 -> 0 | L191: =K191*(TAX) -> 0 | M191: 0 | N191: =M191*E191 -> 0 | O191: 0 | P191: =O191*E191 -> 0 | Q191: =(H191+I191)+(K191+L191)+N191+P191 -> 0 | R191: OK
B192: 3112 | C192: Concrete | E192: 0 | F192: cy | G192: 0 | H192: 0 | I192: 0 | J192: 0 | K192: 0 | L192: 0 | M192: 0 | N192: 0 | O192: 0 | P192: 0 | Q192: 0 | R192: OK
B193: 3113 | C193: Place Concrete | E193: 0 | F193: cy | G193: 0 | H193: 0 | I193: 0 | J193: 0 | K193: 0 | L193: 0 | M193: 0 | N193: 0 | O193: 0 | P193: 0 | Q193: 0 | R193: OK
B194: 3114 | C194: Excavation | E194: 0 | F194: cy | G194: 0 | H194: 0 | I194: 0 | J194: 0 | K194: 0 | L194: 0 | M194: 0 | N194: 0 | O194: 0 | P194: 0 | Q194: 0 | R194: OK
B195: 3115 | C195: Backfill | E195: 0 | F195: cy | G195: 0 | H195: 0 | I195: 0 | J195: 0 | K195: 0 | L195: 0 | M195: 0 | N195: 0 | O195: 0 | P195: 0 | Q195: 0 | R195: OK
B196: 3116 | C196: Dispose of Excess | E196: 0 | F196: cy | G196: 0 | H196: 0 | I196: 0 | J196: 0 | K196: 0 | L196: 0 | M196: 0 | N196: 0 | O196: 0 | P196: 0 | Q196: 0 | R196: OK
B197: 3117 | C197: Reinf Bars | E197: 0 | F197: lb | G197: 0 | H197: 0 | I197: 0 | J197: 0 | K197: 0 | L197: 0 | M197: 0 | N197: 0 | O197: 0 | P197: 0 | Q197: 0 | R197: OK
B198: 3118 | C198: Labor | E198: 0 | F198: md | G198: 250 | H198: 0 | I198: 0 | J198: 0 | K198: 0 | L198: 0 | M198: 0 | N198: 0 | O198: 0 | P198: 0 | Q198: 0 | R198: OK
B199: 3120 | C199: Spread Footings | H199: =SUM(H200:H209) -> 0 | I199: =SUM(I200:I209) -> 0 | K199: =SUM(K200:K209) -> 0 | L199: =SUM(L200:L209) -> 0 | N199: =SUM(N200:N209) -> 0 | P199: =SUM(P200:P209) -> 0 | Q199: =SUM(Q200:Q209) -> 0 | R199: OK
B200: =B199+1 -> 3121 | C200: Subcontract | E200: 0 | F200: ls | G200: 0 | H200: =E200*G200 -> 0 | I200: =H200*(BURDEN) -> 0 | J200: 0 | K200: =J200*E200 -> 0 | L200: =K200*(TAX) -> 0 | M200: 0 | N200: =M200*E200 -> 0 | O200: 0 | P200: =O200*E200 -> 0 | Q200: =(H200+I200)+(K200+L200)+N200+P200 -> 0 | R200: OK
B201: 3122 | C201: Concrete | E201: 0 | F201: cy | G201: 0 | H201: 0 | I201: 0 | J201: 0 | K201: 0 | L201: 0 | M201: 0 | N201: 0 | O201: 0 | P201: 0 | Q201: 0 | R201: =IF(AND(A201="X",Q201=0),"PROBLEM--CHECK VALUES OR QUANTITES","OK") -> OK
... 1414 more rows

Sheet Alt (3) (hidden)
B1: TAX = | C1: =TAX_RATE -> 0.07 | D1: -- FROM BID SUMMARY PAGE
B2: BURDEN= | C2: =BURDEN_RATE -> 0.18 | D2: -- FROM BID SUMMARY PAGE
O4: PROJECT NAME: | P4: ='Bid Summary'!D4 -> 0
O5: PROJECT LOCATION: | P5: ='Bid Summary'!D5 -> 0
O6: PROJECT NO.: | P6: ='Bid Summary'!I4 -> 0
A7: REQUIRED | G7: UNIT | H7: TOTAL | I7: PAYROLL | J7: UNIT | K7: TOTAL | L7: SALES / USE | M7: UNIT | N7: TOTAL | O7: UNIT | P7: TOTAL
A8: IN BID | B8: PHASE CODE | C8: DESCRIPTION | E8: QTY | F8: UNIT | G8: LABOR | H8: LABOR | I8: TAX | J8: MATERIAL | K8: MATERIAL | L8: TAX | M8: SUB / EQUIP | N8: SUB / EQUIP | O8: MISC | P8: MISC | Q8: TOTAL
A9: X | C9: DIV. 1-- GENERAL CONDITIONS | H9: =SUM(H10,H28,H33,H38,H51,H64,H74,H83,H90,H157) -> 0 | I9: =SUM(I10,I28,I33,I38,I51,I64,I74,I83,I90,I157) -> 0 | K9: =SUM(K10,K28,K33,K38,K51,K64,K74,K83,K90,K157) -> 0 | L9: =SUM(L10,L28,L33,L38,L51,L64,L74,L83,L90,L157) -> 0 | N9: =SUM(N10,N28,N33,N38,N51,N64,N74,N83,N90,N157) -> 0 | P9: =SUM(P10,P28,P33,P38,P51,P64,P74,P83,P90,P157) -> 0 | Q9: =SUM(Q10,Q28,Q33,Q38,Q51,Q64,Q74,Q83,Q90,Q157) -> 0 | R9: =IF(AND(A9="X",Q9=0),"PROBLEM--CHECK VALUES OR QUANTITES","OK") -> PROBLEM--CHECK VALUES OR QUANTITES
B10: 1100 | C10: SUPERVISION | H10: =SUM(H11:H27) -> 0 | I10: =SUM(I11:I27) -> 0 | K10: =SUM(K11:K27) -> 0 | L10: =SUM(L11:L27) -> 0 | N10: =SUM(N11:N27) -> 0 | P10: =SUM(P11:P27) -> 0 | Q10: =SUM(Q11:Q27) -> 0 | R10: OK
B11: =B10+1 -> 1101 | C11: SUPERINTENDENT | F11: WKS | G11: 1800 | H11: =E11*G11 -> 0 | I11: =H11*(BURDEN) -> 0 | J11: 0 | K11: =J11*E11 -> 0 | L11: =K11*(TAX) -> 0 | M11: 0 | N11: =M11*E11 -> 0 | O11: 0 | P11: =O11*E11 -> 0 | Q11: =(H11+I11)+(K11+L11)+N11+P11 -> 0 | R11: OK
B12: 1102 | C12: ASST SUPERINTENDENT | F12: WKS | G12: 1000 | H12: 0 | I12: 0 | J12: 0 | K12: 0 | L12: 0 | M12: 0 | N12: 0 | O12: 0 | P12: 0 | Q12: 0 | R12: OK
B13: 1103 | C13: ASST SUPERINTENDENT | F13: WKS | G13: 900 | H13: 0 | I13: 0 | J13: 0 | K13: 0 | L13: 0 | M13: 0 | N13: 0 | O13: 0 | P13: 0 | Q13: 0 | R13: OK
B14: 1104 | C14: FIELD OFFICE ASSISTANT | F14: WKS | G14: 900 | H14: 0 | I14: 0 | J14: 0 | K14: 0 | L14: 0 | M14: 0 | N14: 0 | O14: 0 | P14: 0 | Q14: 0 | R14: OK
B15: 1105 | C15: PROJECT MANAGER | F15: WKS | G15: 400 | H15: 0 | I15: 0 | J15: 0 | K15: 0 | L15: 0 | M15: 0 | N15: 0 | O15: 0 | P15: 0 | Q15: 0 | R15: OK
B16: 1106 | C16: ADMIN | F16: WKS | G16: 200 | H16: 0 | I16: 0 | J16: 0 | K16: 0 | L16: 0 | M16: 0 | N16: 0 | O16: 0 | P16: 0 | Q16: 0 | R16: OK
B17: 1107 | C17: OFFICE | F17: WKS | G17: 200 | H17: 0 | I17: 0 | J17: 0 | K17: 0 | L17: 0 | M17: 0 | N17: 0 | O17: 0 | P17: 0 | Q17: 0 | R17: OK
B18: 1108 | C18: ASST PROJECT MANAGER | F18: WKS | G18: 1350 | H18: 0 | I18: 0 | J18: 0 | K18: 0 | L18: 0 | M18: 0 | N18: 0 | O18: 0 | P18: 0 | Q18: 0 | R18: OK
B19: 1109 | C19: E-I-T / OFFICE ENGINEER | F19: WKS | G19: 950 | H19: 0 | I19: 0 | J19: 0 | K19: 0 | L19: 0 | M19: 0 | N19: 0 | O19: 0 | P19: 0 | Q19: 0 | R19: OK
B20: 1110 | C20: JOB SECRETARY | F20: WKS | G20: 800 | H20: 0 | I20: 0 | J20: 0 | K20: 0 | L20: 0 | M20: 0 | N20: 0 | O20: 0 | P20: 0 | Q20: 0 | R20: OK
B21: 1111 | C21: CLERK/TIMEKEEPER | F21: WKS | G21: 750 | H21: 0 | I21: 0 | J21: 0 | K21: 0 | L21: 0 | M21: 0 | N21: 0 | O21: 0 | P21: 0 | Q21: 0 | R21: OK
B22: 1112 | C22: ESTIMATOR | F22: WKS | G22: 1500 | H22: 0 | I22: 0 | J22: 0 | K22: 0 | L22: 0 | M22: 0 | N22: 0 | O22: 0 | P22: 0 | Q22: 0 | R22: OK
B23: 1113 | C23: WATCHMAN/SECURITY | F23: WKS | G23: 1000 | H23: 0 | I23: 0 | J23: 0 | K23: 0 | L23: 0 | M23: 0 | N23: 0 | O23: 0 | P23: 0 | Q23: 0 | R23: OK
B24: 1114 | C24: FLAGMAN | F24: WKS | G24: 1150 | H24: 0 | I24: 0 | J24: 0 | K24: 0 | L24: 0 | M24: 0 | N24: 0 | O24: 0 | P24: 0 | Q24: 0 | R24: OK
B25: 1115 | C25: TRAFFIC CONTROL | F25: LS | G25: 0 | H25: 0 | I25: 0 | J25: 0 | K25: 0 | L25: 0 | M25: 0 | N25: 0 | O25: 0 | P25: 0 | Q25: 0 | R25: OK
B26: 1116 | C26: SCHEDULING SERVICES | F26: WKS | G26: 500 | H26: 0 | I26: 0 | J26: 0 | K26: 0 | L26: 0 | M26: 0 | N26: 0 | O26: 0 | P26: 0 | Q26: 0 | R26: OK
B27: 1117 | C27: CREW BONUS | F27: WKS | G27: 1500 | H27: 0 | I27: 0 | J27: 0 | K27: 0 | L27: 0 | M27: 0 | N27: 0 | O27: 0 | P27: 0 | Q27: 0 | R27: OK
B28: 1118 | C28: SUPPLEMENTAL EXPENSES: | H28: =SUM(H29:H32) -> 0 | I28: =SUM(I29:I32) -> 0 | K28: =SUM(K29:K32) -> 0 | L28: =SUM(L29:L32) -> 0 | N28: =SUM(N29:N32) -> 0 | P28: =SUM(P29:P32) -> 0 | Q28: =SUM(Q29:Q32) -> 0 | R28: OK
B29: 1119 | C29: SUPERINTENDENT | F29: WKS | G29: 0 | H29: =E29*G29 -> 0 | I29: =H29*(BURDEN) -> 0 | J29: 0 | K29: =J29*E29 -> 0 | L29: =K29*(TAX) -> 0 | M29: 0 | N29: =M29*E29 -> 0 | O29: 0 | P29: =O29*E29 -> 0 | Q29: =(H29+I29)+(K29+L29)+N29+P29 -> 0 | R29: OK
B30: 1120 | C30: ASST SUPERINTENDENT | F30: WKS | G30: 0 | H30: =E30*G30 -> 0 | I30: =H30*(BURDEN) -> 0 | J30: 0 | K30: =J30*E30 -> 0 | L30: =K30*(TAX) -> 0 | M30: 0 | N30: =M30*E30 -> 0 | O30: 0 | P30: =O30*E30 -> 0 | Q30: =(H30+I30)+(K30+L30)+N30+P30 -> 0 | R30: OK
B31: 1121 | C31: OTHER | F31: WKS | G31: 0 | H31: =E31*G31 -> 0 | I31: =H31*(BURDEN) -> 0 | J31: 0 | K31: =J31*E31 -> 0 | L31: =K31*(TAX) -> 0 | M31: 0 | N31: =M31*E31 -> 0 | O31: 0 | P31: =O31*E31 -> 0 | Q31: =(H31+I31)+(K31+L31)+N31+P31 -> 0 | R31: OK
B32: 1122 | C32: MOVING EXPENSES | F32: LS | G32: 0 | H32: =E32*G32 -> 0 | I32: =H32*(BURDEN) -> 0 | J32: 0 | K32: =J32*E32 -> 0 | L32: =K32*(TAX) -> 0 | M32: 0 | N32: =M32*E32 -> 0 | O32: 0 | P32: =O32*E32 -> 0 | Q32: =(H32+I32)+(K32+L32)+N32+P32 -> 0 | R32: OK
B33: 1123 | C33: TRAVEL: | H33: =SUM(H34:H37) -> 0 | I33: =SUM(I34:I37) -> 0 | K33: =SUM(K34:K37) -> 0 | L33: =SUM(L34:L37) -> 0 | N33: =SUM(N34:N37) -> 0 | P33: =SUM(P34:P37) -> 0 | Q33: =SUM(Q34:Q37) -> 0 | R33: OK
B34: 1124 | C34: DIVISION MANAGER | F34: WKS | G34: 0 | H34: =E34*G34 -> 0 | I34: =H34*(BURDEN) -> 0 | J34: 100 | K34: =J34*E34 -> 0 | L34: =K34*(TAX) -> 0 | M34: 0 | N34: =M34*E34 -> 0 | O34: 0 | P34: =O34*E34 -> 0 | Q34: =(H34+I34)+(K34+L34)+N34+P34 -> 0 | R34: OK
B35: 1125 | C35: PROJECT MANAGER | F35: WKS | G35: 0 | H35: =E35*G35 -> 0 | I35: =H35*(BURDEN) -> 0 | J35: 890 | K35: =J35*E35 -> 0 | L35: =K35*(TAX) -> 0 | M35: 0 | N35: =M35*E35 -> 0 | O35: 0 | P35: =O35*E35 -> 0 | Q35: =(H35+I35)+(K35+L35)+N35+P35 -> 0 | R35: OK
B36: 1126 | C36: SUPERINTENDENT LIVING EXPENSES | F36: WKS | G36: 0 | H36: =E36*G36 -> 0 | I36: =H36*(BURDEN) -> 0 | J36: 890 | K36: =J36*E36 -> 0 | L36: =K36*(TAX) -> 0 | M36: 0 | N36: =M36*E36 -> 0 | O36: 0 | P36: =O36*E36 -> 0 | Q36: =(H36+I36)+(K36+L36)+N36+P36 -> 0 | R36: OK
B37: 1127 | C37: CREW LIVING EXPENSES | F37: WKS | G37: 0 | H37: =E37*G37 -> 0 | I37: =H37*(BURDEN) -> 0 | J37: 890 | K37: =J37*E37 -> 0 | L37: =K37*(TAX) -> 0 | M37: 0 | N37: =M37*E37 -> 0 | O37: 0 | P37: =O37*E37 -> 0 | Q37: =(H37+I37)+(K37+L37)+N37+P37 -> 0 | R37: OK
B38: 1128 | C38: UTILITIES | H38: =SUM(H39:H50) -> 0 | I38: =SUM(I39:I50) -> 0 | K38: =SUM(K39:K50) -> 0 | L38: =SUM(L39:L50) -> 0 | N38: =SUM(N39:N50) -> 0 | P38: =SUM(P39:P50) -> 0 | Q38: =SUM(Q39:Q50) -> 0 | R38: OK
B39: 1129 | C39: TEMP POWER USAGE - OFFICE | F39: MO | G39: 0 | H39: =E39*G39 -> 0 | I39: =H39*(BURDEN) -> 0 | J39: 200 | K39: =J39*E39 -> 0 | L39: =K39*(TAX) -> 0 | M39: 0 | N39: =M39*E39 -> 0 | O39: 0 | P39: =O39*E39 -> 0 | Q39: =(H39+I39)+(K39+L39)+N39+P39 -> 0 | R39: OK
B40: 1130 | C40: - BUILDING | F40: MO | G40: 0 | H40: 0 | I40: 0 | J40: 0 | K40: 0 | L40: 0 | M40: 0 | N40: 0 | O40: 0 | P40: 0 | Q40: 0 | R40: OK
B41: 1131 | C41: TEMPORARY WATER USAGE | F41: MO | G41: 0 | H41: 0 | I41: 0 | J41: 800 | K41: 0 | L41: 0 | M41: 0 | N41: 0 | O41: 0 | P41: 0 | Q41: 0 | R41: OK
B42: 1132 | C42: TELEPHONE-CONTRACTOR | F42: MO | G42: 0 | H42: 0 | I42: 0 | J42: 150 | K42: 0 | L42: 0 | M42: 0 | N42: 0 | O42: 0 | P42: 0 | Q42: 0 | R42: OK
B43: 1133 | C43: MOBILE PHONES-( QTY @ $65/MO / PHONE) | F43: MO | G43: 0 | H43: 0 | I43: 0 | J43: 250 | K43: 0 | L43: 0 | M43: 0 | N43: 0 | O43: 0 | P43: 0 | Q43: 0 | R43: OK
B44: 1134 | C44: TELEPHONE-ARCHITECT | F44: MO | G44: 0 | H44: 0 | I44: 0 | J44: 100 | K44: 0 | L44: 0 | M44: 0 | N44: 0 | O44: 0 | P44: 0 | Q44: 0 | R44: OK
B45: 1135 | C45: TEMPORARY WIRING & LIGHTING | F45: LS | G45: 0 | H45: 0 | I45: 0 | J45: 0 | K45: 0 | L45: 0 | M45: 0 | N45: 0 | O45: 0 | P45: 0 | Q45: 0 | R45: OK
B46: 1136 | C46: EXTENSION CORDS & BULBS | F46: LS | G46: 0 | H46: 0 | I46: 0 | J46: 0 | K46: 0 | L46: 0 | M46: 0 | N46: 0 | O46: 0 | P46: 0 | Q46: 0 | R46: OK
B47: 1137 | C47: TEMPORARY PLUMBING | F47: LS | G47: 0 | H47: 0 | I47: 0 | J47: 0 | K47: 0 | L47: 0 | M47: 0 | N47: 0 | O47: 0 | P47: 0 | Q47: 0 | R47: OK
B48: 1138 | C48: ICE, CUPS, COOLER | F48: MO | G48: 0 | H48: 0 | I48: 0 | J48: 20 | K48: 0 | L48: 0 | M48: 0 | N48: 0 | O48: 0 | P48: 0 | Q48: 0 | R48: OK
B49: 1139 | C49: TEMPORARY HEAT | F49: MO | G49: 0 | H49: 0 | I49: 0 | J49: 500 | K49: 0 | L49: 0 | M49: 0 | N49: 0 | O49: 0 | P49: 0 | Q49: 0 | R49: OK
B50: 1140 | C50: TEMPORARY TOILETS | F50: MO | G50: 0 | H50: 0 | I50: 0 | J50: 130 | K50: 0 | L50: 0 | M50: 0 | N50: 0 | O50: 0 | P50: 0 | Q50: 0 | R50: OK
B51: 1141 | C51: MISC. | H51: =SUM(H52:H63) -> 0 | I51: =SUM(I52:I63) -> 0 | K51: =SUM(K52:K63) -> 0 | L51: =SUM(L52:L63) -> 0 | N51: =SUM(N52:N63) -> 0 | P51: =SUM(P52:P63) -> 0 | Q51: =SUM(Q52:Q63) -> 0 | R51: OK
B52: 1142 | C52: TEMPORARY FIELD LABOR | F52: WK | G52: 250 | H52: =E52*G52 -> 0 | I52: =H52*(BURDEN) -> 0 | J52: 0 | K52: =J52*E52 -> 0 | L52: =K52*(TAX) -> 0 | M52: 0 | N52: =M52*E52 -> 0 | O52: 0 | P52: =O52*E52 -> 0 | Q52: =(H52+I52)+(K52+L52)+N52+P52 -> 0 | R52: OK
B53: 1143 | C53: PROGRESS PHOTOGRAPHS | F53: MO | G53: 200 | H53: 0 | I53: 0 | J53: 0 | K53: 0 | L53: 0 | M53: 0 | N53: 0 | O53: 0 | P53: 0 | Q53: 0 | R53: OK
B54: 1144 | C54: SURVEYOR | F54: LS | G54: 0 | H54: 0 | I54: 0 | J54: 0 | K54: 0 | L54: 0 | M54: 10000 | N54: 0 | O54: 0 | P54: 0 | Q54: 0 | R54: OK
B55: 1145 | C55: JOB/PROJECT SIGN | F55: LS | G55: 0 | H55: 0 | I55: 0 | J55: 500 | K55: 0 | L55: 0 | M55: 500 | N55: 0 | O55: 0 | P55: 0 | Q55: 0 | R55: OK
B56: 1146 | C56: TEMP PROTECTION (EXISTING CONDITIONS) & DUST ENCLOSURES | E56: 1 | F56: LS | G56: 0 | H56: 0 | I56: 0 | J56: 0 | K56: 0 | L56: 0 | N56: 0 | O56: 0 | P56: 0 | Q56: 0 | R56: OK
B57: 1147 | C57: REPAIR/REPLACE BLINDS | E57: 1 | F57: LS | G57: 0 | H57: 0 | I57: 0 | J57: 0 | K57: 0 | L57: 0 | N57: 0 | O57: 0 | P57: 0 | Q57: 0 | R57: OK
B58: 1148 | C58: HVAC: PROVIDE TEMP INTAKE/RETURN GRILLE COVERS | E58: 1 | F58: LS | G58: 0 | H58: 0 | I58: 0 | J58: 0 | K58: 0 | L58: 0 | N58: 0 | O58: 0 | P58: 0 | Q58: 0 | R58: OK
B59: 1149 | C59: SANITARY SUPPLIES | F59: LS | G59: 0 | H59: 0 | I59: 0 | J59: 0 | K59: 0 | L59: 0 | M59: 0 | N59: 0 | O59: 0 | P59: 0 | Q59: 0 | R59: OK
B60: 1150 | C60: REPAIR STREET & SIDEWALK | F60: LS | G60: 0 | H60: 0 | I60: 0 | J60: 0 | K60: 0 | L60: 0 | M60: 0 | N60: 0 | O60: 0 | P60: 0 | Q60: 0 | R60: OK
B61: 1151 | C61: BLUEPRINTS/EXTRA DRAWINGS | F61: LS | G61: 0 | H61: 0 | I61: 0 | J61: 2000 | K61: 0 | L61: 0 | M61: 0 | N61: 0 | O61: 0 | P61: 0 | Q61: 0 | R61: OK
B62: 1152 | C62: TRAFFIC CONTROL | F62: LS | G62: 0 | H62: 0 | I62: 0 | J62: 0 | K62: 0 | L62: 0 | M62: 24000 | N62: 0 | O62: 0 | P62: 0 | Q62: 0 | R62: OK
B63: 1153 | C63: CPM Scheduler (3rd) Party | F63: LS | G63: 0 | H63: 0 | I63: 0 | J63: 0 | K63: 0 | L63: 0 | M63: 20000 | N63: 0 | O63: 0 | P63: 0 | Q63: 0 | R63: OK
B64: 1154 | C64: MISCELLANEOUS ITEMS | H64: =SUM(H65:H73) -> 0 | I64: =SUM(I65:I73) -> 0 | K64: =SUM(K65:K73) -> 0 | L64: =SUM(L65:L73) -> 0 | N64: =SUM(N65:N73) -> 0 | P64: =SUM(P65:P73) -> 0 | Q64: =SUM(Q65:Q73) -> 0 | R64: OK
B65: 1155 | C65: SEWER TAP FEE | F65: LS | G65: 0 | H65: =E65*G65 -> 0 | I65: =H65*(BURDEN) -> 0 | J65: 0 | K65: =J65*E65 -> 0 | L65: =K65*(TAX) -> 0 | M65: 0 | N65: =M65*E65 -> 0 | O65: 0 | P65: =O65*E65 -> 0 | Q65: =(H65+I65)+(K65+L65)+N65+P65 -> 0 | R65: OK
B66: 1156 | C66: WATER TAP FEE | F66: LS | G66: 0 | H66: 0 | I66: 0 | J66: 0 | K66: 0 | L66: 0 | M66: 0 | N66: 0 | O66: 0 | P66: 0 | Q66: 0 | R66: OK
B67: 1157 | C67: AGC FEE | F67: LS | G67: 0 | H67: 0 | I67: 0 | J67: 0 | K67: 0 | L67: 0 | M67: 0 | N67: 0 | O67: 0 | P67: 0 | Q67: 0 | R67: OK
B68: 1158 | C68: PHOTOGRAPHS | F68: LS | G68: 0 | H68: 0 | I68: 0 | J68: 0 | K68: 0 | L68: 0 | M68: 0 | N68: 0 | O68: 0 | P68: 0 | Q68: 0 | R68: OK
B69: 1159 | C69: AS-BUILT DRAWINGS | F69: LS | G69: 0 | H69: 0 | I69: 0 | J69: 0 | K69: 0 | L69: 0 | M69: 1000 | N69: 0 | O69: 0 | P69: 0 | Q69: 0 | R69: OK
B70: 1160 | C70: SPECIAL INSPECTION | F70: LS | G70: 0 | H70: 0 | I70: 0 | J70: 0 | K70: 0 | L70: 0 | M70: 0 | N70: 0 | O70: 0 | P70: 0 | Q70: 0 | R70: OK
B71: 1161 | C71: TESTING | F71: LS | G71: 0 | H71: 0 | I71: 0 | J71: 0 | K71: 0 | L71: 0 | M71: 2000 | N71: 0 | O71: 0 | P71: 0 | Q71: 0 | R71: OK
B72: 1162 | C72: WEATHER REPORTS | F72: LS | G72: 0 | H72: 0 | I72: 0 | J72: 0 | K72: 0 | L72: 0 | M72: 0 | N72: 0 | O72: 0 | P72: 0 | Q72: 0 | R72: OK
B73: 1163 | C73: EMPLOYEE INSURANCE | F73: LS | G73: 0 | H73: 0 | I73: 0 | J73: 0 | K73: 0 | L73: 0 | M73: 0 | N73: 0 | O73: 0 | P73: 0 | Q73: 0 | R73: =IF(AND(A73="X",Q73=0),"PROBLEM--CHECK VALUES OR QUANTITES","OK") -> OK
B74: 1164 | C74: SAFETY | H74: =SUM(H75:H82) -> 0 | I74: =SUM(I75:I82) -> 0 | K74: =SUM(K75:K82) -> 0 | L74: =SUM(L75:L82) -> 0 | N74: =SUM(N75:N82) -> 0 | P74: =SUM(P75:P82) -> 0 | Q74: =SUM(Q75:Q82) -> 0 | R74: OK
B75: =B74+1 -> 1165 | C75: FIRE EXTINQUISHERS | F75: LS | G75: 0 | H75: =E75*G75 -> 0 | I75: =H75*(BURDEN) -> 0 | J75: 200 | K75: =J75*E75 -> 0 | L75: =K75*(TAX) -> 0 | M75: 0 | N75: =M75*E75 -> 0 | O75: 0 | P75: =O75*E75 -> 0 | Q75: =(H75+I75)+(K75+L75)+N75+P75 -> 0 | R75: OK
B76: 1166 | C76: FIRST AID SUPPLIES | F76: LS | G76: 0 | H76: 0 | I76: 0 | J76: 500 | K76: 0 | L76: 0 | M76: 0 | N76: 0 | O76: 0 | P76: 0 | Q76: 0 | R76: OK
B77: 1167 | C77: HARD HATS | F77: LS | G77: 0 | H77: 0 | I77: 0 | J77: 200 | K77: 0 | L77: 0 | M77: 0 | N77: 0 | O77: 0 | P77: 0 | Q77: 0 | R77: OK
B78: 1168 | C78: RAINGEAR, BOOTS, ETC. | F78: LS | G78: 0 | H78: 0 | I78: 0 | J78: 0 | K78: 0 | L78: 0 | M78: 0 | N78: 0 | O78: 0 | P78: 0 | Q78: 0 | R78: OK
B79: 1169 | C79: SIGNS | F79: LS | G79: 0 | H79: 0 | I79: 0 | J79: 0 | K79: 0 | L79: 0 | M79: 0 | N79: 0 | O79: 0 | P79: 0 | Q79: 0 | R79: OK
B80: 1170 | C80: RAILINGS | F80: LF | G80: 0 | H80: 0 | I80: 0 | J80: 0 | K80: 0 | L80: 0 | M80: 0 | N80: 0 | O80: 0 | P80: 0 | Q80: 0 | R80: OK
B81: 1171 | C81: MISCELLANEOUS SAFETY ITEMS | F81: LS | G81: 0 | H81: 0 | I81: 0 | J81: 0 | K81: 0 | L81: 0 | M81: 0 | N81: 0 | O81: 0 | P81: 0 | Q81: 0 | R81: OK
B82: 1172 | C82: SECURITY FENCING | F82: LS | G82: 0 | H82: 0 | I82: 0 | J82: 0 | K82: 0 | L82: 0 | M82: 0 | N82: 0 | O82: 0 | P82: 0 | Q82: 0 | R82: OK
B83: 1173 | C83: CLEAN-UP | H83: =SUM(H84:H89) -> 0 | I83: =SUM(I84:I89) -> 0 | K83: =SUM(K84:K89) -> 0 | L83: =SUM(L84:L89) -> 0 | N83: =SUM(N84:N89) -> 0 | P83: =SUM(P84:P89) -> 0 | Q83: =SUM(Q84:Q89) -> 0 | R83: OK
B84: 1174 | C84: WEEKLY CLEAN (2 MEN @ $250/MD) | F84: MD | G84: 73 | H84: =E84*G84 -> 0 | I84: =H84*(BURDEN) -> 0 | J84: 0 | K84: =J84*E84 -> 0 | L84: =K84*(TAX) -> 0 | M84: 0 | N84: =M84*E84 -> 0 | O84: 0 | P84: =O84*E84 -> 0 | Q84: =(H84+I84)+(K84+L84)+N84+P84 -> 0 | R84: OK
B85: 1175 | C85: DUMPSTERS | F85: EA | G85: 0 | H85: 0 | I85: 0 | J85: 550 | K85: 0 | L85: 0 | M85: 0 | N85: 0 | O85: 0 | P85: 0 | Q85: 0 | R85: OK
B86: 1176 | C86: HAUL TRASH /DUMPSTER RENTAL | F86: WKS | G86: 0 | H86: 0 | I86: 0 | J86: 0 | K86: 0 | L86: 0 | M86: 425 | N86: 0 | O86: 0 | P86: 0 | Q86: 0 | R86: OK
B87: 1177 | C87: FINAL CLEAN-BUILDING | F87: SF | G87: 0 | H87: 0 | I87: 0 | J87: 0 | K87: 0 | L87: 0 | M87: 0.75 | N87: 0 | O87: 0 | P87: 0 | Q87: 0 | R87: OK
B88: 1178 | C88: GLASS | F88: SF | G88: 0 | H88: 0 | I88: 0 | J88: 0 | K88: 0 | L88: 0 | M88: 0 | N88: 0 | O88: 0 | P88: 0 | Q88: 0 | R88: OK
B89: 1179 | C89: GROUNDS | F89: LS | G89: 0 | H89: 0 | I89: 0 | J89: 0 | K89: 0 | L89: 0 | M89: 0 | N89: 0 | O89: 0 | P89: 0 | Q89: 0 | R89: OK
B90: 1180 | C90: EQUIPMENT | H90: =SUM(H91:H153) -> 0 | I90: =SUM(I91:I153) -> 0 | K90: =SUM(K91:K153) -> 0 | L90: =SUM(L91:L153) -> 0 | N90: =SUM(N91:N153) -> 0 | P90: =SUM(P91:P153) -> 0 | Q90: =SUM(Q91:Q156) -> 0 | R90: OK
B91: 1181 | C91: HAND DRILLS | F91: LS | G91: 0 | H91: =E91*G91 -> 0 | I91: =H91*(BURDEN) -> 0 | J91: 0 | K91: =J91*E91 -> 0 | L91: =K91*(TAX) -> 0 | M91: 0 | N91: =M91*E91 -> 0 | O91: 0 | P91: =O91*E91 -> 0 | Q91: =(H91+I91)+(K91+L91)+N91+P91 -> 0 | R91: OK
B92: 1182 | C92: CIRCULAR SAW | F92: LS | G92: 0 | H92: 0 | I92: 0 | J92: 0 | K92: 0 | L92: 0 | M92: 0 | N92: 0 | O92: 0 | P92: 0 | Q92: 0 | R92: OK
B93: 1183 | C93: RADIAL ARM SAW | F93: LS | G93: 0 | H93: 0 | I93: 0 | J93: 0 | K93: 0 | L93: 0 | M93: 0 | N93: 0 | O93: 0 | P93: 0 | Q93: 0 | R93: OK
B94: 1184 | C94: RAMSET | F94: LS | G94: 0 | H94: 0 | I94: 0 | J94: 0 | K94: 0 | L94: 0 | M94: 0 | N94: 0 | O94: 0 | P94: 0 | Q94: 0 | R94: OK
B95: 1185 | C95: DOOR HANGING EQUIPMENT | F95: LS | G95: 0 | H95: 0 | I95: 0 | J95: 0 | K95: 0 | L95: 0 | M95: 0 | N95: 0 | O95: 0 | P95: 0 | Q95: 0 | R95: OK
B96: 1186 | C96: ROTARY HAMMER | F96: LS | G96: 0 | H96: 0 | I96: 0 | J96: 0 | K96: 0 | L96: 0 | M96: 0 | N96: 0 | O96: 0 | P96: 0 | Q96: 0 | R96: OK
B97: 1187 | C97: SAW BLADES,BITS,ETC. | F97: LS | G97: 0 | H97: 0 | I97: 0 | J97: 0 | K97: 0 | L97: 0 | M97: 0 | N97: 0 | O97: 0 | P97: 0 | Q97: 0 | R97: OK
B98: 1188 | C98: FORKLIFT | F98: MOS | G98: 0 | H98: 0 | I98: 0 | J98: 0 | K98: 0 | L98: 0 | M98: 600 | N98: 0 | O98: 0 | P98: 0 | Q98: 0 | R98: OK
B99: 1189 | C99: MOTOR GRADER | F99: MOS | G99: 0 | H99: 0 | I99: 0 | J99: 0 | K99: 0 | L99: 0 | M99: 0 | N99: 0 | O99: 0 | P99: 0 | Q99: 0 | R99: OK
B100: 1190 | C100: MOBILE CRANE | F100: MOS | G100: 0 | H100: 0 | I100: 0 | J100: 0 | K100: 0 | L100: 0 | M100: 0 | N100: 0 | O100: 0 | P100: 0 | Q100: 0 | R100: OK
B101: 1191 | C101: WHEELBARROWS | F101: LS | G101: 0 | H101: 0 | I101: 0 | J101: 0 | K101: 0 | L101: 0 | M101: 0 | N101: 0 | O101: 0 | P101: 0 | Q101: 0 | R101: OK
B102: 1192 | C102: BUGGIES | F102: LS | G102: 0 | H102: 0 | I102: 0 | J102: 0 | K102: 0 | L102: 0 | M102: 0 | N102: 0 | O102: 0 | P102: 0 | Q102: 0 | R102: OK
B103: 1193 | C103: CONCRETE BUCKET | F103: LS | G103: 0 | H103: 0 | I103: 0 | J103: 0 | K103: 0 | L103: 0 | M103: 0 | N103: 0 | O103: 0 | P103: 0 | Q103: 0 | R103: OK
B104: 1194 | C104: CONVEYORS | F104: MOS | G104: 0 | H104: 0 | I104: 0 | J104: 0 | K104: 0 | L104: 0 | M104: 0 | N104: 0 | O104: 0 | P104: 0 | Q104: 0 | R104: OK
B105: 1195 | C105: TREMIE | F105: LS | G105: 0 | H105: 0 | I105: 0 | J105: 0 | K105: 0 | L105: 0 | M105: 0 | N105: 0 | O105: 0 | P105: 0 | Q105: 0 | R105: OK
B106: 1196 | C106: CHUTES | F106: MOS | G106: 0 | H106: 0 | I106: 0 | J106: 0 | K106: 0 | L106: 0 | M106: 0 | N106: 0 | O106: 0 | P106: 0 | Q106: 0 | R106: OK
B107: 1197 | C107: VIBRATORS | F107: LS | G107: 0 | H107: 0 | I107: 0 | J107: 0 | K107: 0 | L107: 0 | M107: 0 | N107: 0 | O107: 0 | P107: 0 | Q107: 0 | R107: OK
B108: 1198 | C108: CONCRETE PUMP & OPERATOR | F108: LS | G108: 0 | H108: 0 | I108: 0 | J108: 0 | K108: 0 | L108: 0 | M108: 0 | N108: 0 | O108: 0 | P108: 0 | Q108: 0 | R108: OK
B109: 1199 | C109: CONCRETE SAW & BLADES | F109: LS | G109: 0 | H109: 0 | I109: 0 | J109: 0 | K109: 0 | L109: 0 | M109: 0 | N109: 0 | O109: 0 | P109: 0 | Q109: 0 | R109: OK
B110: 1200 | C110: GRINDERS & STONES | F110: LS | G110: 0 | H110: 0 | I110: 0 | J110: 0 | K110: 0 | L110: 0 | M110: 0 | N110: 0 | O110: 0 | P110: 0 | Q110: 0 | R110: OK
B111: 1201 | C111: CONVENTIONAL CRANE W/OPR. | F111: MOS | G111: 0 | H111: 0 | I111: 0 | J111: 0 | K111: 0 | L111: 0 | M111: 0 | N111: 0 | O111: 0 | P111: 0 | Q111: 0 | R111: OK
B112: 1202 | C112: TOWER CRANE W/OPR. | F112: MOS | G112: 0 | H112: 0 | I112: 0 | J112: 0 | K112: 0 | L112: 0 | M112: 0 | N112: 0 | O112: 0 | P112: 0 | Q112: 0 | R112: OK
B113: 1203 | C113: CRANE ELEC. POWER / FUEL | F113: MOS | G113: 0 | H113: 0 | I113: 0 | J113: 0 | K113: 0 | L113: 0 | M113: 0 | N113: 0 | O113: 0 | P113: 0 | Q113: 0 | R113: OK
B114: 1204 | C114: TOWER CRANE ELECTRIC WIRING | F114: MOS | G114: 0 | H114: 0 | I114: 0 | J114: 0 | K114: 0 | L114: 0 | M114: 0 | N114: 0 | O114: 0 | P114: 0 | Q114: 0 | R114: OK
B115: 1205 | C115: TOWER CRANE FOUNDATIONS | F115: MOS | G115: 0 | H115: 0 | I115: 0 | J115: 0 | K115: 0 | L115: 0 | M115: 0 | N115: 0 | O115: 0 | P115: 0 | Q115: 0 | R115: OK
B116: 1206 | C116: CRANE-ERCT/JUMP/DISMN | F116: MOS | G116: 0 | H116: 0 | I116: 0 | J116: 0 | K116: 0 | L116: 0 | M116: 0 | N116: 0 | O116: 0 | P116: 0 | Q116: 0 | R116: OK
B117: 1207 | C117: TOWER CRANE CONSULTANT | F117: MOS | G117: 0 | H117: 0 | I117: 0 | J117: 0 | K117: 0 | L117: 0 | M117: 0 | N117: 0 | O117: 0 | P117: 0 | Q117: 0 | R117: OK
B118: 1208 | C118: TOWER CRANE ANCHOR BOLTS | F118: MOS | G118: 0 | H118: 0 | I118: 0 | J118: 0 | K118: 0 | L118: 0 | M118: 0 | N118: 0 | O118: 0 | P118: 0 | Q118: 0 | R118: OK
B119: 1209 | C119: FREIGHT | F119: LS | G119: 0 | H119: 0 | I119: 0 | J119: 0 | K119: 0 | L119: 0 | M119: 0 | N119: 0 | O119: 0 | P119: 0 | Q119: 0 | R119: OK
B120: 1210 | C120: CHERRY PICKER W/OPR. | F120: LS | G120: 0 | H120: 0 | I120: 0 | J120: 0 | K120: 0 | L120: 0 | M120: 0 | N120: 0 | O120: 0 | P120: 0 | Q120: 0 | R120: OK
B121: 1211 | C121: OCCASIONAL CRANE RENTAL | F121: MOS | G121: 0 | H121: 0 | I121: 0 | J121: 0 | K121: 0 | L121: 0 | M121: 0 | N121: 0 | O121: 0 | P121: 0 | Q121: 0 | R121: OK
B122: 1212 | C122: MATERIAL HOIST & OPERATOR | F122: MOS | G122: 0 | H122: 0 | I122: 0 | J122: 0 | K122: 0 | L122: 0 | M122: 0 | N122: 0 | O122: 0 | P122: 0 | Q122: 0 | R122: OK
B123: 1213 | C123: MATL/PERS HOIST & OPERATOR | F123: MOS | G123: 0 | H123: 0 | I123: =H123*(BURDEN) -> 0 | J123: 0 | K123: 0 | L123: =K123*(TAX) -> 0 | M123: 0 | N123: 0 | O123: 0 | P123: 0 | Q123: 0 | R123: OK
B124: 1214 | C124: HOIST FOUNDATION | F124: MOS | G124: 0 | H124: 0 | I124: 0 | J124: 0 | K124: 0 | L124: 0 | M124: 0 | N124: 0 | O124: 0 | P124: 0 | Q124: 0 | R124: OK
B125: 1215 | C125: HOIST ELECTRIC POWER | F125: MOS | G125: 0 | H125: 0 | I125: 0 | J125: 0 | K125: 0 | L125: 0 | M125: 0 | N125: 0 | O125: 0 | P125: 0 | Q125: 0 | R125: OK
B126: 1216 | C126: HOIST ELECTRIC WIRING | F126: MOS | G126: 0 | H126: 0 | I126: 0 | J126: 0 | K126: 0 | L126: 0 | M126: 0 | N126: 0 | O126: 0 | P126: 0 | Q126: 0 | R126: OK
B127: 1217 | C127: ANCHOR BOLTS | F127: LS | G127: 0 | H127: 0 | I127: 0 | J127: 0 | K127: 0 | L127: 0 | M127: 0 | N127: 0 | O127: 0 | P127: 0 | Q127: 0 | R127: OK
B128: 1218 | C128: FREIGHT | F128: LS | G128: 0 | H128: 0 | I128: 0 | J128: 0 | K128: 0 | L128: 0 | M128: 0 | N128: 0 | O128: 0 | P128: 0 | Q128: 0 | R128: OK
B129: 1219 | C129: HOIST-ERECT/JUMP/DISMN | F129: MOS | G129: 0 | H129: 0 | I129: 0 | J129: 0 | K129: 0 | L129: 0 | M129: 0 | N129: 0 | O129: 0 | P129: 0 | Q129: 0 | R129: OK
B130: 1220 | C130: PROTECT BLDG. ELEVATOR CAB | F130: MOS | G130: 0 | H130: 0 | I130: 0 | J130: 0 | K130: 0 | L130: 0 | M130: 0 | N130: 0 | O130: 0 | P130: 0 | Q130: 0 | R130: OK
B131: 1221 | C131: BUILDING ELEVATOR OPERATOR | F131: MOS | G131: 0 | H131: 0 | I131: 0 | J131: 0 | K131: 0 | L131: 0 | M131: 0 | N131: 0 | O131: 0 | P131: 0 | Q131: 0 | R131: OK
B132: 1222 | C132: OFFICE TRAILER - GC | F132: MOS | G132: 0 | H132: 0 | I132: 0 | J132: 725 | K132: 0 | L132: 0 | M132: 0 | N132: 0 | O132: 0 | P132: 0 | Q132: 0 | R132: OK
B133: 1223 | C133: OFFICE TRAILER - A & E | F133: MOS | G133: 0 | H133: 0 | I133: 0 | J133: 0 | K133: 0 | L133: 0 | M133: 0 | N133: 0 | O133: 0 | P133: 0 | Q133: 0 | R133: OK
B134: 1224 | C134: OFFICE EQUIPMENT - GC | F134: MOS | G134: 0 | H134: 0 | I134: 0 | J134: 500 | K134: 0 | L134: 0 | M134: 0 | N134: 0 | O134: 0 | P134: 0 | Q134: 0 | R134: OK
B135: 1225 | C135: COMPUTER TERMINAL | F135: LS | G135: 0 | H135: 0 | I135: 0 | J135: 0 | K135: 0 | L135: 0 | M135: 0 | N135: 0 | O135: 0 | P135: 0 | Q135: 0 | R135: OK
B136: 1226 | C136: PHONE-FAX-COMPUTER | F136: LS | G136: 0 | H136: 0 | I136: 0 | J136: 32 | K136: 0 | L136: 0 | M136: 0 | N136: 0 | O136: 0 | P136: 0 | Q136: 0 | R136: OK
B137: 1227 | C137: CUTTING TORCH (INC. GAS) | F137: LS | G137: 0 | H137: 0 | I137: 0 | J137: 0 | K137: 0 | L137: 0 | M137: 0 | N137: 0 | O137: 0 | P137: 0 | Q137: 0 | R137: =IF(AND(A137="X",Q137=0),"PROBLEM--CHECK VALUES OR QUANTITES","OK") -> OK
B138: 1228 | C138: AIR COMPRESSOR W/HOSE | F138: LS | G138: 0 | H138: 0 | I138: 0 | J138: 0 | K138: 0 | L138: 0 | M138: 0 | N138: 0 | O138: 0 | P138: 0 | Q138: 0 | R138: OK
B139: =B138+1 -> 1229 | C139: TAMPS | F139: LS | G139: 0 | H139: 0 | I139: 0 | J139: 0 | K139: 0 | L139: 0 | M139: 0 | N139: 0 | O139: 0 | P139: 0 | Q139: 0 | R139: OK
B140: 1230 | C140: GENERATOR | F140: MOS | G140: 0 | H140: 0 | I140: 0 | J140: 0 | K140: 0 | L140: 0 | M140: 0 | N140: 0 | O140: 0 | P140: 0 | Q140: 0 | R140: OK
B141: 1231 | C141: PUMPS | F141: LS | G141: 0 | H141: 0 | I141: 0 | J141: 0 | K141: 0 | L141: 0 | M141: 0 | N141: 0 | O141: 0 | P141: 0 | Q141: 0 | R141: OK
B142: 1232 | C142: ROCK DRILL | F142: LS | G142: 0 | H142: 0 | I142: 0 | J142: 0 | K142: 0 | L142: 0 | M142: 0 | N142: 0 | O142: 0 | P142: 0 | Q142: 0 | R142: OK
B143: 1233 | C143: JACKHAMMER | F143: LS | G143: 0 | H143: 0 | I143: 0 | J143: 0 | K143: 0 | L143: 0 | M143: 0 | N143: 0 | O143: 0 | P143: 0 | Q143: 0 | R143: OK
B144: 1234 | C144: SWING STAGE | F144: LS | G144: 0 | H144: 0 | I144: 0 | J144: 0 | K144: 0 | L144: 0 | M144: 0 | N144: 0 | O144: 0 | P144: 0 | Q144: 0 | R144: OK
B145: 1235 | C145: SCAFFOLD FRAMES & BOARDS | F145: MOS | G145: 0 | H145: 0 | I145: 0 | J145: 0 | K145: 0 | L145: 0 | M145: 0 | N145: 0 | O145: 0 | P145: 0 | Q145: 0 | R145: OK
B146: 1236 | C146: HEATERS | F146: MOS | G146: 0 | H146: 0 | I146: 0 | J146: 0 | K146: 0 | L146: 0 | M146: 0 | N146: 0 | O146: 0 | P146: 0 | Q146: 0 | R146: OK
B147: 1237 | C147: FLOOR POLISH/SWEEPER/SANDER | F147: LS | G147: 0 | H147: 0 | I147: 0 | J147: 0 | K147: 0 | L147: 0 | M147: 0 | N147: 0 | O147: 0 | P147: 0 | Q147: 0 | R147: OK
B148: 1238 | C148: VACUUM CLEANER | F148: LS | G148: 0 | H148: 0 | I148: 0 | J148: 0 | K148: 0 | L148: 0 | M148: 0 | N148: 0 | O148: 0 | P148: 0 | Q148: 0 | R148: OK
B149: 1239 | C149: CHAIN SAW | F149: LS | G149: 0 | H149: 0 | I149: 0 | J149: 0 | K149: 0 | L149: 0 | M149: 0 | N149: 0 | O149: 0 | P149: 0 | Q149: 0 | R149: OK
B150: 1240 | C150: SMALL TOOLS | F150: LS | G150: 0 | H150: 0 | I150: 0 | J150: 250 | K150: 0 | L150: 0 | M150: 0 | N150: 0 | O150: 0 | P150: 0 | Q150: 0 | R150: OK
B151: 1241 | C151: WEB-CAMS | F151: LS | G151: 0 | H151: 0 | I151: 0 | J151: 0 | K151: 0 | L151: 0 | M151: 0 | N151: 0 | O151: 0 | P151: 0 | Q151: 0 | R151: OK
B152: 1242 | C152: SPECIAL TOOLS | F152: LS | G152: 0 | H152: 0 | I152: 0 | J152: 0 | K152: 0 | L152: 0 | M152: 0 | N152: 0 | O152: 0 | P152: 0 | Q152: 0 | R152: OK
B153: 1243 | C153: OTHER EQPT NOT LISTED ABOVE | F153: LS | G153: 0 | H153: 0 | I153: 0 | J153: 0 | K153: 0 | L153: 0 | M153: 0 | N153: 0 | O153: 0 | P153: 0 | Q153: 0 | R153: OK
B154: 1244 | C154: PICKUP TRUCK-SUPERINTENDENT (1 EA) | F154: WKS | G154: 0 | H154: 0 | I154: 0 | J154: 0 | K154: 0 | L154: 0 | M154: 550 | N154: 0 | O154: 0 | P154: 0 | Q154: 0 | R154: OK
B155: 1245 | C155: PICKUP TRUCK-PROJECT MGR. (1 EA) | F155: WKS | G155: 0 | H155: =E155*G155 -> 0 | I155: =H155*(BURDEN) -> 0 | J155: 0 | K155: =J155*E155 -> 0 | L155: =K155*(TAX) -> 0 | M155: 550 | N155: =M155*E155 -> 0 | O155: 0 | P155: =O155*E155 -> 0 | Q155: =(H155+I155)+(K155+L155)+N155+P155 -> 0 | R155: OK
B156: 1246 | C156: PICKUP TRUCK-ASSISTANT/LABOR (1 EA) | F156: MOS | G156: 0 | H156: 0 | I156: 0 | J156: 0 | K156: 0 | L156: 0 | M156: 550 | N156: 0 | O156: 0 | P156: 0 | Q156: 0 | R156: OK
B157: 1247 | C157: MISCELLANEOUS EQUIPMENT COSTS | H157: =SUM(H158:H162) -> 0 | I157: =SUM(I158:I162) -> 0 | K157: =SUM(K158:K162) -> 0 | L157: =SUM(L158:L162) -> 0 | N157: =SUM(N158:N162) -> 0 | P157: =SUM(P158:P162) -> 0 | Q157: =SUM(Q158:Q162) -> 0 | R157: OK
B158: 1248 | C158: MOBILIZATION | F158: LS | G158: 290 | H158: =E158*G158 -> 0 | I158: =H158*(BURDEN) -> 0 | J158: 115 | K158: =J158*E158 -> 0 | L158: =K158*(TAX) -> 0 | M158: 0 | N158: =M158*E158 -> 0 | O158: 0 | P158: =O158*E158 -> 0 | Q158: =(H158+I158)+(K158+L158)+N158+P158 -> 0 | R158: OK
B159: 1249 | C159: FREIGHT ON EQUIPMENT | F159: LS | G159: 0 | H159: =E159*G159 -> 0 | I159: =H159*(BURDEN) -> 0 | J159: 0 | K159: =J159*E159 -> 0 | L159: =K159*(TAX) -> 0 | M159: 0 | N159: =M159*E159 -> 0 | O159: 0 | P159: =O159*E159 -> 0 | Q159: =(H159+I159)+(K159+L159)+N159+P159 -> 0 | R159: OK
B160: 1250 | C160: INSURANCE ON EQUIPMENT | F160: LS | G160: 0 | H160: =E160*G160 -> 0 | I160: =H160*(BURDEN) -> 0 | J160: 6713 | K160: =J160*E160 -> 0 | L160: =K160*(TAX) -> 0 | M160: 0 | N160: =M160*E160 -> 0 | O160: 0 | P160: =O160*E160 -> 0 | Q160: =(H160+I160)+(K160+L160)+N160+P160 -> 0 | R160: OK
B161: 1251 | C161: PARTS & REPAIRS | F161: LS | G161: 0 | H161: =E161*G161 -> 0 | I161: =H161*(BURDEN) -> 0 | J161: 0 | K161: =J161*E161 -> 0 | L161: =K161*(TAX) -> 0 | M161: 0 | N161: =M161*E161 -> 0 | O161: 0 | P161: =O161*E161 -> 0 | Q161: =(H161+I161)+(K161+L161)+N161+P161 -> 0 | R161: OK
B162: 1252 | C162: LUBRICANTS & FUELS | F162: WKS | G162: 0 | H162: =E162*G162 -> 0 | I162: =H162*(BURDEN) -> 0 | J162: 210 | K162: =J162*E162 -> 0 | L162: =K162*(TAX) -> 0 | M162: 0 | N162: =M162*E162 -> 0 | O162: 0 | P162: =O162*E162 -> 0 | Q162: =(H162+I162)+(K162+L162)+N162+P162 -> 0 | R162: OK
A163: X | C163: DIV. 2-- SITE CONSTRUCTION | H163: =SUM(H164,H168) -> 0 | I163: =SUM(I164,I168) -> 0 | K163: =SUM(K164,K168) -> 0 | L163: =SUM(L164,L168) -> 0 | N163: =SUM(N164,N168) -> 0 | P163: =SUM(P164,P168) -> 0 | Q163: =SUM(Q164,Q168) -> 0 | R163: PROBLEM--CHECK VALUES OR QUANTITES
B164: 2100 | C164: Demolition | H164: =SUM(H165:H167) -> 0 | I164: =SUM(I165:I167) -> 0 | K164: =SUM(K165:K167) -> 0 | L164: =SUM(L165:L167) -> 0 | N164: =SUM(N165:N167) -> 0 | P164: =SUM(P165:P167) -> 0 | Q164: =SUM(Q165:Q167) -> 0 | R164: OK
B165: =B164+1 -> 2101 | C165: Demolition | E165: 1 | F165: ls | G165: 0 | H165: =E165*G165 -> 0 | I165: =H165*(BURDEN) -> 0 | J165: 0 | K165: =J165*E165 -> 0 | L165: =K165*(TAX) -> 0 | N165: =M165*E165 -> 0 | O165: 0 | P165: =O165*E165 -> 0 | Q165: =(H165+I165)+(K165+L165)+N165+P165 -> 0 | R165: OK
B166: =B165+1 -> 2102 | C166: Dispose of Debris | E166: 0 | F166: ls | G166: 0 | H166: =E166*G166 -> 0 | I166: =H166*(BURDEN) -> 0 | J166: 0 | K166: =J166*E166 -> 0 | L166: =K166*(TAX) -> 0 | M166: 0 | N166: =M166*E166 -> 0 | O166: 0 | P166: =O166*E166 -> 0 | Q166: =(H166+I166)+(K166+L166)+N166+P166 -> 0 | R166: OK
B167: =B166+1 -> 2103 | C167: Labor | E167: 0 | F167: md | G167: 0 | H167: =E167*G167 -> 0 | I167: =H167*(BURDEN) -> 0 | J167: 0 | K167: =J167*E167 -> 0 | L167: =K167*(TAX) -> 0 | M167: 0 | N167: =M167*E167 -> 0 | O167: 0 | P167: =O167*E167 -> 0 | Q167: =(H167+I167)+(K167+L167)+N167+P167 -> 0 | R167: OK
B168: 2150 | C168: Temp Construction | H168: =SUM(H169:H177) -> 0 | I168: =SUM(I169:I177) -> 0 | K168: =SUM(K169:K177) -> 0 | L168: =SUM(L169:L177) -> 0 | N168: =SUM(N169:N177) -> 0 | P168: =SUM(P169:P177) -> 0 | Q168: =SUM(Q169:Q177) -> 0 | R168: OK
B169: =B168+1 -> 2151 | C169: Walks | E169: 0 | F169: ls | G169: 0 | H169: =E169*G169 -> 0 | I169: =H169*(BURDEN) -> 0 | J169: 0 | K169: =J169*E169 -> 0 | L169: =K169*(TAX) -> 0 | M169: 0 | N169: =M169*E169 -> 0 | O169: 0 | P169: =O169*E169 -> 0 | Q169: =(H169+I169)+(K169+L169)+N169+P169 -> 0 | R169: OK
B170: 2152 | C170: Walls | E170: 0 | F170: ls | G170: 0 | H170: 0 | I170: 0 | J170: 0 | K170: 0 | L170: 0 | M170: 0 | N170: 0 | O170: 0 | P170: 0 | Q170: 0 | R170: OK
B171: 2153 | C171: Curtains | E171: 0 | F171: ls | G171: 0 | H171: 0 | I171: 0 | J171: 0 | K171: 0 | L171: 0 | M171: 0 | N171: 0 | O171: 0 | P171: 0 | Q171: 0 | R171: OK
B172: 2154 | C172: Shelters | E172: 0 | F172: ls | G172: 0 | H172: 0 | I172: 0 | J172: 0 | K172: 0 | L172: 0 | M172: 0 | N172: 0 | O172: 0 | P172: 0 | Q172: 0 | R172: OK
B173: 2155 | C173: Storage area | E173: 0 | F173: ls | G173: 0 | H173: 0 | I173: 0 | J173: 0 | K173: 0 | L173: 0 | M173: 0 | N173: 0 | O173: 0 | P173: 0 | Q173: 0 | R173: OK
B174: 2156 | C174: Roads & Access | E174: 0 | F174: ls | G174: 0 | H174: 0 | I174: 0 | J174: 0 | K174: 0 | L174: 0 | M174: 0 | N174: 0 | O174: 0 | P174: 0 | Q174: 0 | R174: OK
B175: 2157 | C175: Traffic control | E175: 0 | F175: ls | G175: 0 | H175: 0 | I175: 0 | J175: 0 | K175: 0 | L175: 0 | M175: 0 | N175: 0 | O175: 0 | P175: 0 | Q175: 0 | R175: OK
B176: 2158 | C176: Other | E176: 0 | F176: ls | G176: 0 | H176: 0 | I176: 0 | J176: 0 | K176: 0 | L176: 0 | M176: 0 | N176: 0 | O176: 0 | P176: 0 | Q176: 0 | R176: OK
B177: 2159 | C177: Labor | F177: md | G177: 250 | H177: 0 | I177: 0 | J177: 0 | K177: 0 | L177: 0 | M177: 0 | N177: 0 | O177: 0 | P177: 0 | Q177: 0 | R177: OK
A178: X | C178: DIV. 3- CONCRETE | H178: =+H179+H181+H190+H199+H210+H224+H235+H246+H263+H296+H313+H356+H364+H386+H409+H423+H475+H488+H495+H509+H514 -> 0 | I178: =+I179+I181+I190+I199+I210+I224+I235+I246+I263+I296+I313+I356+I364+I386+I409+I423+I475+I488+I495+I509+I514 -> 0 | K178: =+K179+K181+K190+K199+K210+K224+K235+K246+K263+K296+K313+K356+K364+K386+K409+K423+K475+K488+K495+K509+K514 -> 0 | L178: =+L179+L181+L190+L199+L210+L224+L235+L246+L263+L296+L313+L356+L364+L386+L409+L423+L475+L488+L495+L509+L514 -> 0 | N178: =+N179+N181+N190+N199+N210+N224+N235+N246+N263+N296+N313+N356+N364+N386+N409+N423+N475+N488+N495+N509+N514 -> 0 | P178: =+P179+P181+P190+P199+P210+P224+P235+P246+P263+P296+P313+P356+P364+P386+P409+P423+P475+P488+P495+P509+P514 -> 0 | Q178: =+Q179+Q181+Q190+Q199+Q210+Q224+Q235+Q246+Q263+Q296+Q313+Q356+Q364+Q386+Q409+Q423+Q475+Q488+Q495+Q509+Q514 -> 0 | R178: PROBLEM--CHECK VALUES OR QUANTITES
B179: 3001 | C179: Concrete | H179: =SUM(H180) -> 0 | I179: =SUM(I180) -> 0 | K179: =SUM(K180) -> 0 | L179: =SUM(L180) -> 0 | N179: =SUM(N180) -> 0 | P179: =SUM(P180) -> 0 | Q179: =SUM(Q180) -> 0 | R179: OK
B180: =B179+1 -> 3002 | C180: Subcontract Complete (Lump Sum / Turn-Key) | E180: 1 | F180: ls | G180: 0 | H180: =E180*G180 -> 0 | I180: =H180*(BURDEN) -> 0 | J180: 0 | K180: =J180*E180 -> 0 | L180: =K180*(TAX) -> 0 | N180: =M180*E180 -> 0 | O180: 0 | P180: =O180*E180 -> 0 | Q180: =(H180+I180)+(K180+L180)+N180+P180 -> 0 | R180: OK
B181: 3100 | C181: Caissons | H181: =SUM(H182:H189) -> 0 | I181: =SUM(I182:I189) -> 0 | K181: =SUM(K182:K189) -> 0 | L181: =SUM(L182:L189) -> 0 | N181: =SUM(N182:N189) -> 0 | P181: =SUM(P182:P189) -> 0 | Q181: =SUM(Q182:Q189) -> 0 | R181: OK
B182: =B181+1 -> 3101 | C182: Subcontract | E182: 0 | F182: ls | G182: 0 | H182: =E182*G182 -> 0 | I182: =H182*(BURDEN) -> 0 | J182: 0 | K182: =J182*E182 -> 0 | L182: =K182*(TAX) -> 0 | M182: 0 | N182: =M182*E182 -> 0 | O182: 0 | P182: =O182*E182 -> 0 | Q182: =(H182+I182)+(K182+L182)+N182+P182 -> 0 | R182: OK
B183: 3102 | C183: Concrete | E183: 0 | F183: cy | G183: 0 | H183: 0 | I183: 0 | J183: 0 | K183: 0 | L183: 0 | M183: 0 | N183: 0 | O183: 0 | P183: 0 | Q183: 0 | R183: OK
B184: 3103 | C184: Place Concrete | E184: 0 | F184: cy | G184: 0 | H184: 0 | I184: 0 | J184: 0 | K184: 0 | L184: 0 | M184: 0 | N184: 0 | O184: 0 | P184: 0 | Q184: 0 | R184: OK
B185: 3104 | C185: Excavation | E185: 0 | F185: cy | G185: 0 | H185: 0 | I185: 0 | J185: 0 | K185: 0 | L185: 0 | M185: 0 | N185: 0 | O185: 0 | P185: 0 | Q185: 0 | R185: OK
B186: 3105 | C186: Backfill | E186: 0 | F186: cy | G186: 0 | H186: 0 | I186: 0 | J186: 0 | K186: 0 | L186: 0 | M186: 0 | N186: 0 | O186: 0 | P186: 0 | Q186: 0 | R186: OK
B187: 3106 | C187: Dispose of Excess | E187: 0 | F187: cy | G187: 0 | H187: 0 | I187: 0 | J187: 0 | K187: 0 | L187: 0 | M187: 0 | N187: 0 | O187: 0 | P187: 0 | Q187: 0 | R187: OK
B188: 3107 | C188: Reinf Bars | E188: 0 | F188: lb | G188: 0 | H188: 0 | I188: 0 | J188: 0 | K188: 0 | L188: 0 | M188: 0 | N188: 0 | O188: 0 | P188: 0 | Q188: 0 | R188: OK
B189: 3108 | C189: Labor | E189: 0 | F189: md | G189: 250 | H189: 0 | I189: 0 | J189: 0 | K189: 0 | L189: 0 | M189: 0 | N189: 0 | O189: 0 | P189: 0 | Q189: 0 | R189: OK
B190: 3110 | C190: Pile Caps | H190: =SUM(H191:H198) -> 0 | I190: =SUM(I191:I198) -> 0 | K190: =SUM(K191:K198) -> 0 | L190: =SUM(L191:L198) -> 0 | N190: =SUM(N191:N198) -> 0 | P190: =SUM(P191:P198) -> 0 | Q190: =SUM(Q191:Q198) -> 0 | R190: OK
B191: =B190+1 -> 3111 | C191: Subcontract | E191: 0 | F191: ls | G191: 0 | H191: =E191*G191 -> 0 | I191: =H191*(BURDEN) -> 0 | J191: 0 | K191: =J191*E191 -> 0 | L191: =K191*(TAX) -> 0 | M191: 0 | N191: =M191*E191 -> 0 | O191: 0 | P191: =O191*E191 -> 0 | Q191: =(H191+I191)+(K191+L191)+N191+P191 -> 0 | R191: OK
B192: 3112 | C192: Concrete | E192: 0 | F192: cy | G192: 0 | H192: 0 | I192: 0 | J192: 0 | K192: 0 | L192: 0 | M192: 0 | N192: 0 | O192: 0 | P192: 0 | Q192: 0 | R192: OK
B193: 3113 | C193: Place Concrete | E193: 0 | F193: cy | G193: 0 | H193: 0 | I193: 0 | J193: 0 | K193: 0 | L193: 0 | M193: 0 | N193: 0 | O193: 0 | P193: 0 | Q193: 0 | R193: OK
B194: 3114 | C194: Excavation | E194: 0 | F194: cy | G194: 0 | H194: 0 | I194: 0 | J194: 0 | K194: 0 | L194: 0 | M194: 0 | N194: 0 | O194: 0 | P194: 0 | Q194: 0 | R194: OK
B195: 3115 | C195: Backfill | E195: 0 | F195: cy | G195: 0 | H195: 0 | I195: 0 | J195: 0 | K195: 0 | L195: 0 | M195: 0 | N195: 0 | O195: 0 | P195: 0 | Q195: 0 | R195: OK
B196: 3116 | C196: Dispose of Excess | E196: 0 | F196: cy | G196: 0 | H196: 0 | I196: 0 | J196: 0 | K196: 0 | L196: 0 | M196: 0 | N196: 0 | O196: 0 | P196: 0 | Q196: 0 | R196: OK
B197: 3117 | C197: Reinf Bars | E197: 0 | F197: lb | G197: 0 | H197: 0 | I197: 0 | J197: 0 | K197: 0 | L197: 0 | M197: 0 | N197: 0 | O197: 0 | P197: 0 | Q197: 0 | R197: OK
B198: 3118 | C198: Labor | E198: 0 | F198: md | G198: 250 | H198: 0 | I198: 0 | J198: 0 | K198: 0 | L198: 0 | M198: 0 | N198: 0 | O198: 0 | P198: 0 | Q198: 0 | R198: OK
B199: 3120 | C199: Spread Footings | H199: =SUM(H200:H209) -> 0 | I199: =SUM(I200:I209) -> 0 | K199: =SUM(K200:K209) -> 0 | L199: =SUM(L200:L209) -> 0 | N199: =SUM(N200:N209) -> 0 | P199: =SUM(P200:P209) -> 0 | Q199: =SUM(Q200:Q209) -> 0 | R199: OK
B200: =B199+1 -> 3121 | C200: Subcontract | E200: 0 | F200: ls | G200: 0 | H200: =E200*G200 -> 0 | I200: =H200*(BURDEN) -> 0 | J200: 0 | K200: =J200*E200 -> 0 | L200: =K200*(TAX) -> 0 | M200: 0 | N200: =M200*E200 -> 0 | O200: 0 | P200: =O200*E200 -> 0 | Q200: =(H200+I200)+(K200+L200)+N200+P200 -> 0 | R200: OK
B201: 3122 | C201: Concrete | E201: 0 | F201: cy | G201: 0 | H201: 0 | I201: 0 | J201: 0 | K201: 0 | L201: 0 | M201: 0 | N201: 0 | O201: 0 | P201: 0 | Q201: 0 | R201: =IF(AND(A201="X",Q201=0),"PROBLEM--CHECK VALUES OR QUANTITES","OK") -> OK
... 1414 more rows

Sheet Alt (4) (hidden)
B1: TAX = | C1: =TAX_RATE -> 0.07 | D1: -- FROM BID SUMMARY PAGE
B2: BURDEN= | C2: =BURDEN_RATE -> 0.18 | D2: -- FROM BID SUMMARY PAGE
O4: PROJECT NAME: | P4: ='Bid Summary'!D4 -> 0
O5: PROJECT LOCATION: | P5: ='Bid Summary'!D5 -> 0
O6: PROJECT NO.: | P6: ='Bid Summary'!I4 -> 0
A7: REQUIRED | G7: UNIT | H7: TOTAL | I7: PAYROLL | J7: UNIT | K7: TOTAL | L7: SALES / USE | M7: UNIT | N7: TOTAL | O7: UNIT | P7: TOTAL
A8: IN BID | B8: PHASE CODE | C8: DESCRIPTION | E8: QTY | F8: UNIT | G8: LABOR | H8: LABOR | I8: TAX | J8: MATERIAL | K8: MATERIAL | L8: TAX | M8: SUB / EQUIP | N8: SUB / EQUIP | O8: MISC | P8: MISC | Q8: TOTAL
A9: X | C9: DIV. 1-- GENERAL CONDITIONS | H9: =SUM(H10,H28,H33,H38,H51,H64,H74,H83,H90,H157) -> 0 | I9: =SUM(I10,I28,I33,I38,I51,I64,I74,I83,I90,I157) -> 0 | K9: =SUM(K10,K28,K33,K38,K51,K64,K74,K83,K90,K157) -> 0 | L9: =SUM(L10,L28,L33,L38,L51,L64,L74,L83,L90,L157) -> 0 | N9: =SUM(N10,N28,N33,N38,N51,N64,N74,N83,N90,N157) -> 0 | P9: =SUM(P10,P28,P33,P38,P51,P64,P74,P83,P90,P157) -> 0 | Q9: =SUM(Q10,Q28,Q33,Q38,Q51,Q64,Q74,Q83,Q90,Q157) -> 0 | R9: =IF(AND(A9="X",Q9=0),"PROBLEM--CHECK VALUES OR QUANTITES","OK") -> PROBLEM--CHECK VALUES OR QUANTITES
B10: 1100 | C10: SUPERVISION | H10: =SUM(H11:H27) -> 0 | I10: =SUM(I11:I27) -> 0 | K10: =SUM(K11:K27) -> 0 | L10: =SUM(L11:L27) -> 0 | N10: =SUM(N11:N27) -> 0 | P10: =SUM(P11:P27) -> 0 | Q10: =SUM(Q11:Q27) -> 0 | R10: OK
B11: =B10+1 -> 1101 | C11: SUPERINTENDENT | F11: WKS | G11: 1800 | H11: =E11*G11 -> 0 | I11: =H11*(BURDEN) -> 0 | J11: 0 | K11: =J11*E11 -> 0 | L11: =K11*(TAX) -> 0 | M11: 0 | N11: =M11*E11 -> 0 | O11: 0 | P11: =O11*E11 -> 0 | Q11: =(H11+I11)+(K11+L11)+N11+P11 -> 0 | R11: OK
B12: 1102 | C12: ASST SUPERINTENDENT | F12: WKS | G12: 1000 | H12: 0 | I12: 0 | J12: 0 | K12: 0 | L12: 0 | M12: 0 | N12: 0 | O12: 0 | P12: 0 | Q12: 0 | R12: OK
B13: 1103 | C13: ASST SUPERINTENDENT | F13: WKS | G13: 900 | H13: 0 | I13: 0 | J13: 0 | K13: 0 | L13: 0 | M13: 0 | N13: 0 | O13: 0 | P13: 0 | Q13: 0 | R13: OK
B14: 1104 | C14: FIELD OFFICE ASSISTANT | F14: WKS | G14: 900 | H14: 0 | I14: 0 | J14: 0 | K14: 0 | L14: 0 | M14: 0 | N14: 0 | O14: 0 | P14: 0 | Q14: 0 | R14: OK
B15: 1105 | C15: PROJECT MANAGER | F15: WKS | G15: 400 | H15: 0 | I15: 0 | J15: 0 | K15: 0 | L15: 0 | M15: 0 | N15: 0 | O15: 0 | P15: 0 | Q15: 0 | R15: OK
B16: 1106 | C16: ADMIN | F16: WKS | G16: 200 | H16: 0 | I16: 0 | J16: 0 | K16: 0 | L16: 0 | M16: 0 | N16: 0 | O16: 0 | P16: 0 | Q16: 0 | R16: OK
B17: 1107 | C17: OFFICE | F17: WKS | G17: 200 | H17: 0 | I17: 0 | J17: 0 | K17: 0 | L17: 0 | M17: 0 | N17: 0 | O17: 0 | P17: 0 | Q17: 0 | R17: OK
B18: 1108 | C18: ASST PROJECT MANAGER | F18: WKS | G18: 1350 | H18: 0 | I18: 0 | J18: 0 | K18: 0 | L18: 0 | M18: 0 | N18: 0 | O18: 0 | P18: 0 | Q18: 0 | R18: OK
B19: 1109 | C19: E-I-T / OFFICE ENGINEER | F19: WKS | G19: 950 | H19: 0 | I19: 0 | J19: 0 | K19: 0 | L19: 0 | M19: 0 | N19: 0 | O19: 0 | P19: 0 | Q19: 0 | R19: OK
B20: 1110 | C20: JOB SECRETARY | F20: WKS | G20: 800 | H20: 0 | I20: 0 | J20: 0 | K20: 0 | L20: 0 | M20: 0 | N20: 0 | O20: 0 | P20: 0 | Q20: 0 | R20: OK
B21: 1111 | C21: CLERK/TIMEKEEPER | F21: WKS | G21: 750 | H21: 0 | I21: 0 | J21: 0 | K21: 0 | L21: 0 | M21: 0 | N21: 0 | O21: 0 | P21: 0 | Q21: 0 | R21: OK
B22: 1112 | C22: ESTIMATOR | F22: WKS | G22: 1500 | H22: 0 | I22: 0 | J22: 0 | K22: 0 | L22: 0 | M22: 0 | N22: 0 | O22: 0 | P22: 0 | Q22: 0 | R22: OK
B23: 1113 | C23: WATCHMAN/SECURITY | F23: WKS | G23: 1000 | H23: 0 | I23: 0 | J23: 0 | K23: 0 | L23: 0 | M23: 0 | N23: 0 | O23: 0 | P23: 0 | Q23: 0 | R23: OK
B24: 1114 | C24: FLAGMAN | F24: WKS | G24: 1150 | H24: 0 | I24: 0 | J24: 0 | K24: 0 | L24: 0 | M24: 0 | N24: 0 | O24: 0 | P24: 0 | Q24: 0 | R24: OK
B25: 1115 | C25: TRAFFIC CONTROL | F25: LS | G25: 0 | H25: 0 | I25: 0 | J25: 0 | K25: 0 | L25: 0 | M25: 0 | N25: 0 | O25: 0 | P25: 0 | Q25: 0 | R25: OK
B26: 1116 | C26: SCHEDULING SERVICES | F26: WKS | G26: 500 | H26: 0 | I26: 0 | J26: 0 | K26: 0 | L26: 0 | M26: 0 | N26: 0 | O26: 0 | P26: 0 | Q26: 0 | R26: OK
B27: 1117 | C27: CREW BONUS | F27: WKS | G27: 1500 | H27: 0 | I27: 0 | J27: 0 | K27: 0 | L27: 0 | M27: 0 | N27: 0 | O27: 0 | P27: 0 | Q27: 0 | R27: OK
B28: 1118 | C28: SUPPLEMENTAL EXPENSES: | H28: =SUM(H29:H32) -> 0 | I28: =SUM(I29:I32) -> 0 | K28: =SUM(K29:K32) -> 0 | L28: =SUM(L29:L32) -> 0 | N28: =SUM(N29:N32) -> 0 | P28: =SUM(P29:P32) -> 0 | Q28: =SUM(Q29:Q32) -> 0 | R28: OK
B29: 1119 | C29: SUPERINTENDENT | F29: WKS | G29: 0 | H29: =E29*G29 -> 0 | I29: =H29*(BURDEN) -> 0 | J29: 0 | K29: =J29*E29 -> 0 | L29: =K29*(TAX) -> 0 | M29: 0 | N29: =M29*E29 -> 0 | O29: 0 | P29: =O29*E29 -> 0 | Q29: =(H29+I29)+(K29+L29)+N29+P29 -> 0 | R29: OK
B30: 1120 | C30: ASST SUPERINTENDENT | F30: WKS | G30: 0 | H30: =E30*G30 -> 0 | I30: =H30*(BURDEN) -> 0 | J30: 0 | K30: =J30*E30 -> 0 | L30: =K30*(TAX) -> 0 | M30: 0 | N30: =M30*E30 -> 0 | O30: 0 | P30: =O30*E30 -> 0 | Q30: =(H30+I30)+(K30+L30)+N30+P30 -> 0 | R30: OK
B31: 1121 | C31: OTHER | F31: WKS | G31: 0 | H31: =E31*G31 -> 0 | I31: =H31*(BURDEN) -> 0 | J31: 0 | K31: =J31*E31 -> 0 | L31: =K31*(TAX) -> 0 | M31: 0 | N31: =M31*E31 -> 0 | O31: 0 | P31: =O31*E31 -> 0 | Q31: =(H31+I31)+(K31+L31)+N31+P31 -> 0 | R31: OK
B32: 1122 | C32: MOVING EXPENSES | F32: LS | G32: 0 | H32: =E32*G32 -> 0 | I32: =H32*(BURDEN) -> 0 | J32: 0 | K32: =J32*E32 -> 0 | L32: =K32*(TAX) -> 0 | M32: 0 | N32: =M32*E32 -> 0 | O32: 0 | P32: =O32*E32 -> 0 | Q32: =(H32+I32)+(K32+L32)+N32+P32 -> 0 | R32: OK
B33: 1123 | C33: TRAVEL: | H33: =SUM(H34:H37) -> 0 | I33: =SUM(I34:I37) -> 0 | K33: =SUM(K34:K37) -> 0 | L33: =SUM(L34:L37) -> 0 | N33: =SUM(N34:N37) -> 0 | P33: =SUM(P34:P37) -> 0 | Q33: =SUM(Q34:Q37) -> 0 | R33: OK
B34: 1124 | C34: DIVISION MANAGER | F34: WKS | G34: 0 | H34: =E34*G34 -> 0 | I34: =H34*(BURDEN) -> 0 | J34: 100 | K34: =J34*E34 -> 0 | L34: =K34*(TAX) -> 0 | M34: 0 | N34: =M34*E34 -> 0 | O34: 0 | P34: =O34*E34 -> 0 | Q34: =(H34+I34)+(K34+L34)+N34+P34 -> 0 | R34: OK
B35: 1125 | C35: PROJECT MANAGER | F35: WKS | G35: 0 | H35: =E35*G35 -> 0 | I35: =H35*(BURDEN) -> 0 | J35: 890 | K35: =J35*E35 -> 0 | L35: =K35*(TAX) -> 0 | M35: 0 | N35: =M35*E35 -> 0 | O35: 0 | P35: =O35*E35 -> 0 | Q35: =(H35+I35)+(K35+L35)+N35+P35 -> 0 | R35: OK
B36: 1126 | C36: SUPERINTENDENT LIVING EXPENSES | F36: WKS | G36: 0 | H36: =E36*G36 -> 0 | I36: =H36*(BURDEN) -> 0 | J36: 890 | K36: =J36*E36 -> 0 | L36: =K36*(TAX) -> 0 | M36: 0 | N36: =M36*E36 -> 0 | O36: 0 | P36: =O36*E36 -> 0 | Q36: =(H36+I36)+(K36+L36)+N36+P36 -> 0 | R36: OK
B37: 1127 | C37: CREW LIVING EXPENSES | F37: WKS | G37: 0 | H37: =E37*G37 -> 0 | I37: =H37*(BURDEN) -> 0 | J37: 890 | K37: =J37*E37 -> 0 | L37: =K37*(TAX) -> 0 | M37: 0 | N37: =M37*E37 -> 0 | O37: 0 | P37: =O37*E37 -> 0 | Q37: =(H37+I37)+(K37+L37)+N37+P37 -> 0 | R37: OK
B38: 1128 | C38: UTILITIES | H38: =SUM(H39:H50) -> 0 | I38: =SUM(I39:I50) -> 0 | K38: =SUM(K39:K50) -> 0 | L38: =SUM(L39:L50) -> 0 | N38: =SUM(N39:N50) -> 0 | P38: =SUM(P39:P50) -> 0 | Q38: =SUM(Q39:Q50) -> 0 | R38: OK
B39: 1129 | C39: TEMP POWER USAGE - OFFICE | F39: MO | G39: 0 | H39: =E39*G39 -> 0 | I39: =H39*(BURDEN) -> 0 | J39: 200 | K39: =J39*E39 -> 0 | L39: =K39*(TAX) -> 0 | M39: 0 | N39: =M39*E39 -> 0 | O39: 0 | P39: =O39*E39 -> 0 | Q39: =(H39+I39)+(K39+L39)+N39+P39 -> 0 | R39: OK
B40: 1130 | C40: - BUILDING | F40: MO | G40: 0 | H40: 0 | I40: 0 | J40: 0 | K40: 0 | L40: 0 | M40: 0 | N40: 0 | O40: 0 | P40: 0 | Q40: 0 | R40: OK
B41: 1131 | C41: TEMPORARY WATER USAGE | F41: MO | G41: 0 | H41: 0 | I41: 0 | J41: 800 | K41: 0 | L41: 0 | M41: 0 | N41: 0 | O41: 0 | P41: 0 | Q41: 0 | R41: OK
B42: 1132 | C42: TELEPHONE-CONTRACTOR | F42: MO | G42: 0 | H42: 0 | I42: 0 | J42: 150 | K42: 0 | L42: 0 | M42: 0 | N42: 0 | O42: 0 | P42: 0 | Q42: 0 | R42: OK
B43: 1133 | C43: MOBILE PHONES-( QTY @ $65/MO / PHONE) | F43: MO | G43: 0 | H43: 0 | I43: 0 | J43: 250 | K43: 0 | L43: 0 | M43: 0 | N43: 0 | O43: 0 | P43: 0 | Q43: 0 | R43: OK
B44: 1134 | C44: TELEPHONE-ARCHITECT | F44: MO | G44: 0 | H44: 0 | I44: 0 | J44: 100 | K44: 0 | L44: 0 | M44: 0 | N44: 0 | O44: 0 | P44: 0 | Q44: 0 | R44: OK
B45: 1135 | C45: TEMPORARY WIRING & LIGHTING | F45: LS | G45: 0 | H45: 0 | I45: 0 | J45: 0 | K45: 0 | L45: 0 | M45: 0 | N45: 0 | O45: 0 | P45: 0 | Q45: 0 | R45: OK
B46: 1136 | C46: EXTENSION CORDS & BULBS | F46: LS | G46: 0 | H46: 0 | I46: 0 | J46: 0 | K46: 0 | L46: 0 | M46: 0 | N46: 0 | O46: 0 | P46: 0 | Q46: 0 | R46: OK
B47: 1137 | C47: TEMPORARY PLUMBING | F47: LS | G47: 0 | H47: 0 | I47: 0 | J47: 0 | K47: 0 | L47: 0 | M47: 0 | N47: 0 | O47: 0 | P47: 0 | Q47: 0 | R47: OK
B48: 1138 | C48: ICE, CUPS, COOLER | F48: MO | G48: 0 | H48: 0 | I48: 0 | J48: 20 | K48: 0 | L48: 0 | M48: 0 | N48: 0 | O48: 0 | P48: 0 | Q48: 0 | R48: OK
B49: 1139 | C49: TEMPORARY HEAT | F49: MO | G49: 0 | H49: 0 | I49: 0 | J49: 500 | K49: 0 | L49: 0 | M49: 0 | N49: 0 | O49: 0 | P49: 0 | Q49: 0 | R49: OK
B50: 1140 | C50: TEMPORARY TOILETS | F50: MO | G50: 0 | H50: 0 | I50: 0 | J50: 130 | K50: 0 | L50: 0 | M50: 0 | N50: 0 | O50: 0 | P50: 0 | Q50: 0 | R50: OK
B51: 1141 | C51: MISC. | H51: =SUM(H52:H63) -> 0 | I51: =SUM(I52:I63) -> 0 | K51: =SUM(K52:K63) -> 0 | L51: =SUM(L52:L63) -> 0 | N51: =SUM(N52:N63) -> 0 | P51: =SUM(P52:P63) -> 0 | Q51: =SUM(Q52:Q63) -> 0 | R51: OK
B52: 1142 | C52: TEMPORARY FIELD LABOR | F52: WK | G52: 250 | H52: =E52*G52 -> 0 | I52: =H52*(BURDEN) -> 0 | J52: 0 | K52: =J52*E52 -> 0 | L52: =K52*(TAX) -> 0 | M52: 0 | N52: =M52*E52 -> 0 | O52: 0 | P52: =O52*E52 -> 0 | Q52: =(H52+I52)+(K52+L52)+N52+P52 -> 0 | R52: OK
B53: 1143 | C53: PROGRESS PHOTOGRAPHS | F53: MO | G53: 200 | H53: 0 | I53: 0 | J53: 0 | K53: 0 | L53: 0 | M53: 0 | N53: 0 | O53: 0 | P53: 0 | Q53: 0 | R53: OK
B54: 1144 | C54: SURVEYOR | F54: LS | G54: 0 | H54: 0 | I54: 0 | J54: 0 | K54: 0 | L54: 0 | M54: 10000 | N54: 0 | O54: 0 | P54: 0 | Q54: 0 | R54: OK
B55: 1145 | C55: JOB/PROJECT SIGN | F55: LS | G55: 0 | H55: 0 | I55: 0 | J55: 500 | K55: 0 | L55: 0 | M55: 500 | N55: 0 | O55: 0 | P55: 0 | Q55: 0 | R55: OK
B56: 1146 | C56: TEMP PROTECTION (EXISTING CONDITIONS) & DUST ENCLOSURES | E56: 1 | F56: LS | G56: 0 | H56: 0 | I56: 0 | J56: 0 | K56: 0 | L56: 0 | N56: 0 | O56: 0 | P56: 0 | Q56: 0 | R56: OK
B57: 1147 | C57: REPAIR/REPLACE BLINDS | E57: 1 | F57: LS | G57: 0 | H57: 0 | I57: 0 | J57: 0 | K57: 0 | L57: 0 | N57: 0 | O57: 0 | P57: 0 | Q57: 0 | R57: OK
B58: 1148 | C58: HVAC: PROVIDE TEMP INTAKE/RETURN GRILLE COVERS | E58: 1 | F58: LS | G58: 0 | H58: 0 | I58: 0 | J58: 0 | K58: 0 | L58: 0 | N58: 0 | O58: 0 | P58: 0 | Q58: 0 | R58: OK
B59: 1149 | C59: SANITARY SUPPLIES | F59: LS | G59: 0 | H59: 0 | I59: 0 | J59: 0 | K59: 0 | L59: 0 | M59: 0 | N59: 0 | O59: 0 | P59: 0 | Q59: 0 | R59: OK
B60: 1150 | C60: REPAIR STREET & SIDEWALK | F60: LS | G60: 0 | H60: 0 | I60: 0 | J60: 0 | K60: 0 | L60: 0 | M60: 0 | N60: 0 | O60: 0 | P60: 0 | Q60: 0 | R60: OK
B61: 1151 | C61: BLUEPRINTS/EXTRA DRAWINGS | F61: LS | G61: 0 | H61: 0 | I61: 0 | J61: 2000 | K61: 0 | L61: 0 | M61: 0 | N61: 0 | O61: 0 | P61: 0 | Q61: 0 | R61: OK
B62: 1152 | C62: TRAFFIC CONTROL | F62: LS | G62: 0 | H62: 0 | I62: 0 | J62: 0 | K62: 0 | L62: 0 | M62: 24000 | N62: 0 | O62: 0 | P62: 0 | Q62: 0 | R62: OK
B63: 1153 | C63: CPM Scheduler (3rd) Party | F63: LS | G63: 0 | H63: 0 | I63: 0 | J63: 0 | K63: 0 | L63: 0 | M63: 20000 | N63: 0 | O63: 0 | P63: 0 | Q63: 0 | R63: OK
B64: 1154 | C64: MISCELLANEOUS ITEMS | H64: =SUM(H65:H73) -> 0 | I64: =SUM(I65:I73) -> 0 | K64: =SUM(K65:K73) -> 0 | L64: =SUM(L65:L73) -> 0 | N64: =SUM(N65:N73) -> 0 | P64: =SUM(P65:P73) -> 0 | Q64: =SUM(Q65:Q73) -> 0 | R64: OK
B65: 1155 | C65: SEWER TAP FEE | F65: LS | G65: 0 | H65: =E65*G65 -> 0 | I65: =H65*(BURDEN) -> 0 | J65: 0 | K65: =J65*E65 -> 0 | L65: =K65*(TAX) -> 0 | M65: 0 | N65: =M65*E65 -> 0 | O65: 0 | P65: =O65*E65 -> 0 | Q65: =(H65+I65)+(K65+L65)+N65+P65 -> 0 | R65: OK
B66: 1156 | C66: WATER TAP FEE | F66: LS | G66: 0 | H66: 0 | I66: 0 | J66: 0 | K66: 0 | L66: 0 | M66: 0 | N66: 0 | O66: 0 | P66: 0 | Q66: 0 | R66: OK
B67: 1157 | C67: AGC FEE | F67: LS | G67: 0 | H67: 0 | I67: 0 | J67: 0 | K67: 0 | L67: 0 | M67: 0 | N67: 0 | O67: 0 | P67: 0 | Q67: 0 | R67: OK
B68: 1158 | C68: PHOTOGRAPHS | F68: LS | G68: 0 | H68: 0 | I68: 0 | J68: 0 | K68: 0 | L68: 0 | M68: 0 | N68: 0 | O68: 0 | P68: 0 | Q68: 0 | R68: OK
B69: 1159 | C69: AS-BUILT DRAWINGS | F69: LS | G69: 0 | H69: 0 | I69: 0 | J69: 0 | K69: 0 | L69: 0 | M69: 1000 | N69: 0 | O69: 0 | P69: 0 | Q69: 0 | R69: OK
B70: 1160 | C70: SPECIAL INSPECTION | F70: LS | G70: 0 | H70: 0 | I70: 0 | J70: 0 | K70: 0 | L70: 0 | M70: 0 | N70: 0 | O70: 0 | P70: 0 | Q70: 0 | R70: OK
B71: 1161 | C71: TESTING | F71: LS | G71: 0 | H71: 0 | I71: 0 | J71: 0 | K71: 0 | L71: 0 | M71: 2000 | N71: 0 | O71: 0 | P71: 0 | Q71: 0 | R71: OK
B72: 1162 | C72: WEATHER REPORTS | F72: LS | G72: 0 | H72: 0 | I72: 0 | J72: 0 | K72: 0 | L72: 0 | M72: 0 | N72: 0 | O72: 0 | P72: 0 | Q72: 0 | R72: OK
B73: 1163 | C73: EMPLOYEE INSURANCE | F73: LS | G73: 0 | H73: 0 | I73: 0 | J73: 0 | K73: 0 | L73: 0 | M73: 0 | N73: 0 | O73: 0 | P73: 0 | Q73: 0 | R73: =IF(AND(A73="X",Q73=0),"PROBLEM--CHECK VALUES OR QUANTITES","OK") -> OK
B74: 1164 | C74: SAFETY | H74: =SUM(H75:H82) -> 0 | I74: =SUM(I75:I82) -> 0 | K74: =SUM(K75:K82) -> 0 | L74: =SUM(L75:L82) -> 0 | N74: =SUM(N75:N82) -> 0 | P74: =SUM(P75:P82) -> 0 | Q74: =SUM(Q75:Q82) -> 0 | R74: OK
B75: =B74+1 -> 1165 | C75: FIRE EXTINQUISHERS | F75: LS | G75: 0 | H75: =E75*G75 -> 0 | I75: =H75*(BURDEN) -> 0 | J75: 200 | K75: =J75*E75 -> 0 | L75: =K75*(TAX) -> 0 | M75: 0 | N75: =M75*E75 -> 0 | O75: 0 | P75: =O75*E75 -> 0 | Q75: =(H75+I75)+(K75+L75)+N75+P75 -> 0 | R75: OK
B76: 1166 | C76: FIRST AID SUPPLIES | F76: LS | G76: 0 | H76: 0 | I76: 0 | J76: 500 | K76: 0 | L76: 0 | M76: 0 | N76: 0 | O76: 0 | P76: 0 | Q76: 0 | R76: OK
B77: 1167 | C77: HARD HATS | F77: LS | G77: 0 | H77: 0 | I77: 0 | J77: 200 | K77: 0 | L77: 0 | M77: 0 | N77: 0 | O77: 0 | P77: 0 | Q77: 0 | R77: OK
B78: 1168 | C78: RAINGEAR, BOOTS, ETC. | F78: LS | G78: 0 | H78: 0 | I78: 0 | J78: 0 | K78: 0 | L78: 0 | M78: 0 | N78: 0 | O78: 0 | P78: 0 | Q78: 0 | R78: OK
B79: 1169 | C79: SIGNS | F79: LS | G79: 0 | H79: 0 | I79: 0 | J79: 0 | K79: 0 | L79: 0 | M79: 0 | N79: 0 | O79: 0 | P79: 0 | Q79: 0 | R79: OK
B80: 1170 | C80: RAILINGS | F80: LF | G80: 0 | H80: 0 | I80: 0 | J80: 0 | K80: 0 | L80: 0 | M80: 0 | N80: 0 | O80: 0 | P80: 0 | Q80: 0 | R80: OK
B81: 1171 | C81: MISCELLANEOUS SAFETY ITEMS | F81: LS | G81: 0 | H81: 0 | I81: 0 | J81: 0 | K81: 0 | L81: 0 | M81: 0 | N81: 0 | O81: 0 | P81: 0 | Q81: 0 | R81: OK
B82: 1172 | C82: SECURITY FENCING | F82: LS | G82: 0 | H82: 0 | I82: 0 | J82: 0 | K82: 0 | L82: 0 | M82: 0 | N82: 0 | O82: 0 | P82: 0 | Q82: 0 | R82: OK
B83: 1173 | C83: CLEAN-UP | H83: =SUM(H84:H89) -> 0 | I83: =SUM(I84:I89) -> 0 | K83: =SUM(K84:K89) -> 0 | L83: =SUM(L84:L89) -> 0 | N83: =SUM(N84:N89) -> 0 | P83: =SUM(P84:P89) -> 0 | Q83: =SUM(Q84:Q89) -> 0 | R83: OK
B84: 1174 | C84: WEEKLY CLEAN (2 MEN @ $250/MD) | F84: MD | G84: 73 | H84: =E84*G84 -> 0 | I84: =H84*(BURDEN) -> 0 | J84: 0 | K84: =J84*E84 -> 0 | L84: =K84*(TAX) -> 0 | M84: 0 | N84: =M84*E84 -> 0 | O84: 0 | P84: =O84*E84 -> 0 | Q84: =(H84+I84)+(K84+L84)+N84+P84 -> 0 | R84: OK
B85: 1175 | C85: DUMPSTERS | F85: EA | G85: 0 | H85: 0 | I85: 0 | J85: 550 | K85: 0 | L85: 0 | M85: 0 | N85: 0 | O85: 0 | P85: 0 | Q85: 0 | R85: OK
B86: 1176 | C86: HAUL TRASH /DUMPSTER RENTAL | F86: WKS | G86: 0 | H86: 0 | I86: 0 | J86: 0 | K86: 0 | L86: 0 | M86: 425 | N86: 0 | O86: 0 | P86: 0 | Q86: 0 | R86: OK
B87: 1177 | C87: FINAL CLEAN-BUILDING | F87: SF | G87: 0 | H87: 0 | I87: 0 | J87: 0 | K87: 0 | L87: 0 | M87: 0.75 | N87: 0 | O87: 0 | P87: 0 | Q87: 0 | R87: OK
B88: 1178 | C88: GLASS | F88: SF | G88: 0 | H88: 0 | I88: 0 | J88: 0 | K88: 0 | L88: 0 | M88: 0 | N88: 0 | O88: 0 | P88: 0 | Q88: 0 | R88: OK
B89: 1179 | C89: GROUNDS | F89: LS | G89: 0 | H89: 0 | I89: 0 | J89: 0 | K89: 0 | L89: 0 | M89: 0 | N89: 0 | O89: 0 | P89: 0 | Q89: 0 | R89: OK
B90: 1180 | C90: EQUIPMENT | H90: =SUM(H91:H153) -> 0 | I90: =SUM(I91:I153) -> 0 | K90: =SUM(K91:K153) -> 0 | L90: =SUM(L91:L153) -> 0 | N90: =SUM(N91:N153) -> 0 | P90: =SUM(P91:P153) -> 0 | Q90: =SUM(Q91:Q156) -> 0 | R90: OK
B91: 1181 | C91: HAND DRILLS | F91: LS | G91: 0 | H91: =E91*G91 -> 0 | I91: =H91*(BURDEN) -> 0 | J91: 0 | K91: =J91*E91 -> 0 | L91: =K91*(TAX) -> 0 | M91: 0 | N91: =M91*E91 -> 0 | O91: 0 | P91: =O91*E91 -> 0 | Q91: =(H91+I91)+(K91+L91)+N91+P91 -> 0 | R91: OK
B92: 1182 | C92: CIRCULAR SAW | F92: LS | G92: 0 | H92: 0 | I92: 0 | J92: 0 | K92: 0 | L92: 0 | M92: 0 | N92: 0 | O92: 0 | P92: 0 | Q92: 0 | R92: OK
B93: 1183 | C93: RADIAL ARM SAW | F93: LS | G93: 0 | H93: 0 | I93: 0 | J93: 0 | K93: 0 | L93: 0 | M93: 0 | N93: 0 | O93: 0 | P93: 0 | Q93: 0 | R93: OK
B94: 1184 | C94: RAMSET | F94: LS | G94: 0 | H94: 0 | I94: 0 | J94: 0 | K94: 0 | L94: 0 | M94: 0 | N94: 0 | O94: 0 | P94: 0 | Q94: 0 | R94: OK
B95: 1185 | C95: DOOR HANGING EQUIPMENT | F95: LS | G95: 0 | H95: 0 | I95: 0 | J95: 0 | K95: 0 | L95: 0 | M95: 0 | N95: 0 | O95: 0 | P95: 0 | Q95: 0 | R95: OK
B96: 1186 | C96: ROTARY HAMMER | F96: LS | G96: 0 | H96: 0 | I96: 0 | J96: 0 | K96: 0 | L96: 0 | M96: 0 | N96: 0 | O96: 0 | P96: 0 | Q96: 0 | R96: OK
B97: 1187 | C97: SAW BLADES,BITS,ETC. | F97: LS | G97: 0 | H97: 0 | I97: 0 | J97: 0 | K97: 0 | L97: 0 | M97: 0 | N97: 0 | O97: 0 | P97: 0 | Q97: 0 | R97: OK
B98: 1188 | C98: FORKLIFT | F98: MOS | G98: 0 | H98: 0 | I98: 0 | J98: 0 | K98: 0 | L98: 0 | M98: 600 | N98: 0 | O98: 0 | P98: 0 | Q98: 0 | R98: OK
B99: 1189 | C99: MOTOR GRADER | F99: MOS | G99: 0 | H99: 0 | I99: 0 | J99: 0 | K99: 0 | L99: 0 | M99: 0 | N99: 0 | O99: 0 | P99: 0 | Q99: 0 | R99: OK
B100: 1190 | C100: MOBILE CRANE | F100: MOS | G100: 0 | H100: 0 | I100: 0 | J100: 0 | K100: 0 | L100: 0 | M100: 0 | N100: 0 | O100: 0 | P100: 0 | Q100: 0 | R100: OK
B101: 1191 | C101: WHEELBARROWS | F101: LS | G101: 0 | H101: 0 | I101: 0 | J101: 0 | K101: 0 | L101: 0 | M101: 0 | N101: 0 | O101: 0 | P101: 0 | Q101: 0 | R101: OK
B102: 1192 | C102: BUGGIES | F102: LS | G102: 0 | H102: 0 | I102: 0 | J102: 0 | K102: 0 | L102: 0 | M102: 0 | N102: 0 | O102: 0 | P102: 0 | Q102: 0 | R102: OK
B103: 1193 | C103: CONCRETE BUCKET | F103: LS | G103: 0 | H103: 0 | I103: 0 | J103: 0 | K103: 0 | L103: 0 | M103: 0 | N103: 0 | O103: 0 | P103: 0 | Q103: 0 | R103: OK
